Workbook

Sheet Data (hidden)
A1: 1 | B1: 2 | C1: 3 | D1: 4 | E1: 5 | F1: 6 | G1: 7 | H1: 8 | I1: 9 | J1: 10 | K1: 11 | L1: 12 | M1: 13 | N1: 14 | O1: 15 | P1: 16 | Q1: 17 | R1: 18 | S1: 19 | T1: 20 | U1: 21 | V1: 22 | W1: 23 | X1: 24 | Y1: 25 | Z1: 26 | AA1: 27 | AB1: 28 | AC1: 29 | AD1: 30 | AE1: 31 | AF1: 32 | AG1: 33 | AH1: 34 | AI1: 35 | AJ1: 36 | AK1: 37 | AL1: 38 | AM1: 39 | AN1: 40 | AO1: 41 | AP1: 42 | AQ1: 43 | AR1: 44 | AS1: 45 | AT1: 46 | AU1: 47 | AV1: 48 | AW1: 49 | AX1: 50 | AY1: 51 | AZ1: 52 | BA1: 53 | BB1: 54 | BC1: 55 | BD1: 56 | BE1: 57 | BF1: 58 | BG1: 59 | BH1: 60 | BI1: 61 | BJ1: 62 | BK1: 63 | BL1: 64 | BM1: 65 | BN1: 66 | BO1: 67 | BP1: 68 | BQ1: 69 | BR1: 70 | BS1: 71 | BT1: 72 | BU1: 73 | BV1: 74 | BW1: 75 | BX1: 76 | BY1: 77 | BZ1: 78 | CA1: 79 | CB1: 80
A2: final list | B2: School Name | C2: Phase | D2: F1 - Pri | E2: F1 -KS3 | F2: F1 - KS4 | G2: F2 - FSM Pri | H2: F2 - FSM Sec | I2: F2 - E6FSM Pri | J2: F2 - E6FSM Sec | K2: F2 - IDACI F - Pri | L2: F2 - IDACI E - Pri | M2: F2 - IDACI D - Pri | N2: F2 - IDACI C - Pri | O2: F2 - IDACI B - Pri | P2: F2 - IDACI A - Pri | Q2: F2 - IDACI F - Sec | R2: F2 - IDACI E - Sec | S2: F2 - IDACI D - Sec | T2: F2 - IDACI C - Sec | U2: F2 - IDACI B - Sec | V2: F2 - IDACI A - Sec | W2: F4 - EAL Pri | X2: F4 - EAL Sec | Y2: F6 - EYFS Pri | Z2: F6 - EYFS Sec | AA2: Mobility Pri | AB2: Mobility Sec | AC2: F7 - Lump Sum | AD2: F8 - Sparsity Pri | AE2: F8 - Sparsity Sec | AF2: F9 - ACA | AG2: F10 - Split Site | AH2: F11 - Rates | AI2: F12 - PFI | AJ2: F13 - Exceptional Circumstances | AK2: MFL Rate | AL2: SBS 22-23 | AM2: Protected Grants 22-23 | AN2: Rates - 22-23 | AO2: Pupils - Oct 21 | AP2: PFI Funding - Future Year? | AR2: Early Years - Base Rate | AS2: Early Years - QTS | AT2: Early Years - Disadvantage | AV2: SRP Des1 Pre | AW2: SRP Des2 Pre | AX2: SRP Des1 Post | AY2: SRP Des2 Post | AZ2: SRP Places Apr - Aug PRE | BA2: SRP Places Apr - Aug POST | BB2: SRP Places Sep - Mar PRE | BC2: SRP Places Sep - Mar Post | BD2: SRP actuals PRE (OCT) | BE2: SRP actuals POST (OCT) | BI2: TPG | BJ2: IDACI | BK2: Ever 6 FSM | BL2: Low Cost, high Incidence SEN | BM2: English as an additional language | BN2: Element of Lump Sum | BO2: Area Cost Adjustment-London Fringe | BP2: Minimum Per-Pupil Level Funding (MPPL) | BQ2: Minimum Funding Guarantee (MFG)
A3: 2001 | B3: Horizon Primary Academy | C3: 1 | D3: 201 | E3: 0 | F3: 0 | G3: 0.4228855721 | H3: 0 | I3: 0.4427860697 | J3: 0 | K3: 0.07960199005 | L3: 0.184079602 | M3: 0 | N3: 0.2487562189 | O3: 0.3631840796 | P3: 0 | Q3: 0 | R3: 0 | S3: 0 | T3: 0 | U3: 0 | V3: 0 | W3: 0.07514450867 | X3: 0 | Y3: 0.1936322287 | Z3: 0 | AA3: 0.05472636816 | AB3: 0 | AC3: 125894.7077 | AD3: 0 | AE3: 0 | AF3: 1.0377 | AG3: 0 | AH3: 4889.6 | AI3: 0 | AJ3: 0 | AK3: 4384 | AL3: 992500.9376 | AM3: 32162.1201 | AN3: 4889.6 | AO3: 200 | AR3: 0 | AS3: 0 | AT3: 0 | BI3: y | BJ3: 74031.79121 | BK3: 61712.94748 | BL3: 44213.32446 | BM3: 8616.233454 | BN3: 125894.7077 | BP3: 0 | BQ3: 0 | CC3: Recoupment Academy
A4: 2003 | B4: Oaks Primary Academy | C4: 1 | D4: 195 | E4: 0 | F4: 0 | G4: 0.3948717949 | H4: 0 | I4: 0.4102564103 | J4: 0 | K4: 0.1191709845 | L4: 0.0310880829 | M4: 0.0621761658 | N4: 0.3575129534 | O4: 0.1917098446 | P4: 0 | Q4: 0 | R4: 0 | S4: 0 | T4: 0 | U4: 0 | V4: 0 | W4: 0.09696969697 | X4: 0 | Y4: 0.2298136646 | Z4: 0 | AA4: 0.05729166667 | AB4: 0 | AC4: 125894.7077 | AD4: 0 | AE4: 0 | AF4: 1 | AG4: 0 | AH4: 3891.2 | AI4: 0 | AJ4: 0 | AK4: 4384 | AL4: 906208.2013 | AM4: 28493.2158 | AN4: 3891.2 | AO4: 189 | AR4: 0 | AS4: 0 | AT4: 0 | BI4: y | BJ4: 63837.92796 | BK4: 55472.31234 | BL4: 50908.45641 | BM4: 10786.854 | BN4: 125894.7077 | BP4: 0 | BQ4: 0 | CC4: Recoupment Academy
A5: 2004 | B5: Tree Tops Primary Academy | C5: 1 | D5: 295 | E5: 0 | F5: 0 | G5: 0.5050847458 | H5: 0 | I5: 0.5186440678 | J5: 0 | K5: 0.04745762712 | L5: 0.003389830508 | M5: 0.02711864407 | N5: 0.1389830508 | O5: 0.4474576271 | P5: 0 | Q5: 0 | R5: 0 | S5: 0 | T5: 0 | U5: 0 | V5: 0 | W5: 0.1225296443 | X5: 0 | Y5: 0.3449562682 | Z5: 0 | AA5: 0.09183673469 | AB5: 0 | AC5: 125894.7077 | AD5: 0 | AE5: 0 | AF5: 1 | AG5: 0 | AH5: 6860.8 | AI5: 0 | AJ5: 0 | AK5: 4384 | AL5: 1336313.461 | AM5: 42844.3979 | AN5: 6860.8 | AO5: 272 | AR5: 0 | AS5: 0 | AT5: 0 | BI5: y | BJ5: 92473.22924 | BK5: 106090.7973 | BL5: 115602.0476 | BM5: 20619.93726 | BN5: 125894.7077 | BP5: 0 | BQ5: 0 | CC5: Recoupment Academy
A6: 2006 | B6: St James the Great Academy | C6: 1 | D6: 177 | E6: 0 | F6: 0 | G6: 0.4576271186 | H6: 0 | I6: 0.4689265537 | J6: 0 | K6: 0.03389830508 | L6: 0 | M6: 0.01129943503 | N6: 0.3502824859 | O6: 0.4350282486 | P6: 0 | Q6: 0 | R6: 0 | S6: 0 | T6: 0 | U6: 0 | V6: 0 | W6: 0.05063291139 | X6: 0 | Y6: 0.2631578947 | Z6: 0 | AA6: 0.02824858757 | AB6: 0 | AC6: 125894.7077 | AD6: 0 | AE6: 0 | AF6: 1 | AG6: 0 | AH6: 7270.4 | AI6: 0 | AJ6: 0 | AK6: 4384 | AL6: 934268.6096 | AM6: 29234.7419 | AN6: 7270.4 | AO6: 187 | AR6: 0 | AS6: 0 | AT6: 0 | BI6: y | BJ6: 70117.21902 | BK6: 57552.52405 | BL6: 52913.8229 | BM6: 5112.464641 | BN6: 125894.7077 | BP6: 0 | BQ6: 0 | CC6: Recoupment Academy
A7: 2007 | B7: Molehill Primary Academy | C7: 1 | D7: 270 | E7: 0 | F7: 0 | G7: 0.4703703704 | H7: 0 | I7: 0.4925925926 | J7: 0 | K7: 0.1518518519 | L7: 0.02222222222 | M7: 0.1222222222 | N7: 0.1925925926 | O7: 0.1703703704 | P7: 0 | Q7: 0 | R7: 0 | S7: 0 | T7: 0 | U7: 0 | V7: 0 | W7: 0.135371179 | X7: 0 | Y7: 0.2843434343 | Z7: 0 | AA7: 0.09259259259 | AB7: 0 | AC7: 125894.7077 | AD7: 0 | AE7: 0 | AF7: 1 | AG7: 0 | AH7: 6553.6 | AI7: 0 | AJ7: 0 | AK7: 4384 | AL7: 1332247.682 | AM7: 42940.4661 | AN7: 6553.6 | AO7: 280 | AR7: 0 | AS7: 0 | AT7: 0 | BI7: y | BJ7: 72831.71594 | BK7: 92222.71926 | BL7: 87214.04677 | BM7: 20850.3873 | BN7: 125894.7077 | BP7: 0 | BQ7: 0 | CC7: Recoupment Academy
A8: 2008 | B8: Tiger Primary School | C8: 1 | D8: 433 | E8: 0 | F8: 0 | G8: 0.3163972286 | H8: 0 | I8: 0.3233256351 | J8: 0 | K8: 0.2055427252 | L8: 0.05080831409 | M8: 0.05080831409 | N8: 0.1478060046 | O8: 0.08775981524 | P8: 0 | Q8: 0 | R8: 0 | S8: 0 | T8: 0 | U8: 0 | V8: 0 | W8: 0.05898123324 | X8: 0 | Y8: 0.3401639344 | Z8: 0 | AA8: 0.0623556582 | AB8: 0 | AC8: 125894.7077 | AD8: 0 | AE8: 0 | AF8: 1 | AG8: 0 | AH8: 7577.6 | AI8: 0 | AJ8: 0 | AK8: 4384 | AL8: 1864467.295 | AM8: 56783.2875 | AN8: 7577.6 | AO8: 434 | AR8: 0 | AS8: 0 | AT8: 0 | BI8: y | BJ8: 84988.31986 | BK8: 97076.54659 | BL8: 167322.9959 | BM8: 14568.87095 | BN8: 125894.7077 | BP8: 0 | BQ8: 0 | CC8: Recoupment Academy
A9: 2009 | B9: Northdown Primary School | C9: 1 | D9: 314 | E9: 0 | F9: 0 | G9: 0.7452229299 | H9: 0 | I9: 0.7643312102 | J9: 0 | K9: 0.04140127389 | L9: 0.06369426752 | M9: 0.0127388535 | N9: 0.1082802548 | O9: 0.3789808917 | P9: 0.3248407643 | Q9: 0 | R9: 0 | S9: 0 | T9: 0 | U9: 0 | V9: 0 | W9: 0.1345454545 | X9: 0 | Y9: 0.4526936027 | Z9: 0 | AA9: 0.0923566879 | AB9: 0 | AC9: 125894.7077 | AD9: 0 | AE9: 0 | AF9: 1 | AG9: 0 | AH9: 8704 | AI9: 0 | AJ9: 0 | AK9: 4384 | AL9: 1694353.762 | AM9: 55061.0656 | AN9: 8704 | AO9: 326 | AR9: 0 | AS9: 0 | AT9: 0 | BI9: y | BJ9: 153139.24 | BK9: 166416.937 | BL9: 161478.0421 | BM9: 24100.32112 | BN9: 125894.7077 | BP9: 0 | BQ9: 0 | CC9: Recoupment Academy
A10: 2010 | B10: Newlands Primary School | C10: 1 | D10: 284 | E10: 0 | F10: 0 | G10: 0.588028169 | H10: 0 | I10: 0.6021126761 | J10: 0 | K10: 0.04577464789 | L10: 0.1901408451 | M10: 0.02112676056 | N10: 0.2077464789 | O10: 0.2781690141 | P10: 0.03169014085 | Q10: 0 | R10: 0 | S10: 0 | T10: 0 | U10: 0 | V10: 0 | W10: 0.08196721311 | X10: 0 | Y10: 0.4100133809 | Z10: 0 | AA10: 0.06338028169 | AB10: 0 | AC10: 125894.7077 | AD10: 0 | AE10: 0 | AF10: 1 | AG10: 0 | AH10: 8243.2 | AI10: 0 | AJ10: 0 | AK10: 4384 | AL10: 1406930.124 | AM10: 45369.1893 | AN10: 8243.2 | AO10: 291 | AR10: 0 | AS10: 0 | AT10: 0 | BI10: y | BJ10: 93820.89978 | BK10: 118572.0676 | BL10: 132280.5037 | BM10: 13279.52865 | BN10: 125894.7077 | BP10: 0 | BQ10: 0 | CC10: Recoupment Academy
A11: 2011 | B11: Salmestone Primary School | C11: 1 | D11: 200 | E11: 0 | F11: 0 | G11: 0.425 | H11: 0 | I11: 0.445 | J11: 0 | K11: 0.28 | L11: 0.095 | M11: 0.055 | N11: 0.205 | O11: 0.27 | P11: 0.055 | Q11: 0 | R11: 0 | S11: 0 | T11: 0 | U11: 0 | V11: 0 | W11: 0.09356725146 | X11: 0 | Y11: 0.398538961 | Z11: 0 | AA11: 0.03 | AB11: 0 | AC11: 125894.7077 | AD11: 0 | AE11: 0 | AF11: 1 | AG11: 0 | AH11: 8448 | AI11: 0 | AJ11: 0 | AK11: 4384 | AL11: 1072562.811 | AM11: 32231.8684 | AN11: 8448 | AO11: 217 | AR11: 0 | AS11: 0 | AT11: 0 | BI11: n | BJ11: 76352.89075 | BK11: 61712.94748 | BL11: 90548.28927 | BM11: 10675.24913 | BN11: 125894.7077 | BP11: 0 | BQ11: 0 | CC11: Recoupment Academy
A12: 2013 | B12: Water Meadows Primary School | C12: 1 | D12: 146 | E12: 0 | F12: 0 | G12: 0.4452054795 | H12: 0 | I12: 0.4520547945 | J12: 0 | K12: 0.5410958904 | L12: 0.06849315068 | M12: 0 | N12: 0 | O12: 0.05479452055 | P12: 0 | Q12: 0 | R12: 0 | S12: 0 | T12: 0 | U12: 0 | V12: 0 | W12: 0.07438016529 | X12: 0 | Y12: 0.325017325 | Z12: 0 | AA12: 0.1643835616 | AB12: 0 | AC12: 125894.7077 | AD12: 2465.214877 | AE12: 0 | AF12: 1 | AG12: 0 | AH12: 5785.6 | AI12: 0 | AJ12: 0 | AK12: 4384 | AL12: 621480.126 | AM12: 19462.8088 | AN12: 5785.6 | AO12: 117 | AR12: 0 | AS12: 0 | AT12: 0 | BJ12: 24637.72677 | BK12: 45764.65768 | BL12: 53906.21475 | BM12: 6194.897797 | BN12: 125894.7077 | BP12: 0 | BQ12: 0 | CC12: Recoupment Academy
A13: 2014 | B13: St Laurence In Thanet Church of England Junior Academy | C13: 1 | D13: 174 | E13: 0 | F13: 0 | G13: 0.5804597701 | H13: 0 | I13: 0.5977011494 | J13: 0 | K13: 0.2011494253 | L13: 0.132183908 | M13: 0.05747126437 | N13: 0.1954022989 | O13: 0.1494252874 | P13: 0.1206896552 | Q13: 0 | R13: 0 | S13: 0 | T13: 0 | U13: 0 | V13: 0 | W13: 0.01149425287 | X13: 0 | Y13: 0.4169435216 | Z13: 0 | AA13: 0.04597701149 | AB13: 0 | AC13: 125894.7077 | AD13: 0 | AE13: 0 | AF13: 1 | AG13: 0 | AH13: 5171.2 | AI13: 0 | AJ13: 0 | AK13: 4384 | AL13: 1041220.239 | AM13: 33132.5074 | AN13: 5171.2 | AO13: 207 | AR13: 0 | AS13: 0 | AT13: 0 | BJ13: 61511.26572 | BK13: 72114.00604 | BL13: 82414.94026 | BM13: 1140.91725 | BN13: 125894.7077 | BP13: 0 | BQ13: 0 | CC13: Recoupment Academy
A14: 2015 | B14: Dame Janet Primary Academy | C14: 1 | D14: 336 | E14: 0 | F14: 0 | G14: 0.5744047619 | H14: 0 | I14: 0.5952380952 | J14: 0 | K14: 0.06268656716 | L14: 0.09850746269 | M14: 0.1701492537 | N14: 0.1402985075 | O14: 0.08656716418 | P14: 0.3343283582 | Q14: 0 | R14: 0 | S14: 0 | T14: 0 | U14: 0 | V14: 0 | W14: 0.0409556314 | X14: 0 | Y14: 0.4125124131 | Z14: 0 | AA14: 0.1279761905 | AB14: 0 | AC14: 125894.7077 | AD14: 0 | AE14: 0 | AF14: 1 | AG14: 0 | AH14: 10342.4 | AI14: 0 | AJ14: 0 | AK14: 4384 | AL14: 1814014.019 | AM14: 57875.0621 | AN14: 10342.4 | AO14: 362 | AR14: 0 | AS14: 0 | AT14: 0 | BJ14: 149492.6628 | BK14: 138680.7808 | BL14: 157454.7507 | BM14: 7850.133709 | BN14: 125894.7077 | BP14: 0 | BQ14: 0 | CC14: Recoupment Academy
A15: 2017 | B15: Drapers Mills Primary Academy | C15: 1 | D15: 327 | E15: 0 | F15: 0 | G15: 0.6574923547 | H15: 0 | I15: 0.6819571865 | J15: 0 | K15: 0.03692307692 | L15: 0.1507692308 | M15: 0.06769230769 | N15: 0.1876923077 | O15: 0.2338461538 | P15: 0.2553846154 | Q15: 0 | R15: 0 | S15: 0 | T15: 0 | U15: 0 | V15: 0 | W15: 0.2578397213 | X15: 0 | Y15: 0.4411834884 | Z15: 0 | AA15: 0.1288343558 | AB15: 0 | AC15: 125894.7077 | AD15: 0 | AE15: 0 | AF15: 1 | AG15: 0 | AH15: 11776 | AI15: 0 | AJ15: 0 | AK15: 4384 | AL15: 1855143.868 | AM15: 58107.2269 | AN15: 11776 | AO15: 353 | AR15: 0 | AS15: 0 | AT15: 0 | BJ15: 148252.8438 | BK15: 154629.0706 | BL15: 163887.7424 | BM15: 48097.41398 | BN15: 125894.7077 | BP15: 0 | BQ15: 0 | CC15: Recoupment Academy
A16: 2018 | B16: Temple Grove Academy | C16: 1 | D16: 192 | E16: 0 | F16: 0 | G16: 0.4322916667 | H16: 0 | I16: 0.4427083333 | J16: 0 | K16: 0.390625 | L16: 0 | M16: 0 | N16: 0.3020833333 | O16: 0 | P16: 0 | Q16: 0 | R16: 0 | S16: 0 | T16: 0 | U16: 0 | V16: 0 | W16: 0.1172839506 | X16: 0 | Y16: 0.3150967742 | Z16: 0 | AA16: 0.109375 | AB16: 0 | AC16: 125894.7077 | AD16: 0 | AE16: 0 | AF16: 1 | AG16: 0 | AH16: 6689.59 | AI16: 0 | AJ16: 0 | AK16: 4384 | AL16: 952737.2822 | AM16: 30751.8183 | AN16: 6689.59 | AO16: 200 | AR16: 0 | AS16: 0 | AT16: 0 | BJ16: 44348.08903 | BK16: 58939.33186 | BL16: 68726.56774 | BM16: 12845.88311 | BN16: 125894.7077 | BP16: 0 | BQ16: 0 | CC16: Recoupment Academy
A17: 2019 | B17: Chantry Community Academy | C17: 1 | D17: 399 | E17: 0 | F17: 0 | G17: 0.4185463659 | H17: 0 | I17: 0.4235588972 | J17: 0 | K17: 0.365914787 | L17: 0.313283208 | M17: 0.03258145363 | N17: 0.1102756892 | O17: 0.005012531328 | P17: 0 | Q17: 0 | R17: 0 | S17: 0 | T17: 0 | U17: 0 | V17: 0 | W17: 0.3342857143 | X17: 0 | Y17: 0.342476489 | Z17: 0 | AA17: 0.09523809524 | AB17: 0 | AC17: 125894.7077 | AD17: 0 | AE17: 0 | AF17: 1 | AG17: 0 | AH17: 13209.6 | AI17: 0 | AJ17: 0 | AK17: 4384 | AL17: 1833338.581 | AM17: 56362.9893 | AN17: 13209.6 | AO17: 399 | AR17: 0 | AS17: 0 | AT17: 0 | BJ17: 94853.39834 | BK17: 117185.2598 | BL17: 155232.6702 | BM17: 76087.77143 | BN17: 125894.7077 | BP17: 0 | BQ17: 0 | CC17: Recoupment Academy
A18: 2020 | B18: Christ Church Church of England Junior School, Ramsgate | C18: 1 | D18: 200 | E18: 0 | F18: 0 | G18: 0.41 | H18: 0 | I18: 0.435 | J18: 0 | K18: 0.175 | L18: 0.14 | M18: 0.15 | N18: 0.18 | O18: 0.065 | P18: 0.025 | Q18: 0 | R18: 0 | S18: 0 | T18: 0 | U18: 0 | V18: 0 | W18: 0.09 | X18: 0 | Y18: 0.4509157509 | Z18: 0 | AA18: 0.08163265306 | AB18: 0 | AC18: 125894.7077 | AD18: 0 | AE18: 0 | AF18: 1 | AG18: 0 | AH18: 7884.8 | AI18: 0 | AJ18: 0 | AK18: 4384 | AL18: 956737.758 | AM18: 29136.6724 | AN18: 7884.8 | AO18: 193 | AR18: 0 | AS18: 0 | AT18: 0 | BJ18: 55422.9927 | BK18: 60326.13967 | BL18: 102448.3271 | BM18: 10268.25525 | BN18: 125894.7077 | BP18: 0 | BQ18: 0 | CC18: Recoupment Academy
A19: 2021 | B19: Kemsley Primary Academy | C19: 1 | D19: 202 | E19: 0 | F19: 0 | G19: 0.3168316832 | H19: 0 | I19: 0.3217821782 | J19: 0 | K19: 0.7263681592 | L19: 0.004975124378 | M19: 0.01492537313 | N19: 0.009950248756 | O19: 0 | P19: 0.02487562189 | Q19: 0 | R19: 0 | S19: 0 | T19: 0 | U19: 0 | V19: 0 | W19: 0.0632183908 | X19: 0 | Y19: 0.2658959538 | Z19: 0 | AA19: 0.0396039604 | AB19: 0 | AC19: 125894.7077 | AD19: 0 | AE19: 0 | AF19: 1 | AG19: 0 | AH19: 9472 | AI19: 0 | AJ19: 0 | AK19: 4384 | AL19: 963184.53 | AM19: 30495.6365 | AN19: 9472 | AO19: 207 | AR19: 0 | AS19: 0 | AT19: 0 | BJ19: 39033.25851 | BK19: 45071.25378 | BL19: 61015.83622 | BM19: 7284.822213 | BN19: 125894.7077 | BP19: 0 | BQ19: 0 | CC19: Recoupment Academy
A20: 2022 | B20: Milton Court Primary Academy | C20: 1 | D20: 208 | E20: 0 | F20: 0 | G20: 0.5865384615 | H20: 0 | I20: 0.5865384615 | J20: 0 | K20: 0.213592233 | L20: 0.1165048544 | M20: 0.3737864078 | N20: 0.02912621359 | O20: 0 | P20: 0.01941747573 | Q20: 0 | R20: 0 | S20: 0 | T20: 0 | U20: 0 | V20: 0 | W20: 0.06214689266 | X20: 0 | Y20: 0.3230324589 | Z20: 0 | AA20: 0.08173076923 | AB20: 0 | AC20: 125894.7077 | AD20: 0 | AE20: 0 | AF20: 1 | AG20: 0 | AH20: 5836.8 | AI20: 0 | AJ20: 0 | AK20: 4384 | AL20: 1005268.157 | AM20: 33339.6544 | AN20: 5836.8 | AO20: 203 | AR20: 0 | AS20: 0 | AT20: 0 | BJ20: 55891.46336 | BK20: 84595.27632 | BL20: 76328.8937 | BM20: 7374.064036 | BN20: 125894.7077 | BP20: 0 | BQ20: 0 | CC20: Recoupment Academy
A21: 2023 | B21: Temple Ewell Church of England Primary School | C21: 1 | D21: 144 | E21: 0 | F21: 0 | G21: 0.1666666667 | H21: 0 | I21: 0.1875 | J21: 0 | K21: 0.0625 | L21: 0.07638888889 | M21: 0.0625 | N21: 0.02083333333 | O21: 0.01388888889 | P21: 0.02777777778 | Q21: 0 | R21: 0 | S21: 0 | T21: 0 | U21: 0 | V21: 0 | W21: 0 | X21: 0 | Y21: 0.1596346237 | Z21: 0 | AA21: 0.04166666667 | AB21: 0 | AC21: 125894.7077 | AD21: 0 | AE21: 0 | AF21: 1 | AG21: 0 | AH21: 1228.8 | AI21: 0 | AJ21: 0 | AK21: 4384 | AL21: 640457.3822 | AM21: 20200.3321 | AN21: 1228.8 | AO21: 143 | AR21: 0 | AS21: 0 | AT21: 0 | BJ21: 14015.59473 | BK21: 18721.90541 | BL21: 26113.73874 | BM21: 0 | BN21: 125894.7077 | BP21: 0 | BQ21: 0 | CC21: Recoupment Academy
A22: 2024 | B22: Copperfield Academy | C22: 1 | D22: 407 | E22: 0 | F22: 0 | G22: 0.3390663391 | H22: 0 | I22: 0.3415233415 | J22: 0 | K22: 0.17617866 | L22: 0.1464019851 | M22: 0.08933002481 | N22: 0.01488833747 | O22: 0.07196029777 | P22: 0 | Q22: 0 | R22: 0 | S22: 0 | T22: 0 | U22: 0 | V22: 0 | W22: 0.2670454545 | X22: 0 | Y22: 0.2992424242 | Z22: 0 | AA22: 0.1228501229 | AB22: 0 | AC22: 125894.7077 | AD22: 0 | AE22: 0 | AF22: 1 | AG22: 0 | AH22: 7782.4 | AI22: 0 | AJ22: 0 | AK22: 4384 | AL22: 1695511.195 | AM22: 52087.9562 | AN22: 7782.4 | AO22: 383 | AR22: 0 | AS22: 0 | AT22: 0 | BJ22: 65916.05094 | BK22: 96383.14269 | BL22: 138355.696 | BM22: 62001.72182 | BN22: 125894.7077 | BP22: 0 | BQ22: 0 | CC22: Recoupment Academy
A23: 2025 | B23: The Wells Free School | C23: 1 | D23: 198 | E23: 0 | F23: 0 | G23: 0.1262626263 | H23: 0 | I23: 0.1363636364 | J23: 0 | K23: 0.02525252525 | L23: 0 | M23: 0 | N23: 0 | O23: 0 | P23: 0 | Q23: 0 | R23: 0 | S23: 0 | T23: 0 | U23: 0 | V23: 0 | W23: 0.3571428571 | X23: 0 | Y23: 0.2287234043 | Z23: 0 | AA23: 0.1161616162 | AB23: 0 | AC23: 125894.7077 | AD23: 0 | AE23: 0 | AF23: 1 | AG23: 0 | AH23: 1258.4 | AI23: 0 | AJ23: 0 | AK23: 4384 | AL23: 829307.1386 | AM23: 24143.1295 | AN23: 1258.4 | AO23: 188 | AR23: 0 | AS23: 0 | AT23: 0 | BJ23: 1131.069047 | BK23: 18721.90541 | BL23: 51446.43271 | BM23: 40339.57421 | BN23: 125894.7077 | BP23: 0 | BQ23: 0 | CC23: Recoupment Academy
A24: 2026 | B24: Petham Primary School | C24: 1 | D24: 103 | E24: 0 | F24: 0 | G24: 0.1553398058 | H24: 0 | I24: 0.1747572816 | J24: 0 | K24: 0.02912621359 | L24: 0.02912621359 | M24: 0 | N24: 0 | O24: 0 | P24: 0 | Q24: 0 | R24: 0 | S24: 0 | T24: 0 | U24: 0 | V24: 0 | W24: 0.02272727273 | X24: 0 | Y24: 0.1477591036 | Z24: 0 | AA24: 0.03883495146 | AB24: 0 | AC24: 125894.7077 | AD24: 34599.50705 | AE24: 0 | AF24: 1 | AG24: 0 | AH24: 3452.4 | AI24: 0 | AJ24: 0 | AK24: 4384 | AL24: 536817.3004 | AM24: 15612.0767 | AN24: 3452.4 | AO24: 108 | AR24: 0 | AS24: 0 | AT24: 0 | BJ24: 1504.828986 | BK24: 12481.27028 | BL24: 17289.04251 | BM24: 1335.391782 | BN24: 125894.7077 | BP24: 0 | BQ24: 0 | CC24: Recoupment Academy
A25: 2027 | B25: Archbishop Courtenay Primary School | C25: 1 | D25: 311 | E25: 0 | F25: 0 | G25: 0.3665594855 | H25: 0 | I25: 0.3729903537 | J25: 0 | K25: 0.0578778135 | L25: 0.038585209 | M25: 0.01607717042 | N25: 0.009646302251 | O25: 0.2025723473 | P25: 0 | Q25: 0 | R25: 0 | S25: 0 | T25: 0 | U25: 0 | V25: 0 | W25: 0.2830188679 | X25: 0 | Y25: 0.2970137207 | Z25: 0 | AA25: 0.1064516129 | AB25: 0 | AC25: 125894.7077 | AD25: 0 | AE25: 0 | AF25: 1 | AG25: 0 | AH25: 13004.8 | AI25: 0 | AJ25: 0 | AK25: 4384 | AL25: 1365490.631 | AM25: 41491.438 | AN25: 13004.8 | AO25: 301 | AR25: 0 | AS25: 0 | AT25: 0 | BJ25: 42558.12411 | BK25: 80434.85289 | BL25: 104934.0345 | BM25: 50211.12239 | BN25: 125894.7077 | BP25: 0 | BQ25: 0 | CC25: Recoupment Academy
A26: 2028 | B26: Cliftonville Primary School | C26: 1 | D26: 811 | E26: 0 | F26: 0 | G26: 0.5030826141 | H26: 0 | I26: 0.5203452528 | J26: 0 | K26: 0.02219482121 | L26: 0.1393341554 | M26: 0.06041923551 | N26: 0.1454993835 | O26: 0.2219482121 | P26: 0.2083847102 | Q26: 0 | R26: 0 | S26: 0 | T26: 0 | U26: 0 | V26: 0 | W26: 0.1548480463 | X26: 0 | Y26: 0.3803849304 | Z26: 0 | AA26: 0.05302096178 | AB26: 0 | AC26: 125894.7077 | AD26: 0 | AE26: 0 | AF26: 1 | AG26: 0 | AH26: 16793.6 | AI26: 0 | AJ26: 0 | AK26: 4384 | AL26: 3757384.912 | AM26: 117256.1928 | AN26: 16793.6 | AO26: 809 | AR26: 0 | AS26: 0 | AT26: 0 | BJ26: 313763.2616 | BK26: 292616.4476 | BL26: 350448.0333 | BM26: 71639.20133 | BN26: 125894.7077 | BP26: 0 | BQ26: 0 | CC26: Recoupment Academy
A27: 2029 | B27: Tymberwood Academy | C27: 1 | D27: 343 | E27: 0 | F27: 0 | G27: 0.4810495627 | H27: 0 | I27: 0.4927113703 | J27: 0 | K27: 0.1778425656 | L27: 0.07871720117 | M27: 0.1720116618 | N27: 0.2623906706 | O27: 0.01166180758 | P27: 0.002915451895 | Q27: 0 | R27: 0 | S27: 0 | T27: 0 | U27: 0 | V27: 0 | W27: 0.09446254072 | X27: 0 | Y27: 0.3016602962 | Z27: 0 | AA27: 0.07871720117 | AB27: 0 | AC27: 125894.7077 | AD27: 0 | AE27: 0 | AF27: 1 | AG27: 0 | AH27: 7270.4 | AI27: 0 | AJ27: 0 | AK27: 4384 | AL27: 1681204.296 | AM27: 54860.9236 | AN27: 7270.4 | AO27: 366 | AR27: 0 | AS27: 0 | AT27: 0 | BJ27: 91922.4277 | BK27: 117185.2598 | BL27: 117541.6392 | BM27: 18483.23109 | BN27: 125894.7077 | BP27: 0 | BQ27: 0 | CC27: Recoupment Academy
A28: 2030 | B28: Valley Invicta Primary School At Aylesford | C28: 1 | D28: 383 | E28: 0 | F28: 0 | G28: 0.1906005222 | H28: 0 | I28: 0.2114882507 | J28: 0 | K28: 0.1592689295 | L28: 0.005221932115 | M28: 0.01044386423 | N28: 0.1906005222 | O28: 0.01566579634 | P28: 0 | Q28: 0 | R28: 0 | S28: 0 | T28: 0 | U28: 0 | V28: 0 | W28: 0.01538461538 | X28: 0 | Y28: 0.2359849014 | Z28: 0 | AA28: 0.05483028721 | AB28: 0 | AC28: 125894.7077 | AD28: 0 | AE28: 0 | AF28: 1 | AG28: 0 | AH28: 4531.2 | AI28: 0 | AJ28: 0 | AK28: 4384 | AL28: 1646556.2 | AM28: 47603.7747 | AN28: 4531.2 | AO28: 385 | AR28: 0 | AS28: 0 | AT28: 0 | BJ28: 53554.15369 | BK28: 56165.71624 | BL28: 102674.4679 | BM28: 3361.317745 | BN28: 125894.7077 | BP28: 24436.18296 | BQ28: 2433.480846 | CC28: Recoupment Academy
A29: 2034 | B29: Thistle Hill Academy | C29: 1 | D29: 363 | E29: 0 | F29: 0 | G29: 0.4159779614 | H29: 0 | I29: 0.4325068871 | J29: 0 | K29: 0.6749311295 | L29: 0.02479338843 | M29: 0.02754820937 | N29: 0.02754820937 | O29: 0.1349862259 | P29: 0.02754820937 | Q29: 0 | R29: 0 | S29: 0 | T29: 0 | U29: 0 | V29: 0 | W29: 0.03194888179 | X29: 0 | Y29: 0.2335070407 | Z29: 0 | AA29: 0.08287292818 | AB29: 0 | AC29: 125894.7077 | AD29: 0 | AE29: 0 | AF29: 1 | AG29: 0 | AH29: 13004.8 | AI29: 0 | AJ29: 0 | AK29: 4384 | AL29: 1470673.995 | AM29: 46749.1684 | AN29: 13004.8 | AO29: 328 | AR29: 0 | AS29: 0 | AT29: 0 | BJ29: 98118.31347 | BK29: 108864.413 | BL29: 96291.08373 | BM29: 6615.862011 | BN29: 125894.7077 | BP29: 0 | BQ29: 0 | CC29: Recoupment Academy
A30: 2036 | B30: Valley Invicta Primary School At Leybourne Chase | C30: 1 | D30: 226 | E30: 0 | F30: 0 | G30: 0.1061946903 | H30: 0 | I30: 0.110619469 | J30: 0 | K30: 0.08444444444 | L30: 0.01333333333 | M30: 0 | N30: 0.03111111111 | O30: 0.01333333333 | P30: 0 | Q30: 0 | R30: 0 | S30: 0 | T30: 0 | U30: 0 | V30: 0 | W30: 0.03125 | X30: 0 | Y30: 0.2432432432 | Z30: 0 | AA30: 0.04867256637 | AB30: 0 | AC30: 125894.7077 | AD30: 0 | AE30: 0 | AF30: 1 | AG30: 0 | AH30: 8243.2 | AI30: 0 | AJ30: 0 | AK30: 4384 | AL30: 933748.2 | AM30: 26532.8249 | AN30: 8243.2 | AO30: 217 | AR30: 0 | AS30: 0 | AT30: 0 | BJ30: 9977.959762 | BK30: 17335.09761 | BL30: 62449.46098 | BM30: 4028.86404 | BN30: 125894.7077 | BP30: 5339.37717 | BQ30: 0 | CC30: Recoupment Academy
A31: 2037 | B31: Valley Invicta Primary School at Holborough Lakes | C31: 1 | D31: 229 | E31: 0 | F31: 0 | G31: 0.1266375546 | H31: 0 | I31: 0.1310043668 | J31: 0 | K31: 0.701754386 | L31: 0.100877193 | M31: 0 | N31: 0 | O31: 0.004385964912 | P31: 0 | Q31: 0 | R31: 0 | S31: 0 | T31: 0 | U31: 0 | V31: 0 | W31: 0.07614213198 | X31: 0 | Y31: 0.2018494898 | Z31: 0 | AA31: 0.05309734513 | AB31: 0 | AC31: 125894.7077 | AD31: 0 | AE31: 0 | AF31: 1 | AG31: 0 | AH31: 9420.8 | AI31: 0 | AJ31: 0 | AK31: 4384 | AL31: 942411.572 | AM31: 27565.5577 | AN31: 9420.8 | AO31: 218 | AR31: 0 | AS31: 0 | AT31: 0 | BJ31: 43218.65153 | BK31: 20802.11713 | BL31: 52510.0713 | BM31: 9946.829327 | BN31: 125894.7077 | BP31: 0 | BQ31: 0 | CC31: Recoupment Academy
A32: 2038 | B32: Valley Invicta Primary School At Kings Hill | C32: 1 | D32: 222 | E32: 0 | F32: 0 | G32: 0.1306306306 | H32: 0 | I32: 0.1306306306 | J32: 0 | K32: 0.1126126126 | L32: 0.004504504505 | M32: 0 | N32: 0.04054054054 | O32: 0.004504504505 | P32: 0 | Q32: 0 | R32: 0 | S32: 0 | T32: 0 | U32: 0 | V32: 0 | W32: 0.05789473684 | X32: 0 | Y32: 0.2068696331 | Z32: 0 | AA32: 0.0990990991 | AB32: 0 | AC32: 125894.7077 | AD32: 0 | AE32: 0 | AF32: 1 | AG32: 0 | AH32: 3891.2 | AI32: 0 | AJ32: 0 | AK32: 4384 | AL32: 933661.2 | AM32: 26970.1352 | AN32: 3891.2 | AO32: 218 | AR32: 0 | AS32: 0 | AT32: 0 | BJ32: 10681.29006 | BK32: 20108.71322 | BL32: 52171.00325 | BM32: 7331.89454 | BN32: 125894.7077 | BP32: 0 | BQ32: 0 | CC32: Recoupment Academy
A33: 2039 | B33: Martello Primary | C33: 1 | D33: 176 | E33: 0 | F33: 0 | G33: 0.5965909091 | H33: 0 | I33: 0.6079545455 | J33: 0 | K33: 0.1193181818 | L33: 0.07386363636 | M33: 0.1306818182 | N33: 0.1022727273 | O33: 0.4204545455 | P33: 0.06818181818 | Q33: 0 | R33: 0 | S33: 0 | T33: 0 | U33: 0 | V33: 0 | W33: 0.1409395973 | X33: 0 | Y33: 0.385915493 | Z33: 0 | AA33: 0.1647727273 | AB33: 0 | AC33: 125894.7077 | AD33: 0 | AE33: 0 | AF33: 1 | AG33: 0 | AH33: 8908.8 | AI33: 0 | AJ33: 0 | AK33: 4384 | AL33: 876872.371 | AM33: 28266.0547 | AN33: 8908.8 | AO33: 163 | AR33: 0 | AS33: 0 | AT33: 0 | BJ33: 71808.93781 | BK33: 74194.21775 | BL33: 77158.60223 | BM33: 14150.43677 | BN33: 125894.7077 | BP33: 0 | BQ33: 0 | CC33: Recoupment Academy
A34: 2041 | B34: The Holy Family Catholic Primary School | C34: 1 | D34: 205 | E34: 0 | F34: 0 | G34: 0.5170731707 | H34: 0 | I34: 0.5268292683 | J34: 0 | K34: 0.03902439024 | L34: 0.01951219512 | M34: 0.07804878049 | N34: 0.2731707317 | O34: 0.2780487805 | P34: 0 | Q34: 0 | R34: 0 | S34: 0 | T34: 0 | U34: 0 | V34: 0 | W34: 0.1235955056 | X34: 0 | Y34: 0.3884393064 | Z34: 0 | AA34: 0.1512195122 | AB34: 0 | AC34: 125894.7077 | AD34: 0 | AE34: 0 | AF34: 1 | AG34: 0 | AH34: 4096 | AI34: 0 | AJ34: 0 | AK34: 4384 | AL34: 990563.2208 | AM34: 31250.1719 | AN34: 4096 | AO34: 199 | AR34: 0 | AS34: 0 | AT34: 0 | BJ34: 64865.06039 | BK34: 74887.62166 | BL34: 90459.98276 | BM34: 14453.75505 | BN34: 125894.7077 | BP34: 0 | BQ34: 0 | CC34: Recoupment Academy
A35: 2043 | B35: Jubilee Primary School | C35: 1 | D35: 302 | E35: 0 | F35: 0 | G35: 0.2450331126 | H35: 0 | I35: 0.2450331126 | J35: 0 | K35: 0.06622516556 | L35: 0.1622516556 | M35: 0.003311258278 | N35: 0.009933774834 | O35: 0.03642384106 | P35: 0 | Q35: 0 | R35: 0 | S35: 0 | T35: 0 | U35: 0 | V35: 0 | W35: 0.1818181818 | X35: 0 | Y35: 0.2199285431 | Z35: 0 | AA35: 0.073089701 | AB35: 0 | AC35: 125894.7077 | AD35: 0 | AE35: 0 | AF35: 1 | AG35: 0 | AH35: 4736 | AI35: 0 | AJ35: 0 | AK35: 4384 | AL35: 1267176 | AM35: 38624.4039 | AN35: 4736 | AO35: 296 | AR35: 0 | AS35: 0 | AT35: 0 | BJ35: 25385.45305 | BK35: 51311.88891 | BL35: 75451.52289 | BM35: 31323.36451 | BN35: 125894.7077 | BP35: 0 | BQ35: 0 | CC35: Recoupment Academy
A36: 2044 | B36: Loose Primary School | C36: 1 | D36: 656 | E36: 0 | F36: 0 | G36: 0.08079268293 | H36: 0 | I36: 0.08384146341 | J36: 0 | K36: 0.1829268293 | L36: 0.009146341463 | M36: 0.003048780488 | N36: 0.03506097561 | O36: 0.00762195122 | P36: 0 | Q36: 0 | R36: 0 | S36: 0 | T36: 0 | U36: 0 | V36: 0 | W36: 0.05477031802 | X36: 0 | Y36: 0.2181255277 | Z36: 0 | AA36: 0.01981707317 | AB36: 0 | AC36: 125894.7077 | AD36: 0 | AE36: 0 | AF36: 1 | AG36: 0 | AH36: 11980.8 | AI36: 0 | AJ36: 0 | AK36: 4384 | AL36: 2805555.8 | AM36: 72791.6454 | AN36: 11980.8 | AO36: 655 | AR36: 0 | AS36: 0 | AT36: 0 | BJ36: 43030.00242 | BK36: 38137.21473 | BL36: 162551.0593 | BM36: 20496.19541 | BN36: 125894.7077 | BP36: 270929.1017 | BQ36: 0 | CC36: Recoupment Academy
A37: 2045 | B37: Skinners' Kent Primary School | C37: 1 | D37: 210 | E37: 0 | F37: 0 | G37: 0.1619047619 | H37: 0 | I37: 0.1714285714 | J37: 0 | K37: 0.1285714286 | L37: 0 | M37: 0.009523809524 | N37: 0.05238095238 | O37: 0 | P37: 0 | Q37: 0 | R37: 0 | S37: 0 | T37: 0 | U37: 0 | V37: 0 | W37: 0.06666666667 | X37: 0 | Y37: 0.3055555556 | Z37: 0 | AA37: 0.01904761905 | AB37: 0 | AC37: 125894.7077 | AD37: 0 | AE37: 0 | AF37: 1 | AG37: 0 | AH37: 10854.4 | AI37: 0 | AJ37: 0 | AK37: 4384 | AL37: 910760.7771 | AM37: 26703.9464 | AN37: 10854.4 | AO37: 210 | AR37: 0 | AS37: 0 | AT37: 0 | BJ37: 12166.4423 | BK37: 24962.54055 | BL37: 72893.52439 | BM37: 7986.420752 | BN37: 125894.7077 | BP37: 0 | BQ37: 0 | CC37: Recoupment Academy
A38: 2048 | B38: Reculver Church of England Primary School | C38: 1 | D38: 490 | E38: 0 | F38: 0 | G38: 0.1897959184 | H38: 0 | I38: 0.212244898 | J38: 0 | K38: 0.04285714286 | L38: 0.01836734694 | M38: 0.01836734694 | N38: 0.02040816327 | O38: 0.02244897959 | P38: 0.002040816327 | Q38: 0 | R38: 0 | S38: 0 | T38: 0 | U38: 0 | V38: 0 | W38: 0.01864801865 | X38: 0 | Y38: 0.2623374984 | Z38: 0 | AA38: 0.05714285714 | AB38: 0 | AC38: 125894.7077 | AD38: 0 | AE38: 0 | AF38: 1 | AG38: 0 | AH38: 12595.2 | AI38: 0 | AJ38: 0 | AK38: 4384 | AL38: 2204805.2 | AM38: 63613.1333 | AN38: 12595.2 | AO38: 514 | AR38: 0 | AS38: 0 | AT38: 0 | BJ38: 22021.63326 | BK38: 72114.00604 | BL38: 146027.9279 | BM38: 5212.582309 | BN38: 125894.7077 | BP38: 97276.65045 | BQ38: 8211.222377 | CC38: Recoupment Academy
A39: 2051 | B39: St Mary of Charity CofE (Aided) Primary School | C39: 1 | D39: 209 | E39: 0 | F39: 0 | G39: 0.3301435407 | H39: 0 | I39: 0.3444976077 | J39: 0 | K39: 0.2775119617 | L39: 0.3636363636 | M39: 0.01913875598 | N39: 0.004784688995 | O39: 0.08133971292 | P39: 0 | Q39: 0 | R39: 0 | S39: 0 | T39: 0 | U39: 0 | V39: 0 | W39: 0.05056179775 | X39: 0 | Y39: 0.3018443545 | Z39: 0 | AA39: 0.08133971292 | AB39: 0 | AC39: 125894.7077 | AD39: 0 | AE39: 0 | AF39: 1 | AG39: 0 | AH39: 5427.2 | AI39: 0 | AJ39: 0 | AK39: 4384 | AL39: 944524.8921 | AM39: 29268.7661 | AN39: 5427.2 | AO39: 204 | AR39: 0 | AS39: 0 | AT39: 0 | BJ39: 44780.99716 | BK39: 49925.08111 | BL39: 71665.28185 | BM39: 6028.273449 | BN39: 125894.7077 | BP39: 0 | BQ39: 0 | CC39: Recoupment Academy
A40: 2052 | B40: Kennington Church of England Academy | C40: 1 | D40: 344 | E40: 0 | F40: 0 | G40: 0.2848837209 | H40: 0 | I40: 0.2994186047 | J40: 0 | K40: 0.03216374269 | L40: 0.09356725146 | M40: 0.1052631579 | N40: 0.1023391813 | O40: 0.008771929825 | P40: 0.002923976608 | Q40: 0 | R40: 0 | S40: 0 | T40: 0 | U40: 0 | V40: 0 | W40: 0.03779069767 | X40: 0 | Y40: 0.228143504 | Z40: 0 | AA40: 0.04941860465 | AB40: 0 | AC40: 125894.7077 | AD40: 0 | AE40: 0 | AF40: 1 | AG40: 0 | AH40: 5990.4 | AI40: 0 | AJ40: 0 | AK40: 4384 | AL40: 1481680.4 | AM40: 45859.5372 | AN40: 5990.4 | AO40: 346 | AR40: 0 | AS40: 0 | AT40: 0 | BJ40: 45834.34931 | BK40: 71420.60214 | BL40: 89155.06474 | BM40: 7415.962127 | BN40: 125894.7077 | BP40: 0 | BQ40: 0 | CC40: Recoupment Academy
A41: 2054 | B41: St Edward's Catholic Primary School | C41: 1 | D41: 199 | E41: 0 | F41: 0 | G41: 0.4773869347 | H41: 0 | I41: 0.4924623116 | J41: 0 | K41: 0.0404040404 | L41: 0.04545454545 | M41: 0 | N41: 0.101010101 | O41: 0.3585858586 | P41: 0.4292929293 | Q41: 0 | R41: 0 | S41: 0 | T41: 0 | U41: 0 | V41: 0 | W41: 0.100591716 | X41: 0 | Y41: 0.3597322922 | Z41: 0 | AA41: 0.1005025126 | AB41: 0 | AC41: 125894.7077 | AD41: 0 | AE41: 0 | AF41: 1 | AG41: 0 | AH41: 4838.4 | AI41: 0 | AJ41: 0 | AK41: 4384 | AL41: 939149.9174 | AM41: 28397.1477 | AN41: 4838.4 | AO41: 181 | AR41: 0 | AS41: 0 | AT41: 0 | BJ41: 105890.4278 | BK41: 67953.58262 | BL41: 81322.73406 | BM41: 11419.29899 | BN41: 125894.7077 | BP41: 0 | BQ41: 0 | CC41: Recoupment Academy
A42: 2055 | B42: Lansdowne Primary School | C42: 1 | D42: 394 | E42: 0 | F42: 0 | G42: 0.3274111675 | H42: 0 | I42: 0.3578680203 | J42: 0 | K42: 0.04603580563 | L42: 0.4347826087 | M42: 0.06393861893 | N42: 0 | O42: 0.007672634271 | P42: 0.1329923274 | Q42: 0 | R42: 0 | S42: 0 | T42: 0 | U42: 0 | V42: 0 | W42: 0.1511627907 | X42: 0 | Y42: 0.2687681696 | Z42: 0 | AA42: 0.07868020305 | AB42: 0 | AC42: 125894.7077 | AD42: 0 | AE42: 0 | AF42: 1 | AG42: 0 | AH42: 4608 | AI42: 0 | AJ42: 0 | AK42: 4384 | AL42: 1715124.358 | AM42: 52366.1536 | AN42: 4608 | AO42: 392 | AR42: 0 | AS42: 0 | AT42: 0 | BJ42: 98228.10522 | BK42: 97769.9505 | BL42: 120296.6477 | BM42: 33975.4544 | BN42: 125894.7077 | BP42: 0 | BQ42: 0 | CC42: Recoupment Academy
A43: 2058 | B43: Charlton Church of England Primary School | C43: 1 | D43: 199 | E43: 0 | F43: 0 | G43: 0.3266331658 | H43: 0 | I43: 0.3266331658 | J43: 0 | K43: 0.08121827411 | L43: 0.2284263959 | M43: 0.2791878173 | N43: 0.05076142132 | O43: 0.08121827411 | P43: 0.0152284264 | Q43: 0 | R43: 0 | S43: 0 | T43: 0 | U43: 0 | V43: 0 | W43: 0.0632183908 | X43: 0 | Y43: 0.2222222222 | Z43: 0 | AA43: 0.05050505051 | AB43: 0 | AC43: 125894.7077 | AD43: 0 | AE43: 0 | AF43: 1 | AG43: 0 | AH43: 2304 | AI43: 0 | AJ43: 0 | AK43: 4384 | AL43: 890511.1128 | AM43: 27629.6031 | AN43: 2304 | AO43: 195 | AR43: 0 | AS43: 0 | AT43: 0 | BJ43: 55091.50753 | BK43: 45071.25378 | BL43: 50236.57611 | BM43: 7176.631784 | BN43: 125894.7077 | BP43: 0 | BQ43: 0 | CC43: Recoupment Academy
A44: 2059 | B44: Lydd Primary School | C44: 1 | D44: 250 | E44: 0 | F44: 0 | G44: 0.52 | H44: 0 | I44: 0.528 | J44: 0 | K44: 0.412 | L44: 0.016 | M44: 0.004 | N44: 0.496 | O44: 0 | P44: 0.004 | Q44: 0 | R44: 0 | S44: 0 | T44: 0 | U44: 0 | V44: 0 | W44: 0.004651162791 | X44: 0 | Y44: 0.2810413885 | Z44: 0 | AA44: 0.088 | AB44: 0 | AC44: 125894.7077 | AD44: 0 | AE44: 0 | AF44: 1 | AG44: 0 | AH44: 5493.6 | AI44: 0 | AJ44: 0 | AK44: 4384 | AL44: 1145117.663 | AM44: 37040.2799 | AN44: 5493.6 | AO44: 242 | AR44: 0 | AS44: 0 | AT44: 0 | BJ44: 84034.29241 | BK44: 91529.31536 | BL44: 79815.96354 | BM44: 663.3239828 | BN44: 125894.7077 | BP44: 0 | BQ44: 0 | CC44: Recoupment Academy
A45: 2060 | B45: Beaver Green Primary School | C45: 1 | D45: 413 | E45: 0 | F45: 0 | G45: 0.4527845036 | H45: 0 | I45: 0.4576271186 | J45: 0 | K45: 0.05326876513 | L45: 0.08474576271 | M45: 0.09443099274 | N45: 0.002421307506 | O45: 0.4503631961 | P45: 0 | Q45: 0 | R45: 0 | S45: 0 | T45: 0 | U45: 0 | V45: 0 | W45: 0.1022727273 | X45: 0 | Y45: 0.2999387766 | Z45: 0 | AA45: 0.05084745763 | AB45: 0 | AC45: 125894.7077 | AD45: 0 | AE45: 0 | AF45: 1 | AG45: 0 | AH45: 10956.8 | AI45: 0 | AJ45: 0 | AK45: 4384 | AL45: 1868839.116 | AM45: 58900.7899 | AN45: 10956.8 | AO45: 412 | AR45: 0 | AS45: 0 | AT45: 0 | BJ45: 125264.7274 | BK45: 131053.3379 | BL45: 140722.0448 | BM45: 24095.39443 | BN45: 125894.7077 | BP45: 0 | BQ45: 0 | CC45: Recoupment Academy
A46: 2061 | B46: Finberry Primary School | C46: 1 | D46: 300 | E46: 0 | F46: 0 | G46: 0.25 | H46: 0 | I46: 0.2566666667 | J46: 0 | K46: 0.02348993289 | L46: 0.02348993289 | M46: 0.003355704698 | N46: 0.006711409396 | O46: 0.02348993289 | P46: 0 | Q46: 0 | R46: 0 | S46: 0 | T46: 0 | U46: 0 | V46: 0 | W46: 0.1125 | X46: 0 | Y46: 0.2246804326 | Z46: 0 | AA46: 0.08695652174 | AB46: 0 | AC46: 125894.7077 | AD46: 0 | AE46: 0 | AF46: 1 | AG46: 0 | AH46: 15462.4 | AI46: 0 | AJ46: 0 | AK46: 4384 | AL46: 1145687.4 | AM46: 34934.7861 | AN46: 15462.4 | AO46: 265 | AR46: 0 | AS46: 0 | AT46: 0 | BJ46: 8455.877217 | BK46: 53392.10063 | BL46: 76571.29214 | BM46: 19252.9786 | BN46: 125894.7077 | BP46: 0 | BQ46: 0 | CC46: Recoupment Academy
A47: 2062 | B47: Greenlands Primary School | C47: 1 | D47: 181 | E47: 0 | F47: 0 | G47: 0.4309392265 | H47: 0 | I47: 0.4364640884 | J47: 0 | K47: 0.1160220994 | L47: 0.1878453039 | M47: 0.03314917127 | N47: 0 | O47: 0.02762430939 | P47: 0 | Q47: 0 | R47: 0 | S47: 0 | T47: 0 | U47: 0 | V47: 0 | W47: 0.127388535 | X47: 0 | Y47: 0.3539568345 | Z47: 0 | AA47: 0.1629213483 | AB47: 0 | AC47: 125894.7077 | AD47: 0 | AE47: 0 | AF47: 1.0377 | AG47: 0 | AH47: 3174.4 | AI47: 0 | AJ47: 0 | AK47: 4384 | AL47: 869421.3852 | AM47: 28031.9579 | AN47: 3174.4 | AO47: 173 | AR47: 0 | AS47: 0 | AT47: 0 | BJ47: 19218.56149 | BK47: 54778.90843 | BL47: 72779.37924 | BM47: 13153.24983 | BN47: 125894.7077 | BP47: 0 | BQ47: 0 | CC47: Recoupment Academy
A48: 2063 | B48: Istead Rise Primary School | C48: 1 | D48: 243 | E48: 0 | F48: 0 | G48: 0.1604938272 | H48: 0 | I48: 0.1604938272 | J48: 0 | K48: 0.04938271605 | L48: 0.09053497942 | M48: 0.02057613169 | N48: 0.07407407407 | O48: 0.004115226337 | P48: 0 | Q48: 0 | R48: 0 | S48: 0 | T48: 0 | U48: 0 | V48: 0 | W48: 0.004716981132 | X48: 0 | Y48: 0.1268608414 | Z48: 0 | AA48: 0.07407407407 | AB48: 0 | AC48: 125894.7077 | AD48: 0 | AE48: 0 | AF48: 1 | AG48: 0 | AH48: 5529.6 | AI48: 0 | AJ48: 0 | AK48: 4384 | AL48: 1024864.6 | AM48: 31135.0902 | AN48: 5529.6 | AO48: 239 | AR48: 0 | AS48: 0 | AT48: 0 | BJ48: 19936.56624 | BK48: 27042.75227 | BL48: 35019.77334 | BM48: 653.8747449 | BN48: 125894.7077 | BP48: 23996.47668 | BQ48: 632.1551789 | CC48: Recoupment Academy
A49: 2064 | B49: Ramsgate Arts Primary School | C49: 1 | D49: 356 | E49: 0 | F49: 0 | G49: 0.2949438202 | H49: 0 | I49: 0.297752809 | J49: 0 | K49: 0.1151685393 | L49: 0.1376404494 | M49: 0.1769662921 | N49: 0.1095505618 | O49: 0.1376404494 | P49: 0.09550561798 | Q49: 0 | R49: 0 | S49: 0 | T49: 0 | U49: 0 | V49: 0 | W49: 0.01694915254 | X49: 0 | Y49: 0.2005444646 | Z49: 0 | AA49: 0.03651685393 | AB49: 0 | AC49: 125894.7077 | AD49: 0 | AE49: 0 | AF49: 1 | AG49: 0 | AH49: 12288 | AI49: 0 | AJ49: 0 | AK49: 4384 | AL49: 1437856.893 | AM49: 43979.2031 | AN49: 12288 | AO49: 324 | AR49: 0 | AS49: 0 | AT49: 0 | BJ49: 115429.4982 | BK49: 73500.81385 | BL49: 81103.60277 | BM49: 3442.089332 | BN49: 125894.7077 | BP49: 0 | BQ49: 0 | CC49: Recoupment Academy
A50: 2069 | B50: Dartford Primary Academy | C50: 1 | D50: 637 | E50: 0 | F50: 0 | G50: 0.1679748823 | H50: 0 | I50: 0.1742543171 | J50: 0 | K50: 0.05965463108 | L50: 0.003139717425 | M50: 0.03296703297 | N50: 0.02040816327 | O50: 0.08006279435 | P50: 0 | Q50: 0 | R50: 0 | S50: 0 | T50: 0 | U50: 0 | V50: 0 | W50: 0.1871559633 | X50: 0 | Y50: 0.2109954381 | Z50: 0 | AA50: 0.08477237049 | AB50: 0 | AC50: 125894.7077 | AD50: 0 | AE50: 0 | AF50: 1.0377 | AG50: 33000 | AH50: 9395.2 | AI50: 0 | AJ50: 0 | AK50: 4384 | AL50: 2686695.2 | AM50: 75861.4991 | AN50: 9395.2 | AO50: 620 | AR50: 0 | AS50: 0 | AT50: 0 | BJ50: 49954.34069 | BK50: 76967.83337 | BL50: 152683.451 | BM50: 68009.13525 | BN50: 125894.7077 | BP50: 27023.06818 | BQ50: 0 | CC50: Recoupment Academy
A51: 2073 | B51: Langley Park Primary Academy | C51: 1 | D51: 419 | E51: 0 | F51: 0 | G51: 0.1479713604 | H51: 0 | I51: 0.1622911695 | J51: 0 | K51: 0.02870813397 | L51: 0 | M51: 0.03110047847 | N51: 0.1578947368 | O51: 0.09090909091 | P51: 0 | Q51: 0 | R51: 0 | S51: 0 | T51: 0 | U51: 0 | V51: 0 | W51: 0.09217877095 | X51: 0 | Y51: 0.2039072039 | Z51: 0 | AA51: 0.05489260143 | AB51: 0 | AC51: 125894.7077 | AD51: 0 | AE51: 0 | AF51: 1 | AG51: 0 | AH51: 10035.2 | AI51: 0 | AJ51: 0 | AK51: 4384 | AL51: 1652060.2 | AM51: 46412.9298 | AN51: 10035.2 | AO51: 385 | AR51: 0 | AS51: 0 | AT51: 0 | BJ51: 58700.60713 | BK51: 47151.46549 | BL51: 97056.82093 | BM51: 22032.7693 | BN51: 125894.7077 | BP51: 58092.9476 | BQ51: 0 | CC51: Recoupment Academy
A52: 2076 | B52: Cherry Orchard Primary Academy | C52: 1 | D52: 419 | E52: 0 | F52: 0 | G52: 0.1336515513 | H52: 0 | I52: 0.1455847255 | J52: 0 | K52: 0.06205250597 | L52: 0.05966587112 | M52: 0.007159904535 | N52: 0.009546539379 | O52: 0.03102625298 | P52: 0 | Q52: 0 | R52: 0 | S52: 0 | T52: 0 | U52: 0 | V52: 0 | W52: 0.1197771588 | X52: 0 | Y52: 0.2753391473 | Z52: 0 | AA52: 0.07894736842 | AB52: 0 | AC52: 125894.7077 | AD52: 0 | AE52: 0 | AF52: 1.0377 | AG52: 0 | AH52: 12697.6 | AI52: 0 | AJ52: 0 | AK52: 4384 | AL52: 1769877.6 | AM52: 50860.472 | AN52: 12697.6 | AO52: 412 | AR52: 0 | AS52: 0 | AT52: 0 | BJ52: 22474.08053 | BK52: 42297.63816 | BL52: 131057.3722 | BM52: 28629.39568 | BN52: 125894.7077 | BP52: 0 | BQ52: 0 | CC52: Recoupment Academy
A53: 2077 | B53: Westgate Primary School | C53: 1 | D53: 210 | E53: 0 | F53: 0 | G53: 0.2047619048 | H53: 0 | I53: 0.2095238095 | J53: 0 | K53: 0.1047619048 | L53: 0 | M53: 0.01428571429 | N53: 0.2285714286 | O53: 0.04761904762 | P53: 0 | Q53: 0 | R53: 0 | S53: 0 | T53: 0 | U53: 0 | V53: 0 | W53: 0.3 | X53: 0 | Y53: 0.1707266722 | Z53: 0 | AA53: 0.08571428571 | AB53: 0 | AC53: 125894.7077 | AD53: 0 | AE53: 0 | AF53: 1.0377 | AG53: 0 | AH53: 6297.6 | AI53: 0 | AJ53: 0 | AK53: 4384 | AL53: 1100850.715 | AM53: 32332.3505 | AN53: 6297.6 | AO53: 242 | AR53: 0 | AS53: 0 | AT53: 0 | BJ53: 33952.09217 | BK53: 30509.77179 | BL53: 40728.66166 | BM53: 35938.89339 | BN53: 125894.7077 | BP53: 0 | BQ53: 0 | CC53: Recoupment Academy
A54: 2078 | B54: St Nicholas Church of England Primary Academy | C54: 1 | D54: 389 | E54: 0 | F54: 0 | G54: 0.3393316195 | H54: 0 | I54: 0.3470437018 | J54: 0 | K54: 0.1855670103 | L54: 0.02319587629 | M54: 0.3221649485 | N54: 0.04381443299 | O54: 0 | P54: 0 | Q54: 0 | R54: 0 | S54: 0 | T54: 0 | U54: 0 | V54: 0 | W54: 0.02431610942 | X54: 0 | Y54: 0.2738670347 | Z54: 0 | AA54: 0.0822622108 | AB54: 0 | AC54: 125894.7077 | AD54: 0 | AE54: 0 | AF54: 1 | AG54: 0 | AH54: 7219.2 | AI54: 0 | AJ54: 0 | AK54: 4384 | AL54: 1603434.61 | AM54: 51312.406 | AN54: 7219.2 | AO54: 368 | AR54: 0 | AS54: 0 | AT54: 0 | BJ54: 81095.28975 | BK54: 93609.52707 | BL54: 121023.2553 | BM54: 5395.949062 | BN54: 125894.7077 | BP54: 0 | BQ54: 0 | CC54: Recoupment Academy
A55: 2080 | B55: Barming Primary School | C55: 1 | D55: 423 | E55: 0 | F55: 0 | G55: 0.2529550827 | H55: 0 | I55: 0.2624113475 | J55: 0 | K55: 0.119047619 | L55: 0.1571428571 | M55: 0 | N55: 0.004761904762 | O55: 0 | P55: 0 | Q55: 0 | R55: 0 | S55: 0 | T55: 0 | U55: 0 | V55: 0 | W55: 0.09641873278 | X55: 0 | Y55: 0.3139705882 | Z55: 0 | AA55: 0.08510638298 | AB55: 0 | AC55: 125894.7077 | AD55: 0 | AE55: 0 | AF55: 1 | AG55: 0 | AH55: 7680 | AI55: 0 | AJ55: 0 | AK55: 4384 | AL55: 1773390 | AM55: 52205.0393 | AN55: 7680 | AO55: 414 | AR55: 0 | AS55: 0 | AT55: 0 | BJ55: 30648.38995 | BK55: 76967.83337 | BL55: 150872.0543 | BM55: 23266.22575 | BN55: 125894.7077 | BP55: 0 | BQ55: 0 | CC55: Recoupment Academy
A56: 2081 | B56: Brenzett Church of England Primary School | C56: 1 | D56: 85 | E56: 0 | F56: 0 | G56: 0.4 | H56: 0 | I56: 0.4235294118 | J56: 0 | K56: 0.1058823529 | L56: 0.04705882353 | M56: 0.4470588235 | N56: 0.08235294118 | O56: 0.02352941176 | P56: 0 | Q56: 0 | R56: 0 | S56: 0 | T56: 0 | U56: 0 | V56: 0 | W56: 0 | X56: 0 | Y56: 0.2463768116 | Z56: 0 | AA56: 0.1411764706 | AB56: 0 | AC56: 125894.7077 | AD56: 47907.00976 | AE56: 0 | AF56: 1 | AG56: 0 | AH56: 3891.2 | AI56: 0 | AJ56: 0 | AK56: 4384 | AL56: 531681.0832 | AM56: 15128.7338 | AN56: 3891.2 | AO56: 89 | AR56: 0 | AS56: 0 | AT56: 0 | BJ56: 23890.36415 | BK56: 24962.54055 | BL56: 23790.20728 | BM56: 0 | BN56: 125894.7077 | BP56: 0 | BQ56: 0 | CC56: Recoupment Academy
A57: 2085 | B57: Royal Rise Primary School | C57: 1 | D57: 200 | E57: 0 | F57: 0 | G57: 0.3 | H57: 0 | I57: 0.32 | J57: 0 | K57: 0.365 | L57: 0 | M57: 0.27 | N57: 0 | O57: 0 | P57: 0 | Q57: 0 | R57: 0 | S57: 0 | T57: 0 | U57: 0 | V57: 0 | W57: 0.2764705882 | X57: 0 | Y57: 0.216442953 | Z57: 0 | AA57: 0.14 | AB57: 0 | AC57: 125894.7077 | AD57: 0 | AE57: 0 | AF57: 1 | AG57: 0 | AH57: 4812.8 | AI57: 0 | AJ57: 0 | AK57: 4384 | AL57: 846044.4846 | AM57: 26562.8462 | AN57: 4812.8 | AO57: 177 | AR57: 0 | AS57: 0 | AT57: 0 | BJ57: 39882.68583 | BK57: 44377.84987 | BL57: 49175.96782 | BM57: 31543.00633 | BN57: 125894.7077 | BP57: 0 | BQ57: 0 | CC57: Recoupment Academy
A58: 2086 | B58: Bishop Chavasse Primary School | C58: 1 | D58: 329.1666667 | E58: 0 | F58: 0 | G58: 0.2247557003 | H58: 0 | I58: 0.2345276873 | J58: 0 | K58: 0.2703583062 | L58: 0.00651465798 | M58: 0.3159609121 | N58: 0.00325732899 | O58: 0 | P58: 0 | Q58: 0 | R58: 0 | S58: 0 | T58: 0 | U58: 0 | V58: 0 | W58: 0.03984063745 | X58: 0 | Y58: 0.2058091286 | Z58: 0 | AA58: 0.05863192182 | AB58: 0 | AC58: 125894.7077 | AD58: 0 | AE58: 0 | AF58: 1 | AG58: 0 | AH58: 5734.4 | AI58: 0 | AJ58: 0 | AK58: 4384 | AL58: 1282772.266 | AM58: 39080.2477 | AN58: 5734.4 | AO58: 299.3333333 | AR58: 0 | AS58: 0 | AT58: 0 | BJ58: 66236.94319 | BK58: 53529.87795 | BL58: 76959.09521 | BM58: 7481.114108 | BN58: 125894.7077 | BP58: 0 | BQ58: 0 | CC58: Recoupment Academy
A59: 2087 | B59: Morehall Primary School and Nursery | C59: 1 | D59: 189 | E59: 0 | F59: 0 | G59: 0.2962962963 | H59: 0 | I59: 0.3121693122 | J59: 0 | K59: 0.4814814815 | L59: 0.07407407407 | M59: 0.005291005291 | N59: 0.02645502646 | O59: 0.04232804233 | P59: 0.01058201058 | Q59: 0 | R59: 0 | S59: 0 | T59: 0 | U59: 0 | V59: 0 | W59: 0.07453416149 | X59: 0 | Y59: 0.1330502477 | Z59: 0 | AA59: 0.09523809524 | AB59: 0 | AC59: 125894.7077 | AD59: 0 | AE59: 0 | AF59: 1 | AG59: 0 | AH59: 5632 | AI59: 0 | AJ59: 0 | AK59: 4384 | AL59: 818899.0295 | AM59: 25590.1561 | AN59: 5632 | AO59: 181 | AR59: 0 | AS59: 0 | AT59: 0 | BJ59: 32565.12711 | BK59: 40910.83035 | BL59: 28566.49525 | BM59: 8036.02585 | BN59: 125894.7077 | BP59: 0 | BQ59: 0 | CC59: Recoupment Academy
A60: 2090 | B60: Richmond Academy | C60: 1 | D60: 268 | E60: 0 | F60: 0 | G60: 0.6268656716 | H60: 0 | I60: 0.6380597015 | J60: 0 | K60: 0.02985074627 | L60: 0.01492537313 | M60: 0.01492537313 | N60: 0.07089552239 | O60: 0.4365671642 | P60: 0.4029850746 | Q60: 0 | R60: 0 | S60: 0 | T60: 0 | U60: 0 | V60: 0 | W60: 0.0811965812 | X60: 0 | Y60: 0.3344444444 | Z60: 0 | AA60: 0.09737827715 | AB60: 0 | AC60: 125894.7077 | AD60: 0 | AE60: 0 | AF60: 1 | AG60: 0 | AH60: 9318.4 | AI60: 0 | AJ60: 0 | AK60: 4384 | AL60: 1449651.487 | AM60: 46585.0519 | AN60: 9318.4 | AO60: 286 | AR60: 0 | AS60: 0 | AT60: 0 | BJ60: 143470.9585 | BK60: 118572.0676 | BL60: 101821.2091 | BM60: 12413.56974 | BN60: 125894.7077 | BP60: 0 | BQ60: 0 | CC60: Recoupment Academy
A61: 2092 | B61: Knockhall Primary School | C61: 1 | D61: 343 | E61: 0 | F61: 0 | G61: 0.3527696793 | H61: 0 | I61: 0.3556851312 | J61: 0 | K61: 0.2705882353 | L61: 0.03529411765 | M61: 0.02352941176 | N61: 0.005882352941 | O61: 0.02941176471 | P61: 0 | Q61: 0 | R61: 0 | S61: 0 | T61: 0 | U61: 0 | V61: 0 | W61: 0.1471571906 | X61: 0 | Y61: 0.3575371146 | Z61: 0 | AA61: 0.1166180758 | AB61: 0 | AC61: 125894.7077 | AD61: 0 | AE61: 0 | AF61: 1.0377 | AG61: 0 | AH61: 11468.8 | AI61: 0 | AJ61: 0 | AK61: 4384 | AL61: 1580659.24 | AM61: 50163.9807 | AN61: 11468.8 | AO61: 349 | AR61: 0 | AS61: 0 | AT61: 0 | BJ61: 33834.74234 | BK61: 84595.27632 | BL61: 139313.9868 | BM61: 28793.85141 | BN61: 125894.7077 | BP61: 0 | BQ61: 0 | CC61: Recoupment Academy
A62: 2093 | B62: Chilmington Green Primary School | C62: 1 | D62: 171 | E62: 0 | F62: 0 | G62: 0.2514619883 | H62: 0 | I62: 0.2748538012 | J62: 0 | K62: 0.01764705882 | L62: 0.01176470588 | M62: 0.03529411765 | N62: 0 | O62: 0.1 | P62: 0 | Q62: 0 | R62: 0 | S62: 0 | T62: 0 | U62: 0 | V62: 0 | W62: 0.0985915493 | X62: 0 | Y62: 0.3005366726 | Z62: 0 | AA62: 0.2222222222 | AB62: 0 | AC62: 125894.7077 | AD62: 0 | AE62: 0 | AF62: 1 | AG62: 0 | AH62: 2534.4 | AI62: 0 | AJ62: 0 | AK62: 4384 | AL62: 813692.3005 | AM62: 25883.3642 | AN62: 2534.4 | AO62: 180 | AR62: 0 | AS62: 0 | AT62: 0 | BJ62: 12426.02841 | BK62: 32589.9835 | BL62: 58381.2049 | BM62: 9617.450343 | BN62: 125894.7077 | BP62: 0 | BQ62: 0 | CC62: Recoupment Academy
A63: 2096 | B63: Riverview Junior School | C63: 1 | D63: 500 | E63: 0 | F63: 0 | G63: 0.236 | H63: 0 | I63: 0.246 | J63: 0 | K63: 0.108 | L63: 0.042 | M63: 0.084 | N63: 0.13 | O63: 0 | P63: 0 | Q63: 0 | R63: 0 | S63: 0 | T63: 0 | U63: 0 | V63: 0 | W63: 0.044 | X63: 0 | Y63: 0.2801227808 | Z63: 0 | AA63: 0.028 | AB63: 0 | AC63: 125894.7077 | AD63: 0 | AE63: 0 | AF63: 1 | AG63: 0 | AH63: 7321.6 | AI63: 0 | AJ63: 0 | AK63: 4384 | AL63: 2054521.6 | AM63: 58866.7658 | AN63: 7321.6 | AO63: 480 | AR63: 0 | AS63: 0 | AT63: 0 | BJ63: 66861.59187 | BK63: 85288.68022 | BL63: 159110.1565 | BM63: 12550.08975 | BN63: 125894.7077 | BP63: 17497.90121 | BQ63: 0 | CC63: Recoupment Academy
A64: 2098 | B64: Pilgrims' Way Primary School | C64: 1 | D64: 273 | E64: 0 | F64: 0 | G64: 0.5714285714 | H64: 0 | I64: 0.5787545788 | J64: 0 | K64: 0.02941176471 | L64: 0.3970588235 | M64: 0.02205882353 | N64: 0.1323529412 | O64: 0.05882352941 | P64: 0 | Q64: 0 | R64: 0 | S64: 0 | T64: 0 | U64: 0 | V64: 0 | W64: 0.3236514523 | X64: 0 | Y64: 0.3611940299 | Z64: 0 | AA64: 0.1904761905 | AB64: 0 | AC64: 125894.7077 | AD64: 0 | AE64: 0 | AF64: 1 | AG64: 0 | AH64: 7493.6 | AI64: 0 | AJ64: 0 | AK64: 4384 | AL64: 1192010.871 | AM64: 37756.7883 | AN64: 7493.6 | AO64: 245 | AR64: 0 | AS64: 0 | AT64: 0 | BJ64: 59388.07732 | BK64: 109557.8169 | BL64: 112016.6757 | BM64: 50403.92516 | BN64: 125894.7077 | BP64: 0 | BQ64: 0 | CC64: Recoupment Academy
A65: 2099 | B65: Edenbridge Primary School | C65: 1 | D65: 364 | E65: 0 | F65: 0 | G65: 0.4065934066 | H65: 0 | I65: 0.4120879121 | J65: 0 | K65: 0.2197802198 | L65: 0.002747252747 | M65: 0.1895604396 | N65: 0.002747252747 | O65: 0 | P65: 0 | Q65: 0 | R65: 0 | S65: 0 | T65: 0 | U65: 0 | V65: 0 | W65: 0.03278688525 | X65: 0 | Y65: 0.2912513843 | Z65: 0 | AA65: 0.09065934066 | AB65: 0 | AC65: 125894.7077 | AD65: 0 | AE65: 0 | AF65: 1.0377 | AG65: 0 | AH65: 9625.6 | AI65: 0 | AJ65: 0 | AK65: 4384 | AL65: 1618163.685 | AM65: 52557.5857 | AN65: 9625.6 | AO65: 357 | AR65: 0 | AS65: 0 | AT65: 0 | BJ65: 48705.0932 | BK65: 104010.5856 | BL65: 120433.9281 | BM65: 6808.096379 | BN65: 125894.7077 | BP65: 0 | BQ65: 0 | CC65: Recoupment Academy
A66: 2107 | B66: Rosherville Church of England Academy | C66: 1 | D66: 140 | E66: 0 | F66: 0 | G66: 0.4 | H66: 0 | I66: 0.4071428571 | J66: 0 | K66: 0.4214285714 | L66: 0.07857142857 | M66: 0.2071428571 | N66: 0 | O66: 0.02142857143 | P66: 0 | Q66: 0 | R66: 0 | S66: 0 | T66: 0 | U66: 0 | V66: 0 | W66: 0.1983471074 | X66: 0 | Y66: 0.2782608696 | Z66: 0 | AA66: 0.08571428571 | AB66: 0 | AC66: 125894.7077 | AD66: 0 | AE66: 0 | AF66: 1 | AG66: 0 | AH66: 1561.6 | AI66: 0 | AJ66: 0 | AK66: 4384 | AL66: 697682.5048 | AM66: 22181.7379 | AN66: 1561.6 | AO66: 138 | AR66: 0 | AS66: 0 | AT66: 0 | BJ66: 30430.85839 | BK66: 39524.02254 | BL66: 44254.72469 | BM66: 15840.83455 | BN66: 125894.7077 | BP66: 0 | BQ66: 0 | CC66: Recoupment Academy
A67: 2110 | B67: Culverstone Green Primary School | C67: 1 | D67: 206 | E67: 0 | F67: 0 | G67: 0.1116504854 | H67: 0 | I67: 0.1165048544 | J67: 0 | K67: 0.00487804878 | L67: 0.01463414634 | M67: 0 | N67: 0.01463414634 | O67: 0 | P67: 0 | Q67: 0 | R67: 0 | S67: 0 | T67: 0 | U67: 0 | V67: 0 | W67: 0.01136363636 | X67: 0 | Y67: 0.2986512524 | Z67: 0 | AA67: 0.04854368932 | AB67: 0 | AC67: 125894.7077 | AD67: 0 | AE67: 0 | AF67: 1 | AG67: 0 | AH67: 7731.2 | AI67: 0 | AJ67: 0 | AK67: 4384 | AL67: 886321.2 | AM67: 25550.1277 | AN67: 7731.2 | AO67: 206 | AR67: 0 | AS67: 0 | AT67: 0 | BJ67: 2480.75698 | BK67: 16641.6937 | BL67: 69889.35466 | BM67: 1335.391782 | BN67: 125894.7077 | BP67: 0 | BQ67: 0 | CC67: Recoupment Academy
A68: 2112 | B68: River Mill Primary School | C68: 1 | D68: 273.4166667 | E68: 0 | F68: 0 | G68: 0.0756302521 | H68: 0 | I68: 0.0756302521 | J68: 0 | K68: 0.01260504202 | L68: 0 | M68: 0.01260504202 | N68: 0.004201680672 | O68: 0.7142857143 | P68: 0 | Q68: 0 | R68: 0 | S68: 0 | T68: 0 | U68: 0 | V68: 0 | W68: 0.3314606742 | X68: 0 | Y68: 0.2290640394 | Z68: 0 | AA68: 0.03781512605 | AB68: 0 | AC68: 125894.7077 | AD68: 0 | AE68: 0 | AF68: 1.0377 | AG68: 0 | AH68: 0 | AI68: 0 | AJ68: 0 | AK68: 4384 | AL68: 1037807.386 | AM68: 26782.2702 | AN68: 0 | AO68: 214.4166667 | AR68: 0 | AS68: 0 | AT68: 0 | BJ68: 100776.6393 | BK68: 14338.60216 | BL68: 71147.78254 | BM68: 51698.88118 | BN68: 125894.7077 | BP68: 0 | BQ68: 0 | CC68: Recoupment Academy
A69: 2114 | B69: Cage Green Primary School | C69: 1 | D69: 218 | E69: 0 | F69: 0 | G69: 0.4220183486 | H69: 0 | I69: 0.4311926606 | J69: 0 | K69: 0.3256880734 | L69: 0 | M69: 0.2385321101 | N69: 0 | O69: 0 | P69: 0 | Q69: 0 | R69: 0 | S69: 0 | T69: 0 | U69: 0 | V69: 0 | W69: 0.04568527919 | X69: 0 | Y69: 0.3842105263 | Z69: 0 | AA69: 0.07798165138 | AB69: 0 | AC69: 125894.7077 | AD69: 0 | AE69: 0 | AF69: 1 | AG69: 0 | AH69: 7731.2 | AI69: 0 | AJ69: 0 | AK69: 4384 | AL69: 1164045.694 | AM69: 37087.3133 | AN69: 7731.2 | AO69: 253 | AR69: 0 | AS69: 0 | AT69: 0 | BJ69: 38564.73682 | BK69: 65179.967 | BL69: 95149.21781 | BM69: 5681.420419 | BN69: 125894.7077 | BP69: 0 | BQ69: 0 | CC69: Recoupment Academy
A70: 2117 | B70: Dartford Bridge Community Primary School | C70: 1 | D70: 415 | E70: 0 | F70: 0 | G70: 0.0843373494 | H70: 0 | I70: 0.09156626506 | J70: 0 | K70: 0.002421307506 | L70: 0.002421307506 | M70: 0.1113801453 | N70: 0.002421307506 | O70: 0.009685230024 | P70: 0 | Q70: 0 | R70: 0 | S70: 0 | T70: 0 | U70: 0 | V70: 0 | W70: 0.2788732394 | X70: 0 | Y70: 0.2584004294 | Z70: 0 | AA70: 0.06265060241 | AB70: 0 | AC70: 125894.7077 | AD70: 0 | AE70: 0 | AF70: 1.0377 | AG70: 0 | AH70: 6912 | AI70: 0 | AJ70: 0 | AK70: 4384 | AL70: 1785417 | AM70: 49069.9393 | AN70: 6912 | AO70: 417 | AR70: 0 | AS70: 0 | AT70: 0 | BJ70: 22997.97846 | BK70: 26349.34836 | BL70: 121820.6177 | BM70: 66020.54258 | BN70: 125894.7077 | BP70: 0 | BQ70: 0 | CC70: Recoupment Academy
A71: 2118 | B71: St Katherine's School & Nursery | C71: 1 | D71: 480 | E71: 0 | F71: 0 | G71: 0.29375 | H71: 0 | I71: 0.2979166667 | J71: 0 | K71: 0.2125 | L71: 0.3958333333 | M71: 0.002083333333 | N71: 0.004166666667 | O71: 0 | P71: 0 | Q71: 0 | R71: 0 | S71: 0 | T71: 0 | U71: 0 | V71: 0 | W71: 0.02857142857 | X71: 0 | Y71: 0.2215903614 | Z71: 0 | AA71: 0.06875 | AB71: 0 | AC71: 125894.7077 | AD71: 0 | AE71: 0 | AF71: 1 | AG71: 0 | AH71: 14131.2 | AI71: 0 | AJ71: 0 | AK71: 4384 | AL71: 2159426.2 | AM71: 63566.0999 | AN71: 14131.2 | AO71: 503 | AR71: 0 | AS71: 0 | AT71: 0 | BJ71: 76775.98999 | BK71: 99156.75831 | BL71: 120829.109 | BM71: 7823.432574 | BN71: 125894.7077 | BP71: 1044.556005 | BQ71: 9296.115764 | CC71: Recoupment Academy
A72: 2119 | B72: Shears Green Infant School | C72: 1 | D72: 343 | E72: 0 | F72: 0 | G72: 0.1865889213 | H72: 0 | I72: 0.1895043732 | J72: 0 | K72: 0.1137026239 | L72: 0.3469387755 | M72: 0.01749271137 | N72: 0.01457725948 | O72: 0.01749271137 | P72: 0 | Q72: 0 | R72: 0 | S72: 0 | T72: 0 | U72: 0 | V72: 0 | W72: 0.1774891775 | X72: 0 | Y72: 0.2213187577 | Z72: 0 | AA72: 0.03498542274 | AB72: 0 | AC72: 125894.7077 | AD72: 0 | AE72: 0 | AF72: 1 | AG72: 0 | AH72: 21760 | AI72: 0 | AJ72: 0 | AK72: 4384 | AL72: 1446270 | AM72: 41207.2364 | AN72: 21760 | AO72: 334 | AR72: 0 | AS72: 0 | AT72: 0 | BJ72: 49561.18903 | BK72: 45071.25378 | BL72: 86236.63731 | BM72: 34728.82964 | BN72: 125894.7077 | BP72: 0 | BQ72: 0 | CC72: Recoupment Academy
A73: 2126 | B73: Sunny Bank Primary School | C73: 1 | D73: 178 | E73: 0 | F73: 0 | G73: 0.5561797753 | H73: 0 | I73: 0.5561797753 | J73: 0 | K73: 0.05617977528 | L73: 0.5168539326 | M73: 0.07303370787 | N73: 0 | O73: 0.01123595506 | P73: 0.2415730337 | Q73: 0 | R73: 0 | S73: 0 | T73: 0 | U73: 0 | V73: 0 | W73: 0.1474358974 | X73: 0 | Y73: 0.2893835616 | Z73: 0 | AA73: 0.06741573034 | AB73: 0 | AC73: 125894.7077 | AD73: 0 | AE73: 0 | AF73: 1 | AG73: 0 | AH73: 24202 | AI73: 0 | AJ73: 0 | AK73: 4384 | AL73: 1054002.26 | AM73: 33339.6544 | AN73: 24202 | AO73: 203 | AR73: 0 | AS73: 0 | AT73: 0 | BJ73: 62563.99143 | BK73: 68646.98652 | BL73: 58515.8246 | BM73: 14970.88212 | BN73: 125894.7077 | BP73: 0 | BQ73: 0 | CC73: Recoupment Academy
A74: 2127 | B74: Paddock Wood Primary Academy | C74: 1 | D74: 606 | E74: 0 | F74: 0 | G74: 0.1765676568 | H74: 0 | I74: 0.1848184818 | J74: 0 | K74: 0.1374172185 | L74: 0.003311258278 | M74: 0.003311258278 | N74: 0 | O74: 0 | P74: 0 | Q74: 0 | R74: 0 | S74: 0 | T74: 0 | U74: 0 | V74: 0 | W74: 0.04835589942 | X74: 0 | Y74: 0.2644135189 | Z74: 0 | AA74: 0.05940594059 | AB74: 0 | AC74: 125894.7077 | AD74: 0 | AE74: 0 | AF74: 1 | AG74: 0 | AH74: 13312 | AI74: 0 | AJ74: 0 | AK74: 4384 | AL74: 2542457 | AM74: 70516.0309 | AN74: 13312 | AO74: 593 | AR74: 0 | AS74: 0 | AT74: 0 | BJ74: 20258.92041 | BK74: 77661.23727 | BL74: 182026.9741 | BM74: 16716.53418 | BN74: 125894.7077 | BP74: 160695.1275 | BQ74: 0 | CC74: Recoupment Academy
A75: 2129 | B75: Springhead Park Primary School | C75: 1 | D75: 299 | E75: 0 | F75: 0 | G75: 0.2073578595 | H75: 0 | I75: 0.2240802676 | J75: 0 | K75: 0.0602006689 | L75: 0.6655518395 | M75: 0.03678929766 | N75: 0.02006688963 | O75: 0.02006688963 | P75: 0 | Q75: 0 | R75: 0 | S75: 0 | T75: 0 | U75: 0 | V75: 0 | W75: 0.1966527197 | X75: 0 | Y75: 0.2146003776 | Z75: 0 | AA75: 0.1677852349 | AB75: 0 | AC75: 125894.7077 | AD75: 0 | AE75: 0 | AF75: 1 | AG75: 0 | AH75: 0 | AI75: 0 | AJ75: 0 | AK75: 4384 | AL75: 1106947.679 | AM75: 30860.5956 | AN75: 0 | AO75: 235.6666667 | AR75: 0 | AS75: 0 | AT75: 0 | BJ75: 69478.27509 | BK75: 46458.06158 | BL75: 72892.21371 | BM75: 33542.48979 | BN75: 125894.7077 | BP75: 0 | BQ75: 4145.612961 | CC75: Recoupment Academy
A76: 2131 | B76: Bearsted Primary Academy | C76: 1 | D76: 252.5833333 | E76: 0 | F76: 0 | G76: 0.07174887892 | H76: 0 | I76: 0.09865470852 | J76: 0 | K76: 0.09090909091 | L76: 0.05454545455 | M76: 0.009090909091 | N76: 0.02727272727 | O76: 0.02272727273 | P76: 0 | Q76: 0 | R76: 0 | S76: 0 | T76: 0 | U76: 0 | V76: 0 | W76: 0.2202380952 | X76: 0 | Y76: 0.1857142857 | Z76: 0 | AA76: 0.1165919283 | AB76: 0 | AC76: 125894.7077 | AD76: 0 | AE76: 0 | AF76: 1 | AG76: 0 | AH76: 30464 | AI76: 0 | AJ76: 0 | AK76: 4384 | AL76: 836209.0059 | AM76: 22313.5099 | AN76: 30464 | AO76: 172.5 | AR76: 0 | AS76: 0 | AT76: 0 | BJ76: 16113.92382 | BK76: 17278.60954 | BL76: 53288.00633 | BM76: 31733.74178 | BN76: 125894.7077 | BP76: 0 | BQ76: 44720.46408 | CC76: Recoupment Academy
A77: 2133 | B77: Halstead Community Primary School | C77: 1 | D77: 56 | E77: 0 | F77: 0 | G77: 0.2857142857 | H77: 0 | I77: 0.2857142857 | J77: 0 | K77: 0.08928571429 | L77: 0.07142857143 | M77: 0 | N77: 0 | O77: 0.01785714286 | P77: 0 | Q77: 0 | R77: 0 | S77: 0 | T77: 0 | U77: 0 | V77: 0 | W77: 0.04255319149 | X77: 0 | Y77: 0.2293144208 | Z77: 0 | AA77: 0.03571428571 | AB77: 0 | AC77: 125894.7077 | AD77: 40976.75807 | AE77: 0 | AF77: 1.0377 | AG77: 0 | AH77: 9481 | AI77: 0 | AJ77: 0 | AK77: 4384 | AL77: 420466.4006 | AM77: 11650.3998 | AN77: 9481 | AO77: 62 | AR77: 0 | AS77: 0 | AT77: 0 | BJ77: 2734.26212 | BK77: 11094.46247 | BL77: 14588.10443 | BM77: 1359.390766 | BN77: 125894.7077 | BP77: 0 | BQ77: 0 | CC77: Recoupment Academy
A78: 2135 | B78: Horsmonden Primary Academy | C78: 1 | D78: 169 | E78: 0 | F78: 0 | G78: 0.08284023669 | H78: 0 | I78: 0.08875739645 | J78: 0 | K78: 0.005917159763 | L78: 0.08875739645 | M78: 0 | N78: 0 | O78: 0 | P78: 0 | Q78: 0 | R78: 0 | S78: 0 | T78: 0 | U78: 0 | V78: 0 | W78: 0.05035971223 | X78: 0 | Y78: 0.2256365233 | Z78: 0 | AA78: 0.08284023669 | AB78: 0 | AC78: 125894.7077 | AD78: 0 | AE78: 0 | AF78: 1 | AG78: 0 | AH78: 3840 | AI78: 0 | AJ78: 0 | AK78: 4384 | AL78: 664384.2747 | AM78: 19895.1155 | AN78: 3840 | AO78: 153 | AR78: 0 | AS78: 0 | AT78: 0 | BJ78: 4357.151598 | BK78: 10401.05856 | BL78: 43318.71582 | BM78: 4855.054342 | BN78: 125894.7077 | BP78: 0 | BQ78: 0 | CC78: Recoupment Academy
A79: 2140 | B79: Ebbsfleet Green Primary School | C79: 1 | D79: 247.5833333 | E79: 0 | F79: 0 | G79: 0.0621761658 | H79: 0 | I79: 0.06735751295 | J79: 0 | K79: 0.03141361257 | L79: 0.03141361257 | M79: 0 | N79: 0.01570680628 | O79: 0.02094240838 | P79: 0 | Q79: 0 | R79: 0 | S79: 0 | T79: 0 | U79: 0 | V79: 0 | W79: 0.1463414634 | X79: 0 | Y79: 0.218579235 | Z79: 0 | AA79: 0.09844559585 | AB79: 0 | AC79: 125894.7077 | AD79: 0 | AE79: 0 | AF79: 1.0377 | AG79: 0 | AH79: 0 | AI79: 0 | AJ79: 0 | AK79: 4384 | AL79: 563505.9294 | AM79: 15591.9073 | AN79: 0 | AO79: 107.5 | AR79: 0 | AS79: 0 | AT79: 0 | BJ79: 8337.997071 | BK79: 11563.61787 | BL79: 61476.591 | BM79: 20668.68994 | BN79: 125894.7077 | BP79: 0 | BQ79: 52590.16048 | CC79: Recoupment Academy
A80: 2141 | B80: Amherst School | C80: 1 | D80: 381 | E80: 0 | F80: 0 | G80: 0.0498687664 | H80: 0 | I80: 0.06036745407 | J80: 0 | K80: 0.002624671916 | L80: 0 | M80: 0 | N80: 0.002624671916 | O80: 0 | P80: 0 | Q80: 0 | R80: 0 | S80: 0 | T80: 0 | U80: 0 | V80: 0 | W80: 0.02624671916 | X80: 0 | Y80: 0.1320613776 | Z80: 0 | AA80: 0.02362204724 | AB80: 0 | AC80: 125894.7077 | AD80: 0 | AE80: 0 | AF80: 1.0377 | AG80: 0 | AH80: 5580.8 | AI80: 0 | AJ80: 0 | AK80: 4384 | AL80: 1617750.8 | AM80: 43555.0984 | AN80: 5580.8 | AO80: 378 | AR80: 0 | AS80: 0 | AT80: 0 | BJ80: 698.3181771 | BK80: 15948.2898 | BL80: 57158.42701 | BM80: 5704.586252 | BN80: 125894.7077 | BP80: 128053.7212 | BQ80: 0 | CC80: Recoupment Academy
A81: 2143 | B81: Folkestone Primary | C81: 1 | D81: 379 | E81: 0 | F81: 0 | G81: 0.2559366755 | H81: 0 | I81: 0.2612137203 | J81: 0 | K81: 0.1055408971 | L81: 0.08443271768 | M81: 0.06596306069 | N81: 0.07915567282 | O81: 0.110817942 | P81: 0.01846965699 | Q81: 0 | R81: 0 | S81: 0 | T81: 0 | U81: 0 | V81: 0 | W81: 0.03539823009 | X81: 0 | Y81: 0.2062989406 | Z81: 0 | AA81: 0.03693931398 | AB81: 0 | AC81: 125894.7077 | AD81: 0 | AE81: 0 | AF81: 1 | AG81: 0 | AH81: 0 | AI81: 0 | AJ81: 0 | AK81: 4384 | AL81: 1757180 | AM81: 53371.8671 | AN81: 0 | AO81: 412 | AR81: 0 | AS81: 0 | AT81: 0 | BJ81: 68523.86433 | BK81: 68646.98652 | BL81: 88821.00387 | BM81: 7653.232529 | BN81: 125894.7077 | BP81: 0 | BQ81: 5112.690331 | CC81: Recoupment Academy
A82: 2172 | B82: Valley Invicta Primary School At East Borough | C82: 1 | D82: 472 | E82: 0 | F82: 0 | G82: 0.1949152542 | H82: 0 | I82: 0.2033898305 | J82: 0 | K82: 0.2575107296 | L82: 0.1094420601 | M82: 0 | N82: 0.008583690987 | O82: 0.01072961373 | P82: 0 | Q82: 0 | R82: 0 | S82: 0 | T82: 0 | U82: 0 | V82: 0 | W82: 0.2205882353 | X82: 0 | Y82: 0.2582175252 | Z82: 0 | AA82: 0.04237288136 | AB82: 0 | AC82: 125894.7077 | AD82: 0 | AE82: 0 | AF82: 1 | AG82: 0 | AH82: 10188.8 | AI82: 0 | AJ82: 0 | AK82: 4384 | AL82: 1989148.8 | AM82: 56973.4224 | AN82: 10188.8 | AO82: 464 | AR82: 0 | AS82: 0 | AT82: 0 | BJ82: 46174.27249 | BK82: 66566.77481 | BL82: 138454.5341 | BM82: 59394.8098 | BN82: 125894.7077 | BP82: 13709.70111 | BQ82: 0 | CC82: Recoupment Academy
A83: 2180 | B83: South Borough Primary School | C83: 1 | D83: 476 | E83: 0 | F83: 0 | G83: 0.2352941176 | H83: 0 | I83: 0.243697479 | J83: 0 | K83: 0.1392405063 | L83: 0.08227848101 | M83: 0.002109704641 | N83: 0.01476793249 | O83: 0.2025316456 | P83: 0 | Q83: 0 | R83: 0 | S83: 0 | T83: 0 | U83: 0 | V83: 0 | W83: 0.1951807229 | X83: 0 | Y83: 0.2597775893 | Z83: 0 | AA83: 0.06512605042 | AB83: 0 | AC83: 125894.7077 | AD83: 0 | AE83: 0 | AF83: 1 | AG83: 0 | AH83: 11980.8 | AI83: 0 | AJ83: 0 | AK83: 4384 | AL83: 2029325.8 | AM83: 59718.37 | AN83: 11980.8 | AO83: 473 | AR83: 0 | AS83: 0 | AT83: 0 | BJ83: 77889.83673 | BK83: 80434.85289 | BL83: 140471.4627 | BM83: 52999.04278 | BN83: 125894.7077 | BP83: 0 | BQ83: 0 | CC83: Recoupment Academy
A84: 2183 | B84: Marden Primary Academy | C84: 1 | D84: 280 | E84: 0 | F84: 0 | G84: 0.2928571429 | H84: 0 | I84: 0.2964285714 | J84: 0 | K84: 0.01785714286 | L84: 0.4107142857 | M84: 0.01071428571 | N84: 0 | O84: 0.007142857143 | P84: 0 | Q84: 0 | R84: 0 | S84: 0 | T84: 0 | U84: 0 | V84: 0 | W84: 0.03829787234 | X84: 0 | Y84: 0.2306560392 | Z84: 0 | AA84: 0.025 | AB84: 0 | AC84: 125894.7077 | AD84: 0 | AE84: 0 | AF84: 1 | AG84: 0 | AH84: 26624 | AI84: 0 | AJ84: 0 | AK84: 4384 | AL84: 1254110.507 | AM84: 39026.6893 | AN84: 26624 | AO84: 287 | AR84: 0 | AS84: 0 | AT84: 0 | BJ84: 35103.09351 | BK84: 57552.52405 | BL84: 73367.26526 | BM84: 6117.258449 | BN84: 125894.7077 | BP84: 0 | BQ84: 0 | CC84: Recoupment Academy
A85: 2223 | B85: Bobbing Village School | C85: 1 | D85: 208 | E85: 0 | F85: 0 | G85: 0.07211538462 | H85: 0 | I85: 0.07211538462 | J85: 0 | K85: 0.08173076923 | L85: 0.1682692308 | M85: 0.02403846154 | N85: 0 | O85: 0 | P85: 0 | Q85: 0 | R85: 0 | S85: 0 | T85: 0 | U85: 0 | V85: 0 | W85: 0.06179775281 | X85: 0 | Y85: 0.1963265306 | Z85: 0 | AA85: 0.01923076923 | AB85: 0 | AC85: 125894.7077 | AD85: 0 | AE85: 0 | AF85: 1 | AG85: 0 | AH85: 1126.4 | AI85: 0 | AJ85: 0 | AK85: 4384 | AL85: 888246.4 | AM85: 25489.0844 | AN85: 1126.4 | AO85: 208 | AR85: 0 | AS85: 0 | AT85: 0 | BJ85: 15648.29309 | BK85: 10401.05856 | BL85: 46389.72485 | BM85: 7332.63671 | BN85: 125894.7077 | BP85: 4783.173707 | BQ85: 737.0844 | CC85: Recoupment Academy
A86: 2229 | B86: Graveney Primary School | C86: 1 | D86: 98 | E86: 0 | F86: 0 | G86: 0.1836734694 | H86: 0 | I86: 0.1836734694 | J86: 0 | K86: 0.3163265306 | L86: 0.1530612245 | M86: 0 | N86: 0.05102040816 | O86: 0.0306122449 | P86: 0 | Q86: 0 | R86: 0 | S86: 0 | T86: 0 | U86: 0 | V86: 0 | W86: 0.03448275862 | X86: 0 | Y86: 0.1622574956 | Z86: 0 | AA86: 0.05102040816 | AB86: 0 | AC86: 125894.7077 | AD86: 23647.80197 | AE86: 0 | AF86: 1 | AG86: 0 | AH86: 952.32 | AI86: 0 | AJ86: 0 | AK86: 4384 | AL86: 524657.164 | AM86: 14932.5946 | AN86: 952.32 | AO86: 101 | AR86: 0 | AS86: 0 | AT86: 0 | BJ86: 15008.91671 | BK86: 12481.27028 | BL86: 18063.84981 | BM86: 1927.756733 | BN86: 125894.7077 | BP86: 0 | BQ86: 0 | CC86: Recoupment Academy
A87: 2230 | B87: Iwade School | C87: 1 | D87: 613 | E87: 0 | F87: 0 | G87: 0.1288743883 | H87: 0 | I87: 0.1337683524 | J87: 0 | K87: 0.09624796085 | L87: 0.0277324633 | M87: 0.01794453507 | N87: 0.004893964111 | O87: 0.006525285481 | P87: 0.003262642741 | Q87: 0 | R87: 0 | S87: 0 | T87: 0 | U87: 0 | V87: 0 | W87: 0.02277039848 | X87: 0 | Y87: 0.2145183204 | Z87: 0 | AA87: 0.03262642741 | AB87: 0 | AC87: 125894.7077 | AD87: 0 | AE87: 0 | AF87: 1 | AG87: 0 | AH87: 13926.4 | AI87: 0 | AJ87: 0 | AK87: 4384 | AL87: 2649696.4 | AM87: 70561.0628 | AN87: 13926.4 | AO87: 618 | AR87: 0 | AS87: 0 | AT87: 0 | BJ87: 27529.43237 | BK87: 56859.12015 | BL87: 149384.0853 | BM87: 7962.60654 | BN87: 125894.7077 | BP87: 236163.2316 | BQ87: 0 | CC87: Recoupment Academy
A88: 2232 | B88: Luddenham School | C88: 1 | D88: 199 | E88: 0 | F88: 0 | G88: 0.2412060302 | H88: 0 | I88: 0.2412060302 | J88: 0 | K88: 0.3316582915 | L88: 0.04020100503 | M88: 0.05527638191 | N88: 0.01507537688 | O88: 0.1005025126 | P88: 0 | Q88: 0 | R88: 0 | S88: 0 | T88: 0 | U88: 0 | V88: 0 | W88: 0 | X88: 0 | Y88: 0.328540305 | Z88: 0 | AA88: 0.05025125628 | AB88: 0 | AC88: 125894.7077 | AD88: 0 | AE88: 0 | AF88: 1 | AG88: 0 | AH88: 5273.6 | AI88: 0 | AJ88: 0 | AK88: 4384 | AL88: 867976.0214 | AM88: 26317.6723 | AN88: 5273.6 | AO88: 192 | AR88: 0 | AS88: 0 | AT88: 0 | BJ88: 33342.15228 | BK88: 33283.3874 | BL88: 74271.33018 | BM88: 0 | BN88: 125894.7077 | BP88: 0 | BQ88: 0 | CC88: Recoupment Academy
A89: 2233 | B89: Lynsted and Norton Primary School | C89: 1 | D89: 71 | E89: 0 | F89: 0 | G89: 0.3661971831 | H89: 0 | I89: 0.3802816901 | J89: 0 | K89: 0.652173913 | L89: 0 | M89: 0.01449275362 | N89: 0 | O89: 0.01449275362 | P89: 0 | Q89: 0 | R89: 0 | S89: 0 | T89: 0 | U89: 0 | V89: 0 | W89: 0.03125 | X89: 0 | Y89: 0.3174603175 | Z89: 0 | AA89: 0.1830985915 | AB89: 0 | AC89: 125894.7077 | AD89: 0 | AE89: 0 | AF89: 1 | AG89: 0 | AH89: 3225.6 | AI89: 0 | AJ89: 0 | AK89: 4384 | AL89: 395035.3725 | AM89: 12130.6066 | AN89: 3225.6 | AO89: 66 | AR89: 0 | AS89: 0 | AT89: 0 | BJ89: 11436.13648 | BK89: 18721.90541 | BL89: 25605.14648 | BM89: 1265.705075 | BN89: 125894.7077 | BP89: 0 | BQ89: 0 | CC89: Recoupment Academy
A90: 2235 | B90: Minster in Sheppey Primary School | C90: 1 | D90: 584 | E90: 0 | F90: 0 | G90: 0.2448630137 | H90: 0 | I90: 0.25 | J90: 0 | K90: 0.3424657534 | L90: 0.07363013699 | M90: 0.07534246575 | N90: 0.04280821918 | O90: 0.1592465753 | P90: 0.03767123288 | Q90: 0 | R90: 0 | S90: 0 | T90: 0 | U90: 0 | V90: 0 | W90: 0.006072874494 | X90: 0 | Y90: 0.1623627044 | Z90: 0 | AA90: 0.04280821918 | AB90: 0 | AC90: 125894.7077 | AD90: 0 | AE90: 0 | AF90: 1 | AG90: 0 | AH90: 20400 | AI90: 0 | AJ90: 0 | AK90: 4384 | AL90: 2370415 | AM90: 69246.1299 | AN90: 20400 | AO90: 551 | AR90: 0 | AS90: 0 | AT90: 0 | BJ90: 149076.2175 | BK90: 101236.97 | BL90: 107715.5971 | BM90: 2023.165003 | BN90: 125894.7077 | BP90: 57302.98312 | BQ90: 0 | CC90: Recoupment Academy
A91: 2237 | B91: Queenborough School and Nursery | C91: 1 | D91: 418 | E91: 0 | F91: 0 | G91: 0.3827751196 | H91: 0 | I91: 0.3899521531 | J91: 0 | K91: 0.2057416268 | L91: 0.01435406699 | M91: 0.01674641148 | N91: 0.01435406699 | O91: 0.3899521531 | P91: 0.3086124402 | Q91: 0 | R91: 0 | S91: 0 | T91: 0 | U91: 0 | V91: 0 | W91: 0.01675977654 | X91: 0 | Y91: 0.285887253 | Z91: 0 | AA91: 0.04545454545 | AB91: 0 | AC91: 125894.7077 | AD91: 0 | AE91: 0 | AF91: 1 | AG91: 0 | AH91: 6809.6 | AI91: 0 | AJ91: 0 | AK91: 4384 | AL91: 1875239.096 | AM91: 57248.6177 | AN91: 6809.6 | AO91: 409 | AR91: 0 | AS91: 0 | AT91: 0 | BJ91: 193740.0682 | BK91: 113024.8364 | BL91: 135753.3461 | BM91: 3996.397296 | BN91: 125894.7077 | BP91: 0 | BQ91: 0 | CC91: Recoupment Academy
A92: 2246 | B92: Sheldwich Primary School | C92: 1 | D92: 217 | E92: 0 | F92: 0 | G92: 0.06912442396 | H92: 0 | I92: 0.07373271889 | J92: 0 | K92: 0.08294930876 | L92: 0.04608294931 | M92: 0.02764976959 | N92: 0 | O92: 0.004608294931 | P92: 0.009216589862 | Q92: 0 | R92: 0 | S92: 0 | T92: 0 | U92: 0 | V92: 0 | W92: 0.01621621622 | X92: 0 | Y92: 0.1949934124 | Z92: 0 | AA92: 0.04608294931 | AB92: 0 | AC92: 125894.7077 | AD92: 0 | AE92: 0 | AF92: 1 | AG92: 0 | AH92: 4966.4 | AI92: 0 | AJ92: 0 | AK92: 4384 | AL92: 921941.4 | AM92: 26083.5061 | AN92: 4966.4 | AO92: 215 | AR92: 0 | AS92: 0 | AT92: 0 | BJ92: 11241.94963 | BK92: 11094.46247 | BL92: 48068.34206 | BM92: 2007.397649 | BN92: 125894.7077 | BP92: 21555.14109 | BQ92: 0 | CC92: Recoupment Academy
A93: 2249 | B93: Regis Manor Primary School | C93: 1 | D93: 526 | E93: 0 | F93: 0 | G93: 0.2395437262 | H93: 0 | I93: 0.2490494297 | J93: 0 | K93: 0.1927480916 | L93: 0.143129771 | M93: 0.3072519084 | N93: 0.001908396947 | O93: 0 | P93: 0.003816793893 | Q93: 0 | R93: 0 | S93: 0 | T93: 0 | U93: 0 | V93: 0 | W93: 0.0709382151 | X93: 0 | Y93: 0.225495783 | Z93: 0 | AA93: 0.0534351145 | AB93: 0 | AC93: 125894.7077 | AD93: 0 | AE93: 0 | AF93: 1 | AG93: 0 | AH93: 11468.8 | AI93: 0 | AJ93: 0 | AK93: 4384 | AL93: 2101318.8 | AM93: 61708.7821 | AN93: 11468.8 | AO93: 490 | AR93: 0 | AS93: 0 | AT93: 0 | BJ93: 115405.634 | BK93: 90835.91146 | BL93: 134742.2013 | BM93: 21285.80856 | BN93: 125894.7077 | BP93: 2453.424341 | BQ93: 0 | CC93: Recoupment Academy
A94: 2259 | B94: Chartham Primary School | C94: 1 | D94: 384 | E94: 0 | F94: 0 | G94: 0.2604166667 | H94: 0 | I94: 0.2786458333 | J94: 0 | K94: 0.002604166667 | L94: 0.01041666667 | M94: 0.0078125 | N94: 0.015625 | O94: 0.04427083333 | P94: 0 | Q94: 0 | R94: 0 | S94: 0 | T94: 0 | U94: 0 | V94: 0 | W94: 0.05074626866 | X94: 0 | Y94: 0.2980919003 | Z94: 0 | AA94: 0.04947916667 | AB94: 0 | AC94: 125894.7077 | AD94: 0 | AE94: 0 | AF94: 1 | AG94: 0 | AH94: 32512 | AI94: 0 | AJ94: 0 | AK94: 4384 | AL94: 1631887 | AM94: 47994.0516 | AN94: 32512 | AO94: 375 | AR94: 0 | AS94: 0 | AT94: 0 | BJ94: 13986.06978 | BK94: 74194.21775 | BL94: 130035.1819 | BM94: 11116.28031 | BN94: 125894.7077 | BP94: 0 | BQ94: 0 | CC94: Recoupment Academy
A95: 2264 | B95: Hampton Primary School | C95: 1 | D95: 648 | E95: 0 | F95: 0 | G95: 0.2793209877 | H95: 0 | I95: 0.2854938272 | J95: 0 | K95: 0.01697530864 | L95: 0.06481481481 | M95: 0.1851851852 | N95: 0.04475308642 | O95: 0.04783950617 | P95: 0 | Q95: 0 | R95: 0 | S95: 0 | T95: 0 | U95: 0 | V95: 0 | W95: 0.0394265233 | X95: 0 | Y95: 0.2449608905 | Z95: 0 | AA95: 0.04475308642 | AB95: 0 | AC95: 125894.7077 | AD95: 0 | AE95: 0 | AF95: 1 | AG95: 0 | AH95: 16998.4 | AI95: 0 | AJ95: 0 | AK95: 4384 | AL95: 2870283.4 | AM95: 85548.6965 | AN95: 16998.4 | AO95: 669 | AR95: 0 | AS95: 0 | AT95: 0 | BJ95: 95227.18776 | BK95: 128279.7223 | BL95: 180323.043 | BM95: 14574.29778 | BN95: 125894.7077 | BP95: 47943.38061 | BQ95: 9703.16322 | CC95: Recoupment Academy
A96: 2272 | B96: East Stour Primary School | C96: 1 | D96: 392 | E96: 0 | F96: 0 | G96: 0.3724489796 | H96: 0 | I96: 0.3954081633 | J96: 0 | K96: 0.1825192802 | L96: 0.2287917738 | M96: 0.005141388175 | N96: 0 | O96: 0.0205655527 | P96: 0 | Q96: 0 | R96: 0 | S96: 0 | T96: 0 | U96: 0 | V96: 0 | W96: 0.1424418605 | X96: 0 | Y96: 0.2695459579 | Z96: 0 | AA96: 0.08928571429 | AB96: 0 | AC96: 125894.7077 | AD96: 0 | AE96: 0 | AF96: 1 | AG96: 0 | AH96: 53760 | AI96: 0 | AJ96: 0 | AK96: 4384 | AL96: 1737451.377 | AM96: 55356.2751 | AN96: 53760 | AO96: 386 | AR96: 0 | AS96: 0 | AT96: 0 | BJ96: 45800.32272 | BK96: 107477.6052 | BL96: 120032.3642 | BM96: 31852.81765 | BN96: 125894.7077 | BP96: 0 | BQ96: 0 | CC96: Recoupment Academy
A97: 2286 | B97: Hamstreet Primary Academy | C97: 1 | D97: 271 | E97: 0 | F97: 0 | G97: 0.1402214022 | H97: 0 | I97: 0.1586715867 | J97: 0 | K97: 0.01123595506 | L97: 0.003745318352 | M97: 0.05992509363 | N97: 0 | O97: 0.003745318352 | P97: 0 | Q97: 0 | R97: 0 | S97: 0 | T97: 0 | U97: 0 | V97: 0 | W97: 0.008658008658 | X97: 0 | Y97: 0.2980116959 | Z97: 0 | AA97: 0.05535055351 | AB97: 0 | AC97: 125894.7077 | AD97: 0 | AE97: 0 | AF97: 1 | AG97: 0 | AH97: 4480 | AI97: 0 | AJ97: 0 | AK97: 4384 | AL97: 1211475 | AM97: 35406.1205 | AN97: 4480 | AO97: 283 | AR97: 0 | AS97: 0 | AT97: 0 | BJ97: 8505.358472 | BK97: 29816.36788 | BL97: 91744.92912 | BM97: 1338.478679 | BN97: 125894.7077 | BP97: 8178.194098 | BQ97: 6994.092396 | CC97: Recoupment Academy
A98: 2287 | B98: Rolvenden Primary School | C98: 1 | D98: 83 | E98: 0 | F98: 0 | G98: 0.1927710843 | H98: 0 | I98: 0.1927710843 | J98: 0 | K98: 0.6024096386 | L98: 0.02409638554 | M98: 0.01204819277 | N98: 0 | O98: 0 | P98: 0 | Q98: 0 | R98: 0 | S98: 0 | T98: 0 | U98: 0 | V98: 0 | W98: 0.01333333333 | X98: 0 | Y98: 0.2837837838 | Z98: 0 | AA98: 0.02409638554 | AB98: 0 | AC98: 125894.7077 | AD98: 49385.62118 | AE98: 0 | AF98: 1 | AG98: 0 | AH98: 2560 | AI98: 0 | AJ98: 0 | AK98: 4384 | AL98: 512546.6431 | AM98: 13694.7164 | AN98: 2560 | AO98: 90 | AR98: 0 | AS98: 0 | AT98: 0 | BJ98: 12294.24288 | BK98: 11094.46247 | BL98: 26757.47554 | BM98: 631.3075452 | BN98: 125894.7077 | BP98: 0 | BQ98: 0 | CC98: Recoupment Academy
A99: 2288 | B99: Smarden Primary School | C99: 1 | D99: 139 | E99: 0 | F99: 0 | G99: 0.1079136691 | H99: 0 | I99: 0.1079136691 | J99: 0 | K99: 0 | L99: 0.02173913043 | M99: 0.07971014493 | N99: 0 | O99: 0 | P99: 0 | Q99: 0 | R99: 0 | S99: 0 | T99: 0 | U99: 0 | V99: 0 | W99: 0.01769911504 | X99: 0 | Y99: 0.1070482247 | Z99: 0 | AA99: 0.07194244604 | AB99: 0 | AC99: 125894.7077 | AD99: 7984.501627 | AE99: 0 | AF99: 1 | AG99: 0 | AH99: 3379.2 | AI99: 0 | AJ99: 0 | AK99: 4384 | AL99: 570689.8783 | AM99: 16836.9457 | AN99: 3379.2 | AO99: 125 | AR99: 0 | AS99: 0 | AT99: 0 | BJ99: 5627.03753 | BK99: 10401.05856 | BL99: 16903.38718 | BM99: 1403.429184 | BN99: 125894.7077 | BP99: 0 | BQ99: 0 | CC99: Recoupment Academy
A100: 2290 | B100: Tenterden Infant School | C100: 1 | D100: 151 | E100: 0 | F100: 0 | G100: 0.2119205298 | H100: 0 | I100: 0.2119205298 | J100: 0 | K100: 0.04026845638 | L100: 0.1744966443 | M100: 0 | N100: 0 | O100: 0 | P100: 0 | Q100: 0 | R100: 0 | S100: 0 | T100: 0 | U100: 0 | V100: 0 | W100: 0.03092783505 | X100: 0 | Y100: 0.3498907682 | Z100: 0 | AA100: 0.01986754967 | AB100: 0 | AC100: 125894.7077 | AD100: 0 | AE100: 0 | AF100: 1 | AG100: 0 | AH100: 4864 | AI100: 0 | AJ100: 0 | AK100: 4384 | AL100: 677377.159 | AM100: 20758.7282 | AN100: 4864 | AO100: 147 | AR100: 0 | AS100: 0 | AT100: 0 | BJ100: 8631.904889 | BK100: 22188.92494 | BL100: 60019.02012 | BM100: 2664.10059 | BN100: 125894.7077 | BP100: 0 | BQ100: 0 | CC100: Recoupment Academy
A101: 2296 | B101: Mundella Primary School | C101: 1 | D101: 165 | E101: 0 | F101: 0 | G101: 0.5818181818 | H101: 0 | I101: 0.5939393939 | J101: 0 | K101: 0.04848484848 | L101: 0.09090909091 | M101: 0.1696969697 | N101: 0.2303030303 | O101: 0.2848484848 | P101: 0.1272727273 | Q101: 0 | R101: 0 | S101: 0 | T101: 0 | U101: 0 | V101: 0 | W101: 0.1466666667 | X101: 0 | Y101: 0.4551282051 | Z101: 0 | AA101: 0.1575757576 | AB101: 0 | AC101: 125894.7077 | AD101: 0 | AE101: 0 | AF101: 1 | AG101: 0 | AH101: 16908.28 | AI101: 0 | AJ101: 0 | AK101: 4384 | AL101: 915962.2302 | AM101: 28021.8814 | AN101: 16799.56 | AO101: 171 | AR101: 0 | AS101: 0 | AT101: 0 | BJ101: 73412.23899 | BK101: 67953.58262 | BL101: 85309.45436 | BM101: 13805.09873 | BN101: 125894.7077 | BP101: 0 | BQ101: 0 | CC101: Recoupment Academy
A102: 2307 | B102: Warden House Primary School | C102: 1 | D102: 448 | E102: 0 | F102: 0 | G102: 0.3638392857 | H102: 0 | I102: 0.3705357143 | J102: 0 | K102: 0.1722595078 | L102: 0.1230425056 | M102: 0.1029082774 | N102: 0.2908277405 | O102: 0.1051454139 | P102: 0 | Q102: 0 | R102: 0 | S102: 0 | T102: 0 | U102: 0 | V102: 0 | W102: 0.01030927835 | X102: 0 | Y102: 0.2642424242 | Z102: 0 | AA102: 0.03125 | AB102: 0 | AC102: 125894.7077 | AD102: 0 | AE102: 0 | AF102: 1 | AG102: 0 | AH102: 1007.6 | AI102: 0 | AJ102: 0 | AK102: 4384 | AL102: 1883721.293 | AM102: 58666.6238 | AN102: 1007.6 | AO102: 435 | AR102: 0 | AS102: 0 | AT102: 0 | BJ102: 137728.8798 | BK102: 115105.0481 | BL102: 134480.721 | BM102: 2634.695506 | BN102: 125894.7077 | BP102: 0 | BQ102: 0 | CC102: Recoupment Academy
A103: 2309 | B103: Priory Fields School | C103: 1 | D103: 368 | E103: 0 | F103: 0 | G103: 0.5461956522 | H103: 0 | I103: 0.5570652174 | J103: 0 | K103: 0.07880434783 | L103: 0.2989130435 | M103: 0.2690217391 | N103: 0.1086956522 | O103: 0.1467391304 | P103: 0.01630434783 | Q103: 0 | R103: 0 | S103: 0 | T103: 0 | U103: 0 | V103: 0 | W103: 0.1806853583 | X103: 0 | Y103: 0.2655113585 | Z103: 0 | AA103: 0.09782608696 | AB103: 0 | AC103: 125894.7077 | AD103: 0 | AE103: 0 | AF103: 1 | AG103: 0 | AH103: 6041.6 | AI103: 0 | AJ103: 0 | AK103: 4384 | AL103: 1724008.961 | AM103: 56598.1562 | AN103: 6041.6 | AO103: 369 | AR103: 0 | AS103: 0 | AT103: 0 | BJ103: 129622.0559 | BK103: 142147.8004 | BL103: 110996.7833 | BM103: 37931.05575 | BN103: 125894.7077 | BP103: 0 | BQ103: 0 | CC103: Recoupment Academy
A104: 2310 | B104: Barton Junior School | C104: 1 | D104: 219 | E104: 0 | F104: 0 | G104: 0.5388127854 | H104: 0 | I104: 0.5525114155 | J104: 0 | K104: 0.06392694064 | L104: 0.1141552511 | M104: 0.401826484 | N104: 0.1689497717 | O104: 0.05936073059 | P104: 0.03652968037 | Q104: 0 | R104: 0 | S104: 0 | T104: 0 | U104: 0 | V104: 0 | W104: 0.009132420091 | X104: 0 | Y104: 0.2007446981 | Z104: 0 | AA104: 0.07305936073 | AB104: 0 | AC104: 125894.7077 | AD104: 0 | AE104: 0 | AF104: 1 | AG104: 0 | AH104: 3942.4 | AI104: 0 | AJ104: 0 | AK104: 4384 | AL104: 1031992.274 | AM104: 33860.0236 | AN104: 3942.4 | AO104: 218 | AR104: 0 | AS104: 0 | AT104: 0 | BJ104: 77395.49305 | BK104: 83901.87241 | BL104: 49942.19986 | BM104: 1140.91725 | BN104: 125894.7077 | BP104: 0 | BQ104: 0 | CC104: Recoupment Academy
A105: 2313 | B105: St Martin's School | C105: 1 | D105: 196 | E105: 0 | F105: 0 | G105: 0.1683673469 | H105: 0 | I105: 0.1785714286 | J105: 0 | K105: 0.2755102041 | L105: 0.05102040816 | M105: 0.04591836735 | N105: 0.08673469388 | O105: 0.04081632653 | P105: 0.005102040816 | Q105: 0 | R105: 0 | S105: 0 | T105: 0 | U105: 0 | V105: 0 | W105: 0.0119047619 | X105: 0 | Y105: 0.2248015873 | Z105: 0 | AA105: 0.04591836735 | AB105: 0 | AC105: 125894.7077 | AD105: 0 | AE105: 0 | AF105: 1 | AG105: 0 | AH105: 4096 | AI105: 0 | AJ105: 0 | AK105: 4384 | AL105: 866650.5785 | AM105: 25636.1888 | AN105: 4096 | AO105: 199 | AR105: 0 | AS105: 0 | AT105: 0 | BJ105: 31561.98641 | BK105: 24269.13665 | BL105: 50053.55341 | BM105: 1331.070125 | BN105: 125894.7077 | BP105: 0 | BQ105: 0 | CC105: Recoupment Academy
A106: 2315 | B106: White Cliffs Primary and Nursery School | C106: 1 | D106: 280 | E106: 0 | F106: 0 | G106: 0.6571428571 | H106: 0 | I106: 0.6678571429 | J106: 0 | K106: 0.03571428571 | L106: 0.075 | M106: 0.3571428571 | N106: 0.02142857143 | O106: 0.01785714286 | P106: 0.3785714286 | Q106: 0 | R106: 0 | S106: 0 | T106: 0 | U106: 0 | V106: 0 | W106: 0.0438247012 | X106: 0 | Y106: 0.2629895201 | Z106: 0 | AA106: 0.06071428571 | AB106: 0 | AC106: 125894.7077 | AD106: 0 | AE106: 0 | AF106: 1 | AG106: 0 | AH106: 5836.8 | AI106: 0 | AJ106: 0 | AK106: 4384 | AL106: 1468453.031 | AM106: 49158.878 | AN106: 5836.8 | AO106: 302 | AR106: 0 | AS106: 0 | AT106: 0 | BJ106: 126514.5351 | BK106: 129666.5301 | BL106: 83651.92581 | BM106: 7000.050062 | BN106: 125894.7077 | BP106: 0 | BQ106: 0 | CC106: Recoupment Academy
A107: 2316 | B107: Shatterlocks Infant and Nursery School | C107: 1 | D107: 167 | E107: 0 | F107: 0 | G107: 0.4251497006 | H107: 0 | I107: 0.4251497006 | J107: 0 | K107: 0.1377245509 | L107: 0.1377245509 | M107: 0.2874251497 | N107: 0.125748503 | O107: 0.09580838323 | P107: 0.04191616766 | Q107: 0 | R107: 0 | S107: 0 | T107: 0 | U107: 0 | V107: 0 | W107: 0.07079646018 | X107: 0 | Y107: 0.2446463162 | Z107: 0 | AA107: 0.01796407186 | AB107: 0 | AC107: 125894.7077 | AD107: 0 | AE107: 0 | AF107: 1 | AG107: 0 | AH107: 6912 | AI107: 0 | AJ107: 0 | AK107: 4384 | AL107: 791425.2085 | AM107: 24305.2445 | AN107: 6912 | AO107: 159 | AR107: 0 | AS107: 0 | AT107: 0 | BJ107: 54862.37245 | BK107: 49231.6772 | BL107: 46412.46358 | BM107: 6744.537374 | BN107: 125894.7077 | BP107: 0 | BQ107: 0 | CC107: Recoupment Academy
A108: 2327 | B108: Worth Primary School | C108: 1 | D108: 63 | E108: 0 | F108: 0 | G108: 0.2063492063 | H108: 0 | I108: 0.2222222222 | J108: 0 | K108: 0.1587301587 | L108: 0 | M108: 0 | N108: 0.04761904762 | O108: 0.01587301587 | P108: 0 | Q108: 0 | R108: 0 | S108: 0 | T108: 0 | U108: 0 | V108: 0 | W108: 0.01923076923 | X108: 0 | Y108: 0.364 | Z108: 0 | AA108: 0.1746031746 | AB108: 0 | AC108: 125894.7077 | AD108: 7475.489648 | AE108: 0 | AF108: 1 | AG108: 0 | AH108: 3393.2 | AI108: 0 | AJ108: 0 | AK108: 4384 | AL108: 350908.4003 | AM108: 10260.2796 | AN108: 3393.2 | AO108: 59 | AR108: 0 | AS108: 0 | AT108: 0 | BJ108: 4180.06086 | BK108: 9707.654659 | BL108: 26050.82028 | BM108: 691.1325651 | BN108: 125894.7077 | BP108: 0 | BQ108: 0 | CC108: Recoupment Academy
A109: 2435 | B109: South Avenue Primary School | C109: 1 | D109: 406 | E109: 0 | F109: 0 | G109: 0.3226600985 | H109: 0 | I109: 0.3251231527 | J109: 0 | K109: 0.2623762376 | L109: 0.2574257426 | M109: 0.08415841584 | N109: 0.009900990099 | O109: 0.009900990099 | P109: 0.07425742574 | Q109: 0 | R109: 0 | S109: 0 | T109: 0 | U109: 0 | V109: 0 | W109: 0.09776536313 | X109: 0 | Y109: 0.2310776942 | Z109: 0 | AA109: 0.03448275862 | AB109: 0 | AC109: 125894.7077 | AD109: 0 | AE109: 0 | AF109: 1 | AG109: 0 | AH109: 7884.8 | AI109: 0 | AJ109: 0 | AK109: 4384 | AL109: 1794919.8 | AM109: 55837.6166 | AN109: 7884.8 | AO109: 419 | AR109: 0 | AS109: 0 | AT109: 0 | BJ109: 91448.56802 | BK109: 91529.31536 | BL109: 106577.0092 | BM109: 22643.06442 | BN109: 125894.7077 | BP109: 0 | BQ109: 0 | CC109: Recoupment Academy
A110: 2438 | B110: Joydens Wood Junior School | C110: 1 | D110: 296 | E110: 0 | F110: 0 | G110: 0.08783783784 | H110: 0 | I110: 0.08783783784 | J110: 0 | K110: 0.03040540541 | L110: 0.03378378378 | M110: 0.02027027027 | N110: 0.01689189189 | O110: 0.01013513514 | P110: 0 | Q110: 0 | R110: 0 | S110: 0 | T110: 0 | U110: 0 | V110: 0 | W110: 0.05405405405 | X110: 0 | Y110: 0.2080510746 | Z110: 0 | AA110: 0.03040540541 | AB110: 0 | AC110: 125894.7077 | AD110: 0 | AE110: 0 | AF110: 1.0377 | AG110: 0 | AH110: 2668.932 | AI110: 0 | AJ110: 0 | AK110: 4384 | AL110: 1303493.932 | AM110: 36910.9244 | AN110: 2668.932 | AO110: 305 | AR110: 0 | AS110: 0 | AT110: 0 | BJ110: 11251.79783 | BK110: 18028.50151 | BL110: 69958.60551 | BM110: 9127.338003 | BN110: 125894.7077 | BP110: 16482.12935 | BQ110: 4452.728086 | CC110: Recoupment Academy
A111: 2462 | B111: Riverview Infant School | C111: 1 | D111: 319 | E111: 0 | F111: 0 | G111: 0.1724137931 | H111: 0 | I111: 0.1755485893 | J111: 0 | K111: 0.08777429467 | L111: 0.01567398119 | M111: 0.07523510972 | N111: 0.144200627 | O111: 0 | P111: 0 | Q111: 0 | R111: 0 | S111: 0 | T111: 0 | U111: 0 | V111: 0 | W111: 0.1710526316 | X111: 0 | Y111: 0.3107936194 | Z111: 0 | AA111: 0.03134796238 | AB111: 0 | AC111: 125894.7077 | AD111: 0 | AE111: 0 | AF111: 1 | AG111: 0 | AH111: 4121.6 | AI111: 0 | AJ111: 0 | AK111: 4384 | AL111: 1454221.6 | AM111: 41874.7099 | AN111: 4121.6 | AO111: 340 | AR111: 0 | AS111: 0 | AT111: 0 | BJ111: 39814.02361 | BK111: 38830.61864 | BL111: 112626.9302 | BM111: 31127.52524 | BN111: 125894.7077 | BP111: 0 | BQ111: 0 | CC111: Recoupment Academy
A112: 2463 | B112: Minterne Junior School | C112: 1 | D112: 373 | E112: 0 | F112: 0 | G112: 0.1501340483 | H112: 0 | I112: 0.1581769437 | J112: 0 | K112: 0.1474530831 | L112: 0.07774798928 | M112: 0.1501340483 | N112: 0.008042895442 | O112: 0.002680965147 | P112: 0 | Q112: 0 | R112: 0 | S112: 0 | T112: 0 | U112: 0 | V112: 0 | W112: 0.04021447721 | X112: 0 | Y112: 0.2708807504 | Z112: 0 | AA112: 0.04289544236 | AB112: 0 | AC112: 125894.7077 | AD112: 0 | AE112: 0 | AF112: 1 | AG112: 0 | AH112: 6246.4 | AI112: 0 | AJ112: 0 | AK112: 4384 | AL112: 1554441.4 | AM112: 43767.0526 | AN112: 6246.4 | AO112: 363 | AR112: 0 | AS112: 0 | AT112: 0 | BJ112: 46580.76115 | BK112: 40910.83035 | BL112: 114780.0594 | BM112: 8556.879378 | BN112: 125894.7077 | BP112: 26930.85362 | BQ112: 0 | CC112: Recoupment Academy
A113: 2500 | B113: Joydens Wood Infant School | C113: 1 | D113: 238 | E113: 0 | F113: 0 | G113: 0.05042016807 | H113: 0 | I113: 0.05042016807 | J113: 0 | K113: 0.05042016807 | L113: 0.05042016807 | M113: 0.02100840336 | N113: 0.01260504202 | O113: 0.01680672269 | P113: 0 | Q113: 0 | R113: 0 | S113: 0 | T113: 0 | U113: 0 | V113: 0 | W113: 0.1882352941 | X113: 0 | Y113: 0.2717560855 | Z113: 0 | AA113: 0.02941176471 | AB113: 0 | AC113: 125894.7077 | AD113: 0 | AE113: 0 | AF113: 1.0377 | AG113: 0 | AH113: 2688 | AI113: 0 | AJ113: 0 | AK113: 4384 | AL113: 1064867.639 | AM113: 29583.753 | AN113: 2688 | AO113: 248 | AR113: 0 | AS113: 0 | AT113: 0 | BJ113: 11605.87119 | BK113: 8320.846851 | BL113: 73474.34191 | BM113: 25556.54641 | BN113: 125894.7077 | BP113: 0 | BQ113: 0 | CC113: Recoupment Academy
A114: 2511 | B114: Hartley Primary Academy | C114: 1 | D114: 413 | E114: 0 | F114: 0 | G114: 0.08474576271 | H114: 0 | I114: 0.08958837772 | J114: 0 | K114: 0.004842615012 | L114: 0.01210653753 | M114: 0.1476997579 | N114: 0 | O114: 0.002421307506 | P114: 0 | Q114: 0 | R114: 0 | S114: 0 | T114: 0 | U114: 0 | V114: 0 | W114: 0.01699716714 | X114: 0 | Y114: 0.08808290155 | Z114: 0 | AA114: 0.02663438257 | AB114: 0 | AC114: 125894.7077 | AD114: 0 | AE114: 0 | AF114: 1.0377 | AG114: 0 | AH114: 5632 | AI114: 0 | AJ114: 0 | AK114: 4384 | AL114: 1796932 | AM114: 49636.6818 | AN114: 5632 | AO114: 420 | AR114: 0 | AS114: 0 | AT114: 0 | BJ114: 28729.41918 | BK114: 25655.94446 | BL114: 41325.78707 | BM114: 4004.522587 | BN114: 125894.7077 | BP114: 128686.6132 | BQ114: 1839.75274 | CC114: Recoupment Academy
A115: 2513 | B115: The Oaks Infant School | C115: 1 | D115: 274 | E115: 0 | F115: 0 | G115: 0.1678832117 | H115: 0 | I115: 0.1678832117 | J115: 0 | K115: 0.1532846715 | L115: 0.1058394161 | M115: 0.09489051095 | N115: 0.003649635036 | O115: 0.007299270073 | P115: 0.01094890511 | Q115: 0 | R115: 0 | S115: 0 | T115: 0 | U115: 0 | V115: 0 | W115: 0.0597826087 | X115: 0 | Y115: 0.2738405537 | Z115: 0 | AA115: 0.01459854015 | AB115: 0 | AC115: 125894.7077 | AD115: 0 | AE115: 0 | AF115: 1 | AG115: 0 | AH115: 4736 | AI115: 0 | AJ115: 0 | AK115: 4384 | AL115: 1177611 | AM115: 33778.966 | AN115: 4736 | AO115: 275 | AR115: 0 | AS115: 0 | AT115: 0 | BJ115: 32191.5146 | BK115: 31896.57959 | BL115: 85236.92953 | BM115: 9344.360306 | BN115: 125894.7077 | BP115: 0 | BQ115: 0 | CC115: Recoupment Academy
A116: 2523 | B116: Upton Junior School | C116: 1 | D116: 512 | E116: 0 | F116: 0 | G116: 0.216796875 | H116: 0 | I116: 0.234375 | J116: 0 | K116: 0.080078125 | L116: 0.0859375 | M116: 0.056640625 | N116: 0.025390625 | O116: 0.037109375 | P116: 0.013671875 | Q116: 0 | R116: 0 | S116: 0 | T116: 0 | U116: 0 | V116: 0 | W116: 0.02734375 | X116: 0 | Y116: 0.2618277251 | Z116: 0 | AA116: 0.05088062622 | AB116: 0 | AC116: 125894.7077 | AD116: 0 | AE116: 0 | AF116: 1 | AG116: 0 | AH116: 14868.48 | AI116: 0 | AJ116: 0 | AK116: 4384 | AL116: 2143103.48 | AM116: 60540.9536 | AN116: 14868.48 | AO116: 499 | AR116: 0 | AS116: 0 | AT116: 0 | BJ116: 54223.07469 | BK116: 83208.46851 | BL116: 152287.7825 | BM116: 7986.420752 | BN116: 125894.7077 | BP116: 59457.27831 | BQ116: 0 | CC116: Recoupment Academy
A117: 2531 | B117: Vale View Community School | C117: 1 | D117: 188 | E117: 0 | F117: 0 | G117: 0.585106383 | H117: 0 | I117: 0.6063829787 | J117: 0 | K117: 0.1276595745 | L117: 0.1170212766 | M117: 0.1542553191 | N117: 0.2446808511 | O117: 0.1861702128 | P117: 0.005319148936 | Q117: 0 | R117: 0 | S117: 0 | T117: 0 | U117: 0 | V117: 0 | W117: 0.1265060241 | X117: 0 | Y117: 0.3410538506 | Z117: 0 | AA117: 0.06914893617 | AB117: 0 | AC117: 125894.7077 | AD117: 0 | AE117: 0 | AF117: 1 | AG117: 0 | AH117: 3865.6 | AI117: 0 | AJ117: 0 | AK117: 4384 | AL117: 1005323.704 | AM117: 32878.327 | AN117: 3865.6 | AO117: 200 | AR117: 0 | AS117: 0 | AT117: 0 | BJ117: 63970.02387 | BK117: 79048.04508 | BL117: 72838.37968 | BM117: 13567.29309 | BN117: 125894.7077 | BP117: 0 | BQ117: 0 | CC117: Recoupment Academy
A118: 2534 | B118: Bysing Wood Primary School | C118: 1 | D118: 201 | E118: 0 | F118: 0 | G118: 0.4626865672 | H118: 0 | I118: 0.4676616915 | J118: 0 | K118: 0.09950248756 | L118: 0.01990049751 | M118: 0.1940298507 | N118: 0 | O118: 0.4029850746 | P118: 0 | Q118: 0 | R118: 0 | S118: 0 | T118: 0 | U118: 0 | V118: 0 | W118: 0.06936416185 | X118: 0 | Y118: 0.4199134199 | Z118: 0 | AA118: 0.1940298507 | AB118: 0 | AC118: 125894.7077 | AD118: 0 | AE118: 0 | AF118: 1 | AG118: 0 | AH118: 10188.8 | AI118: 0 | AJ118: 0 | AK118: 4384 | AL118: 798203.9104 | AM118: 25156.8487 | AN118: 10188.8 | AO118: 152 | AR118: 0 | AS118: 0 | AT118: 0 | BJ118: 63133.90948 | BK118: 65179.967 | BL118: 95881.60195 | BM118: 7953.446265 | BN118: 125894.7077 | BP118: 0 | BQ118: 0 | CC118: Recoupment Academy
A119: 2569 | B119: Briary Primary School | C119: 1 | D119: 292 | E119: 0 | F119: 0 | G119: 0.345890411 | H119: 0 | I119: 0.3630136986 | J119: 0 | K119: 0.02054794521 | L119: 0.2431506849 | M119: 0.06849315068 | N119: 0.03767123288 | O119: 0.03082191781 | P119: 0 | Q119: 0 | R119: 0 | S119: 0 | T119: 0 | U119: 0 | V119: 0 | W119: 0.04435483871 | X119: 0 | Y119: 0.3729251701 | Z119: 0 | AA119: 0.05821917808 | AB119: 0 | AC119: 125894.7077 | AD119: 0 | AE119: 0 | AF119: 1 | AG119: 0 | AH119: 9523.2 | AI119: 0 | AJ119: 0 | AK119: 4384 | AL119: 1309345.551 | AM119: 40507.7401 | AN119: 9523.2 | AO119: 297 | AR119: 0 | AS119: 0 | AT119: 0 | BJ119: 39273.23737 | BK119: 73500.81385 | BL119: 123704.0782 | BM119: 7388.359291 | BN119: 125894.7077 | BP119: 0 | BQ119: 0 | CC119: Recoupment Academy
A120: 2595 | B120: Grove Park Primary School | C120: 1 | D120: 405 | E120: 0 | F120: 0 | G120: 0.1950617284 | H120: 0 | I120: 0.2 | J120: 0 | K120: 0.08395061728 | L120: 0.224691358 | M120: 0.03950617284 | N120: 0 | O120: 0.01234567901 | P120: 0.01234567901 | Q120: 0 | R120: 0 | S120: 0 | T120: 0 | U120: 0 | V120: 0 | W120: 0.05172413793 | X120: 0 | Y120: 0.2549270792 | Z120: 0 | AA120: 0.04228855721 | AB120: 0 | AC120: 125894.7077 | AD120: 0 | AE120: 0 | AF120: 1 | AG120: 0 | AH120: 11366.4 | AI120: 0 | AJ120: 0 | AK120: 4384 | AL120: 1738691.4 | AM120: 50225.6349 | AN120: 11366.4 | AO120: 405 | AR120: 0 | AS120: 0 | AT120: 0 | BJ120: 45479.43328 | BK120: 56165.71624 | BL120: 117287.158 | BM120: 11950.12465 | BN120: 125894.7077 | BP120: 29484.88362 | BQ120: 2030.6349 | CC120: Recoupment Academy
A121: 2596 | B121: Chilton Primary School | C121: 1 | D121: 420 | E121: 0 | F121: 0 | G121: 0.1595238095 | H121: 0 | I121: 0.1642857143 | J121: 0 | K121: 0.2761904762 | L121: 0.04523809524 | M121: 0.05952380952 | N121: 0.04761904762 | O121: 0.02619047619 | P121: 0.03571428571 | Q121: 0 | R121: 0 | S121: 0 | T121: 0 | U121: 0 | V121: 0 | W121: 0.01111111111 | X121: 0 | Y121: 0.1727019499 | Z121: 0 | AA121: 0.01428571429 | AB121: 0 | AC121: 125894.7077 | AD121: 0 | AE121: 0 | AF121: 1 | AG121: 0 | AH121: 7526.4 | AI121: 0 | AJ121: 0 | AK121: 4384 | AL121: 1798826.4 | AM121: 50065.5213 | AN121: 7526.4 | AO121: 420 | AR121: 0 | AS121: 0 | AT121: 0 | BJ121: 67136.89926 | BK121: 47844.86939 | BL121: 82399.77029 | BM121: 2662.140251 | BN121: 125894.7077 | BP121: 81676.23231 | BQ121: 85.5213 | CC121: Recoupment Academy
A122: 2608 | B122: St Stephen's Junior School | C122: 1 | D122: 404 | E122: 0 | F122: 0 | G122: 0.297029703 | H122: 0 | I122: 0.3094059406 | J122: 0 | K122: 0.1113861386 | L122: 0.1707920792 | M122: 0.02227722772 | N122: 0.08663366337 | O122: 0.2896039604 | P122: 0 | Q122: 0 | R122: 0 | S122: 0 | T122: 0 | U122: 0 | V122: 0 | W122: 0.1410891089 | X122: 0 | Y122: 0.2635115915 | Z122: 0 | AA122: 0.0495049505 | AB122: 0 | AC122: 125894.7077 | AD122: 0 | AE122: 0 | AF122: 1 | AG122: 0 | AH122: 8294.4 | AI122: 0 | AJ122: 0 | AK122: 4384 | AL122: 1783386.91 | AM122: 53529.9793 | AN122: 8294.4 | AO122: 411 | AR122: 0 | AS122: 0 | AT122: 0 | BJ122: 108288.7649 | BK122: 86675.48803 | BL122: 120937.3808 | BM122: 32516.14163 | BN122: 125894.7077 | BP122: 0 | BQ122: 0 | CC122: Recoupment Academy
A123: 2611 | B123: St Stephen's Infant School | C123: 1 | D123: 269 | E123: 0 | F123: 0 | G123: 0.2750929368 | H123: 0 | I123: 0.2750929368 | J123: 0 | K123: 0.1301115242 | L123: 0.1226765799 | M123: 0.01115241636 | N123: 0.1412639405 | O123: 0.312267658 | P123: 0 | Q123: 0 | R123: 0 | S123: 0 | T123: 0 | U123: 0 | V123: 0 | W123: 0.2696629213 | X123: 0 | Y123: 0.2692669578 | Z123: 0 | AA123: 0.02602230483 | AB123: 0 | AC123: 125894.7077 | AD123: 0 | AE123: 0 | AF123: 1 | AG123: 0 | AH123: 24950 | AI123: 0 | AJ123: 0 | AK123: 4384 | AL123: 1246296.984 | AM123: 36355.7943 | AN123: 24950 | AO123: 270 | AR123: 0 | AS123: 0 | AT123: 0 | BJ123: 78379.00614 | BK123: 51311.88891 | BL123: 82283.88971 | BM123: 41380.68409 | BN123: 125894.7077 | BP123: 0 | BQ123: 0 | CC123: Recoupment Academy
A124: 2625 | B124: Godinton Primary School | C124: 1 | D124: 416 | E124: 0 | F124: 0 | G124: 0.125 | H124: 0 | I124: 0.125 | J124: 0 | K124: 0.04326923077 | L124: 0.03605769231 | M124: 0.01442307692 | N124: 0.007211538462 | O124: 0.04807692308 | P124: 0 | Q124: 0 | R124: 0 | S124: 0 | T124: 0 | U124: 0 | V124: 0 | W124: 0.06179775281 | X124: 0 | Y124: 0.2870217918 | Z124: 0 | AA124: 0.04807692308 | AB124: 0 | AC124: 125894.7077 | AD124: 0 | AE124: 0 | AF124: 1 | AG124: 0 | AH124: 10086.4 | AI124: 0 | AJ124: 0 | AK124: 4384 | AL124: 1771531.4 | AM124: 47344.5908 | AN124: 10086.4 | AO124: 413 | AR124: 0 | AS124: 0 | AT124: 0 | BJ124: 22247.8569 | BK124: 36057.00302 | BL124: 135639.9658 | BM124: 14665.27342 | BN124: 125894.7077 | BP124: 76008.08636 | BQ124: 0 | CC124: Recoupment Academy
A125: 2626 | B125: Sandwich Infant School | C125: 1 | D125: 147 | E125: 0 | F125: 0 | G125: 0.2244897959 | H125: 0 | I125: 0.2244897959 | J125: 0 | K125: 0.05479452055 | L125: 0.02739726027 | M125: 0 | N125: 0.04109589041 | O125: 0.006849315068 | P125: 0 | Q125: 0 | R125: 0 | S125: 0 | T125: 0 | U125: 0 | V125: 0 | W125: 0.1442307692 | X125: 0 | Y125: 0.3143821461 | Z125: 0 | AA125: 0.02040816327 | AB125: 0 | AC125: 125894.7077 | AD125: 0 | AE125: 0 | AF125: 1 | AG125: 0 | AH125: 2892.8 | AI125: 0 | AJ125: 0 | AK125: 4384 | AL125: 650069.9823 | AM125: 19641.9359 | AN125: 2892.8 | AO125: 139 | AR125: 0 | AS125: 0 | AT125: 0 | BJ125: 6288.307355 | BK125: 22882.32884 | BL125: 52499.44094 | BM125: 12094.81989 | BN125: 125894.7077 | BP125: 0 | BQ125: 0 | CC125: Recoupment Academy
A126: 2629 | B126: Holywell Primary School | C126: 1 | D126: 194 | E126: 0 | F126: 0 | G126: 0.1391752577 | H126: 0 | I126: 0.1391752577 | J126: 0 | K126: 0.07216494845 | L126: 0.02577319588 | M126: 0.03092783505 | N126: 0.02577319588 | O126: 0.005154639175 | P126: 0 | Q126: 0 | R126: 0 | S126: 0 | T126: 0 | U126: 0 | V126: 0 | W126: 0.04069767442 | X126: 0 | Y126: 0.1514114628 | Z126: 0 | AA126: 0.02577319588 | AB126: 0 | AC126: 125894.7077 | AD126: 0 | AE126: 0 | AF126: 1 | AG126: 0 | AH126: 4838.4 | AI126: 0 | AJ126: 0 | AK126: 4384 | AL126: 874898.4 | AM126: 26121.5331 | AN126: 4838.4 | AO126: 204 | AR126: 0 | AS126: 0 | AT126: 0 | BJ126: 10002.66829 | BK126: 18721.90541 | BL126: 33368.75127 | BM126: 4503.969843 | BN126: 125894.7077 | BP126: 0 | BQ126: 5577.194293 | CC126: Recoupment Academy
A127: 2650 | B127: Dymchurch Primary School | C127: 1 | D127: 162 | E127: 0 | F127: 0 | G127: 0.3333333333 | H127: 0 | I127: 0.3333333333 | J127: 0 | K127: 0.6172839506 | L127: 0.01234567901 | M127: 0.02469135802 | N127: 0.04938271605 | O127: 0.01851851852 | P127: 0 | Q127: 0 | R127: 0 | S127: 0 | T127: 0 | U127: 0 | V127: 0 | W127: 0.02097902098 | X127: 0 | Y127: 0.2546045504 | Z127: 0 | AA127: 0.05555555556 | AB127: 0 | AC127: 125894.7077 | AD127: 0 | AE127: 0 | AF127: 1 | AG127: 0 | AH127: 4359.6 | AI127: 0 | AJ127: 0 | AK127: 4384 | AL127: 789833.794 | AM127: 24267.2175 | AN127: 4359.6 | AO127: 170 | AR127: 0 | AS127: 0 | AT127: 0 | BJ127: 30184.87938 | BK127: 37443.81083 | BL127: 46855.50742 | BM127: 1938.761481 | BN127: 125894.7077 | BP127: 0 | BQ127: 0 | CC127: Recoupment Academy
A128: 2654 | B128: The Canterbury Primary School | C128: 1 | D128: 412 | E128: 0 | F128: 0 | G128: 0.4053398058 | H128: 0 | I128: 0.4199029126 | J128: 0 | K128: 0.04136253041 | L128: 0.1459854015 | M128: 0.01459854015 | N128: 0.3090024331 | O128: 0.1119221411 | P128: 0.004866180049 | Q128: 0 | R128: 0 | S128: 0 | T128: 0 | U128: 0 | V128: 0 | W128: 0.1590909091 | X128: 0 | Y128: 0.2887833828 | Z128: 0 | AA128: 0.08495145631 | AB128: 0 | AC128: 125894.7077 | AD128: 0 | AE128: 0 | AF128: 1 | AG128: 0 | AH128: 16281.6 | AI128: 0 | AJ128: 0 | AK128: 4384 | AL128: 1803007.881 | AM128: 56714.2385 | AN128: 16281.6 | AO128: 407 | AR128: 0 | AS128: 0 | AT128: 0 | BJ128: 107576.3255 | BK128: 119958.8754 | BL128: 135160.2185 | BM128: 37390.96989 | BN128: 125894.7077 | BP128: 0 | BQ128: 0 | CC128: Recoupment Academy
A129: 2656 | B129: Meopham Community Academy | C129: 1 | D129: 429 | E129: 0 | F129: 0 | G129: 0.06526806527 | H129: 0 | I129: 0.06993006993 | J129: 0 | K129: 0.02570093458 | L129: 0.007009345794 | M129: 0.007009345794 | N129: 0.01168224299 | O129: 0 | P129: 0 | Q129: 0 | R129: 0 | S129: 0 | T129: 0 | U129: 0 | V129: 0 | W129: 0.0108401084 | X129: 0 | Y129: 0.2326293235 | Z129: 0 | AA129: 0.02564102564 | AB129: 0 | AC129: 125894.7077 | AD129: 0 | AE129: 0 | AF129: 1 | AG129: 0 | AH129: 6553.6 | AI129: 0 | AJ129: 0 | AK129: 4384 | AL129: 1840503.6 | AM129: 48654.5202 | AN129: 6553.6 | AO129: 430 | AR129: 0 | AS129: 0 | AT129: 0 | BJ129: 6989.636255 | BK129: 20802.11713 | BL129: 113370.8022 | BM129: 2652.864501 | BN129: 125894.7077 | BP129: 165728.9677 | BQ129: 0 | CC129: Recoupment Academy
A130: 2657 | B130: Temple Hill Primary Academy | C130: 1 | D130: 827 | E130: 0 | F130: 0 | G130: 0.3881499395 | H130: 0 | I130: 0.3966142684 | J130: 0 | K130: 0.1112454655 | L130: 0.0169286578 | M130: 0.1438935913 | N130: 0.0084643289 | O130: 0.3119709794 | P130: 0 | Q130: 0 | R130: 0 | S130: 0 | T130: 0 | U130: 0 | V130: 0 | W130: 0.2350543478 | X130: 0 | Y130: 0.4102749638 | Z130: 0 | AA130: 0.09200968523 | AB130: 0 | AC130: 125894.7077 | AD130: 0 | AE130: 0 | AF130: 1.0377 | AG130: 0 | AH130: 9574.4 | AI130: 0 | AJ130: 0 | AK130: 4384 | AL130: 3752832.371 | AM130: 115560.4647 | AN130: 9574.4 | AO130: 818 | AR130: 0 | AS130: 0 | AT130: 0 | BJ130: 208885.759 | BK130: 227436.4806 | BL130: 385442.8511 | BM130: 110891.4211 | BN130: 125894.7077 | BP130: 0 | BQ130: 0 | CC130: Recoupment Academy
A131: 2658 | B131: Westcourt Primary School | C131: 1 | D131: 331 | E131: 0 | F131: 0 | G131: 0.4108761329 | H131: 0 | I131: 0.4320241692 | J131: 0 | K131: 0.1503067485 | L131: 0.06441717791 | M131: 0.254601227 | N131: 0.3374233129 | O131: 0.01226993865 | P131: 0 | Q131: 0 | R131: 0 | S131: 0 | T131: 0 | U131: 0 | V131: 0 | W131: 0.107266436 | X131: 0 | Y131: 0.2895495116 | Z131: 0 | AA131: 0.1117824773 | AB131: 0 | AC131: 125894.7077 | AD131: 0 | AE131: 0 | AF131: 1 | AG131: 0 | AH131: 4787.2 | AI131: 0 | AJ131: 0 | AK131: 4384 | AL131: 1471457.603 | AM131: 45583.3412 | AN131: 4787.2 | AO131: 323 | AR131: 0 | AS131: 0 | AT131: 0 | BJ131: 108361.7308 | BK131: 99156.75831 | BL131: 108875.5345 | BM131: 20254.24205 | BN131: 125894.7077 | BP131: 0 | BQ131: 0 | CC131: Recoupment Academy
A132: 2659 | B132: Sandown School | C132: 1 | D132: 372 | E132: 0 | F132: 0 | G132: 0.314516129 | H132: 0 | I132: 0.3172043011 | J132: 0 | K132: 0.3712737127 | L132: 0.0298102981 | M132: 0.0216802168 | N132: 0.162601626 | O132: 0.0379403794 | P132: 0.005420054201 | Q132: 0 | R132: 0 | S132: 0 | T132: 0 | U132: 0 | V132: 0 | W132: 0.01246105919 | X132: 0 | Y132: 0.2233642154 | Z132: 0 | AA132: 0.06738544474 | AB132: 0 | AC132: 125894.7077 | AD132: 0 | AE132: 0 | AF132: 1 | AG132: 0 | AH132: 7610.4 | AI132: 0 | AJ132: 0 | AK132: 4384 | AL132: 1624045.4 | AM132: 50253.6548 | AN132: 7610.4 | AO132: 379 | AR132: 0 | AS132: 0 | AT132: 0 | BJ132: 74752.33932 | BK132: 81821.6607 | BL132: 94392.17792 | BM132: 2644.368954 | BN132: 125894.7077 | BP132: 0 | BQ132: 0 | CC132: Recoupment Academy
A133: 2666 | B133: Wrotham Road Primary School | C133: 1 | D133: 409 | E133: 0 | F133: 0 | G133: 0.2811735941 | H133: 0 | I133: 0.2909535452 | J133: 0 | K133: 0.07862407862 | L133: 0.3955773956 | M133: 0.004914004914 | N133: 0.02457002457 | O133: 0.002457002457 | P133: 0 | Q133: 0 | R133: 0 | S133: 0 | T133: 0 | U133: 0 | V133: 0 | W133: 0.2456140351 | X133: 0 | Y133: 0.3716461831 | Z133: 0 | AA133: 0.06601466993 | AB133: 0 | AC133: 125894.7077 | AD133: 0 | AE133: 0 | AF133: 1 | AG133: 0 | AH133: 5529.6 | AI133: 0 | AJ133: 0 | AK133: 4384 | AL133: 1835334.431 | AM133: 54902.9534 | AN133: 5529.6 | AO133: 412 | AR133: 0 | AS133: 0 | AT133: 0 | BJ133: 57949.11867 | BK133: 82515.0646 | BL133: 172676.1888 | BM133: 57306.07171 | BN133: 125894.7077 | BP133: 0 | BQ133: 0 | CC133: Recoupment Academy
A134: 2672 | B134: Palm Bay Primary School | C134: 1 | D134: 421 | E134: 0 | F134: 0 | G134: 0.2494061758 | H134: 0 | I134: 0.2517814727 | J134: 0 | K134: 0.0190023753 | L134: 0.04038004751 | M134: 0.01187648456 | N134: 0.0593824228 | O134: 0.1401425178 | P134: 0.02375296912 | Q134: 0 | R134: 0 | S134: 0 | T134: 0 | U134: 0 | V134: 0 | W134: 0.03333333333 | X134: 0 | Y134: 0.2761179738 | Z134: 0 | AA134: 0.06650831354 | AB134: 0 | AC134: 125894.7077 | AD134: 0 | AE134: 0 | AF134: 1 | AG134: 0 | AH134: 54272 | AI134: 0 | AJ134: 0 | AK134: 4384 | AL134: 1849837 | AM134: 52799.461 | AN134: 54272 | AO134: 421 | AR134: 0 | AS134: 0 | AT134: 0 | BJ134: 56642.66608 | BK134: 73500.81385 | BL134: 132055.4238 | BM134: 8005.43604 | BN134: 125894.7077 | BP134: 0 | BQ134: 0 | CC134: Recoupment Academy
A135: 2676 | B135: West Hill Primary Academy | C135: 1 | D135: 529 | E135: 0 | F135: 0 | G135: 0.1266540643 | H135: 0 | I135: 0.1361058601 | J135: 0 | K135: 0.01134215501 | L135: 0.01512287335 | M135: 0.007561436673 | N135: 0.01512287335 | O135: 0.03969754253 | P135: 0 | Q135: 0 | R135: 0 | S135: 0 | T135: 0 | U135: 0 | V135: 0 | W135: 0.2828947368 | X135: 0 | Y135: 0.223335488 | Z135: 0 | AA135: 0.0928030303 | AB135: 0 | AC135: 125894.7077 | AD135: 0 | AE135: 0 | AF135: 1.0377 | AG135: 0 | AH135: 5734.4 | AI135: 0 | AJ135: 0 | AK135: 4384 | AL135: 2283244.4 | AM135: 64114.5663 | AN135: 5734.4 | AO135: 534 | AR135: 0 | AS135: 0 | AT135: 0 | BJ135: 19602.13032 | BK135: 49925.08111 | BL135: 134212.4733 | BM135: 85369.88386 | BN135: 125894.7077 | BP135: 6455.90092 | BQ135: 1786.472404 | CC135: Recoupment Academy
A136: 2677 | B136: Coxheath Primary School | C136: 1 | D136: 433 | E136: 0 | F136: 0 | G136: 0.1893764434 | H136: 0 | I136: 0.1963048499 | J136: 0 | K136: 0.3441108545 | L136: 0.006928406467 | M136: 0.009237875289 | N136: 0.01154734411 | O136: 0.03464203233 | P136: 0 | Q136: 0 | R136: 0 | S136: 0 | T136: 0 | U136: 0 | V136: 0 | W136: 0.0509383378 | X136: 0 | Y136: 0.2777129017 | Z136: 0 | AA136: 0.06944444444 | AB136: 0 | AC136: 125894.7077 | AD136: 0 | AE136: 0 | AF136: 1 | AG136: 0 | AH136: 5324.8 | AI136: 0 | AJ136: 0 | AK136: 4384 | AL136: 1826479.8 | AM136: 53466.9346 | AN136: 5324.8 | AO136: 427 | AR136: 0 | AS136: 0 | AT136: 0 | BJ136: 46147.75474 | BK136: 58939.33186 | BL136: 136604.0018 | BM136: 12582.20673 | BN136: 125894.7077 | BP136: 30159.78931 | BQ136: 922.2141348 | CC136: Recoupment Academy
A137: 2679 | B137: The Brent Primary School | C137: 1 | D137: 652 | E137: 0 | F137: 0 | G137: 0.2423312883 | H137: 0 | I137: 0.2484662577 | J137: 0 | K137: 0.286809816 | L137: 0.03220858896 | M137: 0.1625766871 | N137: 0.003067484663 | O137: 0.01533742331 | P137: 0 | Q137: 0 | R137: 0 | S137: 0 | T137: 0 | U137: 0 | V137: 0 | W137: 0.1227758007 | X137: 0 | Y137: 0.2950514088 | Z137: 0 | AA137: 0.05214723926 | AB137: 0 | AC137: 125894.7077 | AD137: 0 | AE137: 0 | AF137: 1.0377 | AG137: 0 | AH137: 8140.8 | AI137: 0 | AJ137: 0 | AK137: 4384 | AL137: 2656705.8 | AM137: 79226.6627 | AN137: 8140.8 | AO137: 621 | AR137: 0 | AS137: 0 | AT137: 0 | BJ137: 99918.23472 | BK137: 112331.4325 | BL137: 218536.8899 | BM137: 45665.11144 | BN137: 125894.7077 | BP137: 0 | BQ137: 0 | CC137: Recoupment Academy
A138: 2684 | B138: Wentworth Primary School | C138: 1 | D138: 645 | E138: 0 | F138: 0 | G138: 0.1410852713 | H138: 0 | I138: 0.1441860465 | J138: 0 | K138: 0.1798449612 | L138: 0.006201550388 | M138: 0.001550387597 | N138: 0.009302325581 | O138: 0.004651162791 | P138: 0 | Q138: 0 | R138: 0 | S138: 0 | T138: 0 | U138: 0 | V138: 0 | W138: 0.1258992806 | X138: 0 | Y138: 0.2299345403 | Z138: 0 | AA138: 0.03565891473 | AB138: 0 | AC138: 125894.7077 | AD138: 0 | AE138: 0 | AF138: 1.0377 | AG138: 0 | AH138: 7680 | AI138: 0 | AJ138: 0 | AK138: 4384 | AL138: 2758605 | AM138: 76614.0419 | AN138: 7680 | AO138: 645 | AR138: 0 | AS138: 0 | AT138: 0 | BJ138: 32112.6012 | BK138: 64486.56309 | BL138: 168478.078 | BM138: 46324.11318 | BN138: 125894.7077 | BP138: 95019.70661 | BQ138: 0 | CC138: Recoupment Academy
A139: 2685 | B139: The Gateway Primary Academy | C139: 1 | D139: 209 | E139: 0 | F139: 0 | G139: 0.1100478469 | H139: 0 | I139: 0.1148325359 | J139: 0 | K139: 0.1826923077 | L139: 0.004807692308 | M139: 0.03365384615 | N139: 0.004807692308 | O139: 0.01442307692 | P139: 0 | Q139: 0 | R139: 0 | S139: 0 | T139: 0 | U139: 0 | V139: 0 | W139: 0.1284916201 | X139: 0 | Y139: 0.2045454545 | Z139: 0 | AA139: 0.01913875598 | AB139: 0 | AC139: 125894.7077 | AD139: 0 | AE139: 0 | AF139: 1.0377 | AG139: 0 | AH139: 5376 | AI139: 0 | AJ139: 0 | AK139: 4384 | AL139: 921095.4752 | AM139: 26904.7008 | AN139: 5376 | AO139: 210 | AR139: 0 | AS139: 0 | AT139: 0 | BJ139: 13944.49895 | BK139: 16641.6937 | BL139: 48564.12729 | BM139: 15319.52297 | BN139: 125894.7077 | BP139: 0 | BQ139: 0 | CC139: Recoupment Academy
A140: 2686 | B140: Furley Park Primary Academy | C140: 1 | D140: 557 | E140: 0 | F140: 0 | G140: 0.1669658887 | H140: 0 | I140: 0.1813285458 | J140: 0 | K140: 0.03429602888 | L140: 0.01083032491 | M140: 0.01263537906 | N140: 0.005415162455 | O140: 0.03790613718 | P140: 0 | Q140: 0 | R140: 0 | S140: 0 | T140: 0 | U140: 0 | V140: 0 | W140: 0.05567928731 | X140: 0 | Y140: 0.2157961104 | Z140: 0 | AA140: 0.08258527828 | AB140: 0 | AC140: 125894.7077 | AD140: 0 | AE140: 0 | AF140: 1 | AG140: 0 | AH140: 14233.6 | AI140: 0 | AJ140: 0 | AK140: 4384 | AL140: 2406898.6 | AM140: 66304.0425 | AN140: 14233.6 | AO140: 561 | AR140: 0 | AS140: 0 | AT140: 0 | BJ140: 21043.21709 | BK140: 70033.79433 | BL140: 136545.7783 | BM140: 17691.84044 | BN140: 125894.7077 | BP140: 155715.7455 | BQ140: 445.9313785 | CC140: Recoupment Academy
A141: 3019 | B141: Shorne Church of England Primary School | C141: 1 | D141: 210 | E141: 0 | F141: 0 | G141: 0.04761904762 | H141: 0 | I141: 0.04761904762 | J141: 0 | K141: 0.01428571429 | L141: 0.02380952381 | M141: 0.04761904762 | N141: 0.03333333333 | O141: 0 | P141: 0 | Q141: 0 | R141: 0 | S141: 0 | T141: 0 | U141: 0 | V141: 0 | W141: 0.03333333333 | X141: 0 | Y141: 0.2201887883 | Z141: 0 | AA141: 0.02380952381 | AB141: 0 | AC141: 125894.7077 | AD141: 0 | AE141: 0 | AF141: 1 | AG141: 0 | AH141: 4096 | AI141: 0 | AJ141: 0 | AK141: 4384 | AL141: 882686 | AM141: 24104.1018 | AN141: 4096 | AO141: 206 | AR141: 0 | AS141: 0 | AT141: 0 | BJ141: 9687.958254 | BK141: 6934.039042 | BL141: 52528.37501 | BM141: 3993.210376 | BN141: 125894.7077 | BP141: 15863.47185 | BQ141: 0 | CC141: Recoupment Academy
A142: 3020 | B142: Sedley's Church of England Primary School | C142: 1 | D142: 99 | E142: 0 | F142: 0 | G142: 0.101010101 | H142: 0 | I142: 0.1212121212 | J142: 0 | K142: 0.07142857143 | L142: 0.0612244898 | M142: 0.04081632653 | N142: 0 | O142: 0.01020408163 | P142: 0 | Q142: 0 | R142: 0 | S142: 0 | T142: 0 | U142: 0 | V142: 0 | W142: 0.01162790698 | X142: 0 | Y142: 0.2128514056 | Z142: 0 | AA142: 0.101010101 | AB142: 0 | AC142: 125894.7077 | AD142: 8825.831521 | AE142: 0 | AF142: 1.0377 | AG142: 0 | AH142: 5863 | AI142: 0 | AJ142: 0 | AK142: 4384 | AL142: 488384.515 | AM142: 13889.3442 | AN142: 5863 | AO142: 93 | AR142: 0 | AS142: 0 | AT142: 0 | BJ142: 5524.325507 | BK142: 8320.846851 | BL142: 23938.18322 | BM142: 656.6907429 | BN142: 125894.7077 | BP142: 0 | BQ142: 0 | CC142: Recoupment Academy
A143: 3021 | B143: Stone St Mary's CofE Primary School | C143: 1 | D143: 636 | E143: 0 | F143: 0 | G143: 0.1761006289 | H143: 0 | I143: 0.1839622642 | J143: 0 | K143: 0.08018867925 | L143: 0.02358490566 | M143: 0.07547169811 | N143: 0.004716981132 | O143: 0.0141509434 | P143: 0 | Q143: 0 | R143: 0 | S143: 0 | T143: 0 | U143: 0 | V143: 0 | W143: 0.1282051282 | X143: 0 | Y143: 0.294496691 | Z143: 0 | AA143: 0.06446540881 | AB143: 0 | AC143: 125894.7077 | AD143: 0 | AE143: 0 | AF143: 1.0377 | AG143: 0 | AH143: 11059.2 | AI143: 0 | AJ143: 0 | AK143: 4384 | AL143: 2727864.2 | AM143: 79602.4151 | AN143: 11059.2 | AO143: 637 | AR143: 0 | AS143: 0 | AT143: 0 | BJ143: 42371.15568 | BK143: 81128.2568 | BL143: 212773.239 | BM143: 46514.31867 | BN143: 125894.7077 | BP143: 0 | BQ143: 3634.503105 | CC143: Recoupment Academy
A144: 3025 | B144: Chiddingstone Church of England School | C144: 1 | D144: 210 | E144: 0 | F144: 0 | G144: 0.04761904762 | H144: 0 | I144: 0.04761904762 | J144: 0 | K144: 0.04784688995 | L144: 0 | M144: 0.02392344498 | N144: 0 | O144: 0 | P144: 0 | Q144: 0 | R144: 0 | S144: 0 | T144: 0 | U144: 0 | V144: 0 | W144: 0.01111111111 | X144: 0 | Y144: 0.1129943503 | Z144: 0 | AA144: 0.02857142857 | AB144: 0 | AC144: 125894.7077 | AD144: 0 | AE144: 0 | AF144: 1.0377 | AG144: 0 | AH144: 2534.4 | AI144: 0 | AJ144: 0 | AK144: 4384 | AL144: 898184.4 | AM144: 26198.8676 | AN144: 2534.4 | AO144: 210 | AR144: 0 | AS144: 0 | AT144: 0 | BJ144: 4447.118343 | BK144: 6934.039042 | BL144: 26956.00285 | BM144: 1331.070125 | BN144: 125894.7077 | BP144: 16490.76984 | BQ144: 1208.8676 | CC144: Recoupment Academy
A145: 3059 | B145: St Mark's Church of England Primary School, Eccles | C145: 1 | D145: 127 | E145: 0 | F145: 0 | G145: 0.1496062992 | H145: 0 | I145: 0.1496062992 | J145: 0 | K145: 0.04724409449 | L145: 0.0157480315 | M145: 0 | N145: 0.007874015748 | O145: 0 | P145: 0 | Q145: 0 | R145: 0 | S145: 0 | T145: 0 | U145: 0 | V145: 0 | W145: 0.009090909091 | X145: 0 | Y145: 0.2779220779 | Z145: 0 | AA145: 0.03937007874 | AB145: 0 | AC145: 125894.7077 | AD145: 0 | AE145: 0 | AF145: 1 | AG145: 0 | AH145: 4582.4 | AI145: 0 | AJ145: 0 | AK145: 4384 | AL145: 559743.2044 | AM145: 16959.0324 | AN145: 4582.4 | AO145: 121 | AR145: 0 | AS145: 0 | AT145: 0 | BJ145: 2380.17893 | BK145: 13174.67418 | BL145: 40096.47912 | BM145: 658.6204127 | BN145: 125894.7077 | BP145: 0 | BQ145: 0 | CC145: Recoupment Academy
A146: 3086 | B146: West Malling Church of England Primary School and McGinty Speech and Language Centre | C146: 1 | D146: 200 | E146: 0 | F146: 0 | G146: 0.24 | H146: 0 | I146: 0.24 | J146: 0 | K146: 0.235 | L146: 0.01 | M146: 0.005 | N146: 0.145 | O146: 0.055 | P146: 0 | Q146: 0 | R146: 0 | S146: 0 | T146: 0 | U146: 0 | V146: 0 | W146: 0.04093567251 | X146: 0 | Y146: 0.3207869974 | Z146: 0 | AA146: 0.08 | AB146: 0 | AC146: 125894.7077 | AD146: 0 | AE146: 0 | AF146: 1 | AG146: 0 | AH146: 5273.6 | AI146: 0 | AJ146: 0 | AK146: 4384 | AL146: 878519.6381 | AM146: 25819.3187 | AN146: 5273.6 | AO146: 193 | AR146: 0 | AS146: 0 | AT146: 0 | BJ146: 30824.33439 | BK146: 33283.3874 | BL146: 72882.99684 | BM146: 4670.421493 | BN146: 125894.7077 | BP146: 0 | BQ146: 0 | CC146: Recoupment Academy
A147: 3106 | B147: Eastchurch Church of England Primary School | C147: 1 | D147: 350 | E147: 0 | F147: 0 | G147: 0.4657142857 | H147: 0 | I147: 0.4771428571 | J147: 0 | K147: 0.05444126074 | L147: 0.005730659026 | M147: 0 | N147: 0.558739255 | O147: 0.329512894 | P147: 0.03151862464 | Q147: 0 | R147: 0 | S147: 0 | T147: 0 | U147: 0 | V147: 0 | W147: 0.03754266212 | X147: 0 | Y147: 0.3938345392 | Z147: 0 | AA147: 0.04857142857 | AB147: 0 | AC147: 125894.7077 | AD147: 0 | AE147: 0 | AF147: 1 | AG147: 33000 | AH147: 15564.8 | AI147: 0 | AJ147: 0 | AK147: 4384 | AL147: 1761139.491 | AM147: 52771.4411 | AN147: 15564.8 | AO147: 362 | AR147: 0 | AS147: 0 | AT147: 0 | BJ147: 162306.8786 | BK147: 115798.452 | BL147: 156589.0232 | BM147: 7495.787396 | BN147: 125894.7077 | BP147: 0 | BQ147: 0 | CC147: Recoupment Academy
A148: 3110 | B148: Milstead and Frinsted Church of England Primary School | C148: 1 | D148: 85 | E148: 0 | F148: 0 | G148: 0.2117647059 | H148: 0 | I148: 0.2235294118 | J148: 0 | K148: 0.09411764706 | L148: 0.1058823529 | M148: 0 | N148: 0.03529411765 | O148: 0 | P148: 0 | Q148: 0 | R148: 0 | S148: 0 | T148: 0 | U148: 0 | V148: 0 | W148: 0.02666666667 | X148: 0 | Y148: 0.2472222222 | Z148: 0 | AA148: 0.08235294118 | AB148: 0 | AC148: 125894.7077 | AD148: 47907.00976 | AE148: 0 | AF148: 1 | AG148: 0 | AH148: 1132.436 | AI148: 0 | AJ148: 0 | AK148: 4384 | AL148: 492223.4653 | AM148: 13488.5701 | AN148: 1132.436 | AO148: 87 | AR148: 0 | AS148: 0 | AT148: 0 | BJ148: 5704.586252 | BK148: 13174.67418 | BL148: 23871.84035 | BM148: 1293.03955 | BN148: 125894.7077 | BP148: 0 | BQ148: 0 | CC148: Recoupment Academy
A149: 3112 | B149: Selling Church of England Primary School | C149: 1 | D149: 124 | E149: 0 | F149: 0 | G149: 0.2016129032 | H149: 0 | I149: 0.2016129032 | J149: 0 | K149: 0.1209677419 | L149: 0.0564516129 | M149: 0 | N149: 0 | O149: 0.008064516129 | P149: 0 | Q149: 0 | R149: 0 | S149: 0 | T149: 0 | U149: 0 | V149: 0 | W149: 0.06542056075 | X149: 0 | Y149: 0.2415841584 | Z149: 0 | AA149: 0.08870967742 | AB149: 0 | AC149: 125894.7077 | AD149: 19074.08722 | AE149: 0 | AF149: 1 | AG149: 0 | AH149: 2142 | AI149: 0 | AJ149: 0 | AK149: 4384 | AL149: 595916.7388 | AM149: 17602.4889 | AN149: 2142 | AO149: 125 | AR149: 0 | AS149: 0 | AT149: 0 | BJ149: 5822.587772 | BK149: 17335.09761 | BL149: 34030.60009 | BM149: 4627.64567 | BN149: 125894.7077 | BP149: 0 | BQ149: 0 | CC149: Recoupment Academy
A150: 3119 | B150: Adisham Church of England Primary School | C150: 1 | D150: 95 | E150: 0 | F150: 0 | G150: 0.1789473684 | H150: 0 | I150: 0.1789473684 | J150: 0 | K150: 0.3263157895 | L150: 0.06315789474 | M150: 0 | N150: 0.01052631579 | O150: 0 | P150: 0 | Q150: 0 | R150: 0 | S150: 0 | T150: 0 | U150: 0 | V150: 0 | W150: 0 | X150: 0 | Y150: 0.11171875 | Z150: 0 | AA150: 0 | AB150: 0 | AC150: 125894.7077 | AD150: 30790.60405 | AE150: 0 | AF150: 1 | AG150: 0 | AH150: 2867.2 | AI150: 0 | AJ150: 0 | AK150: 4384 | AL150: 532631.7839 | AM150: 15673.12 | AN150: 2867.2 | AO150: 106 | AR150: 0 | AS150: 0 | AT150: 0 | BJ150: 9137.107577 | BK150: 11787.86637 | BL150: 12056.7191 | BM150: 0 | BN150: 125894.7077 | BP150: 0 | BQ150: 0 | CC150: Recoupment Academy
A151: 3128 | B151: Sturry Church of England Primary School | C151: 1 | D151: 405 | E151: 0 | F151: 0 | G151: 0.2666666667 | H151: 0 | I151: 0.2790123457 | J151: 0 | K151: 0.09452736318 | L151: 0.3084577114 | M151: 0.002487562189 | N151: 0.05223880597 | O151: 0.04975124378 | P151: 0 | Q151: 0 | R151: 0 | S151: 0 | T151: 0 | U151: 0 | V151: 0 | W151: 0.03735632184 | X151: 0 | Y151: 0.1905462185 | Z151: 0 | AA151: 0.04197530864 | AB151: 0 | AC151: 125894.7077 | AD151: 0 | AE151: 0 | AF151: 1 | AG151: 0 | AH151: 8243.2 | AI151: 0 | AJ151: 0 | AK151: 4384 | AL151: 1756893.2 | AM151: 53177.7294 | AN151: 8243.2 | AO151: 410 | AR151: 0 | AS151: 0 | AT151: 0 | BJ151: 63595.43342 | BK151: 78354.64118 | BL151: 87666.73398 | BM151: 8630.645579 | BN151: 125894.7077 | BP151: 8428.834998 | BQ151: 5869.521818 | CC151: Recoupment Academy
A152: 3140 | B152: Kingsnorth Church of England Primary School | C152: 1 | D152: 421 | E152: 0 | F152: 0 | G152: 0.109263658 | H152: 0 | I152: 0.109263658 | J152: 0 | K152: 0.02612826603 | L152: 0.01662707838 | M152: 0.002375296912 | N152: 0 | O152: 0.04038004751 | P152: 0 | Q152: 0 | R152: 0 | S152: 0 | T152: 0 | U152: 0 | V152: 0 | W152: 0.04155124654 | X152: 0 | Y152: 0.1839718938 | Z152: 0 | AA152: 0.01662707838 | AB152: 0 | AC152: 125894.7077 | AD152: 0 | AE152: 0 | AF152: 1 | AG152: 0 | AH152: 8089.6 | AI152: 0 | AJ152: 0 | AK152: 4384 | AL152: 1790859.6 | AM152: 47319.5731 | AN152: 8089.6 | AO152: 418 | AR152: 0 | AS152: 0 | AT152: 0 | BJ152: 13376.24783 | BK152: 31896.57959 | BL152: 87985.89267 | BM152: 9979.075396 | BN152: 125894.7077 | BP152: 149442.1306 | BQ152: 0 | CC152: Recoupment Academy
A153: 3142 | B153: Pluckley Church of England Primary School | C153: 1 | D153: 96 | E153: 0 | F153: 0 | G153: 0.1354166667 | H153: 0 | I153: 0.15625 | J153: 0 | K153: 0 | L153: 0.0625 | M153: 0.01041666667 | N153: 0 | O153: 0 | P153: 0 | Q153: 0 | R153: 0 | S153: 0 | T153: 0 | U153: 0 | V153: 0 | W153: 0.04597701149 | X153: 0 | Y153: 0.1395348837 | Z153: 0 | AA153: 0.08333333333 | AB153: 0 | AC153: 125894.7077 | AD153: 39774.64699 | AE153: 0 | AF153: 1 | AG153: 0 | AH153: 1971.2 | AI153: 0 | AJ153: 0 | AK153: 4384 | AL153: 499694.0764 | AM153: 14289.1381 | AN153: 1971.2 | AO153: 97 | AR153: 0 | AS153: 0 | AT153: 0 | BJ153: 2085.135814 | BK153: 10401.05856 | BL153: 15217.15616 | BM153: 2517.886346 | BN153: 125894.7077 | BP153: 0 | BQ153: 0 | CC153: Recoupment Academy
A154: 3143 | B154: St Michael's Church of England Primary School | C154: 1 | D154: 164 | E154: 0 | F154: 0 | G154: 0.2256097561 | H154: 0 | I154: 0.2317073171 | J154: 0 | K154: 0 | L154: 0.06748466258 | M154: 0 | N154: 0 | O154: 0.006134969325 | P154: 0 | Q154: 0 | R154: 0 | S154: 0 | T154: 0 | U154: 0 | V154: 0 | W154: 0.07142857143 | X154: 0 | Y154: 0.3165467626 | Z154: 0 | AA154: 0.07926829268 | AB154: 0 | AC154: 125894.7077 | AD154: 0 | AE154: 0 | AF154: 1 | AG154: 0 | AH154: 3635.2 | AI154: 0 | AJ154: 0 | AK154: 4384 | AL154: 690987.6724 | AM154: 21572.3055 | AN154: 3635.2 | AO154: 151 | AR154: 0 | AS154: 0 | AT154: 0 | BJ154: 3552.626396 | BK154: 26349.34836 | BL154: 58974.08263 | BM154: 6682.515323 | BN154: 125894.7077 | BP154: 0 | BQ154: 0 | CC154: Recoupment Academy
A155: 3144 | B155: Tenterden Church of England Junior School | C155: 1 | D155: 195 | E155: 0 | F155: 0 | G155: 0.2820512821 | H155: 0 | I155: 0.2974358974 | J155: 0 | K155: 0.03076923077 | L155: 0.1897435897 | M155: 0.005128205128 | N155: 0.01025641026 | O155: 0 | P155: 0 | Q155: 0 | R155: 0 | S155: 0 | T155: 0 | U155: 0 | V155: 0 | W155: 0.04102564103 | X155: 0 | Y155: 0.301276066 | Z155: 0 | AA155: 0.06666666667 | AB155: 0 | AC155: 125894.7077 | AD155: 0 | AE155: 0 | AF155: 1 | AG155: 0 | AH155: 5222.4 | AI155: 0 | AJ155: 0 | AK155: 4384 | AL155: 932669.9662 | AM155: 29170.6965 | AN155: 5222.4 | AO155: 210 | AR155: 0 | AS155: 0 | AT155: 0 | BJ155: 12923.89884 | BK155: 40217.42645 | BL155: 66738.84906 | BM155: 4563.669001 | BN155: 125894.7077 | BP155: 0 | BQ155: 0 | CC155: Recoupment Academy
A156: 3148 | B156: Christ Church Cep Academy, Folkestone | C156: 1 | D156: 420 | E156: 0 | F156: 0 | G156: 0.4619047619 | H156: 0 | I156: 0.469047619 | J156: 0 | K156: 0.02142857143 | L156: 0.180952381 | M156: 0.1023809524 | N156: 0.169047619 | O156: 0.2142857143 | P156: 0.1571428571 | Q156: 0 | R156: 0 | S156: 0 | T156: 0 | U156: 0 | V156: 0 | W156: 0.1204481793 | X156: 0 | Y156: 0.2631195335 | Z156: 0 | AA156: 0.0477326969 | AB156: 0 | AC156: 125894.7077 | AD156: 0 | AE156: 0 | AF156: 1 | AG156: 0 | AH156: 8687.5984 | AI156: 0 | AJ156: 0 | AK156: 4384 | AL156: 1935919.093 | AM156: 61305.496 | AN156: 8687.5984 | AO156: 421 | AR156: 0 | AS156: 0 | AT156: 0 | BJ156: 163731.9651 | BK156: 136600.5691 | BL156: 125539.9209 | BM156: 28858.49516 | BN156: 125894.7077 | BP156: 0 | BQ156: 0 | CC156: Recoupment Academy
A157: 3163 | B157: The Downs Church of England Primary School | C157: 1 | D157: 318 | E157: 0 | F157: 0 | G157: 0.3364779874 | H157: 0 | I157: 0.3396226415 | J157: 0 | K157: 0.2421383648 | L157: 0.106918239 | M157: 0.01257861635 | N157: 0.05660377358 | O157: 0.08805031447 | P157: 0 | Q157: 0 | R157: 0 | S157: 0 | T157: 0 | U157: 0 | V157: 0 | W157: 0.03308823529 | X157: 0 | Y157: 0.3609550562 | Z157: 0 | AA157: 0.05660377358 | AB157: 0 | AC157: 125894.7077 | AD157: 0 | AE157: 0 | AF157: 1 | AG157: 0 | AH157: 7986.6 | AI157: 0 | AJ157: 0 | AK157: 4384 | AL157: 1464545.283 | AM157: 45121.0132 | AN157: 7986.6 | AO157: 327 | AR157: 0 | AS157: 0 | AT157: 0 | BJ157: 51055.91427 | BK157: 74887.62166 | BL157: 130394.6339 | BM157: 6002.39921 | BN157: 125894.7077 | BP157: 0 | BQ157: 0 | CC157: Recoupment Academy
A158: 3172 | B158: Northbourne Church of England Primary School | C158: 1 | D158: 134 | E158: 0 | F158: 0 | G158: 0.0671641791 | H158: 0 | I158: 0.0671641791 | J158: 0 | K158: 0.08208955224 | L158: 0.03731343284 | M158: 0.0447761194 | N158: 0.0447761194 | O158: 0.0223880597 | P158: 0 | Q158: 0 | R158: 0 | S158: 0 | T158: 0 | U158: 0 | V158: 0 | W158: 0.01754385965 | X158: 0 | Y158: 0.09126984127 | Z158: 0 | AA158: 0.0447761194 | AB158: 0 | AC158: 125894.7077 | AD158: 11681.03016 | AE158: 0 | AF158: 1 | AG158: 0 | AH158: 3854.4 | AI158: 0 | AJ158: 0 | AK158: 4384 | AL158: 585976.1317 | AM158: 17237.2298 | AN158: 3854.4 | AO158: 130 | AR158: 0 | AS158: 0 | AT158: 0 | BJ158: 10799.35055 | BK158: 6240.635138 | BL158: 13893.49673 | BM158: 1341.078171 | BN158: 125894.7077 | BP158: 0 | BQ158: 0 | CC158: Recoupment Academy
A159: 3173 | B159: Kingsdown and Ringwould Church of England Primary School | C159: 1 | D159: 213 | E159: 0 | F159: 0 | G159: 0.1408450704 | H159: 0 | I159: 0.1455399061 | J159: 0 | K159: 0.1079812207 | L159: 0.02816901408 | M159: 0.01408450704 | N159: 0.01408450704 | O159: 0.004694835681 | P159: 0 | Q159: 0 | R159: 0 | S159: 0 | T159: 0 | U159: 0 | V159: 0 | W159: 0 | X159: 0 | Y159: 0.05806010929 | Z159: 0 | AA159: 0.04694835681 | AB159: 0 | AC159: 125894.7077 | AD159: 0 | AE159: 0 | AF159: 1 | AG159: 0 | AH159: 21706.5 | AI159: 0 | AJ159: 0 | AK159: 4384 | AL159: 925886.5 | AM159: 26813.0237 | AN159: 21706.5 | AO159: 212 | AR159: 0 | AS159: 0 | AT159: 0 | BJ159: 10071.4976 | BK159: 21495.52103 | BL159: 14048.72535 | BM159: 0 | BN159: 125894.7077 | BP159: 37086.69187 | BQ159: 998.657266 | CC159: Recoupment Academy
A160: 3306 | B160: Brenchley and Matfield Church of England Primary School | C160: 1 | D160: 193 | E160: 0 | F160: 0 | G160: 0.09844559585 | H160: 0 | I160: 0.09844559585 | J160: 0 | K160: 0.01041666667 | L160: 0.01041666667 | M160: 0 | N160: 0 | O160: 0 | P160: 0 | Q160: 0 | R160: 0 | S160: 0 | T160: 0 | U160: 0 | V160: 0 | W160: 0.03680981595 | X160: 0 | Y160: 0.1936708861 | Z160: 0 | AA160: 0.1088082902 | AB160: 0 | AC160: 125894.7077 | AD160: 0 | AE160: 0 | AF160: 1 | AG160: 0 | AH160: 4326.4 | AI160: 0 | AJ160: 0 | AK160: 4384 | AL160: 814676.4 | AM160: 24337.2672 | AN160: 4326.4 | AO160: 190 | AR160: 0 | AS160: 0 | AT160: 0 | BJ160: 1008.444425 | BK160: 13174.67418 | BL160: 42462.06572 | BM160: 4052.706061 | BN160: 125894.7077 | BP160: 0 | BQ160: 0 | CC160: Recoupment Academy
A161: 3313 | B161: Fordcombe Church of England Primary School | C161: 1 | D161: 73 | E161: 0 | F161: 0 | G161: 0.2465753425 | H161: 0 | I161: 0.2465753425 | J161: 0 | K161: 0.06849315068 | L161: 0 | M161: 0 | N161: 0 | O161: 0 | P161: 0 | Q161: 0 | R161: 0 | S161: 0 | T161: 0 | U161: 0 | V161: 0 | W161: 0.02941176471 | X161: 0 | Y161: 0.1987179487 | Z161: 0 | AA161: 0.1369863014 | AB161: 0 | AC161: 125894.7077 | AD161: 55373.9974 | AE161: 0 | AF161: 1.0377 | AG161: 0 | AH161: 2816 | AI161: 0 | AJ161: 0 | AK161: 4384 | AL161: 509453.509 | AM161: 14961.5879 | AN161: 2816 | AO161: 87 | AR161: 0 | AS161: 0 | AT161: 0 | BJ161: 1131.069047 | BK161: 12481.27028 | BL161: 16479.32524 | BM161: 1224.808225 | BN161: 125894.7077 | BP161: 0 | BQ161: 0 | CC161: Recoupment Academy
A162: 3324 | B162: Leybourne, St Peter and St Paul Church of England Primary Academy | C162: 1 | D162: 214 | E162: 0 | F162: 0 | G162: 0.06074766355 | H162: 0 | I162: 0.06074766355 | J162: 0 | K162: 0.03271028037 | L162: 0.009345794393 | M162: 0 | N162: 0 | O162: 0 | P162: 0 | Q162: 0 | R162: 0 | S162: 0 | T162: 0 | U162: 0 | V162: 0 | W162: 0.01630434783 | X162: 0 | Y162: 0.1993338008 | Z162: 0 | AA162: 0.02336448598 | AB162: 0 | AC162: 125894.7077 | AD162: 0 | AE162: 0 | AF162: 1 | AG162: 0 | AH162: 4864 | AI162: 0 | AJ162: 0 | AK162: 4384 | AL162: 921839 | AM162: 25488.0837 | AN162: 4864 | AO162: 215 | AR162: 0 | AS162: 0 | AT162: 0 | BJ162: 2134.288372 | BK162: 9014.250755 | BL162: 48458.97133 | BM162: 1990.404551 | BN162: 125894.7077 | BP162: 30176.11797 | BQ162: 489.0912535 | CC162: Recoupment Academy
A163: 3329 | B163: Borden Church of England Primary School | C163: 1 | D163: 127 | E163: 0 | F163: 0 | G163: 0.125984252 | H163: 0 | I163: 0.1417322835 | J163: 0 | K163: 0.1417322835 | L163: 0.1417322835 | M163: 0.03937007874 | N163: 0 | O163: 0 | P163: 0 | Q163: 0 | R163: 0 | S163: 0 | T163: 0 | U163: 0 | V163: 0 | W163: 0.02803738318 | X163: 0 | Y163: 0.1881009615 | Z163: 0 | AA163: 0.05511811024 | AB163: 0 | AC163: 125894.7077 | AD163: 0 | AE163: 0 | AF163: 1 | AG163: 0 | AH163: 1254.4 | AI163: 0 | AJ163: 0 | AK163: 4384 | AL163: 565819.6745 | AM163: 17104.1353 | AN163: 1254.4 | AO163: 126 | AR163: 0 | AS163: 0 | AT163: 0 | BJ163: 11192.77741 | BK163: 12481.27028 | BL163: 27137.77305 | BM163: 2031.259217 | BN163: 125894.7077 | BP163: 0 | BQ163: 0 | CC163: Recoupment Academy
A164: 3330 | B164: Bredgar Church of England Primary School | C164: 1 | D164: 108 | E164: 0 | F164: 0 | G164: 0.1018518519 | H164: 0 | I164: 0.1111111111 | J164: 0 | K164: 0.1296296296 | L164: 0.03703703704 | M164: 0.02777777778 | N164: 0.01851851852 | O164: 0 | P164: 0 | Q164: 0 | R164: 0 | S164: 0 | T164: 0 | U164: 0 | V164: 0 | W164: 0.02150537634 | X164: 0 | Y164: 0.08791208791 | Z164: 0 | AA164: 0.03703703704 | AB164: 0 | AC164: 125894.7077 | AD164: 30902.97852 | AE164: 0 | AF164: 1 | AG164: 0 | AH164: 1147.42 | AI164: 0 | AJ164: 7940 | AK164: 4384 | AL164: 522479.9899 | AM164: 14458.2581 | AN164: 1147.42 | AO164: 104 | AR164: 0 | AS164: 0 | AT164: 0 | BJ164: 6511.067575 | BK164: 8320.846851 | BL164: 10785.78651 | BM164: 1324.936162 | BN164: 125894.7077 | BP164: 0 | BQ164: 0 | CC164: Recoupment Academy
A165: 3343 | B165: Charing Church of England Primary School | C165: 1 | D165: 139 | E165: 0 | F165: 0 | G165: 0.3597122302 | H165: 0 | I165: 0.3669064748 | J165: 0 | K165: 0.01449275362 | L165: 0.268115942 | M165: 0.01449275362 | N165: 0.02898550725 | O165: 0.01449275362 | P165: 0 | Q165: 0 | R165: 0 | S165: 0 | T165: 0 | U165: 0 | V165: 0 | W165: 0.1623931624 | X165: 0 | Y165: 0.3439153439 | Z165: 0 | AA165: 0.1726618705 | AB165: 0 | AC165: 125894.7077 | AD165: 7984.501627 | AE165: 0 | AF165: 1 | AG165: 0 | AH165: 3276.8 | AI165: 0 | AJ165: 0 | AK165: 4384 | AL165: 606533.0052 | AM165: 18247.9469 | AN165: 3276.8 | AO165: 115 | AR165: 0 | AS165: 0 | AT165: 0 | BJ165: 14503.57462 | BK165: 35363.59912 | BL165: 54305.7508 | BM165: 12876.76264 | BN165: 125894.7077 | BP165: 0 | BQ165: 0 | CC165: Recoupment Academy
A166: 3348 | B166: St Eanswythe's Church of England Primary School | C166: 1 | D166: 214 | E166: 0 | F166: 0 | G166: 0.2476635514 | H166: 0 | I166: 0.2476635514 | J166: 0 | K166: 0.07943925234 | L166: 0.1542056075 | M166: 0.05607476636 | N166: 0.1542056075 | O166: 0.2663551402 | P166: 0.07476635514 | Q166: 0 | R166: 0 | S166: 0 | T166: 0 | U166: 0 | V166: 0 | W166: 0.1467391304 | X166: 0 | Y166: 0.25 | Z166: 0 | AA166: 0.04694835681 | AB166: 0 | AC166: 125894.7077 | AD166: 0 | AE166: 0 | AF166: 1 | AG166: 0 | AH166: 4353 | AI166: 0 | AJ166: 0 | AK166: 4384 | AL166: 984870.716 | AM166: 28854.4721 | AN166: 4353 | AO166: 212 | AR166: 0 | AS166: 0 | AT166: 0 | BJ166: 72841.77054 | BK166: 36750.40692 | BL166: 60776.15929 | BM166: 17913.64096 | BN166: 125894.7077 | BP166: 0 | BQ166: 0 | CC166: Recoupment Academy
A167: 3349 | B167: Folkestone St. Mary's Church of England Primary Academy | C167: 1 | D167: 398 | E167: 0 | F167: 0 | G167: 0.3366834171 | H167: 0 | I167: 0.3391959799 | J167: 0 | K167: 0.2236180905 | L167: 0.08291457286 | M167: 0.1005025126 | N167: 0.09045226131 | O167: 0.3291457286 | P167: 0.03266331658 | Q167: 0 | R167: 0 | S167: 0 | T167: 0 | U167: 0 | V167: 0 | W167: 0.02298850575 | X167: 0 | Y167: 0.2201081613 | Z167: 0 | AA167: 0.03778337531 | AB167: 0 | AC167: 125894.7077 | AD167: 0 | AE167: 0 | AF167: 1 | AG167: 0 | AH167: 9984 | AI167: 0 | AJ167: 0 | AK167: 4384 | AL167: 1720918.101 | AM167: 53094.6705 | AN167: 9984 | AO167: 396 | AR167: 0 | AS167: 0 | AT167: 0 | BJ167: 137804.9395 | BK167: 93609.52707 | BL167: 99517.32357 | BM167: 5219.368571 | BN167: 125894.7077 | BP167: 0 | BQ167: 0 | CC167: Recoupment Academy
A168: 3353 | B168: Deal Parochial Church of England Primary School | C168: 1 | D168: 193 | E168: 0 | F168: 0 | G168: 0.3626943005 | H168: 0 | I168: 0.3730569948 | J168: 0 | K168: 0.2797927461 | L168: 0.1243523316 | M168: 0.01554404145 | N168: 0.0518134715 | O168: 0.1761658031 | P168: 0 | Q168: 0 | R168: 0 | S168: 0 | T168: 0 | U168: 0 | V168: 0 | W168: 0.06134969325 | X168: 0 | Y168: 0.1759259259 | Z168: 0 | AA168: 0.07772020725 | AB168: 0 | AC168: 125894.7077 | AD168: 0 | AE168: 0 | AF168: 1 | AG168: 0 | AH168: 1612.8 | AI168: 0 | AJ168: 0 | AK168: 4384 | AL168: 888870.0039 | AM168: 28747.3962 | AN168: 1612.8 | AO168: 196 | AR168: 0 | AS168: 0 | AT168: 0 | BJ168: 41899.10046 | BK168: 49925.08111 | BL168: 38571.5085 | BM168: 6754.510102 | BN168: 125894.7077 | BP168: 0 | BQ168: 0 | CC168: Recoupment Academy
A169: 3358 | B169: Sholden Church of England Primary School | C169: 1 | D169: 99 | E169: 0 | F169: 0 | G169: 0.202020202 | H169: 0 | I169: 0.2121212121 | J169: 0 | K169: 0.2525252525 | L169: 0.08080808081 | M169: 0.09090909091 | N169: 0.3434343434 | O169: 0.0101010101 | P169: 0 | Q169: 0 | R169: 0 | S169: 0 | T169: 0 | U169: 0 | V169: 0 | W169: 0.0119047619 | X169: 0 | Y169: 0.1642857143 | Z169: 0 | AA169: 0.0303030303 | AB169: 0 | AC169: 125894.7077 | AD169: 0 | AE169: 0 | AF169: 1 | AG169: 0 | AH169: 181.4 | AI169: 0 | AJ169: 0 | AK169: 4384 | AL169: 511668.695 | AM169: 15722.1548 | AN169: 181.4 | AO169: 103 | AR169: 0 | AS169: 0 | AT169: 0 | BJ169: 28306.51651 | BK169: 14561.48199 | BL169: 18476.277 | BM169: 672.3262368 | BN169: 125894.7077 | BP169: 0 | BQ169: 0 | CC169: Recoupment Academy
A170: 3372 | B170: Maidstone, St John's Church of England Primary School | C170: 1 | D170: 440 | E170: 0 | F170: 0 | G170: 0.08181818182 | H170: 0 | I170: 0.08409090909 | J170: 0 | K170: 0.01138952164 | L170: 0.01138952164 | M170: 0 | N170: 0 | O170: 0 | P170: 0 | Q170: 0 | R170: 0 | S170: 0 | T170: 0 | U170: 0 | V170: 0 | W170: 0.05 | X170: 0 | Y170: 0.1499913748 | Z170: 0 | AA170: 0.006818181818 | AB170: 0 | AC170: 125894.7077 | AD170: 0 | AE170: 0 | AF170: 1 | AG170: 0 | AH170: 9062.4 | AI170: 0 | AJ170: 0 | AK170: 4384 | AL170: 1877132.4 | AM170: 49431.0712 | AN170: 9062.4 | AO170: 438 | AR170: 0 | AS170: 0 | AT170: 0 | BJ170: 2513.761404 | BK170: 25655.94446 | BL170: 74971.88531 | BM170: 12550.08975 | BN170: 125894.7077 | BP170: 201579.9237 | BQ170: 0 | CC170: Recoupment Academy
A171: 3708 | B171: St John's Catholic Primary School, Gravesend | C171: 1 | D171: 829 | E171: 0 | F171: 0 | G171: 0.1700844391 | H171: 0 | I171: 0.1712907117 | J171: 0 | K171: 0.3014527845 | L171: 0.06295399516 | M171: 0.05569007264 | N171: 0.2033898305 | O171: 0.01089588378 | P171: 0 | Q171: 0 | R171: 0 | S171: 0 | T171: 0 | U171: 0 | V171: 0 | W171: 0.1748942172 | X171: 0 | Y171: 0.2132175403 | Z171: 0 | AA171: 0.0482509047 | AB171: 0 | AC171: 125894.7077 | AD171: 0 | AE171: 0 | AF171: 1 | AG171: 0 | AH171: 9850.88 | AI171: 0 | AJ171: 0 | AK171: 4384 | AL171: 3434645.88 | AM171: 93367.2437 | AN171: 9850.88 | AO171: 803 | AR171: 0 | AS171: 0 | AT171: 0 | BJ171: 175016.1875 | BK171: 98463.3544 | BL171: 200796.8656 | BM171: 82709.25928 | BN171: 125894.7077 | BP171: 117540.0817 | BQ171: 0 | CC171: Recoupment Academy
A172: 3714 | B172: St Peter's Catholic Primary School | C172: 1 | D172: 212 | E172: 0 | F172: 0 | G172: 0.108490566 | H172: 0 | I172: 0.1132075472 | J172: 0 | K172: 0.179245283 | L172: 0.1745283019 | M172: 0.08490566038 | N172: 0.004716981132 | O172: 0 | P172: 0.009433962264 | Q172: 0 | R172: 0 | S172: 0 | T172: 0 | U172: 0 | V172: 0 | W172: 0.1153846154 | X172: 0 | Y172: 0.2427083333 | Z172: 0 | AA172: 0.08530805687 | AB172: 0 | AC172: 125894.7077 | AD172: 0 | AE172: 0 | AF172: 1 | AG172: 0 | AH172: 488.07 | AI172: 0 | AJ172: 0 | AK172: 4384 | AL172: 892593.2173 | AM172: 25453.0589 | AN172: 488.07 | AO172: 205 | AR172: 0 | AS172: 0 | AT172: 0 | BJ172: 28365.53693 | BK172: 16641.6937 | BL172: 58452.08654 | BM172: 13954.2956 | BN172: 125894.7077 | BP172: 0 | BQ172: 0 | CC172: Recoupment Academy
A173: 3715 | B173: St Mary's Catholic Primary School, Whitstable | C173: 1 | D173: 377 | E173: 0 | F173: 0 | G173: 0.1167108753 | H173: 0 | I173: 0.1193633952 | J173: 0 | K173: 0.02122015915 | L173: 0.005305039788 | M173: 0.03978779841 | N173: 0.02652519894 | O173: 0.01591511936 | P173: 0 | Q173: 0 | R173: 0 | S173: 0 | T173: 0 | U173: 0 | V173: 0 | W173: 0.04142011834 | X173: 0 | Y173: 0.2346872985 | Z173: 0 | AA173: 0.01856763926 | AB173: 0 | AC173: 125894.7077 | AD173: 0 | AE173: 0 | AF173: 1 | AG173: 0 | AH173: 8448 | AI173: 0 | AJ173: 0 | AK173: 4384 | AL173: 1680328 | AM173: 45221.0842 | AN173: 8448 | AO173: 392 | AR173: 0 | AS173: 0 | AT173: 0 | BJ173: 16582.61431 | BK173: 31203.17569 | BL173: 100510.2621 | BM173: 8907.930839 | BN173: 125894.7077 | BP173: 90403.9449 | BQ173: 3445.0851 | CC173: Recoupment Academy
A174: 3716 | B174: St Teresa's Catholic Primary School | C174: 1 | D174: 216 | E174: 0 | F174: 0 | G174: 0.1296296296 | H174: 0 | I174: 0.1388888889 | J174: 0 | K174: 0.08837209302 | L174: 0.05581395349 | M174: 0.02790697674 | N174: 0.01395348837 | O174: 0.04186046512 | P174: 0 | Q174: 0 | R174: 0 | S174: 0 | T174: 0 | U174: 0 | V174: 0 | W174: 0.09139784946 | X174: 0 | Y174: 0.2616858238 | Z174: 0 | AA174: 0.04166666667 | AB174: 0 | AC174: 125894.7077 | AD174: 0 | AE174: 0 | AF174: 1 | AG174: 0 | AH174: 5120 | AI174: 0 | AJ174: 0 | AK174: 4384 | AL174: 936460.6049 | AM174: 27213.3077 | AN174: 5120 | AO174: 217 | AR174: 0 | AS174: 0 | AT174: 0 | BJ174: 16205.20094 | BK174: 20802.11713 | BL174: 64211.58899 | BM174: 11261.95737 | BN174: 125894.7077 | BP174: 0 | BQ174: 0 | CC174: Recoupment Academy
A175: 3718 | B175: St Augustine's Catholic Primary School | C175: 1 | D175: 202 | E175: 0 | F175: 0 | G175: 0.1237623762 | H175: 0 | I175: 0.1287128713 | J175: 0 | K175: 0.1188118812 | L175: 0.06435643564 | M175: 0.05940594059 | N175: 0.00495049505 | O175: 0.05445544554 | P175: 0 | Q175: 0 | R175: 0 | S175: 0 | T175: 0 | U175: 0 | V175: 0 | W175: 0.0782122905 | X175: 0 | Y175: 0.2007073386 | Z175: 0 | AA175: 0.07920792079 | AB175: 0 | AC175: 125894.7077 | AD175: 0 | AE175: 0 | AF175: 1 | AG175: 0 | AH175: 7014 | AI175: 0 | AJ175: 0 | AK175: 4384 | AL175: 851484 | AM175: 24603.4561 | AN175: 7014 | AO175: 198 | AR175: 0 | AS175: 0 | AT175: 0 | BJ175: 20192.21655 | BK175: 18028.50151 | BL175: 46056.83513 | BM175: 9012.608894 | BN175: 125894.7077 | BP175: 0 | BQ175: 0 | CC175: Recoupment Academy
A176: 3719 | B176: St Joseph's Catholic Primary School, Aylesham | C176: 1 | D176: 136 | E176: 0 | F176: 0 | G176: 0.3529411765 | H176: 0 | I176: 0.3529411765 | J176: 0 | K176: 0.5147058824 | L176: 0.3529411765 | M176: 0 | N176: 0 | O176: 0 | P176: 0 | Q176: 0 | R176: 0 | S176: 0 | T176: 0 | U176: 0 | V176: 0 | W176: 0.09433962264 | X176: 0 | Y176: 0.2256944444 | Z176: 0 | AA176: 0.02205882353 | AB176: 0 | AC176: 125894.7077 | AD176: 0 | AE176: 0 | AF176: 1 | AG176: 0 | AH176: 2534.4 | AI176: 0 | AJ176: 0 | AK176: 4384 | AL176: 585244.2712 | AM176: 18600.1968 | AN176: 2534.4 | AO176: 116 | AR176: 0 | AS176: 0 | AT176: 0 | BJ176: 29053.96759 | BK176: 33283.3874 | BL176: 34868.98028 | BM176: 7319.091795 | BN176: 125894.7077 | BP176: 0 | BQ176: 0 | CC176: Recoupment Academy
A177: 3720 | B177: St Mary's Catholic Primary School | C177: 1 | D177: 184 | E177: 0 | F177: 0 | G177: 0.222826087 | H177: 0 | I177: 0.222826087 | J177: 0 | K177: 0.3586956522 | L177: 0.1793478261 | M177: 0.04347826087 | N177: 0.09239130435 | O177: 0.04891304348 | P177: 0 | Q177: 0 | R177: 0 | S177: 0 | T177: 0 | U177: 0 | V177: 0 | W177: 0.006211180124 | X177: 0 | Y177: 0.2298076923 | Z177: 0 | AA177: 0.03260869565 | AB177: 0 | AC177: 125894.7077 | AD177: 0 | AE177: 0 | AF177: 1 | AG177: 0 | AH177: 2688 | AI177: 0 | AJ177: 0 | AK177: 4384 | AL177: 855076.915 | AM177: 26780.0003 | AN177: 2688 | AO177: 188 | AR177: 0 | AS177: 0 | AT177: 0 | BJ177: 40020.52136 | BK177: 28429.56007 | BL177: 48035.44898 | BM177: 651.9527145 | BN177: 125894.7077 | BP177: 0 | BQ177: 0 | CC177: Recoupment Academy
A178: 3740 | B178: St Richard's Catholic Primary School | C178: 1 | D178: 186 | E178: 0 | F178: 0 | G178: 0.2903225806 | H178: 0 | I178: 0.3172043011 | J178: 0 | K178: 0.1513513514 | L178: 0.2378378378 | M178: 0.1891891892 | N178: 0.06486486486 | O178: 0.1351351351 | P178: 0.04864864865 | Q178: 0 | R178: 0 | S178: 0 | T178: 0 | U178: 0 | V178: 0 | W178: 0.1614906832 | X178: 0 | Y178: 0.1969622734 | Z178: 0 | AA178: 0.05376344086 | AB178: 0 | AC178: 125894.7077 | AD178: 0 | AE178: 0 | AF178: 1 | AG178: 0 | AH178: 5478.4 | AI178: 0 | AJ178: 0 | AK178: 4384 | AL178: 918867.4806 | AM178: 27641.6116 | AN178: 5478.4 | AO178: 196 | AR178: 0 | AS178: 0 | AT178: 0 | BJ178: 58046.45937 | BK178: 40910.83035 | BL178: 41617.4496 | BM178: 17135.01808 | BN178: 125894.7077 | BP178: 0 | BQ178: 0 | CC178: Recoupment Academy
A179: 3743 | B179: St Simon of England Roman Catholic Primary School, Ashford | C179: 1 | D179: 207 | E179: 0 | F179: 0 | G179: 0.1787439614 | H179: 0 | I179: 0.1787439614 | J179: 0 | K179: 0.07729468599 | L179: 0.1014492754 | M179: 0.05314009662 | N179: 0.004830917874 | O179: 0.3623188406 | P179: 0 | Q179: 0 | R179: 0 | S179: 0 | T179: 0 | U179: 0 | V179: 0 | W179: 0.2655367232 | X179: 0 | Y179: 0.2941176471 | Z179: 0 | AA179: 0.08212560386 | AB179: 0 | AC179: 125894.7077 | AD179: 0 | AE179: 0 | AF179: 1 | AG179: 0 | AH179: 4224 | AI179: 0 | AJ179: 0 | AK179: 4384 | AL179: 970265.421 | AM179: 26814.0245 | AN179: 4224 | AO179: 205 | AR179: 0 | AS179: 0 | AT179: 0 | BJ179: 52255.93056 | BK179: 25655.94446 | BL179: 69162.53422 | BM179: 31355.8868 | BN179: 125894.7077 | BP179: 0 | BQ179: 0 | CC179: Recoupment Academy
A180: 3744 | B180: St Margaret Clitherow Catholic Primary School | C180: 1 | D180: 395 | E180: 0 | F180: 0 | G180: 0.06329113924 | H180: 0 | I180: 0.06582278481 | J180: 0 | K180: 0.2366412214 | L180: 0.005089058524 | M180: 0.1272264631 | N180: 0 | O180: 0.002544529262 | P180: 0 | Q180: 0 | R180: 0 | S180: 0 | T180: 0 | U180: 0 | V180: 0 | W180: 0.1700288184 | X180: 0 | Y180: 0.1602167183 | Z180: 0 | AA180: 0.06329113924 | AB180: 0 | AC180: 125894.7077 | AD180: 0 | AE180: 0 | AF180: 1 | AG180: 0 | AH180: 7577.6 | AI180: 0 | AJ180: 0 | AK180: 4384 | AL180: 1709312.6 | AM180: 44284.4196 | AN180: 7577.6 | AO180: 399 | AR180: 0 | AS180: 0 | AT180: 0 | BJ180: 43950.85658 | BK180: 18028.50151 | BL180: 71892.63425 | BM180: 38312.79037 | BN180: 125894.7077 | BP180: 102009.6472 | BQ180: 0 | CC180: Recoupment Academy
A181: 3745 | B181: More Park Catholic Primary School | C181: 1 | D181: 205 | E181: 0 | F181: 0 | G181: 0.08292682927 | H181: 0 | I181: 0.08292682927 | J181: 0 | K181: 0.2341463415 | L181: 0.0243902439 | M181: 0 | N181: 0.112195122 | O181: 0.03414634146 | P181: 0 | Q181: 0 | R181: 0 | S181: 0 | T181: 0 | U181: 0 | V181: 0 | W181: 0.04494382022 | X181: 0 | Y181: 0.1253132832 | Z181: 0 | AA181: 0.03902439024 | AB181: 0 | AC181: 125894.7077 | AD181: 0 | AE181: 0 | AF181: 1 | AG181: 0 | AH181: 4889.6 | AI181: 0 | AJ181: 0 | AK181: 4384 | AL181: 866419.6 | AM181: 25246.9126 | AN181: 4889.6 | AO181: 202 | AR181: 0 | AS181: 0 | AT181: 0 | BJ181: 26604.91021 | BK181: 11787.86637 | BL181: 29183.03388 | BM181: 5255.910929 | BN181: 125894.7077 | BP181: 7641.488146 | BQ181: 0 | CC181: Recoupment Academy
A182: 3751 | B182: St Thomas' Catholic Primary School, Sevenoaks | C182: 1 | D182: 190 | E182: 0 | F182: 0 | G182: 0.1157894737 | H182: 0 | I182: 0.1263157895 | J182: 0 | K182: 0.005263157895 | L182: 0.005263157895 | M182: 0 | N182: 0 | O182: 0 | P182: 0 | Q182: 0 | R182: 0 | S182: 0 | T182: 0 | U182: 0 | V182: 0 | W182: 0.1090909091 | X182: 0 | Y182: 0.3428920073 | Z182: 0 | AA182: 0.08421052632 | AB182: 0 | AC182: 125894.7077 | AD182: 0 | AE182: 0 | AF182: 1.0377 | AG182: 0 | AH182: 5222.4 | AI182: 0 | AJ182: 0 | AK182: 4384 | AL182: 861670.2135 | AM182: 24096.9378 | AN182: 5222.4 | AO182: 190 | AR182: 0 | AS182: 0 | AT182: 0 | BJ182: 501.609662 | BK182: 16641.6937 | BL182: 74010.00484 | BM182: 11824.0515 | BN182: 125894.7077 | BP182: 0 | BQ182: 0 | CC182: Recoupment Academy
A183: 3754 | B183: St Augustine's Catholic Primary School | C183: 1 | D183: 276 | E183: 0 | F183: 0 | G183: 0.1557971014 | H183: 0 | I183: 0.1594202899 | J183: 0 | K183: 0.1630434783 | L183: 0.003623188406 | M183: 0 | N183: 0.03623188406 | O183: 0 | P183: 0 | Q183: 0 | R183: 0 | S183: 0 | T183: 0 | U183: 0 | V183: 0 | W183: 0.310483871 | X183: 0 | Y183: 0.2717282717 | Z183: 0 | AA183: 0.06884057971 | AB183: 0 | AC183: 125894.7077 | AD183: 0 | AE183: 0 | AF183: 1 | AG183: 0 | AH183: 5836.8 | AI183: 0 | AJ183: 0 | AK183: 4384 | AL183: 1255481.8 | AM183: 36036.5678 | AN183: 5836.8 | AO183: 293 | AR183: 0 | AS183: 0 | AT183: 0 | BJ183: 15176.06096 | BK183: 30509.77179 | BL183: 85196.8187 | BM183: 48884.6238 | BN183: 125894.7077 | BP183: 0 | BQ183: 0 | CC183: Recoupment Academy
A184: 3889 | B184: St Gregory's Catholic Primary School, Margate | C184: 1 | D184: 284 | E184: 0 | F184: 0 | G184: 0.338028169 | H184: 0 | I184: 0.338028169 | J184: 0 | K184: 0.3415492958 | L184: 0.08802816901 | M184: 0.02112676056 | N184: 0.1725352113 | O184: 0.1302816901 | P184: 0.07746478873 | Q184: 0 | R184: 0 | S184: 0 | T184: 0 | U184: 0 | V184: 0 | W184: 0.05306122449 | X184: 0 | Y184: 0.2366522367 | Z184: 0 | AA184: 0.06713780919 | AB184: 0 | AC184: 125894.7077 | AD184: 0 | AE184: 0 | AF184: 1 | AG184: 0 | AH184: 7782.4 | AI184: 0 | AJ184: 0 | AK184: 4384 | AL184: 1260222.269 | AM184: 38237.1291 | AN184: 7782.4 | AO184: 285 | AR184: 0 | AS184: 0 | AT184: 0 | BJ184: 87614.52695 | BK184: 66566.77481 | BL184: 76349.89131 | BM184: 8596.462221 | BN184: 125894.7077 | BP184: 0 | BQ184: 0 | CC184: Recoupment Academy
A185: 3890 | B185: St Joseph's Catholic Primary School, Broadstairs | C185: 1 | D185: 188 | E185: 0 | F185: 0 | G185: 0.3031914894 | H185: 0 | I185: 0.3138297872 | J185: 0 | K185: 0.06914893617 | L185: 0.1223404255 | M185: 0.03191489362 | N185: 0.04787234043 | O185: 0.1595744681 | P185: 0.02659574468 | Q185: 0 | R185: 0 | S185: 0 | T185: 0 | U185: 0 | V185: 0 | W185: 0.100591716 | X185: 0 | Y185: 0.3289183223 | Z185: 0 | AA185: 0.1010638298 | AB185: 0 | AC185: 125894.7077 | AD185: 0 | AE185: 0 | AF185: 1 | AG185: 0 | AH185: 3072 | AI185: 0 | AJ185: 0 | AK185: 4384 | AL185: 819015.0517 | AM185: 24703.5271 | AN185: 3072 | AO185: 178 | AR185: 0 | AS185: 0 | AT185: 0 | BJ185: 34463.59918 | BK185: 40910.83035 | BL185: 70246.61237 | BM185: 10788.08146 | BN185: 125894.7077 | BP185: 0 | BQ185: 0 | CC185: Recoupment Academy
A186: 3900 | B186: Whitehill Primary School | C186: 1 | D186: 586 | E186: 0 | F186: 0 | G186: 0.3122866894 | H186: 0 | I186: 0.3276450512 | J186: 0 | K186: 0.1333333333 | L186: 0.1299145299 | M186: 0.02564102564 | N186: 0.2478632479 | O186: 0.01025641026 | P186: 0 | Q186: 0 | R186: 0 | S186: 0 | T186: 0 | U186: 0 | V186: 0 | W186: 0.07722007722 | X186: 0 | Y186: 0.1942781104 | Z186: 0 | AA186: 0.07179487179 | AB186: 0 | AC186: 125894.7077 | AD186: 0 | AE186: 0 | AF186: 1 | AG186: 0 | AH186: 10649.6 | AI186: 0 | AJ186: 0 | AK186: 4384 | AL186: 2582444.6 | AM186: 76335.1595 | AN186: 10649.6 | AO186: 603 | AR186: 0 | AS186: 0 | AT186: 0 | BJ186: 116730.1619 | BK186: 133133.5496 | BL186: 129330.5 | BM186: 25813.80342 | BN186: 125894.7077 | BP186: 0 | BQ186: 0 | CC186: Recoupment Academy
A187: 3911 | B187: Hornbeam Primary School | C187: 1 | D187: 239 | E187: 0 | F187: 0 | G187: 0.2887029289 | H187: 0 | I187: 0.3054393305 | J187: 0 | K187: 0.2635983264 | L187: 0.2217573222 | M187: 0.04184100418 | N187: 0.1422594142 | O187: 0.05439330544 | P187: 0 | Q187: 0 | R187: 0 | S187: 0 | T187: 0 | U187: 0 | V187: 0 | W187: 0.02392344498 | X187: 0 | Y187: 0.327124183 | Z187: 0 | AA187: 0.08368200837 | AB187: 0 | AC187: 125894.7077 | AD187: 0 | AE187: 0 | AF187: 1 | AG187: 0 | AH187: 4566.4 | AI187: 0 | AJ187: 0 | AK187: 4384 | AL187: 1026758.683 | AM187: 30662.7551 | AN187: 4566.4 | AO187: 228 | AR187: 0 | AS187: 0 | AT187: 0 | BJ187: 55747.53128 | BK187: 50618.48501 | BL187: 88815.75697 | BM187: 3261.713192 | BN187: 125894.7077 | BP187: 0 | BQ187: 0 | CC187: Recoupment Academy
A188: 3912 | B188: Westlands Primary School | C188: 1 | D188: 575 | E188: 0 | F188: 0 | G188: 0.3008695652 | H188: 0 | I188: 0.3130434783 | J188: 0 | K188: 0.1704347826 | L188: 0.1495652174 | M188: 0.1513043478 | N188: 0.00347826087 | O188: 0.008695652174 | P188: 0.01043478261 | Q188: 0 | R188: 0 | S188: 0 | T188: 0 | U188: 0 | V188: 0 | W188: 0.0604288499 | X188: 0 | Y188: 0.1898907104 | Z188: 0 | AA188: 0.106271777 | AB188: 0 | AC188: 125894.7077 | AD188: 0 | AE188: 0 | AF188: 1 | AG188: 0 | AH188: 13619.2 | AI188: 0 | AJ188: 0 | AK188: 4384 | AL188: 2333779.2 | AM188: 71288.579 | AN188: 13619.2 | AO188: 544 | AR188: 0 | AS188: 0 | AT188: 0 | BJ188: 90909.34052 | BK188: 124812.7028 | BL188: 124036.9371 | BM188: 19821.49122 | BN188: 125894.7077 | BP188: 9469.562861 | BQ188: 0 | CC188: Recoupment Academy
A189: 3914 | B189: Oakfield Primary Academy | C189: 1 | D189: 650 | E189: 0 | F189: 0 | G189: 0.2861538462 | H189: 0 | I189: 0.2953846154 | J189: 0 | K189: 0.1635802469 | L189: 0.0200617284 | M189: 0.01080246914 | N189: 0.1203703704 | O189: 0.02777777778 | P189: 0 | Q189: 0 | R189: 0 | S189: 0 | T189: 0 | U189: 0 | V189: 0 | W189: 0.2021466905 | X189: 0 | Y189: 0.2197031353 | Z189: 0 | AA189: 0.04468412943 | AB189: 0 | AC189: 125894.7077 | AD189: 0 | AE189: 0 | AF189: 1.0377 | AG189: 0 | AH189: 13107.2 | AI189: 0 | AJ189: 0 | AK189: 4384 | AL189: 2798152.2 | AM189: 86595.3537 | AN189: 13107.2 | AO189: 653 | AR189: 0 | AS189: 0 | AT189: 0 | BJ189: 76677.17916 | BK189: 133133.5496 | BL189: 162229.2203 | BM189: 74955.61005 | BN189: 125894.7077 | BP189: 0 | BQ189: 0 | CC189: Recoupment Academy
A190: 3915 | B190: Manor Community Primary School | C190: 1 | D190: 627 | E190: 0 | F190: 0 | G190: 0.3062200957 | H190: 0 | I190: 0.312599681 | J190: 0 | K190: 0.2651757188 | L190: 0.08306709265 | M190: 0.01118210863 | N190: 0.01118210863 | O190: 0.1821086262 | P190: 0 | Q190: 0 | R190: 0 | S190: 0 | T190: 0 | U190: 0 | V190: 0 | W190: 0.1328413284 | X190: 0 | Y190: 0.2398706796 | Z190: 0 | AA190: 0.08293460925 | AB190: 0 | AC190: 125894.7077 | AD190: 0 | AE190: 0 | AF190: 1.0377 | AG190: 0 | AH190: 21913.6 | AI190: 0 | AJ190: 0 | AK190: 4384 | AL190: 2742447.131 | AM190: 84784.0612 | AN190: 21913.6 | AO190: 628 | AR190: 0 | AS190: 0 | AT190: 0 | BJ190: 115573.9621 | BK190: 135907.1652 | BL190: 170853.6165 | BM190: 47514.36195 | BN190: 125894.7077 | BP190: 0 | BQ190: 0 | CC190: Recoupment Academy
A191: 5202 | B191: Holy Trinity Church of England Primary School | C191: 1 | D191: 410 | E191: 0 | F191: 0 | G191: 0.2609756098 | H191: 0 | I191: 0.2609756098 | J191: 0 | K191: 0.2024390244 | L191: 0.3146341463 | M191: 0.02926829268 | N191: 0.0487804878 | O191: 0.009756097561 | P191: 0 | Q191: 0 | R191: 0 | S191: 0 | T191: 0 | U191: 0 | V191: 0 | W191: 0.3047091413 | X191: 0 | Y191: 0.2728395062 | Z191: 0 | AA191: 0.1002444988 | AB191: 0 | AC191: 125894.7077 | AD191: 0 | AE191: 0 | AF191: 1 | AG191: 0 | AH191: 9830.4 | AI191: 0 | AJ191: 0 | AK191: 4384 | AL191: 1801951.867 | AM191: 51135.2803 | AN191: 9830.4 | AO191: 417 | AR191: 4.55 | AS191: 1.05 | AT191: 0 | BJ191: 70943.46555 | BK191: 74194.21775 | BL191: 127078.0615 | BM191: 71267.8227 | BN191: 125894.7077 | BP191: 0 | BQ191: 0 | CC191: Recoupment Academy
A192: 5204 | B192: Sutton-At-Hone Church of England Primary School | C192: 1 | D192: 402 | E192: 0 | F192: 0 | G192: 0.1666666667 | H192: 0 | I192: 0.1741293532 | J192: 0 | K192: 0.04726368159 | L192: 0.07462686567 | M192: 0.01492537313 | N192: 0 | O192: 0.01492537313 | P192: 0 | Q192: 0 | R192: 0 | S192: 0 | T192: 0 | U192: 0 | V192: 0 | W192: 0.008522727273 | X192: 0 | Y192: 0.2165714286 | Z192: 0 | AA192: 0.02992518703 | AB192: 0 | AC192: 125894.7077 | AD192: 0 | AE192: 0 | AF192: 1.0377 | AG192: 0 | AH192: 6092.8 | AI192: 0 | AJ192: 0 | AK192: 4384 | AL192: 1767537.8 | AM192: 51137.6153 | AN192: 6092.8 | AO192: 413 | AR192: 0 | AS192: 0 | AT192: 0 | BJ192: 18166.16012 | BK192: 48538.2733 | BL192: 98902.36665 | BM192: 1954.46904 | BN192: 125894.7077 | BP192: 32486.64227 | BQ192: 5417.137217 | CC192: Recoupment Academy
A193: 5209 | B193: Allington Primary School | C193: 1 | D193: 462 | E193: 0 | F193: 0 | G193: 0.05411255411 | H193: 0 | I193: 0.05627705628 | J193: 0 | K193: 0.02380952381 | L193: 0.002164502165 | M193: 0 | N193: 0.04112554113 | O193: 0.004329004329 | P193: 0 | Q193: 0 | R193: 0 | S193: 0 | T193: 0 | U193: 0 | V193: 0 | W193: 0.07444168734 | X193: 0 | Y193: 0.1911740354 | Z193: 0 | AA193: 0.0367965368 | AB193: 0 | AC193: 125894.7077 | AD193: 0 | AE193: 0 | AF193: 1 | AG193: 0 | AH193: 9472 | AI193: 0 | AJ193: 0 | AK193: 4384 | AL193: 1992697 | AM193: 51541.5686 | AN193: 9472 | AO193: 465 | AR193: 0 | AS193: 0 | AT193: 0 | BJ193: 12736.95007 | BK193: 18028.50151 | BL193: 100334.5143 | BM193: 19619.24701 | BN193: 125894.7077 | BP193: 194753.6432 | BQ193: 0 | CC193: Recoupment Academy
A194: 5210 | B194: St Botolph's Church of England Primary School | C194: 1 | D194: 423 | E194: 0 | F194: 0 | G194: 0.2340425532 | H194: 0 | I194: 0.243498818 | J194: 0 | K194: 0.1418439716 | L194: 0.06382978723 | M194: 0.1678486998 | N194: 0.02836879433 | O194: 0.03309692671 | P194: 0 | Q194: 0 | R194: 0 | S194: 0 | T194: 0 | U194: 0 | V194: 0 | W194: 0.1712707182 | X194: 0 | Y194: 0.2121634169 | Z194: 0 | AA194: 0.0401891253 | AB194: 0 | AC194: 125894.7077 | AD194: 0 | AE194: 0 | AF194: 1 | AG194: 0 | AH194: 7987.2 | AI194: 0 | AJ194: 0 | AK194: 4384 | AL194: 1935767.2 | AM194: 56744.2598 | AN194: 7987.2 | AO194: 452 | AR194: 0 | AS194: 0 | AT194: 0 | BJ194: 64422.31389 | BK194: 71420.60214 | BL194: 101950.7296 | BM194: 41328.30913 | BN194: 125894.7077 | BP194: 0 | BQ194: 1471.989218 | CC194: Recoupment Academy
A195: 5215 | B195: Horton Kirby Church of England Primary School | C195: 1 | D195: 233 | E195: 0 | F195: 0 | G195: 0.2017167382 | H195: 0 | I195: 0.2145922747 | J195: 0 | K195: 0.2875536481 | L195: 0.03004291845 | M195: 0.004291845494 | N195: 0.01287553648 | O195: 0.01716738197 | P195: 0 | Q195: 0 | R195: 0 | S195: 0 | T195: 0 | U195: 0 | V195: 0 | W195: 0.039408867 | X195: 0 | Y195: 0.2104377104 | Z195: 0 | AA195: 0.08154506438 | AB195: 0 | AC195: 125894.7077 | AD195: 0 | AE195: 0 | AF195: 1.0377 | AG195: 0 | AH195: 5529.6 | AI195: 0 | AJ195: 0 | AK195: 4384 | AL195: 1010769.111 | AM195: 31427.2232 | AN195: 5529.6 | AO195: 226 | AR195: 0 | AS195: 0 | AT195: 0 | BJ195: 20939.60865 | BK195: 34670.19521 | BL195: 55700.48269 | BM195: 5238.102844 | BN195: 125894.7077 | BP195: 0 | BQ195: 0 | CC195: Recoupment Academy
A196: 5216 | B196: Stella Maris Catholic Primary School | C196: 1 | D196: 211 | E196: 0 | F196: 0 | G196: 0.1895734597 | H196: 0 | I196: 0.1943127962 | J196: 0 | K196: 0.1 | L196: 0.1714285714 | M196: 0.1428571429 | N196: 0.1142857143 | O196: 0.07619047619 | P196: 0.0380952381 | Q196: 0 | R196: 0 | S196: 0 | T196: 0 | U196: 0 | V196: 0 | W196: 0.03314917127 | X196: 0 | Y196: 0.2266666667 | Z196: 0 | AA196: 0.0663507109 | AB196: 0 | AC196: 125894.7077 | AD196: 0 | AE196: 0 | AF196: 1 | AG196: 0 | AH196: 3814.4 | AI196: 0 | AJ196: 0 | AK196: 4384 | AL196: 943096.6834 | AM196: 28137.9638 | AN196: 3814.4 | AO196: 209 | AR196: 0 | AS196: 0 | AT196: 0 | BJ196: 52524.62765 | BK196: 28429.56007 | BL196: 54331.23574 | BM196: 3990.058671 | BN196: 125894.7077 | BP196: 0 | BQ196: 0 | CC196: Recoupment Academy
A197: 5217 | B197: Our Lady of Hartley Catholic Primary School, Hartley, Longfield | C197: 1 | D197: 212 | E197: 0 | F197: 0 | G197: 0.02830188679 | H197: 0 | I197: 0.03301886792 | J197: 0 | K197: 0.04245283019 | L197: 0.01886792453 | M197: 0.09905660377 | N197: 0.02830188679 | O197: 0 | P197: 0 | Q197: 0 | R197: 0 | S197: 0 | T197: 0 | U197: 0 | V197: 0 | W197: 0.02197802198 | X197: 0 | Y197: 0.2532986111 | Z197: 0 | AA197: 0.009433962264 | AB197: 0 | AC197: 125894.7077 | AD197: 0 | AE197: 0 | AF197: 1.0377 | AG197: 0 | AH197: 4275.2 | AI197: 0 | AJ197: 0 | AK197: 4384 | AL197: 925515.2 | AM197: 26185.3737 | AN197: 4275.2 | AO197: 216 | AR197: 0 | AS197: 0 | AT197: 0 | BJ197: 15058.10858 | BK197: 4853.82733 | BL197: 61002.571 | BM197: 2657.961067 | BN197: 125894.7077 | BP197: 0 | BQ197: 0 | CC197: Recoupment Academy
A198: 5219 | B198: Wilmington Primary School | C198: 1 | D198: 209 | E198: 0 | F198: 0 | G198: 0.06220095694 | H198: 0 | I198: 0.06220095694 | J198: 0 | K198: 0.07177033493 | L198: 0.02870813397 | M198: 0.01435406699 | N198: 0 | O198: 0.01913875598 | P198: 0 | Q198: 0 | R198: 0 | S198: 0 | T198: 0 | U198: 0 | V198: 0 | W198: 0.005494505495 | X198: 0 | Y198: 0.2011235955 | Z198: 0 | AA198: 0.04306220096 | AB198: 0 | AC198: 125894.7077 | AD198: 0 | AE198: 0 | AF198: 1.0377 | AG198: 0 | AH198: 5580.8 | AI198: 0 | AJ198: 0 | AK198: 4384 | AL198: 909760.8 | AM198: 26576.696 | AN198: 5580.8 | AO198: 212 | AR198: 0 | AS198: 0 | AT198: 0 | BJ198: 8350.303003 | BK198: 9014.250755 | BL198: 47751.6937 | BM198: 655.0871025 | BN198: 125894.7077 | BP198: 0 | BQ198: 0 | CC198: Recoupment Academy
A199: 5220 | B199: Halfway Houses Primary School | C199: 1 | D199: 596 | E199: 0 | F199: 0 | G199: 0.2751677852 | H199: 0 | I199: 0.2869127517 | J199: 0 | K199: 0.3310810811 | L199: 0.1114864865 | M199: 0.02364864865 | N199: 0.03716216216 | O199: 0.1486486486 | P199: 0.1486486486 | Q199: 0 | R199: 0 | S199: 0 | T199: 0 | U199: 0 | V199: 0 | W199: 0.03461538462 | X199: 0 | Y199: 0.2527974309 | Z199: 0 | AA199: 0.07046979866 | AB199: 0 | AC199: 125894.7077 | AD199: 0 | AE199: 0 | AF199: 1 | AG199: 0 | AH199: 19353.6 | AI199: 0 | AJ199: 0 | AK199: 4384 | AL199: 2616738.6 | AM199: 77427.9348 | AN199: 19353.6 | AO199: 609 | AR199: 0 | AS199: 0 | AT199: 0 | BJ199: 182314.8402 | BK199: 118572.0676 | BL199: 171158.466 | BM199: 11769.00025 | BN199: 125894.7077 | BP199: 0 | BQ199: 0 | CC199: Recoupment Academy
A200: 5222 | B200: St Joseph's Catholic Primary School, Northfleet | C200: 1 | D200: 208 | E200: 0 | F200: 0 | G200: 0.1538461538 | H200: 0 | I200: 0.1778846154 | J200: 0 | K200: 0.1538461538 | L200: 0.2067307692 | M200: 0.1201923077 | N200: 0.01923076923 | O200: 0.03846153846 | P200: 0 | Q200: 0 | R200: 0 | S200: 0 | T200: 0 | U200: 0 | V200: 0 | W200: 0.1348314607 | X200: 0 | Y200: 0.2003284072 | Z200: 0 | AA200: 0.05365853659 | AB200: 0 | AC200: 125894.7077 | AD200: 0 | AE200: 0 | AF200: 1 | AG200: 0 | AH200: 4586.4 | AI200: 0 | AJ200: 0 | AK200: 4384 | AL200: 907610.0391 | AM200: 25671.2136 | AN200: 4586.4 | AO200: 209 | AR200: 0 | AS200: 0 | AT200: 0 | BJ200: 35801.1758 | BK200: 25655.94446 | BL200: 47335.32275 | BM200: 15998.48009 | BN200: 125894.7077 | BP200: 0 | BQ200: 0 | CC200: Recoupment Academy
... 86 more rows

Sheet TestArea (hidden)
A1: MI DfE no | B1: School Name | D1: Macro School Name | E1: Data Calc | F1: =SUM(F2:F302) -> 301 | H1: Macro F1 | I1: Data Calc F1 | J1: =SUM(J2:J566) -> -0.03226654115 | L1: Macro F2 | M1: Data Calc F2 | N1: =SUM(N2:N566) -> 0.0839173901 | P1: Macro F4 | Q1: Data Calc F4 | R1: =SUM(R2:R566) -> 0.08405708223 | T1: Macro F6 | U1: Data Calc F6 | V1: =SUM(V2:V566) -> 0.002036788967 | X1: Macro F? | Y1: Data Calc F? | Z1: =SUM(Z2:Z566) -> -0.01626646927 | AB1: Macro F7 | AC1: Data Calc F7 | AD1: =SUM(AD2:AD566) -> 1.283133451 | AF1: Macro F8 | AG1: Data Calc F8 | AH1: =SUM(AH2:AH566) -> 0.01991686977 | AJ1: Macro F9 | AK1: Data Calc F9 | AL1: =SUM(AL2:AL566) -> -0.02894990065 | AN1: Macro F10 | AO1: Data Calc F10 | AP1: =SUM(AP2:AP566) -> 0 | AR1: Macro F11 | AS1: Data Calc F11 | AT1: =SUM(AT2:AT566) -> 0.0036 | AV1: Macro F12 | AW1: Data Calc F12 | AX1: =SUM(AX2:AX566) -> 0.003801960411 | AZ1: Macro F13 | BA1: Data Calc F13 | BB1: =SUM(BB2:BB566) -> 0 | BD1: Macro F14 | BE1: Data Calc F14 | BF1: =SUM(BF2:BF566) -> -0.01165336016 | BH1: Macro FFT | BI1: Data Calc FFT | BJ1: =SUM(BJ2:BJ566) -> 0.09132726595 | BL1: Macro MFG | BM1: Data Calc MFG | BN1: =SUM(BN2:BN566) -> -0.0333894974 | BP1: Macro SBS | BQ1: Data Calc SBS | BR1: =SUM(BR2:BR566) -> 0.0679377662 | BT1: Early years rate | BV1: =SUM(BV2:BV566) -> 0 | BX1: Macro Notional SEN | BY1: Data Calc | BZ1: =SUM(BZ2:BZ566) -> 0 | CB1: Macro De-Delegation | CC1: Data Calc | CD1: =SUM(CD2:CD566) -> 0 | CF1: Year 2 | CG1: Data Calc | CH1: =SUM(CH2:CH566) -> 1244464799 | CJ1: Year 3 | CK1: Data Calc | CL1: =SUM(CL2:CL566) -> 1264620343
A2: 1001 | B2: Northfleet Nursery | D2: Northfleet Nursery | F2: =IF(E2=D2,0,1) -> 1 | H2: 0 | I2: 0 | J2: =H2-I2 -> 0 | L2: 0 | M2: 0 | N2: =L2-M2 -> 0 | P2: 0 | Q2: 0 | R2: =P2-Q2 -> 0 | T2: 0 | U2: 0 | V2: =T2-U2 -> 0 | X2: 0 | Y2: 0 | Z2: =X2-Y2 -> 0 | AB2: 0 | AC2: 0 | AD2: =AB2-AC2 -> 0 | AF2: 0 | AG2: 0 | AH2: =AF2-AG2 -> 0 | AJ2: 0 | AK2: 0 | AL2: =AJ2-AK2 -> 0 | AN2: 0 | AO2: 0 | AP2: =AN2-AO2 -> 0 | AR2: 0 | AS2: 0 | AT2: =AR2-AS2 -> 0 | AV2: 0 | AW2: 0 | AX2: =AV2-AW2 -> 0 | AZ2: 0 | BA2: 0 | BB2: =AZ2-BA2 -> 0 | BD2: 0 | BE2: 0 | BF2: =BD2-BE2 -> 0 | BH2: 0 | BI2: =I2+M2+Q2+U2+AC2+AG2+AK2+AO2+AS2+AW2+BA2+BE2 -> 0 | BJ2: =BH2-BI2 -> 0 | BL2: 0 | BM2: 0 | BN2: =BL2-BM2 -> 0 | BP2: 0 | BQ2: 0 | BR2: =BP2-BQ2 -> 0 | BV2: =BT2-BU2 -> 0 | BX2: 0 | BY2: 0 | BZ2: =ROUND(BX2-BY2,0) -> 0 | CB2: 0 | CC2: 0 | CD2: =IF(E2="Recoupment Academy",0,ROUND(CB2-CC2,0)) -> 0 | CF2: 0 | CH2: =ROUND(CF2-CG2,0) -> 0 | CJ2: 0 | CL2: =ROUND(CJ2-CK2,0) -> 0
A3: 2000 | B3: St Johns Church of England Primary School | D3: St Johns Church of England Primary School | E3: 0 | F3: 1 | H3: 1338609.02 | I3: 1338609.023 | J3: -0.002976348158 | L3: 374555.83 | M3: 374555.8346 | N3: -0.004609077994 | P3: 60198.4 | Q3: 60198.39702 | R3: 0.002975393843 | T3: 194441.25 | U3: 194441.2521 | V3: -0.002104018 | X3: 27827.92 | Y3: 27827.91528 | Z3: 0.004723772796 | AB3: 125894.71 | AC3: 125894.7077 | AD3: 0.002290411983 | AF3: 0 | AG3: 0 | AH3: 0 | AJ3: 0 | AK3: 0 | AL3: 0 | AN3: 0 | AO3: 0 | AP3: 0 | AR3: 24576 | AS3: 24576 | AT3: 0 | AV3: 0 | AW3: 0 | AX3: 0 | AZ3: 0 | BA3: 0 | BB3: 0 | BD3: 0 | BE3: 0 | BF3: 0 | BH3: 2146103.13 | BI3: =I3+M3+Q3+U3+Y3+AC3+AG3+AK3+AO3+AS3+AW3+BA3+BE3 -> 2146103.13 | BJ3: 0.0003001345322 | BL3: 0 | BM3: 0 | BN3: 0 | BP3: 2146103.13 | BQ3: 2146103.13 | BR3: 0.0003001345322 | BV3: 0 | BX3: 536590.34 | BY3: 536590.3354 | BZ3: 0 | CB3: 11260.08 | CC3: 11260.08 | CD3: =IF(E3="Recoupment Academy",0,ROUND(CB3-CC3,0)) -> 0 | CF3: 2264296.21 | CH3: 2264296 | CI3: =(CF3-BQ3)/BQ3 -> 0.05507334604 | CJ3: 2309090.62 | CL3: 2309091 | CM3: =(CJ3-CF3)/CF3 -> 0.01978292849
A4: 2002 | B4: Repton Manor Primary School | D4: Repton Manor Primary School | E4: 0 | F4: 1 | H4: 1572281.42 | I4: 1572281.421 | J4: -0.001002144534 | L4: 125156.84 | M4: 125156.8395 | N4: 0.0005357227346 | P4: 17650.91 | Q4: 17650.90593 | R4: 0.004072268941 | T4: 123800.62 | U4: 123800.6152 | V4: 0.004767422681 | X4: 0 | Y4: 0 | Z4: 0 | AB4: 125894.71 | AC4: 125894.7077 | AD4: 0.002290411983 | AF4: 0 | AG4: 0 | AH4: 0 | AJ4: 0 | AK4: 0 | AL4: 0 | AN4: 0 | AO4: 0 | AP4: 0 | AR4: 10650 | AS4: 10650 | AT4: 0 | AV4: 0 | AW4: 0 | AX4: 0 | AZ4: 0 | BA4: 0 | BB4: 0 | BD4: 100079.51 | BE4: 100079.5107 | BF4: -0.0006636818725 | BH4: 2075514 | BI4: =I4+M4+Q4+U4+Y4+AC4+AG4+AK4+AO4+AS4+AW4+BA4+BE4 -> 2075514 | BJ4: 0 | BL4: 3037.38 | BM4: 3037.37921 | BN4: 0.0007904454787 | BP4: 2078551.38 | BQ4: 2078551.379 | BR4: 0.0007904453669 | BV4: 0 | BX4: 337077.36 | BY4: 337077.3568 | BZ4: 0 | CB4: 13225.68 | CC4: 13225.68 | CD4: 0 | CF4: 2158285.38 | CH4: 2158285 | CI4: =(CF4-BQ4)/BQ4 -> 0.03836037039 | CJ4: 2168345.19 | CL4: 2168345 | CM4: =(CJ4-CF4)/CF4 -> 0.004661019388
A5: 2065 | B5: The Discovery School | D5: The Discovery School | E5: 0 | F5: 1 | H5: 2062993.46 | I5: 2062993.457 | J5: 0.003143683076 | L5: 67294.5 | M5: 67294.49999 | N5: 7.203401765e-06 | P5: 16291.29 | Q5: 16291.28606 | R5: 0.003939206392 | T5: 117624.14 | U5: 117624.1399 | V5: 0.0001290413638 | X5: 2714.01 | Y5: 2714.011777 | Z5: -0.001777106987 | AB5: 125894.71 | AC5: 125894.7077 | AD5: 0.002290411983 | AF5: 0 | AG5: 0 | AH5: 0 | AJ5: 0 | AK5: 0 | AL5: 0 | AN5: 0 | AO5: 0 | AP5: 0 | AR5: 75264 | AS5: 75264 | AT5: 0 | AV5: 0 | AW5: 0 | AX5: 0 | AZ5: 0 | BA5: 0 | BB5: 0 | BD5: 316499.9 | BE5: 316499.8977 | BF5: 0.002267560631 | BH5: 2784576 | BI5: 2784576 | BJ5: 0 | BL5: 0 | BM5: 0 | BN5: 0 | BP5: 2784576 | BQ5: 2784576 | BR5: 0 | BV5: 0 | BX5: 502529.79 | BY5: 502529.7916 | BZ5: 0 | CB5: 17353.44 | CC5: 17353.44 | CD5: 0 | CF5: 2884642.56 | CH5: 2884643 | CI5: 0.03593601324 | CJ5: 2898689.45 | CL5: 2898689 | CM5: 0.004869542658
A6: 2066 | B6: Maypole Primary School | D6: Maypole Primary School | E6: 0 | F6: 1 | H6: 1395358.03 | I6: 1395358.034 | J6: -0.003925469937 | L6: 79706.88 | M6: 79706.88199 | N6: -0.0019917389 | P6: 18649.85 | Q6: 18649.85405 | R6: -0.004047484399 | T6: 128610.79 | U6: 128610.7856 | V6: 0.004441390498 | X6: 0 | Y6: 0 | Z6: 0 | AB6: 125894.71 | AC6: 125894.7077 | AD6: 0.002290411983 | AF6: 0 | AG6: 0 | AH6: 0 | AJ6: 65907.9 | AK6: 65907.90392 | AL6: -0.003923879995 | AN6: 0 | AO6: 0 | AP6: 0 | AR6: 38144 | AS6: 38144 | AT6: 0 | AV6: 0 | AW6: 0 | AX6: 0 | AZ6: 0 | BA6: 0 | BB6: 0 | BD6: 18383.83 | BE6: 18383.83284 | BF6: -0.002843229202 | BH6: 1870656 | BI6: 1870656 | BJ6: 0 | BL6: 0 | BM6: 0 | BN6: 0 | BP6: 1870656 | BQ6: 1870656 | BR6: 0 | BV6: 0 | BX6: 235706.2 | BY6: 235706.1972 | BZ6: 0 | CB6: 12179.94 | CC6: 12179.94149 | CD6: 0 | CF6: 1951702.1 | CH6: 1951702 | CI6: 0.04332496194 | CJ6: 1989973.26 | CL6: 1989973 | CM6: 0.01960911965
A7: 2079 | B7: Woodlands Primary School | D7: Woodlands Primary School | E7: 0 | F7: 1 | H7: 2136433.35 | I7: 2136433.353 | J7: -0.003378710244 | L7: 212052.98 | M7: 212052.9783 | N7: 0.001653546991 | P7: 15960.37 | Q7: 15960.37246 | R7: -0.002463795941 | T7: 159292.81 | U7: 159292.8133 | V7: -0.003318566625 | X7: 0 | Y7: 0 | Z7: 0 | AB7: 125894.71 | AC7: 125894.7077 | AD7: 0.002290411983 | AF7: 0 | AG7: 0 | AH7: 0 | AJ7: 0 | AK7: 0 | AL7: 0 | AN7: 0 | AO7: 0 | AP7: 0 | AR7: 57856 | AS7: 57856 | AT7: 0 | AV7: 0 | AW7: 0 | AX7: 0 | AZ7: 0 | BA7: 0 | BB7: 0 | BD7: 156125.77 | BE7: 156125.7748 | BF7: -0.004782886012 | BH7: 2863616 | BI7: 2863616 | BJ7: 0 | BL7: 189.81 | BM7: 189.8108987 | BN7: -0.0008987333253 | BP7: 2863805.81 | BQ7: 2863805.811 | BR7: -0.0008987328038 | BV7: 0 | BX7: 490201.26 | BY7: 490201.2639 | BZ7: 0 | CB7: 17971.2 | CC7: 17971.2 | CD7: 0 | CF7: 2971831.45 | CH7: 2971831 | CI7: 0.03772100702 | CJ7: 2985722.96 | CL7: 2985723 | CM7: 0.00467439363
A8: 2088 | B8: Crockenhill Primary School | D8: Crockenhill Primary School | E8: 0 | F8: 1 | H8: 660959.07 | I8: 660959.0687 | J8: 0.001298461459 | L8: 84482.07 | M8: 84482.07113 | N8: -0.001126671632 | P8: 3361.63 | Q8: 3361.631184 | R8: -0.001184042405 | T8: 66788.55 | U8: 66788.54868 | V8: 0.00132132812 | X8: 0 | Y8: 0 | Z8: 0 | AB8: 125894.71 | AC8: 125894.7077 | AD8: 0.002290411983 | AF8: 0 | AG8: 0 | AH8: 0 | AJ8: 35494.02 | AK8: 35494.02323 | AL8: -0.003232999319 | AN8: 0 | AO8: 0 | AP8: 0 | AR8: 24116 | AS8: 24116 | AT8: 0 | AV8: 0 | AW8: 0 | AX8: 0 | AZ8: 0 | BA8: 0 | BB8: 0 | BD8: 0 | BE8: 0 | BF8: 0 | BH8: 1001096.05 | BI8: 1001096.051 | BJ8: -0.0006335116923 | BL8: 0 | BM8: 0 | BN8: 0 | BP8: 1001096.05 | BQ8: 1001096.051 | BR8: -0.0006335116923 | BV8: 0 | BX8: 138340.83 | BY8: 138340.8324 | BZ8: 0 | CB8: 5769.45 | CC8: 5769.445968 | CD8: 0 | CF8: 1056843.25 | CH8: 1056843 | CI8: 0.05568616451 | CJ8: 1077497.79 | CL8: 1077498 | CM8: 0.01954361728
A9: 2089 | B9: The Anthony Roper Primary School | D9: The Anthony Roper Primary School | E9: 0 | F9: 1 | H9: 1014805.84 | I9: 1014805.843 | J9: -0.002854887396 | L9: 46551.38 | M9: 46551.38363 | N9: -0.003625966863 | P9: 2008.72 | Q9: 2008.719174 | R9: 0.0008256532847 | T9: 62590.23 | U9: 62590.22671 | V9: 0.003288791006 | X9: 0 | Y9: 0 | Z9: 0 | AB9: 125894.71 | AC9: 125894.7077 | AD9: 0.002290411983 | AF9: 0 | AG9: 0 | AH9: 0 | AJ9: 47194.78 | AK9: 47194.77818 | AL9: 0.00182113488 | AN9: 0 | AO9: 0 | AP9: 0 | AR9: 6656 | AS9: 6656 | AT9: 0 | AV9: 0 | AW9: 0 | AX9: 0 | AZ9: 0 | BA9: 0 | BB9: 0 | BD9: 33690.34 | BE9: 33690.34175 | BF9: -0.001745136949 | BH9: 1339392 | BI9: 1339392 | BJ9: 0 | BL9: 0 | BM9: 0 | BN9: 0 | BP9: 1339392 | BQ9: 1339392 | BR9: 0 | BV9: 0 | BX9: 142096.97 | BY9: 142096.968 | BZ9: 0 | CB9: 8858.14 | CC9: 8858.139264 | CD9: 0 | CF9: 1389390.57 | CH9: 1389391 | CI9: 0.03732930315 | CJ9: 1405477.07 | CL9: 1405477 | CM9: 0.01157809787
A10: 2094 | B10: Cobham Primary School | D10: Cobham Primary School | E10: 0 | F10: 1 | H10: 727722.61 | I10: 727722.611 | J10: -0.000994623173 | L10: 19454.64 | M10: 19454.64316 | N10: -0.003158808329 | P10: 2645.96 | Q10: 2645.957027 | R10: 0.002972611881 | T10: 45816.65 | U10: 45816.64668 | V10: 0.00331915899 | X10: 0 | Y10: 0 | Z10: 0 | AB10: 125894.71 | AC10: 125894.7077 | AD10: 0.002290411983 | AF10: 0 | AG10: 0 | AH10: 0 | AJ10: 0 | AK10: 0 | AL10: 0 | AN10: 0 | AO10: 0 | AP10: 0 | AR10: 17216 | AS10: 17216 | AT10: 0 | AV10: 0 | AW10: 0 | AX10: 0 | AZ10: 0 | BA10: 0 | BB10: 0 | BD10: 34177.43 | BE10: 34177.43443 | BF10: -0.004428751352 | BH10: 972928 | BI10: 972928 | BJ10: 0 | BL10: 475.74 | BM10: 475.7358845 | BN10: 0.004115481405 | BP10: 973403.74 | BQ10: 973403.7359 | BR10: 0.004115481395 | BV10: 0 | BX10: 102497.72 | BY10: 102497.7249 | BZ10: 0 | CB10: 6121.44 | CC10: 6121.44 | CD10: 0 | CF10: 1009587.15 | CH10: 1009587 | CI10: 0.03717205182 | CJ10: 1013870.64 | CL10: 1013871 | CM10: 0.00424281351
A11: 2095 | B11: Cecil Road Primary and Nursery School | D11: Cecil Road Primary and Nursery School | E11: 0 | F11: 1 | H11: 1245140.06 | I11: 1245140.064 | J11: -0.003766029375 | L11: 116982.24 | M11: 116982.2391 | N11: 0.0008833802131 | P11: 46169.48 | Q11: 46169.47684 | R11: 0.003157164414 | T11: 110398.38 | U11: 110398.3819 | V11: -0.001942465155 | X11: 0 | Y11: 0 | Z11: 0 | AB11: 125894.71 | AC11: 125894.7077 | AD11: 0.002290411983 | AF11: 0 | AG11: 0 | AH11: 0 | AJ11: 0 | AK11: 0 | AL11: 0 | AN11: 0 | AO11: 0 | AP11: 0 | AR11: 34048 | AS11: 34048 | AT11: 0 | AV11: 0 | AW11: 0 | AX11: 0 | AZ11: 0 | BA11: 0 | BB11: 0 | BD11: 0 | BE11: 0 | BF11: 0 | BH11: 1678632.87 | BI11: 1678632.869 | BJ11: 0.0006224620156 | BL11: 0 | BM11: 0 | BN11: 0 | BP11: 1678632.87 | BQ11: 1678632.869 | BR11: 0.0006224620156 | BV11: 0 | BX11: 251288.5 | BY11: 251288.5003 | BZ11: 0 | CB11: 10473.84 | CC11: 10473.84 | CD11: 0 | CF11: 1768082.55 | CH11: 1768083 | CI11: 0.05328722096 | CJ11: 1802763.24 | CL11: 1802763 | CM11: 0.01961485905
A12: 2109 | B12: Higham Primary School | D12: Higham Primary School | E12: 0 | F12: 1 | H12: 691002.66 | I12: 691002.6627 | J12: -0.002733426518 | L12: 32034.27 | M12: 32034.26769 | N12: 0.002307387611 | P12: 2001.44 | Q12: 2001.439583 | R12: 0.0004167735206 | T12: 73485.19 | U12: 73485.1926 | V12: -0.002604153065 | X12: 0 | Y12: 0 | Z12: 0 | AB12: 125894.71 | AC12: 125894.7077 | AD12: 0.002290411983 | AF12: 0 | AG12: 0 | AH12: 0 | AJ12: 0 | AK12: 0 | AL12: 0 | AN12: 0 | AO12: 0 | AP12: 0 | AR12: 22330 | AS12: 22330 | AT12: 0 | AV12: 0 | AW12: 0 | AX12: 0 | AZ12: 0 | BA12: 0 | BB12: 0 | BD12: 0 | BE12: 0 | BF12: 0 | BH12: 946748.27 | BI12: 946748.2703 | BJ12: -0.0003230064176 | BL12: 0 | BM12: 0 | BN12: 0 | BP12: 946748.27 | BQ12: 946748.2703 | BR12: -0.0003230064176 | BV12: 0 | BX12: 103199.27 | BY12: 103199.2682 | BZ12: 0 | CB12: 5812.56 | CC12: 5812.56 | CD12: 0 | CF12: 997508.42 | CH12: 997508 | CI12: 0.05361525473 | CJ12: 1017011.98 | CL12: 1017012 | CM12: 0.01955227606
A13: 2116 | B13: Lawn Primary School | D13: Lawn Primary School | E13: 0 | F13: 1 | H13: 650944.54 | I13: 650944.5374 | J13: 0.002642424311 | L13: 204242.63 | M13: 204242.6326 | N13: -0.00259717778 | P13: 33630.53 | Q13: 33630.52593 | R13: 0.004074231176 | T13: 84868.27 | U13: 84868.27439 | V13: -0.0043871792 | X13: 0 | Y13: 0 | Z13: 0 | AB13: 125894.71 | AC13: 125894.7077 | AD13: 0.002290411983 | AF13: 0 | AG13: 0 | AH13: 0 | AJ13: 0 | AK13: 0 | AL13: 0 | AN13: 0 | AO13: 0 | AP13: 0 | AR13: 20709 | AS13: 20709 | AT13: 0 | AV13: 0 | AW13: 0 | AX13: 0 | AZ13: 0 | BA13: 0 | BB13: 0 | BD13: 0 | BE13: 0 | BF13: 0 | BH13: 1120289.68 | BI13: 1120289.678 | BJ13: 0.002022710396 | BL13: 0 | BM13: 0 | BN13: 0 | BP13: 1120289.68 | BQ13: 1120289.678 | BR13: 0.002022710396 | BV13: 0 | BX13: 278290.93 | BY13: 278290.93 | BZ13: 0 | CB13: 5475.6 | CC13: 5475.6 | CD13: 0 | CF13: 1182007.23 | CH13: 1182007 | CI13: 0.05509070844 | CJ13: 1205233.2 | CL13: 1205233 | CM13: 0.01964960062
A14: 2120 | B14: Bean Primary School | D14: Bean Primary School | E14: 0 | F14: 1 | H14: 610886.41 | I14: 610886.412 | J14: -0.001981724869 | L14: 70948.16 | M14: 70948.1636 | N14: -0.003598196388 | P14: 9848.48 | Q14: 9848.483812 | R14: -0.003811911527 | T14: 49625.01 | U14: 49625.00749 | V14: 0.002513862943 | X14: 948.05 | Y14: 948.0452098 | Z14: 0.004790188646 | AB14: 125894.71 | AC14: 125894.7077 | AD14: 0.002290411983 | AF14: 0 | AG14: 0 | AH14: 0 | AJ14: 32729.29 | AK14: 32729.28591 | AL14: 0.004093639185 | AN14: 0 | AO14: 0 | AP14: 0 | AR14: 16093 | AS14: 16093 | AT14: 0 | AV14: 0 | AW14: 0 | AX14: 0 | AZ14: 0 | BA14: 0 | BB14: 0 | BD14: 0 | BE14: 0 | BF14: 0 | BH14: 916973.11 | BI14: 916973.1057 | BJ14: 0.004296269966 | BL14: 0 | BM14: 0 | BN14: 0 | BP14: 916973.11 | BQ14: 916973.1057 | BR14: 0.004296269966 | BV14: 0 | BX14: 124485.26 | BY14: 124485.259 | BZ14: 0 | CB14: 5332.37 | CC14: 5332.366728 | CD14: 0 | CF14: 967107.38 | CH14: 967107 | CI14: 0.05467365835 | CJ14: 986127.67 | CL14: 986128 | CM14: 0.01966719559
A15: 2128 | B15: Capel Primary School | D15: Capel Primary School | E15: 0 | F15: 1 | H15: 687664.49 | I15: 687664.4856 | J15: 0.004381227656 | L15: 48843.09 | M15: 48843.08599 | N15: 0.004013394406 | P15: 1335.39 | Q15: 1335.391782 | R15: -0.001781649906 | T15: 49508.72 | U15: 49508.71705 | V15: 0.002954777214 | X15: 0 | Y15: 0 | Z15: 0 | AB15: 125894.71 | AC15: 125894.7077 | AD15: 0.002290411983 | AF15: 0 | AG15: 0 | AH15: 0 | AJ15: 0 | AK15: 0 | AL15: 0 | AN15: 0 | AO15: 0 | AP15: 0 | AR15: 21457 | AS15: 21457 | AT15: 0 | AV15: 0 | AW15: 0 | AX15: 0 | AZ15: 0 | BA15: 0 | BB15: 0 | BD15: 0 | BE15: 0 | BF15: 0 | BH15: 934703.39 | BI15: 934703.3881 | BJ15: 0.001858161413 | BL15: 0 | BM15: 0 | BN15: 0 | BP15: 934703.39 | BQ15: 934703.3881 | BR15: 0.001858161413 | BV15: 0 | BX15: 90644.52 | BY15: 90644.5195 | BZ15: 0 | CB15: 5784.48 | CC15: 5784.48 | CD15: 0 | CF15: 986179.52 | CH15: 986180 | CI15: 0.05507215713 | CJ15: 1005473.97 | CL15: 1005474 | CM15: 0.01956484556
A16: 2130 | B16: Dunton Green Primary School | D16: Dunton Green Primary School | E16: 0 | F16: 1 | H16: 614224.59 | I16: 614224.5891 | J16: 0.0009036208503 | L16: 71263.2 | M16: 71263.19798 | N16: 0.002024163739 | P16: 10290.63 | Q16: 10290.62618 | R16: 0.003820447742 | T16: 44418.56 | U16: 44418.56281 | V16: -0.002808807687 | X16: 10186.84 | Y16: 10186.83873 | Z16: 0.001274968285 | AB16: 125894.71 | AC16: 125894.7077 | AD16: 0.002290411983 | AF16: 0 | AG16: 0 | AH16: 0 | AJ16: 33035.7 | AK16: 33035.7003 | AL16: -0.0002980688514 | AN16: 0 | AO16: 0 | AP16: 0 | AR16: 24576 | AS16: 24576 | AT16: 0 | AV16: 0 | AW16: 0 | AX16: 0 | AZ16: 0 | BA16: 0 | BB16: 0 | BD16: 0 | BE16: 0 | BF16: 0 | BH16: 933890.22 | BI16: 933890.2228 | BJ16: -0.002793263877 | BL16: 0 | BM16: 0 | BN16: 0 | BP16: 933890.22 | BQ16: 933890.2228 | BR16: -0.002793263877 | BV16: 0 | BX16: 108600.49 | BY16: 108600.4915 | BZ16: 0 | CB16: 5361.51 | CC16: 5361.505344 | CD16: 0 | CF16: 986740.88 | CH16: 986741 | CI16: 0.05659193759 | CJ16: 1005984.17 | CL16: 1005984 | CM16: 0.0195018676
A17: 2132 | B17: Hadlow Primary School | D17: Hadlow Primary School | E17: 0 | F17: 1 | H17: 620900.94 | I17: 620900.9433 | J17: -0.003325687721 | L17: 109592.31 | M17: 109592.3052 | N17: 0.004763486664 | P17: 4080.97 | Q17: 4080.973242 | R17: -0.003241606723 | T17: 73359.84 | U17: 73359.83821 | V17: 0.001791385497 | X17: 0 | Y17: 0 | Z17: 0 | AB17: 125894.71 | AC17: 125894.7077 | AD17: 0.002290411983 | AF17: 0 | AG17: 0 | AH17: 0 | AJ17: 0 | AK17: 0 | AL17: 0 | AN17: 0 | AO17: 0 | AP17: 0 | AR17: 24326 | AS17: 24326 | AT17: 0 | AV17: 0 | AW17: 0 | AX17: 0 | AZ17: 0 | BA17: 0 | BB17: 0 | BD17: 0 | BE17: 0 | BF17: 0 | BH17: 958154.77 | BI17: 958154.7677 | BJ17: 0.002277989755 | BL17: 0 | BM17: 0 | BN17: 0 | BP17: 958154.77 | BQ17: 958154.7677 | BR17: 0.002277989755 | BV17: 0 | BX17: 160994.68 | BY17: 160994.6841 | BZ17: 0 | CB17: 5222.88 | CC17: 5222.88 | CD17: 0 | CF17: 1011327.74 | CH17: 1011328 | CI17: 0.05549518102 | CJ17: 1031067.78 | CL17: 1031068 | CM17: 0.01951893458
A18: 2134 | B18: Four Elms Primary School | D18: Four Elms Primary School | E18: 0 | F18: 1 | H18: 367199.48 | I18: 367199.4826 | J18: -0.002611965814 | L18: 21052.83 | M18: 21052.8335 | N18: -0.003501206855 | P18: 0 | Q18: 0 | R18: 0 | T18: 35383.03 | U18: 35383.03181 | V18: -0.001806768283 | X18: 1301.24 | Y18: 1301.238523 | Z18: 0.001476729521 | AB18: 125894.71 | AC18: 125894.7077 | AD18: 0.002290411983 | AF18: 29424.37 | AG18: 29424.36711 | AH18: 0.002892604811 | AJ18: 21875.64 | AK18: 21875.63843 | AL18: 0.001570490665 | AN18: 0 | AO18: 0 | AP18: 0 | AR18: 13348 | AS18: 13348 | AT18: 0 | AV18: 0 | AW18: 0 | AX18: 0 | AZ18: 0 | BA18: 0 | BB18: 0 | BD18: 0 | BE18: 0 | BF18: 0 | BH18: 615479.3 | BI18: 615479.2997 | BJ18: 0.0003102960763 | BL18: 0 | BM18: 0 | BN18: 0 | BP18: 615479.3 | BQ18: 615479.2997 | BR18: 0.0003102960763 | BV18: 0 | BX18: 61917.38 | BY18: 61917.38352 | BZ18: 0 | CB18: 3205.25 | CC18: 3205.24776 | CD18: 0 | CF18: 646921.27 | CH18: 646921 | CI18: 0.05108534166 | CJ18: 659592.74 | CL18: 659593 | CM18: 0.01958734484
A19: 2136 | B19: Kemsing Primary School | D19: Kemsing Primary School | E19: 0 | F19: 1 | H19: 600871.88 | I19: 600871.8806 | J19: -0.0006377622485 | L19: 27311.1 | M19: 27311.1022 | N19: -0.002203522345 | P19: 3400.08 | Q19: 3400.084521 | R19: -0.004520885757 | T19: 50013.64 | U19: 50013.63758 | V19: 0.002421114725 | X19: 0 | Y19: 0 | Z19: 0 | AB19: 125894.71 | AC19: 125894.7077 | AD19: 0.002290411983 | AF19: 0 | AG19: 0 | AH19: 0 | AJ19: 30442.43 | AK19: 30442.42626 | AL19: 0.003743070738 | AN19: 0 | AO19: 0 | AP19: 0 | AR19: 21956 | AS19: 21956 | AT19: 0 | AV19: 0 | AW19: 0 | AX19: 0 | AZ19: 0 | BA19: 0 | BB19: 0 | BD19: 0 | BE19: 0 | BF19: 0 | BH19: 859889.84 | BI19: 859889.8389 | BJ19: 0.001092427061 | BL19: 0 | BM19: 0 | BN19: 0 | BP19: 859889.84 | BQ19: 859889.8389 | BR19: 0.001092427061 | BV19: 0 | BX19: 79283.59 | BY19: 79283.59303 | BZ19: 0 | CB19: 5244.95 | CC19: 5244.95088 | CD19: 0 | CF19: 906626.05 | CH19: 906626 | CI19: 0.05435139361 | CJ19: 924319.45 | CL19: 924319 | CM19: 0.01951565367
A20: 2137 | B20: Leigh Primary School | D20: Leigh Primary School | E20: 0 | F20: 1 | H20: 537446.52 | I20: 537446.5155 | J20: 0.004540668218 | L20: 39233.83 | M20: 39233.83473 | N20: -0.004727564185 | P20: 1340.79 | Q20: 1340.785966 | R20: 0.004034270016 | T20: 42311.87 | U20: 42311.87209 | V20: -0.002093137533 | X20: 0 | Y20: 0 | Z20: 0 | AB20: 125894.71 | AC20: 125894.7077 | AD20: 0.002290411983 | AF20: 0 | AG20: 0 | AH20: 0 | AJ20: 28132.78 | AK20: 28132.78489 | AL20: -0.004891516754 | AN20: 0 | AO20: 0 | AP20: 0 | AR20: 12200 | AS20: 12200 | AT20: 0 | AV20: 0 | AW20: 0 | AX20: 0 | AZ20: 0 | BA20: 0 | BB20: 0 | BD20: 0 | BE20: 0 | BF20: 0 | BH20: 786560.5 | BI20: 786560.5008 | BJ20: -0.0008468683809 | BL20: 0 | BM20: 0 | BN20: 0 | BP20: 786560.5 | BQ20: 786560.5008 | BR20: -0.0008468683809 | BV20: 0 | BX20: 78097.44 | BY20: 78097.4375 | BZ20: 0 | CB20: 4691.32 | CC20: 4691.317176 | CD20: 0 | CF20: 830622.79 | CH20: 830623 | CI20: 0.05601894464 | CJ20: 846991.25 | CL20: 846991 | CM20: 0.01970624957
A21: 2138 | B21: Otford Primary School | D21: Otford Primary School | E21: 0 | F21: 1 | H21: 1128303.86 | I21: 1128303.865 | J21: -0.004753131187 | L21: 53396.98 | M21: 53396.97558 | N21: 0.004415071249 | P21: 2570.87 | Q21: 2570.866871 | R21: 0.003129230125 | T21: 52832.34 | U21: 52832.33673 | V21: 0.003269750734 | X21: 0 | Y21: 0 | Z21: 0 | AB21: 125894.71 | AC21: 125894.7077 | AD21: 0.002290411983 | AF21: 0 | AG21: 0 | AH21: 0 | AJ21: 51385.05 | AK21: 51385.05294 | AL21: -0.002937154743 | AN21: 0 | AO21: 0 | AP21: 0 | AR21: 29440 | AS21: 29440 | AT21: 0 | AV21: 0 | AW21: 0 | AX21: 0 | AZ21: 0 | BA21: 0 | BB21: 0 | BD21: 67408.2 | BE21: 67408.19541 | BF21: 0.004585821953 | BH21: 1511232 | BI21: 1511232 | BJ21: 0 | BL21: 11290.52 | BM21: 11290.52164 | BN21: -0.001638334961 | BP21: 1522522.52 | BQ21: 1522522.522 | BR21: -0.00163833471 | BV21: 0 | BX21: 177318.05 | BY21: 177318.0518 | BZ21: 0 | CB21: 9848.85 | CC21: 9848.852208 | CD21: 0 | CF21: 1578852.34 | CH21: 1578852 | CI21: 0.03699769137 | CJ21: 1585921.03 | CL21: 1585921 | CM21: 0.004477106453
A22: 2139 | B22: Pembury School | D22: Pembury School | E22: 0 | F22: 1 | H22: 1335270.85 | I22: 1335270.846 | J22: 0.004138306249 | L22: 58137.66 | M22: 58137.6567 | N22: 0.003304345184 | P22: 17806.22 | Q22: 17806.22298 | R22: -0.002982210939 | T22: 85623.24 | U22: 85623.24013 | V22: -0.0001289663924 | X22: 0 | Y22: 0 | Z22: 0 | AB22: 125894.71 | AC22: 125894.7077 | AD22: 0.002290411983 | AF22: 0 | AG22: 0 | AH22: 0 | AJ22: 0 | AK22: 0 | AL22: 0 | AN22: 0 | AO22: 0 | AP22: 0 | AR22: 42496 | AS22: 42496 | AT22: 0 | AV22: 0 | AW22: 0 | AX22: 0 | AZ22: 0 | BA22: 0 | BB22: 0 | BD22: 130867.33 | BE22: 130867.3266 | BF22: 0.003378114037 | BH22: 1796096 | BI22: 1796096 | BJ22: 0 | BL22: 0 | BM22: 0 | BN22: 0 | BP22: 1796096 | BQ22: 1796096 | BR22: 0 | BV22: 0 | BX22: 277726.52 | BY22: 277726.5187 | BZ22: 0 | CB22: 11232 | CC22: 11232 | CD22: 0 | CF22: 1861377.41 | CH22: 1861377 | CI22: 0.03634628105 | CJ22: 1869955.84 | CL22: 1869956 | CM22: 0.004608646239
A23: 2142 | B23: Sandhurst Primary School | D23: Sandhurst Primary School | E23: 0 | F23: 1 | H23: 510741.1 | I23: 510741.0985 | J23: 0.001457902079 | L23: 46192.47 | M23: 46192.47462 | N23: -0.004619999316 | P23: 5996.35 | Q23: 5996.347533 | R23: 0.00246671576 | T23: 38058.76 | U23: 38058.76017 | V23: -0.0001732781311 | X23: 4479.98 | Y23: 4479.978344 | Z23: 0.001655597342 | AB23: 125894.71 | AC23: 125894.7077 | AD23: 0.002290411983 | AF23: 0 | AG23: 0 | AH23: 0 | AJ23: 0 | AK23: 0 | AL23: 0 | AN23: 0 | AO23: 0 | AP23: 0 | AR23: 21582 | AS23: 21582 | AT23: 0 | AV23: 0 | AW23: 0 | AX23: 0 | AZ23: 0 | BA23: 0 | BB23: 0 | BD23: 0 | BE23: 0 | BF23: 0 | BH23: 752945.37 | BI23: 752945.3669 | BJ23: 0.003077349742 | BL23: 0 | BM23: 0 | BN23: 0 | BP23: 752945.37 | BQ23: 752945.3669 | BR23: 0.003077349742 | BV23: 0 | BX23: 79316.49 | BY23: 79316.48954 | BZ23: 0 | CB23: 4296.24 | CC23: 4296.24 | CD23: 0 | CF23: 794881.09 | CH23: 794881 | CI23: 0.05569557224 | CJ23: 810347.08 | CL23: 810347 | CM23: 0.0194569857
A24: 2147 | B24: Weald Community Primary School | D24: Weald Community Primary School | E24: 0 | F24: 1 | H24: 403919.43 | I24: 403919.4309 | J24: -0.0008731624112 | L24: 17448.19 | M24: 17448.19468 | N24: -0.004682119459 | P24: 3417.1 | Q24: 3417.103646 | R24: -0.003645825279 | T24: 17182.05 | U24: 17182.04503 | V24: 0.004965985434 | X24: 1617.25 | Y24: 1617.253593 | Z24: -0.003593207599 | AB24: 125894.71 | AC24: 125894.7077 | AD24: 0.002290411983 | AF24: 21292 | AG24: 21292.00434 | AH24: -0.004339019633 | AJ24: 22272.06 | AK24: 22272.05689 | AL24: 0.003106639477 | AN24: 0 | AO24: 0 | AP24: 0 | AR24: 15220 | AS24: 15220 | AT24: 0 | AV24: 0 | AW24: 0 | AX24: 0 | AZ24: 0 | BA24: 0 | BB24: 0 | BD24: 0 | BE24: 0 | BF24: 0 | BH24: 628262.8 | BI24: 628262.7968 | BJ24: 0.003229702474 | BL24: 6982.37 | BM24: 6982.371101 | BN24: -0.001100806689 | BP24: 635245.17 | BQ24: 635245.1679 | BR24: 0.002128895721 | BV24: 0 | BX24: 46388.67 | BY24: 46388.66648 | BZ24: 0 | CB24: 3525.77 | CC24: 3525.772536 | CD24: 0 | CF24: 662079.07 | CH24: 662079 | CI24: 0.0422418044 | CJ24: 675016.25 | CL24: 675016 | CM24: 0.01954023407
A25: 2148 | B25: Shoreham Village School | D25: Shoreham Village School | E25: 0 | F25: 1 | H25: 287083.23 | I25: 287083.2319 | J25: -0.001860264223 | L25: 25129.72 | M25: 25129.72412 | N25: -0.004116108183 | P25: 0 | Q25: 0 | R25: 0 | T25: 26138.03 | U25: 26138.03342 | V25: -0.003419875378 | X25: 0 | Y25: 0 | Z25: 0 | AB25: 125894.71 | AC25: 125894.7077 | AD25: 0.002290411983 | AF25: 47167.7 | AG25: 47167.70406 | AH25: -0.004056578218 | AJ25: 19280.29 | AK25: 19280.28522 | AL25: 0.004776176993 | AN25: 0 | AO25: 0 | AP25: 0 | AR25: 14097 | AS25: 14097 | AT25: 0 | AV25: 0 | AW25: 0 | AX25: 0 | AZ25: 0 | BA25: 0 | BB25: 0 | BD25: 0 | BE25: 0 | BF25: 0 | BH25: 544790.69 | BI25: 544790.6864 | BJ25: 0.003613762907 | BL25: 0 | BM25: 0 | BN25: 0 | BP25: 544790.69 | BQ25: 544790.6864 | BR25: 0.003613762907 | BV25: 0 | BX25: 50675.61 | BY25: 50675.60565 | BZ25: 0 | CB25: 2505.92 | CC25: 2505.920976 | CD25: 0 | CF25: 573432.15 | CH25: 573432 | CI25: 0.05257333565 | CJ25: 584618.85 | CL25: 584619 | CM25: 0.0195083237
A26: 2155 | B26: Slade Primary School and Attached Unit for Children with Hearing Impairment | D26: Slade Primary School and Attached Unit for Children with Hearing Impairment | E26: 0 | F26: 1 | H26: 1405372.57 | I26: 1405372.565 | J26: 0.004730567336 | L26: 91484.74 | M26: 91484.7429 | N26: -0.002904166759 | P26: 40581.57 | Q26: 40581.57328 | R26: -0.003277042015 | T26: 147039.07 | U26: 147039.0708 | V26: -0.0007845668588 | X26: 1617.25 | Y26: 1617.253593 | Z26: -0.003593207608 | AB26: 125894.71 | AC26: 125894.7077 | AD26: 0.002290411983 | AF26: 0 | AG26: 0 | AH26: 0 | AJ26: 0 | AK26: 0 | AL26: 0 | AN26: 0 | AO26: 0 | AP26: 0 | AR26: 29952 | AS26: 29952 | AT26: 0 | AV26: 0 | AW26: 0 | AX26: 0 | AZ26: 0 | BA26: 0 | BB26: 0 | BD26: 33674.09 | BE26: 33674.08646 | BF26: 0.003538003984 | BH26: 1875616 | BI26: 1875616 | BJ26: 0 | BL26: 0 | BM26: 0 | BN26: 0 | BP26: 1875616 | BQ26: 1875616 | BR26: 0 | BV26: 0 | BX26: 293350.5 | BY26: 293350.502 | BZ26: 0 | CB26: 11821.68 | CC26: 11821.68 | CD26: 0 | CF26: 1944809.9 | CH26: 1944810 | CI26: 0.03689129331 | CJ26: 1977912.6 | CL26: 1977913 | CM26: 0.01702104663
A27: 2156 | B27: Sussex Road Community Primary School | D27: Sussex Road Community Primary School | E27: 0 | F27: 1 | H27: 1402034.39 | I27: 1402034.388 | J27: 0.001845221268 | L27: 86842.5 | M27: 86842.50451 | N27: -0.004507896025 | P27: 20631.59 | Q27: 20631.58694 | R27: 0.003056321591 | T27: 84260.75 | U27: 84260.74685 | V27: 0.003145015638 | X27: 0 | Y27: 0 | Z27: 0 | AB27: 125894.71 | AC27: 125894.7077 | AD27: 0.002290411983 | AF27: 0 | AG27: 0 | AH27: 0 | AJ27: 0 | AK27: 0 | AL27: 0 | AN27: 0 | AO27: 0 | AP27: 0 | AR27: 44544 | AS27: 44544 | AT27: 0 | AV27: 0 | AW27: 0 | AX27: 0 | AZ27: 0 | BA27: 0 | BB27: 0 | BD27: 121616.07 | BE27: 121616.0658 | BF27: 0.004170925444 | BH27: 1885824 | BI27: 1885824 | BJ27: 0 | BL27: 7372.9 | BM27: 7372.903326 | BN27: -0.003325598687 | BP27: 1893196.9 | BQ27: 1893196.903 | BR27: -0.00332559878 | BV27: 0 | BX27: 299878.52 | BY27: 299878.523 | BZ27: 0 | CB27: 11793.6 | CC27: 11793.6 | CD27: 0 | CF27: 1962704.23 | CH27: 1962704 | CI27: 0.03671426176 | CJ27: 1971616.67 | CL27: 1971617 | CM27: 0.004540898146
A28: 2161 | B28: Boughton Monchelsea Primary School | D28: Boughton Monchelsea Primary School | E28: 0 | F28: 1 | H28: 680988.13 | I28: 680988.1314 | J28: -0.001389463898 | L28: 56613.11 | M28: 56613.11165 | N28: -0.001646728182 | P28: 2029.77 | Q28: 2029.771387 | R28: -0.001387235752 | T28: 65999.78 | U28: 65999.78 | V28: -2.485219738e-06 | X28: 0 | Y28: 0 | Z28: 0 | AB28: 125894.71 | AC28: 125894.7077 | AD28: 0.002290411983 | AF28: 0 | AG28: 0 | AH28: 0 | AJ28: 0 | AK28: 0 | AL28: 0 | AN28: 0 | AO28: 0 | AP28: 0 | AR28: 22580 | AS28: 22580 | AT28: 0 | AV28: 0 | AW28: 0 | AX28: 0 | AZ28: 0 | BA28: 0 | BB28: 0 | BD28: 0 | BE28: 0 | BF28: 0 | BH28: 954105.5 | BI28: 954105.5021 | BJ28: -0.002135501127 | BL28: 0 | BM28: 0 | BN28: 0 | BP28: 954105.5 | BQ28: 954105.5021 | BR28: -0.002135501127 | BV28: 0 | BX28: 112767.36 | BY28: 112767.3615 | BZ28: 0 | CB28: 5728.32 | CC28: 5728.32 | CD28: 0 | CF28: 1006340.93 | CH28: 1006341 | CI28: 0.05474806271 | CJ28: 1026016.15 | CL28: 1026016 | CM28: 0.01955124691
A29: 2163 | B29: East Farleigh Primary School | D29: East Farleigh Primary School | E29: 0 | F29: 1 | H29: 691002.66 | I29: 691002.6627 | J29: -0.002733426518 | L29: 43704.03 | M29: 43704.03426 | N29: -0.004258636196 | P29: 3335.73 | Q29: 3335.732639 | R29: -0.0026387108 | T29: 57956.49 | U29: 57956.49143 | V29: -0.00142608711 | X29: 0 | Y29: 0 | Z29: 0 | AB29: 125894.71 | AC29: 125894.7077 | AD29: 0.002290411983 | AF29: 0 | AG29: 0 | AH29: 0 | AJ29: 0 | AK29: 0 | AL29: 0 | AN29: 0 | AO29: 0 | AP29: 0 | AR29: 16717 | AS29: 16717 | AT29: 0 | AV29: 0 | AW29: 0 | AX29: 0 | AZ29: 0 | BA29: 0 | BB29: 0 | BD29: 0 | BE29: 0 | BF29: 0 | BH29: 938610.63 | BI29: 938610.6288 | BJ29: 0.001233551418 | BL29: 0 | BM29: 0 | BN29: 0 | BP29: 938610.63 | BQ29: 938610.6288 | BR29: 0.001233551418 | BV29: 0 | BX29: 99730.42 | BY29: 99730.41795 | BZ29: 0 | CB29: 5812.56 | CC29: 5812.56 | CD29: 0 | CF29: 989638.52 | CH29: 989639 | CI29: 0.05436534562 | CJ29: 1009096.95 | CL29: 1009097 | CM29: 0.01966215907
A30: 2164 | B30: East Peckham Primary School | D30: East Peckham Primary School | E30: 0 | F30: 1 | H30: 567490.11 | I30: 567490.1095 | J30: 0.0005087801255 | L30: 55009.76 | M30: 55009.76132 | N30: -0.0013177992 | P30: 1385.4 | Q30: 1385.399518 | R30: 0.0004817279787 | T30: 43066.25 | U30: 43066.24933 | V30: 0.0006714333649 | X30: 4461.39 | Y30: 4461.389223 | Z30: 0.0007773583384 | AB30: 125894.71 | AC30: 125894.7077 | AD30: 0.002290411983 | AF30: 0 | AG30: 0 | AH30: 0 | AJ30: 0 | AK30: 0 | AL30: 0 | AN30: 0 | AO30: 0 | AP30: 0 | AR30: 20709 | AS30: 20709 | AT30: 0 | AV30: 0 | AW30: 0 | AX30: 0 | AZ30: 0 | BA30: 0 | BB30: 0 | BD30: 0 | BE30: 0 | BF30: 0 | BH30: 818016.62 | BI30: 818016.6166 | BJ30: 0.003411912592 | BL30: 0 | BM30: 0 | BN30: 0 | BP30: 818016.62 | BQ30: 818016.6166 | BR30: 0.003411912592 | BV30: 0 | BX30: 94195.57 | BY30: 94195.56979 | BZ30: 0 | CB30: 4773.6 | CC30: 4773.6 | CD30: 0 | CF30: 862167.81 | CH30: 862168 | CI30: 0.05397346767 | CJ30: 878996.99 | CL30: 878997 | CM30: 0.01951961069
A31: 2165 | B31: Headcorn Primary School | D31: Headcorn Primary School | E31: 0 | F31: 1 | H31: 1288536.37 | I31: 1288536.366 | J31: 0.003743465524 | L31: 132852.98 | M31: 132852.9839 | N31: -0.00394582958 | P31: 12083.98 | Q31: 12083.98332 | R31: -0.003316118715 | T31: 76427.29 | U31: 76427.28808 | V31: 0.001920107185 | X31: 0 | Y31: 0 | Z31: 0 | AB31: 125894.71 | AC31: 125894.7077 | AD31: 0.002290411983 | AF31: 0 | AG31: 0 | AH31: 0 | AJ31: 0 | AK31: 0 | AL31: 0 | AN31: 0 | AO31: 0 | AP31: 0 | AR31: 40918 | AS31: 40918 | AT31: 0 | AV31: 0 | AW31: 0 | AX31: 0 | AZ31: 0 | BA31: 0 | BB31: 0 | BD31: 56428.67 | BE31: 56428.67069 | BF31: -0.0006920363085 | BH31: 1733142 | BI31: 1733142 | BJ31: 0 | BL31: 0 | BM31: 0 | BN31: 0 | BP31: 1733142 | BQ31: 1733142 | BR31: 0 | BV31: 0 | BX31: 249866.08 | BY31: 249866.076 | BZ31: 0 | CB31: 10838.88 | CC31: 10838.88 | CD31: 0 | CF31: 1799473.28 | CH31: 1799473 | CI31: 0.03827227082 | CJ31: 1807587.69 | CL31: 1807588 | CM31: 0.004509325084
A32: 2166 | B32: Hollingbourne Primary School | D32: Hollingbourne Primary School | E32: 0 | F32: 1 | H32: 327141.36 | I32: 327141.3572 | J32: 0.002763885015 | L32: 27485.33 | M32: 27485.33168 | N32: -0.00168135843 | P32: 1300.12 | Q32: 1300.115006 | R32: 0.004993796707 | T32: 38919.65 | U32: 38919.64672 | V32: 0.003276443029 | X32: 1040.99 | Y32: 1040.990819 | Z32: -0.0008186163825 | AB32: 125894.71 | AC32: 125894.7077 | AD32: 0.002290411983 | AF32: 38296.04 | AG32: 38296.03558 | AH32: 0.004418013305 | AJ32: 0 | AK32: 0 | AL32: 0 | AN32: 0 | AO32: 0 | AP32: 0 | AR32: 13723 | AS32: 13723 | AT32: 0 | AV32: 0 | AW32: 0 | AX32: 0 | AZ32: 0 | BA32: 0 | BB32: 0 | BD32: 0 | BE32: 0 | BF32: 0 | BH32: 573801.18 | BI32: 573801.1848 | BJ32: -0.0047574247 | BL32: 0 | BM32: 0 | BN32: 0 | BP32: 573801.18 | BQ32: 573801.1848 | BR32: -0.0047574247 | BV32: 0 | BX32: 63383.46 | BY32: 63383.46177 | BZ32: 0 | CB32: 2751.84 | CC32: 2751.84 | CD32: 0 | CF32: 603938.03 | CH32: 603938 | CI32: 0.05252140644 | CJ32: 615742.33 | CL32: 615742 | CM32: 0.01954554841
A33: 2167 | B33: Ightham Primary School | D33: Ightham Primary School | E33: 0 | F33: 1 | H33: 697679.02 | I33: 697679.017 | J33: 0.003037265036 | L33: 10670.95 | M33: 10670.95185 | N33: -0.001854885115 | P33: 2664.26 | Q33: 2664.264864 | R33: -0.004863926342 | T33: 33534.55 | U33: 33534.55117 | V33: -0.001170649848 | X33: 0 | Y33: 0 | Z33: 0 | AB33: 125894.71 | AC33: 125894.7077 | AD33: 0.002290411983 | AF33: 0 | AG33: 0 | AH33: 0 | AJ33: 0 | AK33: 0 | AL33: 0 | AN33: 0 | AO33: 0 | AP33: 0 | AR33: 21457 | AS33: 21457 | AT33: 0 | AV33: 0 | AW33: 0 | AX33: 0 | AZ33: 0 | BA33: 0 | BB33: 0 | BD33: 45812.51 | BE33: 45812.50744 | BF33: 0.002561784313 | BH33: 937713 | BI33: 937713 | BJ33: 0 | BL33: 0 | BM33: 0 | BN33: 0 | BP33: 937713 | BQ33: 937713 | BR33: 0 | BV33: 0 | BX33: 95914.31 | BY33: 95914.31357 | BZ33: 0 | CB33: 5868.72 | CC33: 5868.72 | CD33: 0 | CF33: 971888.76 | CH33: 971889 | CI33: 0.0364458635 | CJ33: 976304.77 | CL33: 976305 | CM33: 0.00454374017
A34: 2168 | B34: Lenham Primary School | D34: Lenham Primary School | E34: 0 | F34: 1 | H34: 704355.37 | I34: 704355.3712 | J34: -0.001192043535 | L34: 50426.07 | M34: 50426.06923 | N34: 0.0007714355306 | P34: 3325.05 | Q34: 3325.048893 | R34: 0.001107429682 | T34: 80345.24 | U34: 80345.23852 | V34: 0.001482755732 | X34: 0 | Y34: 0 | Z34: 0 | AB34: 125894.71 | AC34: 125894.7077 | AD34: 0.002290411983 | AF34: 0 | AG34: 0 | AH34: 0 | AJ34: 0 | AK34: 0 | AL34: 0 | AN34: 0 | AO34: 0 | AP34: 0 | AR34: 18837 | AS34: 18837 | AT34: 0 | AV34: 0 | AW34: 0 | AX34: 0 | AZ34: 0 | BA34: 0 | BB34: 0 | BD34: 0 | BE34: 0 | BF34: 0 | BH34: 983183.44 | BI34: 983183.4355 | BJ34: 0.004459989374 | BL34: 0 | BM34: 0 | BN34: 0 | BP34: 983183.44 | BQ34: 983183.4355 | BR34: 0.004459989374 | BV34: 0 | BX34: 121276.85 | BY34: 121276.8464 | BZ34: 0 | CB34: 5924.88 | CC34: 5924.88 | CD34: 0 | CF34: 1037137.1 | CH34: 1037137 | CI34: 0.05487649864 | CJ34: 1057503.11 | CL34: 1057503 | CM34: 0.01963675776
A35: 2169 | B35: Platts Heath Primary School | D35: Platts Heath Primary School | E35: 0 | F35: 1 | H35: 206966.98 | I35: 206966.9811 | J35: -0.001108562545 | L35: 25193.65 | M35: 25193.64898 | N35: 0.00102218871 | P35: 643.06 | Q35: 643.0624502 | R35: -0.002450192575 | T35: 24781.69 | U35: 24781.69458 | V35: -0.004582270121 | X35: 1189.7 | Y35: 1189.703793 | Z35: -0.003792704443 | AB35: 125894.71 | AC35: 125894.7077 | AD35: 0.002290411983 | AF35: 15504.72 | AG35: 15504.71927 | AH35: 0.0007292389055 | AJ35: 0 | AK35: 0 | AL35: 0 | AN35: 0 | AO35: 0 | AP35: 0 | AR35: 2345 | AS35: 2345 | AT35: 0 | AV35: 0 | AW35: 0 | AX35: 0 | AZ35: 0 | BA35: 0 | BB35: 0 | BD35: 0 | BE35: 0 | BF35: 0 | BH35: 402519.52 | BI35: 402519.5179 | BJ35: 0.00210810994 | BL35: 0 | BM35: 0 | BN35: 0 | BP35: 402519.52 | BQ35: 402519.5179 | BR35: 0.00210810994 | BV35: 0 | BX35: 48657.3 | BY35: 48657.29621 | BZ35: 0 | CB35: 1740.96 | CC35: 1740.96 | CD35: 0 | CF35: 424664.29 | CH35: 424664 | CI35: 0.05501539956 | CJ35: 433110.67 | CL35: 433111 | CM35: 0.01988954616
A36: 2171 | B36: Brunswick House Primary School | D36: Brunswick House Primary School | E36: 0 | F36: 1 | H36: 1402034.39 | I36: 1402034.388 | J36: 0.001845221268 | L36: 137643.73 | M36: 137643.7335 | N36: -0.003507152811 | P36: 32611.22 | Q36: 32611.21807 | R36: 0.001927734149 | T36: 136273.35 | U36: 136273.3503 | V36: -0.0002749041887 | X36: 0 | Y36: 0 | Z36: 0 | AB36: 125894.71 | AC36: 125894.7077 | AD36: 0.002290411983 | AF36: 0 | AG36: 0 | AH36: 0 | AJ36: 0 | AK36: 0 | AL36: 0 | AN36: 0 | AO36: 0 | AP36: 0 | AR36: 66048 | AS36: 66048 | AT36: 0 | AV36: 0 | AW36: 0 | AX36: 0 | AZ36: 0 | BA36: 0 | BB36: 0 | BD36: 6822.6 | BE36: 6822.602281 | BF36: -0.002281310479 | BH36: 1907328 | BI36: 1907328 | BJ36: 0 | BL36: 2365.14 | BM36: 2365.144893 | BN36: -0.004893294433 | BP36: 1909693.14 | BQ36: 1909693.145 | BR36: -0.004893294536 | BV36: 0 | BX36: 272681.86 | BY36: 272681.8592 | BZ36: 0 | CB36: 11793.6 | CC36: 11793.6 | CD36: 0 | CF36: 2004124.91 | CH36: 2004125 | CI36: 0.04944865899 | CJ36: 2042886.44 | CL36: 2042886 | CM36: 0.01934087532
A37: 2175 | B37: North Borough Junior School | D37: North Borough Junior School | E37: 0 | F37: 1 | H37: 1161685.64 | I37: 1161685.636 | J37: 0.004100326216 | L37: 140278.71 | M37: 140278.7058 | N37: 0.004180997727 | P37: 34326.16 | Q37: 34326.15589 | R37: 0.004110757924 | T37: 106238.88 | U37: 106238.88 | V37: 3.628549166e-05 | X37: 8476.64 | Y37: 8476.639523 | Z37: 0.0004769808711 | AB37: 125894.71 | AC37: 125894.7077 | AD37: 0.002290411983 | AF37: 0 | AG37: 0 | AH37: 0 | AJ37: 0 | AK37: 0 | AL37: 0 | AN37: 0 | AO37: 0 | AP37: 0 | AR37: 23328 | AS37: 23328 | AT37: 0 | AV37: 0 | AW37: 0 | AX37: 0 | AZ37: 0 | BA37: 0 | BB37: 0 | BD37: 0 | BE37: 0 | BF37: 0 | BH37: 1600228.72 | BI37: 1600228.725 | BJ37: -0.004804239841 | BL37: 0 | BM37: 0 | BN37: 0 | BP37: 1600228.72 | BQ37: 1600228.725 | BR37: -0.004804239841 | BV37: 0 | BX37: 243002.7 | BY37: 243002.6999 | BZ37: 0 | CB37: 9771.84 | CC37: 9771.84 | CD37: 0 | CF37: 1688896.94 | CH37: 1688897 | CI37: 0.05540971351 | CJ37: 1722208.32 | CL37: 1722208 | CM37: 0.0197237494
A38: 2176 | B38: Park Way Primary School | D38: Park Way Primary School | E38: 0 | F38: 1 | H38: 1031496.73 | I38: 1031496.728 | J38: 0.001571841538 | L38: 149317.71 | M38: 149317.7147 | N38: -0.004680879734 | P38: 37249.87 | Q38: 37249.87189 | R38: -0.001886626662 | T38: 120062.83 | U38: 120062.8299 | V38: 7.229730545e-05 | X38: 6004.29 | Y38: 6004.286329 | Z38: 0.003671194781 | AB38: 125894.71 | AC38: 125894.7077 | AD38: 0.002290411983 | AF38: 0 | AG38: 0 | AH38: 0 | AJ38: 0 | AK38: 0 | AL38: 0 | AN38: 0 | AO38: 0 | AP38: 0 | AR38: 28416 | AS38: 28416 | AT38: 0 | AV38: 0 | AW38: 0 | AX38: 0 | AZ38: 0 | BA38: 0 | BB38: 0 | BD38: 0 | BE38: 0 | BF38: 0 | BH38: 1498442.14 | BI38: 1498442.139 | BJ38: 0.001038239105 | BL38: 0 | BM38: 0 | BN38: 0 | BP38: 1498442.14 | BQ38: 1498442.139 | BR38: 0.001038239105 | BV38: 0 | BX38: 276343.04 | BY38: 276343.0446 | BZ38: 0 | CB38: 8676.72 | CC38: 8676.72 | CD38: 0 | CF38: 1578541.76 | CH38: 1578542 | CI38: 0.05345526461 | CJ38: 1609544.28 | CL38: 1609544 | CM38: 0.01963997455
A39: 2185 | B39: Mereworth Community Primary School | D39: Mereworth Community Primary School | E39: 0 | F39: 1 | H39: 677649.95 | I39: 677649.9543 | J39: -0.004274809733 | L39: 46885.2 | M39: 46885.19752 | N39: 0.002481520045 | P39: 2677.53 | Q39: 2677.528345 | R39: 0.001655267541 | T39: 41821.24 | U39: 41821.23536 | V39: 0.004638344573 | X39: 0 | Y39: 0 | Z39: 0 | AB39: 125894.71 | AC39: 125894.7077 | AD39: 0.002290411983 | AF39: 0 | AG39: 0 | AH39: 0 | AJ39: 0 | AK39: 0 | AL39: 0 | AN39: 0 | AO39: 0 | AP39: 0 | AR39: 26368 | AS39: 26368 | AT39: 0 | AV39: 0 | AW39: 0 | AX39: 0 | AZ39: 0 | BA39: 0 | BB39: 0 | BD39: 0 | BE39: 0 | BF39: 0 | BH39: 921296.62 | BI39: 921296.6232 | BJ39: -0.003209265647 | BL39: 654.1 | BM39: 654.0963264 | BN39: 0.003673583642 | BP39: 921950.72 | BQ39: 921950.7195 | BR39: 0.0004643179709 | BV39: 0 | BX39: 82995.38 | BY39: 82995.38224 | BZ39: 0 | CB39: 5700.24 | CC39: 5700.24 | CD39: 0 | CF39: 971936.18 | CH39: 971936 | CI39: 0.05421706324 | CJ39: 990847.54 | CL39: 990848 | CM39: 0.01945740923
A40: 2187 | B40: Offham Primary School | D40: Offham Primary School | E40: 0 | F40: 1 | H40: 697679.02 | I40: 697679.017 | J40: 0.003037265036 | L40: 22139.32 | M40: 22139.3214 | N40: -0.001399124445 | P40: 1998.2 | Q40: 1998.198648 | R40: 0.001352055249 | T40: 36480.48 | U40: 36480.48165 | V40: -0.001646821984 | X40: 0 | Y40: 0 | Z40: 0 | AB40: 125894.71 | AC40: 125894.7077 | AD40: 0.002290411983 | AF40: 0 | AG40: 0 | AH40: 0 | AJ40: 0 | AK40: 0 | AL40: 0 | AN40: 0 | AO40: 0 | AP40: 0 | AR40: 23827 | AS40: 23827 | AT40: 0 | AV40: 0 | AW40: 0 | AX40: 0 | AZ40: 0 | BA40: 0 | BB40: 0 | BD40: 32064.27 | BE40: 32064.27363 | BF40: -0.003633785807 | BH40: 940083 | BI40: 940083 | BJ40: 0 | BL40: 2228.7 | BM40: 2228.699161 | BN40: 0.0008392563786 | BP40: 942311.7 | BQ40: 942311.6992 | BR40: 0.0008392564487 | BV40: 0 | BX40: 95782.49 | BY40: 95782.49089 | BZ40: 0 | CB40: 5868.72 | CC40: 5868.72 | CD40: 0 | CF40: 977021.2 | CH40: 977021 | CI40: 0.03683441569 | CJ40: 981108.81 | CL40: 981109 | CM40: 0.004183747497
A41: 2188 | B41: Plaxtol Primary School | D41: Plaxtol Primary School | E41: 0 | F41: 1 | H41: 337155.89 | I41: 337155.8886 | J41: 0.001419922337 | L41: 16297.42 | M41: 16297.4194 | N41: 0.0005996318196 | P41: 662.26 | Q41: 662.2565649 | R41: 0.003435146507 | T41: 24027.13 | U41: 24027.13121 | V41: -0.001210229537 | X41: 2732.6 | Y41: 2732.600899 | Z41: -0.0008988680129 | AB41: 125894.71 | AC41: 125894.7077 | AD41: 0.002290411983 | AF41: 33552.65 | AG41: 33552.65017 | AH41: -0.0001709050994 | AJ41: 0 | AK41: 0 | AL41: 0 | AN41: 0 | AO41: 0 | AP41: 0 | AR41: 13847 | AS41: 13847 | AT41: 0 | AV41: 0 | AW41: 0 | AX41: 0 | AZ41: 0 | BA41: 0 | BB41: 0 | BD41: 0 | BE41: 0 | BF41: 0 | BH41: 554169.65 | BI41: 554169.6545 | BJ41: -0.004534889944 | BL41: 0 | BM41: 0 | BN41: 0 | BP41: 554169.65 | BQ41: 554169.6545 | BR41: -0.004534889944 | BV41: 0 | BX41: 41858.32 | BY41: 41858.32358 | BZ41: 0 | CB41: 2836.08 | CC41: 2836.08 | CD41: 0 | CF41: 583108.65 | CH41: 583109 | CI41: 0.05222046214 | CJ41: 594493.88 | CL41: 594494 | CM41: 0.01952505764
A42: 2189 | B42: Ryarsh Primary School | D42: Ryarsh Primary School | E42: 0 | F42: 1 | H42: 697679.02 | I42: 697679.017 | J42: 0.003037265036 | L42: 19862.8 | M42: 19862.80301 | N42: -0.003007640971 | P42: 666.07 | Q42: 666.066216 | R42: 0.003784018414 | T42: 43771.02 | U42: 43771.01975 | V42: 0.0002485440054 | X42: 0 | Y42: 0 | Z42: 0 | AB42: 125894.71 | AC42: 125894.7077 | AD42: 0.002290411983 | AF42: 0 | AG42: 0 | AH42: 0 | AJ42: 0 | AK42: 0 | AL42: 0 | AN42: 0 | AO42: 0 | AP42: 0 | AR42: 17964 | AS42: 17964 | AT42: 0 | AV42: 0 | AW42: 0 | AX42: 0 | AZ42: 0 | BA42: 0 | BB42: 0 | BD42: 28382.39 | BE42: 28382.38635 | BF42: 0.003647401536 | BH42: 934220 | BI42: 934220 | BJ42: 0 | BL42: 696.83 | BM42: 696.8325953 | BN42: -0.002595283748 | BP42: 934916.83 | BQ42: 934916.8326 | BR42: -0.00259528379 | BV42: 0 | BX42: 92834.31 | BY42: 92834.31123 | BZ42: 0 | CB42: 5868.72 | CC42: 5868.72 | CD42: 0 | CF42: 969932.24 | CH42: 969932 | CI42: 0.037452965 | CJ42: 974013.71 | CL42: 974014 | CM42: 0.004207994983
A43: 2190 | B43: Shipbourne School | D43: Shipbourne School | E43: 0 | F43: 1 | H43: 200290.63 | I43: 200290.6269 | J43: 0.00312074594 | L43: 16821.45 | M43: 16821.45214 | N43: -0.002139948592 | P43: 3291.11 | Q43: 3291.107453 | R43: 0.002547091354 | T43: 13601.12 | U43: 13601.12408 | V43: -0.004083821026 | X43: 4089.61 | Y43: 4089.606787 | Z43: 0.003212578504 | AB43: 125894.71 | AC43: 125894.7077 | AD43: 0.002290411983 | AF43: 0 | AG43: 0 | AH43: 0 | AJ43: 0 | AK43: 0 | AL43: 0 | AN43: 0 | AO43: 0 | AP43: 0 | AR43: 6737 | AS43: 6737 | AT43: 0 | AV43: 0 | AW43: 0 | AX43: 0 | AZ43: 0 | BA43: 0 | BB43: 0 | BD43: 0 | BE43: 0 | BF43: 0 | BH43: 370725.63 | BI43: 370725.6251 | BJ43: 0.004947058158 | BL43: 0 | BM43: 0 | BN43: 0 | BP43: 370725.63 | BQ43: 370725.6251 | BR43: 0.004947058158 | BV43: 0 | BX43: 35057.3 | BY43: 35057.30445 | BZ43: 0 | CB43: 1684.8 | CC43: 1684.8 | CD43: 0 | CF43: 391055.28 | CH43: 391055 | CI43: 0.05483746893 | CJ43: 398741.64 | CL43: 398742 | CM43: 0.01965543081
A44: 2192 | B44: Staplehurst School | D44: Staplehurst School | E44: 0 | F44: 1 | H44: 1348623.55 | I44: 1348623.554 | J44: -0.004320310662 | L44: 96970.93 | M44: 96970.93315 | N44: -0.003147720621 | P44: 6838.73 | Q44: 6838.73248 | R44: -0.002479792752 | T44: 141455.31 | U44: 141455.3114 | V44: -0.00144863475 | X44: 3494.75 | Y44: 3494.754891 | Z44: -0.004891069293 | AB44: 125894.71 | AC44: 125894.7077 | AD44: 0.002290411983 | AF44: 0 | AG44: 0 | AH44: 0 | AJ44: 0 | AK44: 0 | AL44: 0 | AN44: 0 | AO44: 0 | AP44: 0 | AR44: 37632 | AS44: 37632 | AT44: 0 | AV44: 0 | AW44: 0 | AX44: 0 | AZ44: 0 | BA44: 0 | BB44: 0 | BD44: 47858.01 | BE44: 47858.006 | BF44: 0.003997116146 | BH44: 1808768 | BI44: 1808768 | BJ44: 0 | BL44: 0 | BM44: 0 | BN44: 0 | BP44: 1808768 | BQ44: 1808768 | BR44: 0 | BV44: 0 | BX44: 262363.51 | BY44: 262363.5069 | BZ44: 0 | CB44: 11344.32 | CC44: 11344.32 | CD44: 0 | CF44: 1878273.67 | CH44: 1878274 | CI44: 0.03842707854 | CJ44: 1894005.23 | CL44: 1894005 | CM44: 0.008375541994
A45: 2193 | B45: Sutton Valence Primary School | D45: Sutton Valence Primary School | E45: 0 | F45: 1 | H45: 691002.66 | I45: 691002.6627 | J45: -0.002733426518 | L45: 65745.4 | M45: 65745.40324 | N45: -0.003236530858 | P45: 8672.9 | Q45: 8672.904861 | R45: -0.004860648067 | T45: 45925.71 | U45: 45925.70674 | V45: 0.003263327977 | X45: 4256.91 | Y45: 4256.908883 | Z45: 0.001116729423 | AB45: 125894.71 | AC45: 125894.7077 | AD45: 0.002290411983 | AF45: 0 | AG45: 0 | AH45: 0 | AJ45: 0 | AK45: 0 | AL45: 0 | AN45: 0 | AO45: 0 | AP45: 0 | AR45: 19835 | AS45: 19835 | AT45: 0 | AV45: 0 | AW45: 0 | AX45: 0 | AZ45: 0 | BA45: 0 | BB45: 0 | BD45: 0 | BE45: 0 | BF45: 0 | BH45: 961333.29 | BI45: 961333.2942 | BJ45: -0.004160135984 | BL45: 0 | BM45: 0 | BN45: 0 | BP45: 961333.29 | BQ45: 961333.2942 | BR45: -0.004160135984 | BV45: 0 | BX45: 107052.4 | BY45: 107052.4002 | BZ45: 0 | CB45: 5812.56 | CC45: 5812.56 | CD45: 0 | CF45: 1014450.56 | CH45: 1014451 | CI45: 0.05525374619 | CJ45: 1034342.87 | CL45: 1034343 | CM45: 0.0196089497
A46: 2226 | B46: Eastling Primary School | D46: Eastling Primary School | E46: 0 | F46: 1 | H46: 347170.42 | I46: 347170.4199 | J46: 7.595960051e-05 | L46: 25690.31 | M46: 25690.30505 | N46: 0.004947222151 | P46: 5803.8 | Q46: 5803.796447 | R46: 0.003552609802 | T46: 29236.52 | U46: 29236.52288 | V46: -0.002876177448 | X46: 6283.12 | Y46: 6283.123155 | Z46: -0.003155220327 | AB46: 125894.71 | AC46: 125894.7077 | AD46: 0.002290411983 | AF46: 33860.2 | AG46: 33860.20134 | AH46: -0.001344690943 | AJ46: 0 | AK46: 0 | AL46: 0 | AN46: 0 | AO46: 0 | AP46: 0 | AR46: 12974 | AS46: 12974 | AT46: 0 | AV46: 0 | AW46: 0 | AX46: 0 | AZ46: 0 | BA46: 0 | BB46: 0 | BD46: 0 | BE46: 0 | BF46: 0 | BH46: 586913.08 | BI46: 586913.0765 | BJ46: 0.003490114701 | BL46: 0 | BM46: 0 | BN46: 0 | BP46: 586913.08 | BQ46: 586913.0765 | BR46: 0.003490114701 | BV46: 0 | BX46: 59713.72 | BY46: 59713.72331 | BZ46: 0 | CB46: 2920.32 | CC46: 2920.32 | CD46: 0 | CF46: 617312.86 | CH46: 617313 | CI46: 0.05179605755 | CJ46: 629399.64 | CL46: 629400 | CM46: 0.01957966662
A47: 2227 | B47: Ethelbert Road Primary School | D47: Ethelbert Road Primary School | E47: 0 | F47: 1 | H47: 701017.19 | I47: 701017.1941 | J47: -0.004077389371 | L47: 26398.5 | M47: 26398.50092 | N47: -0.00091840186 | P47: 6023.28 | Q47: 6023.278221 | R47: 0.001778922497 | T47: 49037.46 | U47: 49037.46186 | V47: -0.001860162665 | X47: 0 | Y47: 0 | Z47: 0 | AB47: 125894.71 | AC47: 125894.7077 | AD47: 0.002290411983 | AF47: 0 | AG47: 0 | AH47: 0 | AJ47: 0 | AK47: 0 | AL47: 0 | AN47: 0 | AO47: 0 | AP47: 0 | AR47: 11477 | AS47: 11477 | AT47: 0 | AV47: 0 | AW47: 0 | AX47: 0 | AZ47: 0 | BA47: 0 | BB47: 0 | BD47: 12268.86 | BE47: 12268.85721 | BF47: 0.00278661937 | BH47: 932117 | BI47: 932117 | BJ47: 0 | BL47: 0 | BM47: 0 | BN47: 0 | BP47: 932117 | BQ47: 932117 | BR47: 0 | BV47: 0 | BX47: 93655.41 | BY47: 93655.40588 | BZ47: 0 | CB47: 5896.8 | CC47: 5896.8 | CD47: 0 | CF47: 969590.69 | CH47: 969591 | CI47: 0.04020277497 | CJ47: 988752.96 | CL47: 988753 | CM47: 0.01976325701
A48: 2228 | B48: Davington Primary School | D48: Davington Primary School | E48: 0 | F48: 1 | H48: 1365314.44 | I48: 1365314.44 | J48: 0.0001064180396 | L48: 188841.5 | M48: 188841.5013 | N48: -0.001337273017 | P48: 7353.85 | Q48: 7353.849154 | R48: 0.000846293492 | T48: 122742.33 | U48: 122742.3344 | V48: -0.004419703662 | X48: 0 | Y48: 0 | Z48: 0 | AB48: 125894.71 | AC48: 125894.7077 | AD48: 0.002290411983 | AF48: 0 | AG48: 0 | AH48: 0 | AJ48: 0 | AK48: 0 | AL48: 0 | AN48: 0 | AO48: 0 | AP48: 0 | AR48: 39424 | AS48: 39424 | AT48: 0 | AV48: 0 | AW48: 0 | AX48: 0 | AZ48: 0 | BA48: 0 | BB48: 0 | BD48: 0 | BE48: 0 | BF48: 0 | BH48: 1849570.83 | BI48: 1849570.833 | BJ48: -0.002513853135 | BL48: 0 | BM48: 0 | BN48: 0 | BP48: 1849570.83 | BQ48: 1849570.833 | BR48: -0.002513853135 | BV48: 0 | BX48: 286761.9 | BY48: 286761.8956 | BZ48: 0 | CB48: 11484.72 | CC48: 11484.72 | CD48: 0 | CF48: 1948716.95 | CH48: 1948717 | CI48: 0.05360493134 | CJ48: 1986902.81 | CL48: 1986903 | CM48: 0.01959538557
A49: 2231 | B49: Lower Halstow Primary School | D49: Lower Halstow Primary School | E49: 0 | F49: 1 | H49: 620900.94 | I49: 620900.9433 | J49: -0.003325687721 | L49: 36665.72 | M49: 36665.71638 | N49: 0.003624566649 | P49: 3400.81 | Q49: 3400.811035 | R49: -0.001034672261 | T49: 58047.46 | U49: 58047.46489 | V49: -0.004893659381 | X49: 780.74 | Y49: 780.743114 | Z49: -0.003113962296 | AB49: 125894.71 | AC49: 125894.7077 | AD49: 0.002290411983 | AF49: 0 | AG49: 0 | AH49: 0 | AJ49: 0 | AK49: 0 | AL49: 0 | AN49: 0 | AO49: 0 | AP49: 0 | AR49: 20833 | AS49: 20833 | AT49: 0 | AV49: 0 | AW49: 0 | AX49: 0 | AZ49: 0 | BA49: 0 | BB49: 0 | BD49: 0 | BE49: 0 | BF49: 0 | BH49: 866523.39 | BI49: 866523.3865 | BJ49: 0.003546996973 | BL49: 0 | BM49: 0 | BN49: 0 | BP49: 866523.39 | BQ49: 866523.3865 | BR49: 0.003546996973 | BV49: 0 | BX49: 96624.99 | BY49: 96624.98687 | BZ49: 0 | CB49: 5222.88 | CC49: 5222.88 | CD49: 0 | CF49: 912841.75 | CH49: 912842 | CI49: 0.05345310268 | CJ49: 930681.93 | CL49: 930682 | CM49: 0.01954356273
A50: 2239 | B50: Rodmersham School | D50: Rodmersham School | E50: 0 | F50: 1 | H50: 377214.01 | I50: 377214.014 | J50: -0.003955928492 | L50: 11473.13 | M50: 11473.12685 | N50: 0.003149242921 | P50: 1302.26 | Q50: 1302.259084 | R50: 0.0009162766873 | T50: 28951.16 | U50: 28951.15673 | V50: 0.003268165812 | X50: 0 | Y50: 0 | Z50: 0 | AB50: 125894.71 | AC50: 125894.7077 | AD50: 0.002290411983 | AF50: 0 | AG50: 0 | AH50: 0 | AJ50: 0 | AK50: 0 | AL50: 0 | AN50: 0 | AO50: 0 | AP50: 0 | AR50: 5863 | AS50: 5863 | AT50: 0 | AV50: 0 | AW50: 0 | AX50: 0 | AZ50: 8100 | BA50: 8100 | BB50: 0 | BD50: 0 | BE50: 0 | BF50: 0 | BH50: 558798.26 | BI50: 558798.2643 | BJ50: -0.004331831005 | BL50: 0 | BM50: 0 | BN50: 0 | BP50: 558798.26 | BQ50: 558798.2643 | BR50: -0.004331831005 | BV50: 0 | BX50: 47319.1 | BY50: 47319.10275 | BZ50: 0 | CB50: 3173.04 | CC50: 3173.04 | CD50: 0 | CF50: 588329.35 | CH50: 588329 | CI50: 0.05284748997 | CJ50: 599816.68 | CL50: 599817 | CM50: 0.019525339
A51: 2245 | B51: Rose Street Primary School | D51: Rose Street Primary School | E51: 0 | F51: 1 | H51: 1301889.07 | I51: 1301889.075 | J51: -0.004715151386 | L51: 493482.72 | M51: 493482.7226 | N51: -0.002564479189 | P51: 10721.87 | Q51: 10721.87296 | R51: -0.002955018053 | T51: 149586.74 | U51: 149586.7439 | V51: -0.003908005136 | X51: 8069.78 | Y51: 8069.78147 | Z51: -0.001469874647 | AB51: 125894.71 | AC51: 125894.7077 | AD51: 0.002290411983 | AF51: 0 | AG51: 0 | AH51: 0 | AJ51: 0 | AK51: 0 | AL51: 0 | AN51: 0 | AO51: 0 | AP51: 0 | AR51: 79872 | AS51: 79872 | AT51: 0 | AV51: 0 | AW51: 0 | AX51: 0 | AZ51: 0 | BA51: 0 | BB51: 0 | BD51: 0 | BE51: 0 | BF51: 0 | BH51: 2169516.9 | BI51: 2169516.903 | BJ51: -0.003322116565 | BL51: 0 | BM51: 0 | BN51: 0 | BP51: 2169516.9 | BQ51: 2169516.903 | BR51: -0.003322116565 | BV51: 0 | BX51: 548911.48 | BY51: 548911.4775 | BZ51: 0 | CB51: 10951.2 | CC51: 10951.2 | CD51: 0 | CF51: 2288813.48 | CH51: 2288813 | CI51: 0.05498762259 | CJ51: 2332992.31 | CL51: 2332992 | CM51: 0.0193020665
A52: 2254 | B52: Canterbury Road Primary School | D52: Canterbury Road Primary School | E52: 0 | F52: 1 | H52: 691002.66 | I52: 691002.6627 | J52: -0.002733426518 | L52: 134825.36 | M52: 134825.3569 | N52: 0.003145674069 | P52: 11941.17 | Q52: 11941.17324 | R52: -0.003243744492 | T52: 78384.21 | U52: 78384.20544 | V52: 0.004555569976 | X52: 1468.54 | Y52: 1468.540619 | Z52: -0.0006191195457 | AB52: 125894.71 | AC52: 125894.7077 | AD52: 0.002290411983 | AF52: 0 | AG52: 0 | AH52: 0 | AJ52: 0 | AK52: 0 | AL52: 0 | AN52: 0 | AO52: 0 | AP52: 0 | AR52: 29952 | AS52: 29952 | AT52: 0 | AV52: 0 | AW52: 0 | AX52: 0 | AZ52: 0 | BA52: 0 | BB52: 0 | BD52: 0 | BE52: 0 | BF52: 0 | BH52: 1073468.65 | BI52: 1073468.647 | BJ52: 0.003395365551 | BL52: 0 | BM52: 0 | BN52: 0 | BP52: 1073468.65 | BQ52: 1073468.647 | BR52: 0.003395365551 | BV52: 0 | BX52: 200528.62 | BY52: 200528.6161 | BZ52: 0 | CB52: 5812.56 | CC52: 5812.56 | CD52: 0 | CF52: 1131066.12 | CH52: 1131066 | CI52: 0.05365547804 | CJ52: 1153088.4 | CL52: 1153088 | CM52: 0.01947037367
A53: 2258 | B53: Blean Primary School | D53: Blean Primary School | E53: 0 | F53: 1 | H53: 1435416.16 | I53: 1435416.159 | J53: 0.0006986791268 | L53: 57085.28 | M53: 57085.27499 | N53: 0.005014369868 | P53: 26518.62 | Q53: 26518.61717 | R53: 0.002829896493 | T53: 85788.68 | U53: 85788.67915 | V53: 0.0008548697369 | X53: 0 | Y53: 0 | Z53: 0 | AB53: 125894.71 | AC53: 125894.7077 | AD53: 0.002290411983 | AF53: 0 | AG53: 0 | AH53: 0 | AJ53: 0 | AK53: 0 | AL53: 0 | AN53: 0 | AO53: 0 | AP53: 0 | AR53: 37632 | AS53: 37632 | AT53: 0 | AV53: 0 | AW53: 0 | AX53: 0 | AZ53: 0 | BA53: 0 | BB53: 0 | BD53: 154416.56 | BE53: 154416.5617 | BF53: -0.001688227261 | BH53: 1922752 | BI53: 1922752 | BJ53: 0 | BL53: 0 | BM53: 0 | BN53: 0 | BP53: 1922752 | BQ53: 1922752 | BR53: 0 | BV53: 0 | BX53: 316654.88 | BY53: 316654.8751 | BZ53: 0 | CB53: 12074.4 | CC53: 12074.4 | CD53: 0 | CF53: 1992377.6 | CH53: 1992378 | CI53: 0.03621143028 | CJ53: 2002151.33 | CL53: 2002151 | CM53: 0.004905561074
A54: 2263 | B54: Herne Bay Infant School | D54: Herne Bay Infant School | E54: 0 | F54: 1 | H54: 887955.11 | I54: 887955.1125 | J54: -0.002498026472 | L54: 161562.81 | M54: 161562.805 | N54: 0.004997768294 | P54: 13081.21 | Q54: 13081.2064 | R54: 0.003595220587 | T54: 98910.58 | U54: 98910.57977 | V54: 0.0002271272824 | X54: 0 | Y54: 0 | Z54: 0 | AB54: 125894.71 | AC54: 125894.7077 | AD54: 0.002290411983 | AF54: 0 | AG54: 0 | AH54: 0 | AJ54: 0 | AK54: 0 | AL54: 0 | AN54: 0 | AO54: 0 | AP54: 0 | AR54: 15968 | AS54: 15968 | AT54: 0 | AV54: 0 | AW54: 0 | AX54: 0 | AZ54: 0 | BA54: 0 | BB54: 0 | BD54: 0 | BE54: 0 | BF54: 0 | BH54: 1303372.41 | BI54: 1303372.411 | BJ54: -0.001387498342 | BL54: 0 | BM54: 0 | BN54: 0 | BP54: 1303372.41 | BQ54: 1303372.411 | BR54: -0.001387498342 | BV54: 0 | BX54: 236185.65 | BY54: 236185.6538 | BZ54: 0 | CB54: 7469.28 | CC54: 7469.28 | CD54: 0 | CF54: 1375873.22 | CH54: 1375873 | CI54: 0.05562555105 | CJ54: 1403071.32 | CL54: 1403071 | CM54: 0.01976788239
A55: 2265 | B55: Hoath Primary School | D55: Hoath Primary School | E55: 0 | F55: 1 | H55: 343832.24 | I55: 343832.2428 | J55: -0.002809386177 | L55: 29708.12 | M55: 29708.11628 | N55: 0.003720958295 | P55: 667.7 | Q55: 667.6958908 | R55: 0.004109175047 | T55: 33519.62 | U55: 33519.62101 | V55: -0.001011180531 | X55: 762.15 | Y55: 762.1539922 | Z55: -0.003992201283 | AB55: 125894.71 | AC55: 125894.7077 | AD55: 0.002290411983 | AF55: 518.99 | AG55: 518.9926058 | AH55: -0.002605763604 | AJ55: 0 | AK55: 0 | AL55: 0 | AN55: 0 | AO55: 0 | AP55: 0 | AR55: 14346 | AS55: 14346 | AT55: 0 | AV55: 0 | AW55: 0 | AX55: 0 | AZ55: 0 | BA55: 0 | BB55: 0 | BD55: 0 | BE55: 0 | BF55: 0 | BH55: 549249.53 | BI55: 549249.5303 | BJ55: -0.0002979862038 | BL55: 0 | BM55: 0 | BN55: 0 | BP55: 549249.53 | BQ55: 549249.5303 | BR55: -0.0002979862038 | BV55: 0 | BX55: 62406.43 | BY55: 62406.42775 | BZ55: 0 | CB55: 2892.24 | CC55: 2892.24 | CD55: 0 | CF55: 578853.3 | CH55: 578853 | CI55: 0.05389857991 | CJ55: 590143.45 | CL55: 590143 | CM55: 0.01950433728
A56: 2268 | B56: Westmeads Community Infant School | D56: Westmeads Community Infant School | E56: 0 | F56: 1 | H56: 500726.57 | I56: 500726.5672 | J56: 0.002801864815 | L56: 35275.05 | M56: 35275.05375 | N56: -0.003747208837 | P56: 6985.21 | Q56: 6985.207655 | R56: 0.002344846957 | T56: 45523.36 | U56: 45523.35728 | V56: 0.002721296274 | X56: 0 | Y56: 0 | Z56: 0 | AB56: 125894.71 | AC56: 125894.7077 | AD56: 0.002290411983 | AF56: 0 | AG56: 0 | AH56: 0 | AJ56: 0 | AK56: 0 | AL56: 0 | AN56: 0 | AO56: 0 | AP56: 0 | AR56: 19711 | AS56: 19711 | AT56: 0 | AV56: 0 | AW56: 0 | AX56: 0 | AZ56: 0 | BA56: 0 | BB56: 0 | BD56: 0 | BE56: 0 | BF56: 0 | BH56: 734115.89 | BI56: 734115.8936 | BJ56: -0.003588788677 | BL56: 0 | BM56: 0 | BN56: 0 | BP56: 734115.89 | BQ56: 734115.8936 | BR56: -0.003588788677 | BV56: 0 | BX56: 82517.78 | BY56: 82517.77831 | BZ56: 0 | CB56: 4212 | CC56: 4212 | CD56: 0 | CF56: 774075.35 | CH56: 774075 | CI56: 0.05443208186 | CJ56: 789162.64 | CL56: 789163 | CM56: 0.01949072529
A57: 2269 | B57: Whitstable Junior School | D57: Whitstable Junior School | E57: 0 | F57: 1 | H57: 771118.91 | I57: 771118.9135 | J57: -0.003485128167 | L57: 102269.61 | M57: 102269.6062 | N57: 0.003819873964 | P57: 572.94 | Q57: 572.9388801 | R57: 0.001119937122 | T57: 74292.82 | U57: 74292.81972 | V57: 0.0002790620347 | X57: 0 | Y57: 0 | Z57: 0 | AB57: 125894.71 | AC57: 125894.7077 | AD57: 0.002290411983 | AF57: 0 | AG57: 0 | AH57: 0 | AJ57: 0 | AK57: 0 | AL57: 0 | AN57: 0 | AO57: 0 | AP57: 0 | AR57: 3866 | AS57: 3866 | AT57: 0 | AV57: 0 | AW57: 0 | AX57: 0 | AZ57: 0 | BA57: 0 | BB57: 0 | BD57: 0 | BE57: 0 | BF57: 0 | BH57: 1078014.99 | BI57: 1078014.986 | BJ57: 0.004024156835 | BL57: 0 | BM57: 0 | BN57: 0 | BP57: 1078014.99 | BQ57: 1078014.986 | BR57: 0.004024156835 | BV57: 0 | BX57: 152513.25 | BY57: 152513.2453 | BZ57: 0 | CB57: 6486.48 | CC57: 6486.48 | CD57: 0 | CF57: 1139774.71 | CH57: 1139775 | CI57: 0.05729022771 | CJ57: 1162492.88 | CL57: 1162493 | CM57: 0.01993215835
A58: 2270 | B58: Aldington Primary School | D58: Aldington Primary School | E58: 0 | F58: 1 | H58: 637591.83 | I58: 637591.8289 | J58: 0.001101041096 | L58: 25729.7 | M58: 25729.69786 | N58: 0.002135766688 | P58: 644.72 | Q58: 644.7195113 | R58: 0.0004887122551 | T58: 63720.53 | U58: 63720.52846 | V58: 0.001543177124 | X58: 0 | Y58: 0 | Z58: 0 | AB58: 125894.71 | AC58: 125894.7077 | AD58: 0.002290411983 | AF58: 0 | AG58: 0 | AH58: 0 | AJ58: 0 | AK58: 0 | AL58: 0 | AN58: 0 | AO58: 0 | AP58: 0 | AR58: 29952 | AS58: 29952 | AT58: 0 | AV58: 0 | AW58: 0 | AX58: 0 | AZ58: 0 | BA58: 0 | BB58: 0 | BD58: 0 | BE58: 0 | BF58: 0 | BH58: 883533.48 | BI58: 883533.4824 | BJ58: -0.002440890763 | BL58: 0 | BM58: 0 | BN58: 0 | BP58: 883533.48 | BQ58: 883533.4824 | BR58: -0.002440890763 | BV58: 0 | BX58: 87189.63 | BY58: 87189.6273 | BZ58: 0 | CB58: 5363.28 | CC58: 5363.28 | CD58: 0 | CF58: 930510.49 | CH58: 930510 | CI58: 0.05316947065 | CJ58: 948521.66 | CL58: 948522 | CM58: 0.01935622456
A59: 2275 | B59: Victoria Road Primary School | D59: Victoria Road Primary School | E59: 0 | F59: 1 | H59: 704355.37 | I59: 704355.3712 | J59: -0.001192043535 | L59: 79328.28 | M59: 79328.27658 | N59: 0.003419956178 | P59: 13300.2 | Q59: 13300.19557 | R59: 0.004429718701 | T59: 65582.02 | U59: 65582.02082 | V59: -0.0008226740756 | X59: 0 | Y59: 0 | Z59: 0 | AB59: 125894.71 | AC59: 125894.7077 | AD59: 0.002290411983 | AF59: 0 | AG59: 0 | AH59: 0 | AJ59: 0 | AK59: 0 | AL59: 0 | AN59: 0 | AO59: 0 | AP59: 0 | AR59: 15095 | AS59: 15095 | AT59: 0 | AV59: 0 | AW59: 0 | AX59: 0 | AZ59: 0 | BA59: 0 | BB59: 0 | BD59: 0 | BE59: 0 | BF59: 0 | BH59: 1003555.57 | BI59: 1003555.572 | BJ59: -0.001874630805 | BL59: 0 | BM59: 0 | BN59: 0 | BP59: 1003555.57 | BQ59: 1003555.572 | BR59: -0.001874630805 | BV59: 0 | BX59: 139253.63 | BY59: 139253.6259 | BZ59: 0 | CB59: 5924.88 | CC59: 5924.88 | CD59: 0 | CF59: 1059582.72 | CH59: 1059583 | CI59: 0.05582864536 | CJ59: 1080472.48 | CL59: 1080472 | CM59: 0.0197150818
A60: 2276 | B60: Willesborough Infant School | D60: Willesborough Infant School | E60: 0 | F60: 1 | H60: 1148332.93 | I60: 1148332.927 | J60: 0.002558943117 | L60: 83587.04 | M60: 83587.04443 | N60: -0.004434461531 | P60: 38590.69 | Q60: 38590.69059 | R60: -0.0005931464839 | T60: 99748.47 | U60: 99748.47022 | V60: -0.0002232922561 | X60: 0 | Y60: 0 | Z60: 0 | AB60: 125894.71 | AC60: 125894.7077 | AD60: 0.002290411983 | AF60: 0 | AG60: 0 | AH60: 0 | AJ60: 0 | AK60: 0 | AL60: 0 | AN60: 0 | AO60: 0 | AP60: 0 | AR60: 23079 | AS60: 23079 | AT60: 0 | AV60: 0 | AW60: 0 | AX60: 0 | AZ60: 0 | BA60: 0 | BB60: 0 | BD60: 11942.16 | BE60: 11942.1596 | BF60: 0.0004015450795 | BH60: 1531175 | BI60: 1531175 | BJ60: 0 | BL60: 4632.73 | BM60: 4632.731547 | BN60: -0.001546598487 | BP60: 1535807.73 | BQ60: 1535807.732 | BR60: -0.001546598505 | BV60: 0 | BX60: 220960.54 | BY60: 220960.5425 | BZ60: 0 | CB60: 9659.52 | CC60: 9659.52 | CD60: 0 | CF60: 1600920.92 | CH60: 1600921 | CI60: 0.04239670573 | CJ60: 1632477.76 | CL60: 1632478 | CM60: 0.01971167945
A61: 2278 | B61: Bethersden Primary School | D61: Bethersden Primary School | E61: 0 | F61: 1 | H61: 450653.91 | I61: 450653.9105 | J61: -0.0004783216864 | L61: 44820.42 | M61: 44820.41946 | N61: 0.0005412698156 | P61: 2702.17 | Q61: 2702.172435 | R61: -0.002435019728 | T61: 29566.78 | U61: 29566.7802 | V61: -0.000197017649 | X61: 6413.25 | Y61: 6413.247008 | Z61: 0.002992452639 | AB61: 125894.71 | AC61: 125894.7077 | AD61: 0.002290411983 | AF61: 10941.72 | AG61: 10941.72445 | AH61: -0.004451996199 | AJ61: 0 | AK61: 0 | AL61: 0 | AN61: 0 | AO61: 0 | AP61: 0 | AR61: 10978 | AS61: 10978 | AT61: 0 | AV61: 0 | AW61: 0 | AX61: 0 | AZ61: 0 | BA61: 0 | BB61: 0 | BD61: 0 | BE61: 0 | BF61: 0 | BH61: 681970.96 | BI61: 681970.9617 | BJ61: -0.001738220803 | BL61: 0 | BM61: 0 | BN61: 0 | BP61: 681970.96 | BQ61: 681970.9617 | BR61: -0.001738220803 | BV61: 0 | BX61: 67574.59 | BY61: 67574.59241 | BZ61: 0 | CB61: 3790.8 | CC61: 3790.8 | CD61: 0 | CF61: 719984.04 | CH61: 719984 | CI61: 0.05574002471 | CJ61: 734164.16 | CL61: 734164 | CM61: 0.01969504768
A62: 2279 | B62: Brook Community Primary School | D62: Brook Community Primary School | E62: 0 | F62: 1 | H62: 250363.28 | I62: 250363.2836 | J62: -0.003599067597 | L62: 16631.85 | M62: 16631.8455 | N62: 0.004501183106 | P62: 1258.36 | Q62: 1258.364614 | R62: -0.004614347425 | T62: 10173.16 | U62: 10173.16099 | V62: -0.0009921388646 | X62: 2323.64 | Y62: 2323.64022 | Z62: -0.0002201258585 | AB62: 125894.71 | AC62: 125894.7077 | AD62: 0.002290411983 | AF62: 55300.07 | AG62: 55300.06682 | AH62: 0.003175046222 | AJ62: 0 | AK62: 0 | AL62: 0 | AN62: 0 | AO62: 0 | AP62: 0 | AR62: 8608 | AS62: 8608 | AT62: 0 | AV62: 0 | AW62: 0 | AX62: 0 | AZ62: 0 | BA62: 0 | BB62: 0 | BD62: 0 | BE62: 0 | BF62: 0 | BH62: 470553.07 | BI62: 470553.0695 | BJ62: 0.0005409616861 | BL62: 0 | BM62: 0 | BN62: 0 | BP62: 470553.07 | BQ62: 470553.0695 | BR62: 0.0005409616278 | BV62: 0 | BX62: 30351.2 | BY62: 30351.20061 | BZ62: 0 | CB62: 2106 | CC62: 2106 | CD62: 0 | CF62: 494768.63 | CH62: 494769 | CI62: 0.05146191176 | CJ62: 504491.84 | CL62: 504492 | CM62: 0.01965203412
A63: 2280 | B63: Challock Primary School | D63: Challock Primary School | E63: 0 | F63: 1 | H63: 691002.66 | I63: 691002.6627 | J63: -0.002733426518 | L63: 27347.72 | M63: 27347.72283 | N63: -0.002832248349 | P63: 1946.46 | Q63: 1946.454979 | R63: 0.005020708314 | T63: 48502.93 | U63: 48502.93376 | V63: -0.00375566943 | X63: 539.08 | Y63: 539.0845311 | Z63: -0.004531069208 | AB63: 125894.71 | AC63: 125894.7077 | AD63: 0.002290411983 | AF63: 0 | AG63: 0 | AH63: 0 | AJ63: 0 | AK63: 0 | AL63: 0 | AN63: 0 | AO63: 0 | AP63: 0 | AR63: 19711 | AS63: 19711 | AT63: 0 | AV63: 0 | AW63: 0 | AX63: 0 | AZ63: 0 | BA63: 0 | BB63: 0 | BD63: 12254.43 | BE63: 12254.43346 | BF63: -0.003458706773 | BH63: 927199 | BI63: 927199 | BJ63: 0 | BL63: 1323.32 | BM63: 1323.319096 | BN63: 0.0009042143868 | BP63: 928522.32 | BQ63: 928522.3191 | BR63: 0.000904214452 | BV63: 0 | BX63: 90830.07 | BY63: 90830.06742 | BZ63: 0 | CB63: 5812.56 | CC63: 5812.56 | CD63: 0 | CF63: 964272.38 | CH63: 964272 | CI63: 0.03850210185 | CJ63: 983163.61 | CL63: 983164 | CM63: 0.01959117609
A64: 2282 | B64: Great Chart Primary School | D64: Great Chart Primary School | E64: 0 | F64: 1 | H64: 1408710.74 | I64: 1408710.742 | J64: -0.002384087071 | L64: 101251.65 | M64: 101251.6539 | N64: -0.00386594153 | P64: 17532.41 | Q64: 17532.41466 | R64: -0.004664914199 | T64: 79898.88 | U64: 79898.87608 | V64: 0.003918962626 | X64: 0 | Y64: 0 | Z64: 0 | AB64: 125894.71 | AC64: 125894.7077 | AD64: 0.002290411983 | AF64: 0 | AG64: 0 | AH64: 0 | AJ64: 0 | AK64: 0 | AL64: 0 | AN64: 0 | AO64: 0 | AP64: 0 | AR64: 38656 | AS64: 38656 | AT64: 0 | AV64: 0 | AW64: 0 | AX64: 0 | AZ64: 0 | BA64: 0 | BB64: 0 | BD64: 116759.61 | BE64: 116759.6053 | BF64: 0.004705568179 | BH64: 1888704 | BI64: 1888704 | BJ64: 0 | BL64: 211.78 | BM64: 211.7797 | BN64: 0.0003000001609 | BP64: 1888915.78 | BQ64: 1888915.78 | BR64: 0.0003000001889 | BV64: 0 | BX64: 287727.48 | BY64: 287727.4796 | BZ64: 0 | CB64: 11849.76 | CC64: 11849.76 | CD64: 0 | CF64: 1960133.61 | CH64: 1960134 | CI64: 0.03770302047 | CJ64: 1969062.64 | CL64: 1969063 | CM64: 0.004555317022
A65: 2285 | B65: Mersham Primary School | D65: Mersham Primary School | E65: 0 | F65: 1 | H65: 590857.35 | I65: 590857.3493 | J65: 0.0007062004879 | L65: 40881.29 | M65: 40881.28574 | N65: 0.00425862633 | P65: 8255.51 | Q65: 8255.50501 | R65: 0.0049904523 | T65: 49838.49 | U65: 49838.4896 | V65: 0.0003993238424 | X65: 353.19 | Y65: 353.1933135 | Z65: -0.003313459127 | AB65: 125894.71 | AC65: 125894.7077 | AD65: 0.002290411983 | AF65: 0 | AG65: 0 | AH65: 0 | AJ65: 0 | AK65: 0 | AL65: 0 | AN65: 0 | AO65: 0 | AP65: 0 | AR65: 7859 | AS65: 7859 | AT65: 0 | AV65: 0 | AW65: 0 | AX65: 0 | AZ65: 0 | BA65: 0 | BB65: 0 | BD65: 0 | BE65: 0 | BF65: 0 | BH65: 823939.53 | BI65: 823939.5307 | BJ65: -0.0006684440887 | BL65: 0 | BM65: 0 | BN65: 0 | BP65: 823939.53 | BQ65: 823939.5307 | BR65: -0.0006684440887 | BV65: 0 | BX65: 93237.34 | BY65: 93237.33561 | BZ65: 0 | CB65: 4970.16 | CC65: 4970.16 | CD65: 0 | CF65: 869421.92 | CH65: 869422 | CI65: 0.05520112537 | CJ65: 886653.18 | CL65: 886653 | CM65: 0.01981921505
A66: 2289 | B66: Smeeth Community Primary School | D66: Smeeth Community Primary School | E66: 0 | F66: =IF(E66=D66,0,1) -> 1 | H66: 410595.79 | I66: 410595.7851 | J66: =H66-I66 -> 0.004897529143 | L66: 20437.62 | M66: 20437.61906 | N66: =L66-M66 -> 0.0009378133691 | P66: 0 | Q66: 0 | R66: =P66-Q66 -> 0 | T66: 21735.52 | U66: 21735.52364 | V66: =T66-U66 -> -0.003635315337 | X66: 0 | Y66: 0 | Z66: =X66-Y66 -> 0 | AB66: 125894.71 | AC66: 125894.7077 | AD66: =AB66-AC66 -> 0.002290411983 | AF66: 0 | AG66: 0 | AH66: =AF66-AG66 -> 0 | AJ66: 0 | AK66: 0 | AL66: =AJ66-AK66 -> 0 | AN66: 0 | AO66: 0 | AP66: =AN66-AO66 -> 0 | AR66: 14845 | AS66: 14845 | AT66: =AR66-AS66 -> 0 | AV66: 0 | AW66: 0 | AX66: =AV66-AW66 -> 0 | AZ66: 0 | BA66: 0 | BB66: =AZ66-BA66 -> 0 | BD66: 0 | BE66: 0 | BF66: =BD66-BE66 -> 0 | BH66: 593508.64 | BI66: 593508.6355 | BJ66: =BH66-BI66 -> 0.004490439198 | BL66: 0 | BM66: 0 | BN66: =BL66-BM66 -> 0 | BP66: 593508.64 | BQ66: 593508.6355 | BR66: =BP66-BQ66 -> 0.004490439198 | BV66: =BT66-BU66 -> 0 | BX66: 41628.35 | BY66: 41628.346 | BZ66: =ROUND(BX66-BY66,0) -> 0 | CB66: 3453.84 | CC66: 3453.84 | CD66: 0 | CF66: 626203.05 | CH66: =ROUND(CF66-CG66,0) -> 626203 | CI66: 0.05508667024 | CJ66: 638430.21 | CL66: =ROUND(CJ66-CK66,0) -> 638430 | CM66: 0.01952587104
A67: 2298 | B67: Hawkinge Primary School | D67: Hawkinge Primary School | E67: 0 | F67: 1 | H67: 1335270.85 | I67: 1335270.846 | J67: 0.004138306249 | L67: 126469.57 | M67: 126469.5695 | N67: 0.0004767351493 | P67: 7296.56 | Q67: 7296.56381 | R67: -0.003810324588 | T67: 146886.86 | U67: 146886.8616 | V67: -0.001601092808 | X67: 0 | Y67: 0 | Z67: 0 | AB67: 125894.71 | AC67: 125894.7077 | AD67: 0.002290411983 | AF67: 0 | AG67: 0 | AH67: 0 | AJ67: 0 | AK67: 0 | AL67: 0 | AN67: 0 | AO67: 0 | AP67: 0 | AR67: 8243 | AS67: 8243 | AT67: 0 | AV67: 0 | AW67: 0 | AX67: 0 | AZ67: 0 | BA67: 0 | BB67: 0 | BD67: 11781.45 | BE67: 11781.45149 | BF67: -0.001494035863 | BH67: 1761843 | BI67: 1761843 | BJ67: 0 | BL67: 0 | BM67: 0 | BN67: 0 | BP67: 1761843 | BQ67: 1761843 | BR67: 0 | BV67: 0 | BX67: 264507.6 | BY67: 264507.5964 | BZ67: 0 | CB67: 11232 | CC67: 11232 | CD67: =IF(E67="Recoupment Academy",0,ROUND(CB67-CC67,0)) -> 0 | CF67: 1846218.28 | CH67: 1846218 | CI67: 0.04789035118 | CJ67: 1882977.79 | CL67: 1882978 | CM67: 0.01991070633
A68: 2300 | B68: Sellindge Primary School | D68: Sellindge Primary School | E68: 0 | F68: 1 | H68: 470682.97 | I68: 470682.9732 | J68: -0.003166247101 | L68: 23728.16 | M68: 23728.16366 | N68: -0.003660430466 | P68: 2637.2 | Q68: 2637.202169 | R68: -0.00216882253 | T68: 35149.83 | U68: 35149.82546 | V68: 0.004539230868 | X68: 5149.19 | Y68: 5149.186728 | Z68: 0.003272201086 | AB68: 125894.71 | AC68: 125894.7077 | AD68: 0.002290411983 | AF68: 6505.89 | AG68: 6505.890215 | AH68: -0.0002147004425 | AJ68: 0 | AK68: 0 | AL68: 0 | AN68: 0 | AO68: 0 | AP68: 0 | AR68: 17216 | AS68: 17216 | AT68: 0 | AV68: 0 | AW68: 0 | AX68: 0 | AZ68: 0 | BA68: 0 | BB68: 0 | BD68: 0 | BE68: 0 | BF68: 0 | BH68: 686963.95 | BI68: =I68+M68+Q68+U68+Y68+AC68+AG68+AK68+AO68+AS68+AW68+BA68+BE68 -> 686963.9491 | BJ68: 0.0008916433435 | BL68: 0 | BM68: 0 | BN68: 0 | BP68: 686963.95 | BQ68: 686963.9491 | BR68: 0.0008916433435 | BV68: 0 | BX68: 59081.98 | BY68: 59081.97712 | BZ68: 0 | CB68: 3959.28 | CC68: 3959.28 | CD68: 0 | CF68: 724089.21 | CH68: 724089 | CI68: =(CF68-BQ68)/BQ68 -> 0.05404251699 | CJ68: 738226.67 | CL68: 738227 | CM68: =(CJ68-CF68)/CF68 -> 0.01952447268
A69: 2312 | B69: River Primary School | D69: River Primary School | E69: 0 | F69: 1 | H69: 1368652.62 | I69: 1368652.617 | J69: 0.002991763875 | L69: 142365.01 | M69: 142365.0068 | N69: 0.003191552911 | P69: 3941.93 | Q69: 3941.933196 | R69: -0.003196405195 | T69: 114357.1 | U69: 114357.0982 | V69: 0.001777472033 | X69: 0 | Y69: 0 | Z69: 0 | AB69: 125894.71 | AC69: 125894.7077 | AD69: 0.002290411983 | AF69: 0 | AG69: 0 | AH69: 0 | AJ69: 0 | AK69: 0 | AL69: 0 | AN69: 0 | AO69: 0 | AP69: 0 | AR69: 40960 | AS69: 40960 | AT69: 0 | AV69: 0 | AW69: 0 | AX69: 0 | AZ69: 0 | BA69: 0 | BB69: 0 | BD69: 42228.64 | BE69: 42228.63705 | BF69: 0.002945204484 | BH69: 1838400 | BI69: 1838400 | BJ69: 0 | BL69: 843.09 | BM69: 843.0864543 | BN69: 0.003545718882 | BP69: 1839243.09 | BQ69: 1839243.086 | BR69: 0.003545718966 | BV69: 0 | BX69: 276753.12 | BY69: 276753.1205 | BZ69: 0 | CB69: 11512.8 | CC69: 11512.8 | CD69: 0 | CF69: 1908661.38 | CH69: 1908661 | CI69: 0.03774285958 | CJ69: 1930325.74 | CL69: 1930326 | CM69: 0.01135055187
A70: 2318 | B70: Langdon Primary School | D70: Langdon Primary School | E70: 0 | F70: 1 | H70: 280406.88 | I70: 280406.8776 | J70: 0.00236904429 | L70: 27426.28 | M70: 27426.28178 | N70: -0.001778358466 | P70: 2699.64 | Q70: 2699.635184 | R70: 0.004816092964 | T70: 23447.1 | U70: 23447.10145 | V70: -0.00145468166 | X70: 3680.65 | Y70: 3680.646109 | Z70: 0.003891320648 | AB70: 125894.71 | AC70: 125894.7077 | AD70: 0.002290411983 | AF70: 48646.32 | AG70: 48646.31547 | AH70: 0.004530989863 | AJ70: 0 | AK70: 0 | AL70: 0 | AN70: 0 | AO70: 0 | AP70: 0 | AR70: 4990 | AS70: 4990 | AT70: 0 | AV70: 0 | AW70: 0 | AX70: 0 | AZ70: 0 | BA70: 0 | BB70: 0 | BD70: 0 | BE70: 0 | BF70: 0 | BH70: 517191.57 | BI70: 517191.5653 | BJ70: 0.004664819629 | BL70: 0 | BM70: 0 | BN70: 0 | BP70: 517191.57 | BQ70: 517191.5653 | BR70: 0.004664819629 | BV70: 0 | BX70: 53028.22 | BY70: 53028.22172 | BZ70: 0 | CB70: 2358.72 | CC70: 2358.72 | CD70: 0 | CF70: 543822.92 | CH70: 543823 | CI70: 0.05149224475 | CJ70: 554599.58 | CL70: 554600 | CM70: 0.01981648732
A71: 2320 | B71: Eythorne Elvington Community Primary School | D71: Eythorne Elvington Community Primary School | E71: 0 | F71: 1 | H71: 340494.07 | I71: 340494.0657 | J71: 0.004305268056 | L71: 74450 | M71: 74449.99583 | N71: 0.004171494671 | P71: 668.81 | Q71: 668.8135605 | R71: -0.003560545112 | T71: 23893.05 | U71: 23893.04867 | V71: 0.001329982315 | X71: 4535.75 | Y71: 4535.74571 | Z71: 0.004290314317 | AB71: 125894.71 | AC71: 125894.7077 | AD71: 0.002290411983 | AF71: 35338.81 | AG71: 35338.81276 | AH71: -0.002757122864 | AJ71: 0 | AK71: 0 | AL71: 0 | AN71: 0 | AO71: 0 | AP71: 0 | AR71: 17340 | AS71: 17340 | AT71: 0 | AV71: 0 | AW71: 0 | AX71: 0 | AZ71: 0 | BA71: 0 | BB71: 0 | BD71: 0 | BE71: 0 | BF71: 0 | BH71: 622615.19 | BI71: 622615.1899 | BJ71: 6.980332546e-05 | BL71: 0 | BM71: 0 | BN71: 0 | BP71: 622615.19 | BQ71: 622615.1899 | BR71: 6.980320904e-05 | BV71: 0 | BX71: 82415.51 | BY71: 82415.51286 | BZ71: 0 | CB71: 2864.16 | CC71: 2864.16 | CD71: 0 | CF71: 656899.57 | CH71: 656900 | CI71: 0.05506511988 | CJ71: 669690.77 | CL71: 669691 | CM71: 0.01947207851
A72: 2321 | B72: Lydden Primary School | D72: Lydden Primary School | E72: 0 | F72: 1 | H72: 253701.46 | I72: 253701.4607 | J72: -0.000713721849 | L72: 18928.41 | M72: 18928.41299 | N72: -0.002989612916 | P72: 656.89 | Q72: 656.8917502 | R72: -0.001750196717 | T72: 22051.24 | U72: 22051.24394 | V72: -0.003943335476 | X72: 5985.7 | Y72: 5985.697207 | Z72: 0.002792955794 | AB72: 125894.71 | AC72: 125894.7077 | AD72: 0.002290411983 | AF72: 20187.48 | AG72: 20187.48161 | AH72: -0.001613932985 | AJ72: 0 | AK72: 0 | AL72: 0 | AN72: 0 | AO72: 0 | AP72: 0 | AR72: 8483 | AS72: 8483 | AT72: 0 | AV72: 0 | AW72: 0 | AX72: 0 | AZ72: 0 | BA72: 0 | BB72: 0 | BD72: 0 | BE72: 0 | BF72: 0 | BH72: 455888.9 | BI72: 455888.8959 | BJ72: 0.004072567797 | BL72: 0 | BM72: 0 | BN72: 0 | BP72: 455888.9 | BQ72: 455888.8959 | BR72: 0.004072567797 | BV72: 0 | BX72: 43924.38 | BY72: 43924.37819 | BZ72: 0 | CB72: 2134.08 | CC72: 2134.08 | CD72: 0 | CF72: 479616.81 | CH72: 479617 | CI72: 0.05204758064 | CJ72: 489039.49 | CL72: 489039 | CM72: 0.01964626719
A73: 2322 | B73: Preston Primary School | D73: Preston Primary School | E73: 0 | F73: 1 | H73: 383890.37 | I73: 383890.3682 | J73: 0.001814763003 | L73: 18024.97 | M73: 18024.97089 | N73: -0.0008877649016 | P73: 0 | Q73: 0 | R73: 0 | T73: 31278.18 | U73: 31278.18312 | V73: -0.00311508041 | X73: 0 | Y73: 0 | Z73: 0 | AB73: 125894.71 | AC73: 125894.7077 | AD73: 0.002290411983 | AF73: 25727.84 | AG73: 25727.83858 | AH73: 0.001423684604 | AJ73: 0 | AK73: 0 | AL73: 0 | AN73: 0 | AO73: 0 | AP73: 0 | AR73: 17964 | AS73: 17964 | AT73: 0 | AV73: 0 | AW73: 0 | AX73: 0 | AZ73: 0 | BA73: 0 | BB73: 0 | BD73: 0 | BE73: 0 | BF73: 0 | BH73: 602780.07 | BI73: 602780.0685 | BJ73: 0.001526014181 | BL73: 0 | BM73: 0 | BN73: 0 | BP73: 602780.07 | BQ73: 602780.0685 | BR73: 0.001526014181 | BV73: 0 | BX73: 51590.98 | BY73: 51590.98351 | BZ73: 0 | CB73: 3229.2 | CC73: 3229.2 | CD73: 0 | CF73: 634308.25 | CH73: 634308 | CI73: 0.05230461851 | CJ73: 646635.13 | CL73: 646635 | CM73: 0.01943357981
A74: 2326 | B74: Wingham Primary School | D74: Wingham Primary School | E74: 0 | F74: 1 | H74: 650944.54 | I74: 650944.5374 | J74: 0.002642424311 | L74: 48336.57 | M74: 48336.57188 | N74: -0.001880229349 | P74: 3949.33 | Q74: 3949.328943 | R74: 0.001056509622 | T74: 46868.63 | U74: 46868.62584 | V74: 0.004163662015 | X74: 0 | Y74: 0 | Z74: 0 | AB74: 125894.71 | AC74: 125894.7077 | AD74: 0.002290411983 | AF74: 0 | AG74: 0 | AH74: 0 | AJ74: 0 | AK74: 0 | AL74: 0 | AN74: 0 | AO74: 0 | AP74: 0 | AR74: 31232 | AS74: 31232 | AT74: 0 | AV74: 0 | AW74: 0 | AX74: 0 | AZ74: 0 | BA74: 0 | BB74: 0 | BD74: 0 | BE74: 0 | BF74: 0 | BH74: 907225.77 | BI74: 907225.7717 | BJ74: -0.001727221534 | BL74: 0 | BM74: 0 | BN74: 0 | BP74: 907225.77 | BQ74: 907225.7717 | BR74: -0.001727221534 | BV74: 0 | BX74: 90111.85 | BY74: 90111.85135 | BZ74: 0 | CB74: 5475.6 | CC74: 5475.6 | CD74: 0 | CF74: 956727.75 | CH74: 956728 | CI74: 0.05456412264 | CJ74: 975237.66 | CL74: 975238 | CM74: 0.01934710266
A75: 2328 | B75: St Mildred's Primary Infant School | D75: St Mildred's Primary Infant School | E75: 0 | F75: 1 | H75: 901307.82 | I75: 901307.821 | J75: -0.0009566433728 | L75: 95045.41 | M75: 95045.40881 | N75: 0.001190531097 | P75: 21392.2 | Q75: 21392.19844 | R75: 0.001556093794 | T75: 95304.15 | U75: 95304.1493 | V75: 0.0006970063987 | X75: 0 | Y75: 0 | Z75: 0 | AB75: 125894.71 | AC75: 125894.7077 | AD75: 0.002290411983 | AF75: 0 | AG75: 0 | AH75: 0 | AJ75: 0 | AK75: 0 | AL75: 0 | AN75: 0 | AO75: 0 | AP75: 0 | AR75: 24950 | AS75: 24950 | AT75: 0 | AV75: 0 | AW75: 0 | AX75: 0 | AZ75: 0 | BA75: 0 | BB75: 0 | BD75: 0 | BE75: 0 | BF75: 0 | BH75: 1263894.29 | BI75: 1263894.285 | BJ75: 0.004777399823 | BL75: 0 | BM75: 0 | BN75: 0 | BP75: 1263894.29 | BQ75: 1263894.285 | BR75: 0.004777399823 | BV75: 0 | BX75: 190424.37 | BY75: 190424.3677 | BZ75: 0 | CB75: 7581.6 | CC75: 7581.6 | CD75: 0 | CF75: 1332304.69 | CH75: 1332305 | CI75: 0.05412668257 | CJ75: 1358451.78 | CL75: 1358452 | CM75: 0.0196254582
A76: 2329 | B76: Callis Grange Nursery and Infant School | D76: Callis Grange Nursery and Infant School | E76: 0 | F76: 1 | H76: 861249.7 | I76: 861249.6956 | J76: 0.004419207457 | L76: 113565.88 | M76: 113565.8782 | N76: 0.001821743936 | P76: 10389.06 | Q76: 10389.05826 | R76: 0.001743947681 | T76: 63292.02 | U76: 63292.02281 | V76: -0.002806775199 | X76: 0 | Y76: 0 | Z76: 0 | AB76: 125894.71 | AC76: 125894.7077 | AD76: 0.002290411983 | AF76: 0 | AG76: 0 | AH76: 0 | AJ76: 0 | AK76: 0 | AL76: 0 | AN76: 0 | AO76: 0 | AP76: 0 | AR76: 43520 | AS76: 43520 | AT76: 0 | AV76: 0 | AW76: 0 | AX76: 0 | AZ76: 0 | BA76: 0 | BB76: 0 | BD76: 0 | BE76: 0 | BF76: 0 | BH76: 1217911.36 | BI76: 1217911.363 | BJ76: -0.002531463979 | BL76: 0 | BM76: 0 | BN76: 0 | BP76: 1217911.36 | BQ76: 1217911.363 | BR76: -0.002531463979 | BV76: 0 | BX76: 164985.36 | BY76: 164985.3616 | BZ76: 0 | CB76: 7244.64 | CC76: 7244.64 | CD76: 0 | CF76: 1283786.31 | CH76: 1283786 | CI76: 0.05408845791 | CJ76: 1308591.64 | CL76: 1308592 | CM76: 0.0193220085
A77: 2337 | B77: St Crispin's Community Primary Infant School | D77: St Crispin's Community Primary Infant School | E77: 0 | F77: 1 | H77: 844558.81 | I77: 844558.81 | J77: -7.521361113e-06 | L77: 108348.04 | M77: 108348.0408 | N77: -0.0008273756976 | P77: 4100.17 | Q77: 4100.171368 | R77: -0.001368415352 | T77: 97749.07 | U77: 97749.07211 | V77: -0.002108703877 | X77: 0 | Y77: 0 | Z77: 0 | AB77: 125894.71 | AC77: 125894.7077 | AD77: 0.002290411983 | AF77: 0 | AG77: 0 | AH77: 0 | AJ77: 0 | AK77: 0 | AL77: 0 | AN77: 0 | AO77: 0 | AP77: 0 | AR77: 20085 | AS77: 20085 | AT77: 0 | AV77: 0 | AW77: 0 | AX77: 0 | AZ77: 0 | BA77: 0 | BB77: 0 | BD77: 0 | BE77: 0 | BF77: 0 | BH77: 1200735.8 | BI77: 1200735.802 | BJ77: -0.00202160445 | BL77: 0 | BM77: 0 | BN77: 0 | BP77: 1200735.8 | BQ77: 1200735.802 | BR77: -0.00202160445 | BV77: 0 | BX77: 185575.16 | BY77: 185575.1649 | BZ77: 0 | CB77: 7104.24 | CC77: 7104.24 | CD77: 0 | CF77: 1266871.6 | CH77: 1266872 | CI77: 0.05507939204 | CJ77: 1291807.33 | CL77: 1291807 | CM77: 0.01968291814
A78: 2340 | B78: Ellington Infant School | D78: Ellington Infant School | E78: 0 | F78: 1 | H78: 417272.14 | I78: 417272.1393 | J78: 0.0006682206877 | L78: 105692.33 | M78: 105692.3284 | N78: 0.001554486385 | P78: 6567.78 | Q78: 6567.780224 | R78: -0.000224006284 | T78: 56816.53 | U78: 56816.52864 | V78: 0.001359158203 | X78: 0 | Y78: 0 | Z78: 0 | AB78: 125894.71 | AC78: 125894.7077 | AD78: 0.002290411983 | AF78: 0 | AG78: 0 | AH78: 0 | AJ78: 0 | AK78: 0 | AL78: 0 | AN78: 0 | AO78: 0 | AP78: 0 | AR78: 27648 | AS78: 27648 | AT78: 0 | AV78: 0 | AW78: 0 | AX78: 0 | AZ78: 0 | BA78: 0 | BB78: 0 | BD78: 0 | BE78: 0 | BF78: 0 | BH78: 739891.48 | BI78: 739891.4844 | BJ78: -0.004351729061 | BL78: 0 | BM78: 0 | BN78: 0 | BP78: 739891.48 | BQ78: 739891.4844 | BR78: -0.004351729061 | BV78: 0 | BX78: 149175.56 | BY78: 149175.5615 | BZ78: 0 | CB78: 3510 | CC78: 3510 | CD78: 0 | CF78: 779849.53 | CH78: 779850 | CI78: 0.05400527847 | CJ78: 794893.56 | CL78: 794894 | CM78: 0.01929093937
A79: 2345 | B79: Priory Infant School | D79: Priory Infant School | E79: 0 | F79: 1 | H79: 530770.16 | I79: 530770.1612 | J79: -0.001230023219 | L79: 105967.75 | M79: 105967.7538 | N79: -0.003783691252 | P79: 10884.35 | Q79: 10884.35057 | R79: -0.0005682594674 | T79: 59223.37 | U79: 59223.36681 | V79: 0.003189050505 | X79: 0 | Y79: 0 | Z79: 0 | AB79: 125894.71 | AC79: 125894.7077 | AD79: 0.002290411983 | AF79: 0 | AG79: 0 | AH79: 0 | AJ79: 0 | AK79: 0 | AL79: 0 | AN79: 0 | AO79: 0 | AP79: 0 | AR79: 30976 | AS79: 30976 | AT79: 0 | AV79: 0 | AW79: 0 | AX79: 0 | AZ79: 0 | BA79: 0 | BB79: 0 | BD79: 0 | BE79: 0 | BF79: 0 | BH79: 863716.34 | BI79: 863716.3401 | BJ79: -0.0001025114907 | BL79: 0 | BM79: 0 | BN79: 0 | BP79: 863716.34 | BQ79: 863716.3401 | BR79: -0.0001025114907 | BV79: 0 | BX79: 158062.81 | BY79: 158062.8129 | BZ79: 0 | CB79: 4464.72 | CC79: 4464.72 | CD79: 0 | CF79: 909786.93 | CH79: 909787 | CI79: 0.05333995405 | CJ79: 927363.15 | CL79: 927363 | CM79: 0.01931905089
A80: 2431 | B80: Shears Green Junior School | D80: Shears Green Junior School | E80: 0 | F80: 1 | H80: 1615677.72 | I80: 1615677.723 | J80: -0.003492649645 | L80: 223620.26 | M80: 223620.2627 | N80: -0.002665708947 | P80: 12550.09 | Q80: 12550.08975 | R80: 0.0002462416905 | T80: 86264.41 | U80: 86264.413 | V80: -0.002997159521 | X80: 0 | Y80: 0 | Z80: 0 | AB80: 125894.71 | AC80: 125894.7077 | AD80: 0.002290411983 | AF80: 0 | AG80: 0 | AH80: 0 | AJ80: 0 | AK80: 0 | AL80: 0 | AN80: 0 | AO80: 0 | AP80: 0 | AR80: 21760 | AS80: 21760 | AT80: 0 | AV80: 0 | AW80: 0 | AX80: 0 | AZ80: 0 | BA80: 0 | BB80: 0 | BD80: 57848.8 | BE80: 57848.80338 | BF80: -0.003381135539 | BH80: 2143616 | BI80: 2143616 | BJ80: 0 | BL80: 2150.08 | BM80: 2150.07836 | BN80: 0.001639758162 | BP80: 2145766.08 | BQ80: 2145766.078 | BR80: 0.001639757771 | BV80: 0 | BX80: 328068.95 | BY80: 328068.9526 | BZ80: 0 | CB80: 13590.72 | CC80: 13590.72 | CD80: 0 | CF80: 2231934.21 | CH80: 2231934 | CI80: 0.04015728113 | CJ80: 2248050.78 | CL80: 2248051 | CM80: 0.007220898326
A81: 2434 | B81: West Minster Primary School | D81: West Minster Primary School | E81: 0 | F81: 1 | H81: 1542237.83 | I81: 1542237.827 | J81: 0.003029743675 | L81: 545821.82 | M81: 545821.8223 | N81: -0.002282296773 | P81: 5180.38 | Q81: 5180.381029 | R81: -0.001028578376 | T81: 129184.85 | U81: 129184.8515 | V81: -0.001525157189 | X81: 0 | Y81: 0 | Z81: 0 | AB81: 125894.71 | AC81: 125894.7077 | AD81: 0.002290411983 | AF81: 0 | AG81: 0 | AH81: 0 | AJ81: 0 | AK81: 0 | AL81: 0 | AN81: 0 | AO81: 0 | AP81: 0 | AR81: 80384 | AS81: 80384 | AT81: 0 | AV81: 0 | AW81: 0 | AX81: 0 | AZ81: 0 | BA81: 0 | BB81: 0 | BD81: 0 | BE81: 0 | BF81: 0 | BH81: 2428703.59 | BI81: 2428703.59 | BJ81: 0.0004841233604 | BL81: 0 | BM81: 0 | BN81: 0 | BP81: 2428703.59 | BQ81: 2428703.59 | BR81: 0.0004841233604 | BV81: 0 | BX81: 561616.17 | BY81: 561616.1662 | BZ81: 0 | CB81: 12972.96 | CC81: 12972.96 | CD81: 0 | CF81: 2565413.66 | CH81: 2565414 | CI81: 0.05628931874 | CJ81: 2615114.25 | CL81: 2615114 | CM81: 0.01937332399
A82: 2454 | B82: Aycliffe Community Primary School | D82: Aycliffe Community Primary School | E82: 0 | F82: 1 | H82: 297097.76 | I82: 297097.7632 | J82: -0.003204226901 | L82: 102126.91 | M82: 102126.9055 | N82: 0.004475942216 | P82: 3254.54 | Q82: 3254.539592 | R82: 0.0004076792297 | T82: 26523.46 | U82: 26523.45653 | V82: 0.003469227144 | X82: 2472.35 | Y82: 2472.353194 | Z82: -0.003194213916 | AB82: 125894.71 | AC82: 125894.7077 | AD82: 0.002290411983 | AF82: 23486.26 | AG82: 23486.26368 | AH82: -0.003675068594 | AJ82: 0 | AK82: 0 | AL82: 0 | AN82: 0 | AO82: 0 | AP82: 0 | AR82: 22829 | AS82: 22829 | AT82: 0 | AV82: 0 | AW82: 0 | AX82: 0 | AZ82: 0 | BA82: 0 | BB82: 0 | BD82: 0 | BE82: 0 | BF82: 0 | BH82: 603684.99 | BI82: 603684.9894 | BJ82: 0.0005697510205 | BL82: 0 | BM82: 0 | BN82: 0 | BP82: 603684.99 | BQ82: 603684.9894 | BR82: 0.0005697510205 | BV82: 0 | BX82: 112948.03 | BY82: 112948.0346 | BZ82: 0 | CB82: 2499.12 | CC82: 2499.12 | CD82: 0 | CF82: 636539.53 | CH82: 636540 | CI82: 0.05442331869 | CJ82: 648813.74 | CL82: 648814 | CM82: 0.01928271446
A83: 2459 | B83: Riverhead Infants' School | D83: Riverhead Infants' School | E83: 0 | F83: 1 | H83: 884616.94 | I83: 884616.9354 | J83: 0.004616627819 | L83: 11655.08 | M83: 11655.08272 | N83: -0.002718639918 | P83: 15287.01 | Q83: 15287.00923 | R83: 0.0007749164706 | T83: 75587.08 | U83: 75587.08309 | V83: -0.003093670413 | X83: 0 | Y83: 0 | Z83: 0 | AB83: 125894.71 | AC83: 125894.7077 | AD83: 0.002290411983 | AF83: 0 | AG83: 0 | AH83: 0 | AJ83: 41961.64 | AK83: 41961.63884 | AL83: 0.001156485661 | AN83: 0 | AO83: 0 | AP83: 0 | AR83: 38912 | AS83: 38912 | AT83: 0 | AV83: 0 | AW83: 0 | AX83: 0 | AZ83: 0 | BA83: 0 | BB83: 0 | BD83: 6757.54 | BE83: 6757.543026 | BF83: -0.003026131643 | BH83: 1200672 | BI83: 1200672 | BJ83: 0 | BL83: 1982.08 | BM83: 1982.075765 | BN83: 0.004235088983 | BP83: 1202654.08 | BQ83: 1202654.076 | BR83: 0.004235089291 | BV83: 0 | BX83: 117018.32 | BY83: 117018.3217 | BZ83: 0 | CB83: 7721.73 | CC83: 7721.73324 | CD83: 0 | CF83: 1256267.27 | CH83: 1256267 | CI83: 0.04457906502 | CJ83: 1280614.38 | CL83: 1280614 | CM83: 0.01938051765
A84: 2465 | B84: Claremont Primary School | D84: Claremont Primary School | E84: 0 | F84: 1 | H84: 1462121.58 | I84: 1462121.576 | J84: 0.003781445324 | L84: 15584.36 | M84: 15584.3584 | N84: 0.00159541315 | P84: 30487 | Q84: 30487.00366 | R84: -0.003660323287 | T84: 77590.32 | U84: 77590.31763 | V84: 0.002373602299 | X84: 0 | Y84: 0 | Z84: 0 | AB84: 125894.71 | AC84: 125894.7077 | AD84: 0.002290411983 | AF84: 0 | AG84: 0 | AH84: 0 | AJ84: 0 | AK84: 0 | AL84: 0 | AN84: 0 | AO84: 0 | AP84: 0 | AR84: 38656 | AS84: 38656 | AT84: 0 | AV84: 0 | AW84: 0 | AX84: 0 | AZ84: 0 | BA84: 0 | BB84: 0 | BD84: 208514.04 | BE84: 208514.0364 | BF84: 0.00361945061 | BH84: 1958848 | BI84: 1958848 | BJ84: 0 | BL84: 0 | BM84: 0 | BN84: 0 | BP84: 1958848 | BQ84: 1958848 | BR84: 0 | BV84: 0 | BX84: 333047.23 | BY84: 333047.2325 | BZ84: 0 | CB84: 12299.04 | CC84: 12299.04 | CD84: 0 | CF84: 2029768.96 | CH84: 2029769 | CI84: 0.0362054432 | CJ84: 2039724.52 | CL84: 2039725 | CM84: 0.004904774975
A85: 2471 | B85: Whitfield Aspen School | D85: Whitfield Aspen School | E85: 0 | F85: 1 | H85: 1926128.2 | I85: 1926128.195 | J85: 0.004844506504 | L85: 339683.72 | M85: 339683.7218 | N85: -0.001752896409 | P85: 9234.8 | Q85: 9234.799147 | R85: 0.0008534469343 | T85: 276729.35 | U85: 276729.3475 | V85: 0.002489681356 | X85: 6927.16 | Y85: 6927.15877 | Z85: 0.001230434768 | AB85: 125894.71 | AC85: 125894.7077 | AD85: 0.002290411983 | AF85: 0 | AG85: 0 | AH85: 0 | AJ85: 0 | AK85: 0 | AL85: 0 | AN85: 33000 | AO85: 33000 | AP85: 0 | AR85: 65024 | AS85: 65024 | AT85: 0 | AV85: 0 | AW85: 0 | AX85: 0 | AZ85: 0 | BA85: 0 | BB85: 0 | BD85: 0 | BE85: 0 | BF85: 0 | BH85: 2782621.93 | BI85: 2782621.93 | BJ85: -4.441477358e-05 | BL85: 0 | BM85: 0 | BN85: 0 | BP85: 2782621.93 | BQ85: 2782621.93 | BR85: -4.441477358e-05 | BV85: 0 | BX85: 539180.08 | BY85: 539180.0768 | BZ85: 0 | CB85: 16202.16 | CC85: 16202.16 | CD85: 0 | CF85: 2932272.43 | CH85: 2932272 | CI85: 0.05378039264 | CJ85: 2988957.4 | CL85: 2988957 | CM85: 0.01933141321
A86: 2474 | B86: St Paul's Infant School | D86: St Paul's Infant School | E86: 0 | F86: 1 | H86: 867926.05 | I86: 867926.0498 | J86: 0.0001898990013 | L86: 101797.35 | M86: 101797.3544 | N86: -0.004384312051 | P86: 48572.38 | Q86: 48572.38352 | R86: -0.003523317595 | T86: 107593.13 | U86: 107593.1342 | V86: -0.004159128017 | X86: 0 | Y86: 0 | Z86: 0 | AB86: 125894.71 | AC86: 125894.7077 | AD86: 0.002290411983 | AF86: 0 | AG86: 0 | AH86: 0 | AJ86: 0 | AK86: 0 | AL86: 0 | AN86: 0 | AO86: 0 | AP86: 0 | AR86: 11477 | AS86: 11477 | AT86: 0 | AV86: 0 | AW86: 0 | AX86: 0 | AZ86: 0 | BA86: 0 | BB86: 0 | BD86: 0 | BE86: 0 | BF86: 0 | BH86: 1263260.63 | BI86: 1263260.63 | BJ86: 0.0004135530908 | BL86: 0 | BM86: 0 | BN86: 0 | BP86: 1263260.63 | BQ86: 1263260.63 | BR86: 0.0004135530908 | BV86: 0 | BX86: 230980.23 | BY86: 230980.2308 | BZ86: 0 | CB86: 7300.8 | CC86: 7300.8 | CD86: 0 | CF86: 1332093.06 | CH86: 1332093 | CI86: 0.05448790915 | CJ86: 1358505.38 | CL86: 1358505 | CM86: 0.01982768381
A87: 2482 | B87: Langton Green Primary School | D87: Langton Green Primary School | E87: 0 | F87: 1 | H87: 1371990.79 | I87: 1371990.794 | J87: -0.004122890299 | L87: 27382.01 | M87: 27382.01401 | N87: -0.004008199921 | P87: 7347.7 | Q87: 7347.702121 | R87: -0.002120790106 | T87: 63354.79 | U87: 63354.78552 | V87: 0.004478543306 | X87: 0 | Y87: 0 | Z87: 0 | AB87: 125894.71 | AC87: 125894.7077 | AD87: 0.002290411983 | AF87: 0 | AG87: 0 | AH87: 0 | AJ87: 0 | AK87: 0 | AL87: 0 | AN87: 0 | AO87: 0 | AP87: 0 | AR87: 39168 | AS87: 39168 | AT87: 0 | AV87: 0 | AW87: 0 | AX87: 0 | AZ87: 0 | BA87: 0 | BB87: 0 | BD87: 205854 | BE87: 205853.9965 | BF87: 0.003482925036 | BH87: 1840992 | BI87: 1840992 | BJ87: 0 | BL87: 0 | BM87: 0 | BN87: 0 | BP87: 1840992 | BQ87: 1840992 | BR87: 0 | BV87: 0 | BX87: 301033.18 | BY87: 301033.1796 | BZ87: 0 | CB87: 11540.88 | CC87: 11540.88 | CD87: 0 | CF87: 1907541.12 | CH87: 1907541 | CI87: 0.03614851124 | CJ87: 1916882.99 | CL87: 1916883 | CM87: 0.004897336106
A88: 2490 | B88: Bishops Down Primary School | D88: Bishops Down Primary School | E88: 0 | F88: 1 | H88: 684326.31 | I88: 684326.3085 | J88: 0.001495881937 | L88: 37020.75 | M88: 37020.7509 | N88: -0.0009045581392 | P88: 9197.84 | Q88: 9197.844125 | R88: -0.00412494543 | T88: 66537.32 | U88: 66537.31725 | V88: 0.00274903464 | X88: 0 | Y88: 0 | Z88: 0 | AB88: 125894.71 | AC88: 125894.7077 | AD88: 0.002290411983 | AF88: 0 | AG88: 0 | AH88: 0 | AJ88: 0 | AK88: 0 | AL88: 0 | AN88: 0 | AO88: 0 | AP88: 0 | AR88: 31232 | AS88: 31232 | AT88: 0 | AV88: 0 | AW88: 0 | AX88: 0 | AZ88: 0 | BA88: 0 | BB88: 0 | BD88: 0 | BE88: 0 | BF88: 0 | BH88: 954208.93 | BI88: 954208.9285 | BJ88: 0.00150582497 | BL88: 0 | BM88: 0 | BN88: 0 | BP88: 954208.93 | BQ88: 954208.9285 | BR88: 0.00150582497 | BV88: 0 | BX88: 107962.18 | BY88: 107962.1763 | BZ88: 0 | CB88: 5756.4 | CC88: 5756.4 | CD88: 0 | CF88: 1004697.49 | CH88: 1004697 | CI88: 0.0529114327 | CJ88: 1024166.8 | CL88: 1024167 | CM88: 0.01937828072
A89: 2509 | B89: Singlewell Primary School | D89: Singlewell Primary School | E89: 0 | F89: 1 | H89: 1311903.61 | I89: 1311903.606 | J89: 0.003940885887 | L89: 122234.84 | M89: 122234.8444 | N89: -0.00439792301 | P89: 22943.45 | Q89: 22943.44558 | R89: 0.004417471308 | T89: 114610.83 | U89: 114610.8317 | V89: -0.001737436571 | X89: 0 | Y89: 0 | Z89: 0 | AB89: 125894.71 | AC89: 125894.7077 | AD89: 0.002290411983 | AF89: 0 | AG89: 0 | AH89: 0 | AJ89: 0 | AK89: 0 | AL89: 0 | AN89: 0 | AO89: 0 | AP89: 0 | AR89: 51712 | AS89: 51712 | AT89: 0 | AV89: 0 | AW89: 0 | AX89: 0 | AZ89: 0 | BA89: 0 | BB89: 0 | BD89: 25324.56 | BE89: 25324.56451 | BF89: -0.00451340948 | BH89: 1774624 | BI89: 1774624 | BJ89: 0 | BL89: 0 | BM89: 0 | BN89: 0 | BP89: 1774624 | BQ89: 1774624 | BR89: 0 | BV89: 0 | BX89: 256714.73 | BY89: 256714.7318 | BZ89: 0 | CB89: 11035.44 | CC89: 11035.44 | CD89: 0 | CF89: 1843934.04 | CH89: 1843934 | CI89: 0.03905618317 | CJ89: 1879778.49 | CL89: 1879778 | CM89: 0.01943911725
A90: 2510 | B90: Cheriton Primary School | D90: Cheriton Primary School | E90: 0 | F90: 1 | H90: 1275183.66 | I90: 1275183.658 | J90: 0.002202082193 | L90: 133251.33 | M90: 133251.3349 | N90: -0.004905981419 | P90: 43852.9 | Q90: 43852.90298 | R90: -0.00298139856 | T90: 120816.5 | U90: 120816.4985 | V90: 0.001522658116 | X90: 0 | Y90: 0 | Z90: 0 | AB90: 125894.71 | AC90: 125894.7077 | AD90: 0.002290411983 | AF90: 0 | AG90: 0 | AH90: 0 | AJ90: 0 | AK90: 0 | AL90: 0 | AN90: 0 | AO90: 0 | AP90: 0 | AR90: 8909 | AS90: 8909 | AT90: 0 | AV90: 0 | AW90: 0 | AX90: 0 | AZ90: 0 | BA90: 0 | BB90: 0 | BD90: 0 | BE90: 0 | BF90: 0 | BH90: 1707908.1 | BI90: 1707908.102 | BJ90: -0.001872227527 | BL90: 0 | BM90: 0 | BN90: 0 | BP90: 1707908.1 | BQ90: 1707908.102 | BR90: -0.001872227527 | BV90: 0 | BX90: 261023.9 | BY90: 261023.9034 | BZ90: 0 | CB90: 10726.56 | CC90: 10726.56 | CD90: 0 | CF90: 1803039.12 | CH90: 1803039 | CI90: 0.05570031433 | CJ90: 1838921.73 | CL90: 1838922 | CM90: 0.01990118218
A91: 2514 | B91: Brookfield Infant School | D91: Brookfield Infant School | E91: 0 | F91: 1 | H91: 600871.88 | I91: 600871.8806 | J91: -0.0006377622485 | L91: 56627.85 | M91: 56627.85447 | N91: -0.004465386613 | P91: 7701.19 | Q91: 7701.19144 | R91: -0.001439806229 | T91: 55584.08 | U91: 55584.07869 | V91: 0.001306859514 | X91: 0 | Y91: 0 | Z91: 0 | AB91: 125894.71 | AC91: 125894.7077 | AD91: 0.002290411983 | AF91: 0 | AG91: 0 | AH91: 0 | AJ91: 0 | AK91: 0 | AL91: 0 | AN91: 0 | AO91: 0 | AP91: 0 | AR91: 20210 | AS91: 20210 | AT91: 0 | AV91: 0 | AW91: 0 | AX91: 0 | AZ91: 0 | BA91: 0 | BB91: 0 | BD91: 0 | BE91: 0 | BF91: 0 | BH91: 866889.71 | BI91: 866889.7129 | BJ91: -0.002945683664 | BL91: 0 | BM91: 0 | BN91: 0 | BP91: 866889.71 | BQ91: 866889.7129 | BR91: -0.002945683664 | BV91: 0 | BX91: 110870.45 | BY91: 110870.4493 | BZ91: 0 | CB91: 5054.4 | CC91: 5054.4 | CD91: 0 | CF91: 913772.55 | CH91: 913773 | CI91: 0.0540816627 | CJ91: 931643.8 | CL91: 931644 | CM91: 0.01955765688
A92: 2519 | B92: Vigo Village School | D92: Vigo Village School | E92: 0 | F92: 1 | H92: 480697.5 | I92: 480697.5045 | J92: -0.004510209779 | L92: 26875.53 | M92: 26875.52939 | N92: 0.0006125389773 | P92: 646.82 | Q92: 646.8192285 | R92: 0.0007714598441 | T92: 45089.82 | U92: 45089.81709 | V92: 0.00291082781 | X92: 3122.97 | Y92: 3122.972456 | Z92: -0.002455849151 | AB92: 125894.71 | AC92: 125894.7077 | AD92: 0.002290411983 | AF92: 4287.97 | AG92: 4287.973096 | AH92: -0.003096052549 | AJ92: 0 | AK92: 0 | AL92: 0 | AN92: 0 | AO92: 0 | AP92: 0 | AR92: 22081 | AS92: 22081 | AT92: 0 | AV92: 0 | AW92: 0 | AX92: 0 | AZ92: 0 | BA92: 0 | BB92: 0 | BD92: 0 | BE92: 0 | BF92: 0 | BH92: 708696.32 | BI92: 708696.3235 | BJ92: -0.003476872924 | BL92: 0 | BM92: 0 | BN92: 0 | BP92: 708696.32 | BQ92: 708696.3235 | BR92: -0.003476872924 | BV92: 0 | BX92: 69234.74 | BY92: 69234.7428 | BZ92: 0 | CB92: 4043.52 | CC92: 4043.52 | CD92: 0 | CF92: 746735.23 | CH92: 746735 | CI92: 0.05367447983 | CJ92: 761228.31 | CL92: 761228 | CM92: 0.01940859279
A93: 2520 | B93: Madginford Primary School | D93: Madginford Primary School | E93: 0 | F93: 1 | H93: 2119742.47 | I93: 2119742.468 | J93: 0.002194561064 | L93: 127660.17 | M93: 127660.1746 | N93: -0.004568192686 | P93: 22515.91 | Q93: 22515.90808 | R93: 0.001924244483 | T93: 130933.76 | U93: 130933.7627 | V93: -0.002745258491 | X93: 0 | Y93: 0 | Z93: 0 | AB93: 125894.71 | AC93: 125894.7077 | AD93: 0.002290411983 | AF93: 0 | AG93: 0 | AH93: 0 | AJ93: 0 | AK93: 0 | AL93: 0 | AN93: 0 | AO93: 0 | AP93: 0 | AR93: 58880 | AS93: 58880 | AT93: 0 | AV93: 0 | AW93: 0 | AX93: 0 | AZ93: 0 | BA93: 0 | BB93: 0 | BD93: 257092.98 | BE93: 257092.9791 | BF93: 0.0009042338352 | BH93: 2842720 | BI93: 2842720 | BJ93: 0 | BL93: 0 | BM93: 0 | BN93: 0 | BP93: 2842720 | BQ93: 2842720 | BR93: 0 | BV93: 0 | BX93: 518301.75 | BY93: 518301.7487 | BZ93: 0 | CB93: 17830.8 | CC93: 17830.8 | CD93: 0 | CF93: 2945539.2 | CH93: 2945539 | CI93: 0.03616930264 | CJ93: 2959972.5 | CL93: 2959973 | CM93: 0.004900053613
A94: 2524 | B94: Palmarsh Primary School | D94: Palmarsh Primary School | E94: 0 | F94: 1 | H94: 654282.71 | I94: 654282.7145 | J94: -0.004472229979 | L94: 83355.93 | M94: 83355.92618 | N94: 0.00381937428 | P94: 3347.6 | Q94: 3347.601513 | R94: -0.001512978529 | T94: 66561.36 | U94: 66561.35964 | V94: 0.0003579773329 | X94: 6729.26 | Y94: 6729.262077 | Z94: -0.002077484496 | AB94: 125894.71 | AC94: 125894.7077 | AD94: 0.002290411983 | AF94: 0 | AG94: 0 | AH94: 0 | AJ94: 0 | AK94: 0 | AL94: 0 | AN94: 0 | AO94: 0 | AP94: 0 | AR94: 16218 | AS94: 16218 | AT94: 0 | AV94: 0 | AW94: 0 | AX94: 0 | AZ94: 0 | BA94: 0 | BB94: 0 | BD94: 0 | BE94: 0 | BF94: 0 | BH94: 956389.57 | BI94: 956389.5716 | BJ94: -0.001594929374 | BL94: 0 | BM94: 0 | BN94: 0 | BP94: 956389.57 | BQ94: 956389.5716 | BR94: -0.001594929374 | BV94: 0 | BX94: 132891.71 | BY94: 132891.7072 | BZ94: 0 | CB94: 5503.68 | CC94: 5503.68 | CD94: 0 | CF94: 1009736.32 | CH94: 1009736 | CI94: 0.05577930792 | CJ94: 1029606.69 | CL94: 1029607 | CM94: 0.01967877119
A95: 2525 | B95: Painters Ash Primary School | D95: Painters Ash Primary School | E95: 0 | F95: 1 | H95: 1338609.02 | I95: 1338609.023 | J95: -0.002976348158 | L95: 175318 | M95: 175318.0022 | N95: -0.002238770452 | P95: 28010.68 | Q95: 28010.6827 | R95: -0.002697163756 | T95: 109446.04 | U95: 109446.0408 | V95: -0.0007850434049 | X95: 0 | Y95: 0 | Z95: 0 | AB95: 125894.71 | AC95: 125894.7077 | AD95: 0.002290411983 | AF95: 0 | AG95: 0 | AH95: 0 | AJ95: 0 | AK95: 0 | AL95: 0 | AN95: 0 | AO95: 0 | AP95: 0 | AR95: 41728 | AS95: 41728 | AT95: 0 | AV95: 0 | AW95: 0 | AX95: 0 | AZ95: 0 | BA95: 0 | BB95: 0 | BD95: 0 | BE95: 0 | BF95: 0 | BH95: 1819006.46 | BI95: 1819006.456 | BJ95: 0.003593086032 | BL95: 0 | BM95: 0 | BN95: 0 | BP95: 1819006.46 | BQ95: 1819006.456 | BR95: 0.003593086032 | BV95: 0 | BX95: 275405.79 | BY95: 275405.7883 | BZ95: 0 | CB95: 11260.08 | CC95: 11260.08 | CD95: 0 | CF95: 1918221.45 | CH95: 1918221 | CI95: 0.05454350821 | CJ95: 1955751.31 | CL95: 1955751 | CM95: 0.01956492562
A96: 2530 | B96: Tunbury Primary School | D96: Tunbury Primary School | E96: 0 | F96: 1 | H96: 1949495.44 | I96: 1949495.435 | J96: 0.005041926866 | L96: 81295.4 | M96: 81295.40105 | N96: -0.001045097641 | P96: 5810.72 | Q96: 5810.718089 | R96: 0.001911050591 | T96: 101809.84 | U96: 101809.842 | V96: -0.001987626703 | X96: 0 | Y96: 0 | Z96: 0 | AB96: 125894.71 | AC96: 125894.7077 | AD96: 0.002290411983 | AF96: 0 | AG96: 0 | AH96: 0 | AJ96: 0 | AK96: 0 | AL96: 0 | AN96: 0 | AO96: 0 | AP96: 0 | AR96: 46336 | AS96: 46336 | AT96: 0 | AV96: 0 | AW96: 0 | AX96: 0 | AZ96: 0 | BA96: 0 | BB96: 0 | BD96: 295949.9 | BE96: 295949.8962 | BF96: 0.003789334791 | BH96: 2606592 | BI96: 2606592 | BJ96: 0 | BL96: 0 | BM96: 0 | BN96: 0 | BP96: 2606592 | BQ96: 2606592 | BR96: 0 | BV96: 0 | BX96: 472046.35 | BY96: 472046.3471 | BZ96: 0 | CB96: 16398.72 | CC96: 16398.72 | CD96: 0 | CF96: 2701153.28 | CH96: 2701153 | CI96: 0.03627774504 | CJ96: 2714427.37 | CL96: 2714427 | CM96: 0.004914230562
A97: 2532 | B97: St Margaret's-at-Cliffe Primary School | D97: St Margaret's-at-Cliffe Primary School | E97: 0 | F97: 1 | H97: 644268.18 | I97: 644268.1831 | J97: -0.003128267243 | L97: 31562.09 | M97: 31562.09453 | N97: -0.004525164721 | P97: 4699.33 | Q97: 4699.326845 | R97: 0.003154842721 | T97: 33866.07 | U97: 33866.07448 | V97: -0.004477019611 | X97: 0 | Y97: 0 | Z97: 0 | AB97: 125894.71 | AC97: 125894.7077 | AD97: 0.002290411983 | AF97: 0 | AG97: 0 | AH97: 0 | AJ97: 0 | AK97: 0 | AL97: 0 | AN97: 0 | AO97: 0 | AP97: 0 | AR97: 18713 | AS97: 18713 | AT97: 0 | AV97: 0 | AW97: 0 | AX97: 0 | AZ97: 0 | BA97: 0 | BB97: 0 | BD97: 5821.61 | BE97: 5821.613315 | BF97: -0.003314803079 | BH97: 864825 | BI97: 864825 | BJ97: 0 | BL97: 3945.58 | BM97: 3945.578856 | BN97: 0.001143697225 | BP97: 868770.58 | BQ97: 868770.5789 | BR97: 0.001143697184 | BV97: 0 | BX97: 78405.68 | BY97: 78405.68259 | BZ97: 0 | CB97: 5419.44 | CC97: 5419.44 | CD97: 0 | CF97: 905745.17 | CH97: 905745 | CI97: 0.0425596723 | CJ97: 923485.82 | CL97: 923486 | CM97: 0.01958680056
A98: 2539 | B98: Stocks Green Primary School | D98: Stocks Green Primary School | E98: 0 | F98: 1 | H98: 721046.26 | I98: 721046.2568 | J98: 0.003234685282 | L98: 13022.18 | M98: 13022.18429 | N98: -0.004292839811 | P98: 4637.28 | Q98: 4637.276566 | R98: 0.003434095179 | T98: 38601.51 | U98: 38601.51027 | V98: -0.0002651855611 | X98: 0 | Y98: 0 | Z98: 0 | AB98: 125894.71 | AC98: 125894.7077 | AD98: 0.002290411983 | AF98: 0 | AG98: 0 | AH98: 0 | AJ98: 0 | AK98: 0 | AL98: 0 | AN98: 0 | AO98: 0 | AP98: 0 | AR98: 23204 | AS98: 23204 | AT98: 0 | AV98: 0 | AW98: 0 | AX98: 0 | AZ98: 0 | BA98: 0 | BB98: 0 | BD98: 43742.06 | BE98: 43742.0644 | BF98: -0.004401167069 | BH98: 970148 | BI98: 970148 | BJ98: 0 | BL98: 0 | BM98: 0 | BN98: 0 | BP98: 970148 | BQ98: 970148 | BR98: 0 | BV98: 0 | BX98: 102762.97 | BY98: 102762.9694 | BZ98: 0 | CB98: 6065.28 | CC98: 6065.28 | CD98: 0 | CF98: 1005418.89 | CH98: 1005419 | CI98: 0.03635619514 | CJ98: 1010032.31 | CL98: 1010032 | CM98: 0.004588555125
A99: 2545 | B99: Sandgate Primary School | D99: Sandgate Primary School | E99: 0 | F99: 1 | H99: 1398696.21 | I99: 1398696.211 | J99: -0.001040124334 | L99: 67097.76 | M99: 67097.76199 | N99: -0.001992072241 | P99: 6658 | Q99: 6657.998996 | R99: 0.001004273584 | T99: 82203.58 | U99: 82203.58036 | V99: -0.0003574908478 | X99: 0 | Y99: 0 | Z99: 0 | AB99: 125894.71 | AC99: 125894.7077 | AD99: 0.002290411983 | AF99: 0 | AG99: 0 | AH99: 0 | AJ99: 0 | AK99: 0 | AL99: 0 | AN99: 0 | AO99: 0 | AP99: 0 | AR99: 46592 | AS99: 46592 | AT99: 0 | AV99: 0 | AW99: 0 | AX99: 0 | AZ99: 0 | BA99: 0 | BB99: 0 | BD99: 156345.74 | BE99: 156345.7399 | BF99: 9.500180022e-05 | BH99: 1883488 | BI99: 1883488 | BJ99: 0 | BL99: 0 | BM99: 0 | BN99: 0 | BP99: 1883488 | BQ99: 1883488 | BR99: 0 | BV99: 0 | BX99: 299485.57 | BY99: 299485.571 | BZ99: 0 | CB99: 11765.52 | CC99: 11765.52 | CD99: 0 | CF99: 1951332.48 | CH99: 1951332 | CI99: 0.03602065954 | CJ99: 1960856.18 | CL99: 1960856 | CM99: 0.004880613682
A100: 2552 | B100: Sandling Primary School | D100: Sandling Primary School | E100: 0 | F100: 1 | H100: 1402034.39 | I100: 1402034.388 | J100: 0.001845221268 | L100: 32265.31 | M100: 32265.30732 | N100: 0.002681917809 | P100: 12013 | Q100: 12013.00057 | R100: -0.0005746280967 | T100: 106966.04 | U100: 106966.0404 | V100: -0.0003572106652 | X100: 0 | Y100: 0 | Z100: 0 | AB100: 125894.71 | AC100: 125894.7077 | AD100: 0.002290411983 | AF100: 0 | AG100: 0 | AH100: 0 | AJ100: 0 | AK100: 0 | AL100: 0 | AN100: 0 | AO100: 0 | AP100: 0 | AR100: 30720 | AS100: 30720 | AT100: 0 | AV100: 0 | AW100: 0 | AX100: 0 | AZ100: 0 | BA100: 0 | BB100: 0 | BD100: 162106.56 | BE100: 162106.5559 | BF100: 0.004114287643 | BH100: 1872000 | BI100: 1872000 | BJ100: 0 | BL100: 0 | BM100: 0 | BN100: 0 | BP100: 1872000 | BQ100: 1872000 | BR100: 0 | BV100: 0 | BX100: 310445.59 | BY100: 310445.5856 | BZ100: 0 | CB100: 11793.6 | CC100: 11793.6 | CD100: 0 | CF100: 1940006.4 | CH100: 1940006 | CI100: 0.03632820513 | CJ100: 1949552.83 | CL100: 1949553 | CM100: 0.004920823973
A101: 2559 | B101: Capel-le-Ferne Primary School | D101: Capel-le-Ferne Primary School | E101: 0 | F101: 1 | H101: 594195.53 | I101: 594195.5264 | J101: 0.003591546207 | L101: 71641.81 | M101: 71641.81322 | N101: -0.003216077326 | P101: 0 | Q101: 0 | R101: 0 | T101: 45603.91 | U101: 45603.90789 | V101: 0.002112702088 | X101: 0 | Y101: 0 | Z101: 0 | AB101: 125894.71 | AC101: 125894.7077 | AD101: 0.002290411983 | AF101: 0 | AG101: 0 | AH101: 0 | AJ101: 0 | AK101: 0 | AL101: 0 | AN101: 0 | AO101: 0 | AP101: 0 | AR101: 19336 | AS101: 19336 | AT101: 0 | AV101: 0 | AW101: 0 | AX101: 0 | AZ101: 0 | BA101: 0 | BB101: 0 | BD101: 0 | BE101: 0 | BF101: 0 | BH101: 856671.96 | BI101: 856671.9552 | BJ101: 0.004778582952 | BL101: 0 | BM101: 0 | BN101: 0 | BP101: 856671.96 | BQ101: 856671.9552 | BR101: 0.004778582952 | BV101: 0 | BX101: 105370.42 | BY101: 105370.4196 | BZ101: 0 | CB101: 4998.24 | CC101: 4998.24 | CD101: 0 | CF101: 903867.71 | CH101: 903868 | CI101: 0.05509198065 | CJ101: 921558.35 | CL101: 921558 | CM101: 0.0195721562
A102: 2562 | B102: Lunsford Primary School | D102: Lunsford Primary School | E102: 0 | F102: 1 | H102: 697679.02 | I102: 697679.017 | J102: 0.003037265036 | L102: 63060.28 | M102: 63060.28385 | N102: -0.003845717874 | P102: 4662.46 | Q102: 4662.463512 | R102: -0.003511871093 | T102: 62448.79 | U102: 62448.7864 | V102: 0.003597767653 | X102: 0 | Y102: 0 | Z102: 0 | AB102: 125894.71 | AC102: 125894.7077 | AD102: 0.002290411983 | AF102: 0 | AG102: 0 | AH102: 0 | AJ102: 0 | AK102: 0 | AL102: 0 | AN102: 0 | AO102: 0 | AP102: 0 | AR102: 19087 | AS102: 19087 | AT102: 0 | AV102: 0 | AW102: 0 | AX102: 0 | AZ102: 0 | BA102: 0 | BB102: 0 | BD102: 0 | BE102: 0 | BF102: 0 | BH102: 972832.26 | BI102: 972832.2584 | BJ102: 0.00156785571 | BL102: 0 | BM102: 0 | BN102: 0 | BP102: 972832.26 | BQ102: 972832.2584 | BR102: 0.00156785571 | BV102: 0 | BX102: 118296.23 | BY102: 118296.2322 | BZ102: 0 | CB102: 5868.72 | CC102: 5868.72 | CD102: 0 | CF102: 1026012.9 | CH102: 1026013 | CI102: 0.05466578756 | CJ102: 1046151.42 | CL102: 1046151 | CM102: 0.01962794035
A103: 2574 | B103: Downs View Infant School | D103: Downs View Infant School | E103: 0 | F103: 1 | H103: 851235.16 | I103: 851235.1642 | J103: -0.004236829816 | L103: 73687.64 | M103: 73687.64468 | N103: -0.004675675722 | P103: 10515.68 | Q103: 10515.68309 | R103: -0.00309049846 | T103: 71857.54 | U103: 71857.53935 | V103: 0.0006500510062 | X103: 0 | Y103: 0 | Z103: 0 | AB103: 125894.71 | AC103: 125894.7077 | AD103: 0.002290411983 | AF103: 0 | AG103: 0 | AH103: 0 | AJ103: 0 | AK103: 0 | AL103: 0 | AN103: 0 | AO103: 0 | AP103: 0 | AR103: 27648 | AS103: 27648 | AT103: 0 | AV103: 0 | AW103: 0 | AX103: 0 | AZ103: 0 | BA103: 0 | BB103: 0 | BD103: 0 | BE103: 0 | BF103: 0 | BH103: 1160838.74 | BI103: 1160838.739 | BJ103: 0.0009374588262 | BL103: 0 | BM103: 0 | BN103: 0 | BP103: 1160838.74 | BQ103: 1160838.739 | BR103: 0.0009374588262 | BV103: 0 | BX103: 145601.88 | BY103: 145601.8787 | BZ103: 0 | CB103: 7160.4 | CC103: 7160.4 | CD103: 0 | CF103: 1222873.53 | CH103: 1222874 | CI103: 0.05343962848 | CJ103: 1246778.04 | CL103: 1246778 | CM103: 0.01954781865
A104: 2578 | B104: Kingswood Primary School | D104: Kingswood Primary School | E104: 0 | F104: 1 | H104: 430624.85 | I104: 430624.8478 | J104: 0.002209603728 | L104: 19100.01 | M104: 19100.00903 | N104: 0.0009714791122 | P104: 2700.52 | Q104: 2700.51973 | R104: 0.0002698334952 | T104: 39604.3 | U104: 39604.29825 | V104: 0.001752979115 | X104: 1171.11 | Y104: 1171.114671 | Z104: -0.004670943433 | AB104: 125894.71 | AC104: 125894.7077 | AD104: 0.002290411983 | AF104: 8803.65 | AG104: 8803.65235 | AH104: -0.002349619645 | AJ104: 0 | AK104: 0 | AL104: 0 | AN104: 0 | AO104: 0 | AP104: 0 | AR104: 16093 | AS104: 16093 | AT104: 0 | AV104: 0 | AW104: 0 | AX104: 0 | AZ104: 0 | BA104: 0 | BB104: 0 | BD104: 0 | BE104: 0 | BF104: 0 | BH104: 643992.15 | BI104: 643992.1495 | BJ104: 0.0004737443523 | BL104: 0 | BM104: 0 | BN104: 0 | BP104: 643992.15 | BQ104: 643992.1495 | BR104: 0.0004737443523 | BV104: 0 | BX104: 61804.24 | BY104: 61804.23904 | BZ104: 0 | CB104: 3622.32 | CC104: 3622.32 | CD104: 0 | CF104: 678505.63 | CH104: 678506 | CI104: 0.05359301429 | CJ104: 691753.89 | CL104: 691754 | CM104: 0.01952564491
A105: 2586 | B105: Senacre Wood Primary School | D105: Senacre Wood Primary School | E105: 0 | F105: 1 | H105: 701017.19 | I105: 701017.1941 | J105: -0.004077389371 | L105: 133989 | M105: 133988.9968 | N105: 0.003248169145 | P105: 10648.56 | Q105: 10648.561 | R105: -0.001003188861 | T105: 53749.17 | U105: 53749.16945 | V105: 0.0005523908476 | X105: 1301.24 | Y105: 1301.238523 | Z105: 0.001476729513 | AB105: 125894.71 | AC105: 125894.7077 | AD105: 0.002290411983 | AF105: 0 | AG105: 0 | AH105: 0 | AJ105: 0 | AK105: 0 | AL105: 0 | AN105: 0 | AO105: 0 | AP105: 0 | AR105: 21332 | AS105: 21332 | AT105: 0 | AV105: 0 | AW105: 0 | AX105: 0 | AZ105: 0 | BA105: 0 | BB105: 0 | BD105: 0 | BE105: 0 | BF105: 0 | BH105: 1047931.87 | BI105: 1047931.868 | BJ105: 0.002487123362 | BL105: 0 | BM105: 0 | BN105: 0 | BP105: 1047931.87 | BQ105: 1047931.868 | BR105: 0.002487123362 | BV105: 0 | BX105: 173764.61 | BY105: 173764.6078 | BZ105: 0 | CB105: 5896.8 | CC105: 5896.8 | CD105: 0 | CF105: 1105767.3 | CH105: 1105767 | CI105: 0.05519006939 | CJ105: 1127456.01 | CL105: 1127456 | CM105: 0.01961417199
A106: 2603 | B106: Bromstone Primary School, Broadstairs | D106: Bromstone Primary School, Broadstairs | E106: 0 | F106: 1 | H106: 1355299.91 | I106: 1355299.909 | J106: 0.001450380543 | L106: 280238.19 | M106: 280238.1903 | N106: -0.0002998655546 | P106: 16065.17 | Q106: 16065.17007 | R106: -6.839475827e-05 | T106: 161915.46 | U106: 161915.4603 | V106: -0.000315418758 | X106: 5242.13 | Y106: 5242.132337 | Z106: -0.002336603962 | AB106: 125894.71 | AC106: 125894.7077 | AD106: 0.002290411983 | AF106: 0 | AG106: 0 | AH106: 0 | AJ106: 0 | AK106: 0 | AL106: 0 | AN106: 0 | AO106: 0 | AP106: 0 | AR106: 45056 | AS106: 45056 | AT106: 0 | AV106: 0 | AW106: 0 | AX106: 0 | AZ106: 0 | BA106: 0 | BB106: 0 | BD106: 0 | BE106: 0 | BF106: 0 | BH106: 1989711.57 | BI106: 1989711.569 | BJ106: 0.0007205095608 | BL106: 0 | BM106: 0 | BN106: 0 | BP106: 1989711.57 | BQ106: 1989711.569 | BR106: 0.0007205095608 | BV106: 0 | BX106: 391107.31 | BY106: 391107.3082 | BZ106: 0 | CB106: 11400.48 | CC106: 11400.48 | CD106: 0 | CF106: 2099564.04 | CH106: 2099564 | CI106: 0.05521024877 | CJ106: 2140654.2 | CL106: 2140654 | CM106: 0.01957080576
A107: 2607 | B107: Parkside Community Primary School | D107: Parkside Community Primary School | E107: 0 | F107: 1 | H107: 547461.05 | I107: 547461.0468 | J107: 0.003196705598 | L107: 192028.5 | M107: 192028.4958 | N107: 0.004239142465 | P107: 40731.52 | Q107: 40731.52197 | R107: -0.001971381302 | T107: 88918.05 | U107: 88918.05124 | V107: -0.001235381074 | X107: 30820.76 | Y107: 30820.76388 | Z107: -0.003879749496 | AB107: 125894.71 | AC107: 125894.7077 | AD107: 0.002290411983 | AF107: 0 | AG107: 0 | AH107: 0 | AJ107: 0 | AK107: 0 | AL107: 0 | AN107: 0 | AO107: 0 | AP107: 0 | AR107: 20958 | AS107: 20958 | AT107: 0 | AV107: 0 | AW107: 0 | AX107: 0 | AZ107: 0 | BA107: 0 | BB107: 0 | BD107: 0 | BE107: 0 | BF107: 0 | BH107: 1046812.59 | BI107: 1046812.587 | BJ107: 0.002639748156 | BL107: 0 | BM107: 0 | BN107: 0 | BP107: 1046812.59 | BQ107: 1046812.587 | BR107: 0.002639748156 | BV107: 0 | BX107: 271090.21 | BY107: 271090.2093 | BZ107: 0 | CB107: 4605.12 | CC107: 4605.12 | CD107: 0 | CF107: 1104990.12 | CH107: 1104990 | CI107: 0.05557588182 | CJ107: 1126670.76 | CL107: 1126671 | CM107: 0.01962066412
A108: 2615 | B108: High Firs Primary School | D108: High Firs Primary School | E108: 0 | F108: 1 | H108: 650944.54 | I108: 650944.5374 | J108: 0.002642424311 | L108: 65757.45 | M108: 65757.44692 | N108: 0.003077365327 | P108: 9991.57 | Q108: 9991.56574 | R108: 0.004259732441 | T108: 66209.81 | U108: 66209.81209 | V108: -0.002089650836 | X108: 0 | Y108: 0 | Z108: 0 | AB108: 125894.71 | AC108: 125894.7077 | AD108: 0.002290411983 | AF108: 0 | AG108: 0 | AH108: 0 | AJ108: 34638.69 | AK108: 34638.68723 | AL108: 0.002767796679 | AN108: 0 | AO108: 0 | AP108: 0 | AR108: 24950 | AS108: 24950 | AT108: 0 | AV108: 0 | AW108: 0 | AX108: 0 | AZ108: 0 | BA108: 0 | BB108: 0 | BD108: 0 | BE108: 0 | BF108: 0 | BH108: 978386.76 | BI108: 978386.7571 | BJ108: 0.00294807984 | BL108: 0 | BM108: 0 | BN108: 0 | BP108: 978386.76 | BQ108: 978386.7571 | BR108: 0.00294807984 | BV108: 0 | BX108: 142336.21 | BY108: 142336.2126 | BZ108: 0 | CB108: 5682.03 | CC108: 5682.03012 | CD108: 0 | CF108: 1029762.68 | CH108: 1029763 | CI108: 0.05251085277 | CJ108: 1049858.94 | CL108: 1049859 | CM108: 0.01951542855
A109: 2627 | B109: Sandwich Junior School | D109: Sandwich Junior School | E109: 0 | F109: 1 | H109: 674311.78 | I109: 674311.7772 | J109: 0.002839844674 | L109: 66030.66 | M109: 66030.65712 | N109: 0.002879519307 | P109: 5134.13 | Q109: 5134.127627 | R109: 0.002373462509 | T109: 59170.29 | U109: 59170.29121 | V109: -0.00121055558 | X109: 817.92 | Y109: 817.9213575 | Z109: -0.001357484312 | AB109: 125894.71 | AC109: 125894.7077 | AD109: 0.002290411983 | AF109: 0 | AG109: 0 | AH109: 0 | AJ109: 0 | AK109: 0 | AL109: 0 | AN109: 0 | AO109: 0 | AP109: 0 | AR109: 28160 | AS109: 28160 | AT109: 0 | AV109: 0 | AW109: 0 | AX109: 0 | AZ109: 0 | BA109: 0 | BB109: 0 | BD109: 0 | BE109: 0 | BF109: 0 | BH109: 959519.48 | BI109: 959519.4822 | BJ109: -0.002184801386 | BL109: 0 | BM109: 0 | BN109: 0 | BP109: 959519.48 | BQ109: 959519.4822 | BR109: -0.002184801386 | BV109: 0 | BX109: 114682.94 | BY109: 114682.9395 | BZ109: 0 | CB109: 5672.16 | CC109: 5672.16 | CD109: 0 | CF109: 1012251.39 | CH109: 1012251 | CI109: 0.05495657857 | CJ109: 1031933.22 | CL109: 1031933 | CM109: 0.01944361864
A110: 2632 | B110: Sevenoaks Primary School | D110: Sevenoaks Primary School | E110: 0 | F110: 1 | H110: 1976200.85 | I110: 1976200.852 | J110: -0.001875306712 | L110: 105977.63 | M110: 105977.6315 | N110: -0.001472192424 | P110: 41012.4 | Q110: 41012.40302 | R110: -0.00301797445 | T110: 121900.97 | U110: 121900.9694 | V110: 0.0005710787373 | X110: 446.14 | Y110: 446.1389223 | Z110: 0.001077735838 | AB110: 125894.71 | AC110: 125894.7077 | AD110: 0.002290411983 | AF110: 0 | AG110: 0 | AH110: 0 | AJ110: 89403.01 | AK110: 89403.01288 | AL110: -0.002881469525 | AN110: 0 | AO110: 0 | AP110: 0 | AR110: 75264 | AS110: 75264 | AT110: 0 | AV110: 0 | AW110: 0 | AX110: 0 | AZ110: 0 | BA110: 0 | BB110: 0 | BD110: 134492.28 | BE110: 134492.2847 | BF110: -0.004692283313 | BH110: 2670592 | BI110: 2670592 | BJ110: 0 | BL110: 2371.52 | BM110: 2371.516095 | BN110: 0.003904515859 | BP110: 2672963.52 | BQ110: 2672963.516 | BR110: 0.003904515877 | BV110: 0 | BX110: 380543.57 | BY110: 380543.5682 | BZ110: 0 | CB110: 17250.06 | CC110: 17250.06067 | CD110: 0 | CF110: 2769792.43 | CH110: 2769792 | CI110: 0.03622530323 | CJ110: 2782586.7 | CL110: 2782587 | CM110: 0.004619216177
A111: 2643 | B111: Swalecliffe Community Primary School | D111: Swalecliffe Community Primary School | E111: 0 | F111: 1 | H111: 1912775.49 | I111: 1912775.487 | J111: 0.003303123638 | L111: 146450.6 | M111: 146450.6001 | N111: -0.0001080008224 | P111: 4641.2 | Q111: 4641.195833 | R111: 0.004167220693 | T111: 153387.81 | U111: 153387.8052 | V111: 0.004792377265 | X111: 0 | Y111: 0 | Z111: 0 | AB111: 125894.71 | AC111: 125894.7077 | AD111: 0.002290411983 | AF111: 0 | AG111: 0 | AH111: 0 | AJ111: 0 | AK111: 0 | AL111: 0 | AN111: 0 | AO111: 0 | AP111: 0 | AR111: 11981 | AS111: 11981 | AT111: 0 | AV111: 0 | AW111: 0 | AX111: 0 | AZ111: 0 | BA111: 0 | BB111: 0 | BD111: 168882.2 | BE111: 168882.2044 | BF111: -0.004445132829 | BH111: 2524013 | BI111: 2524013 | BJ111: 0 | BL111: 2097.67 | BM111: 2097.666804 | BN111: 0.003195710089 | BP111: 2526110.67 | BQ111: 2526110.667 | BR111: 0.003195709549 | BV111: 0 | BX111: 436674.22 | BY111: 436674.2219 | BZ111: 0 | CB111: 16089.84 | CC111: 16089.84 | CD111: 0 | CF111: 2621737.78 | CH111: 2621738 | CI111: 0.03785547263 | CJ111: 2634108.19 | CL111: 2634108 | CM111: 0.004718400938
A112: 2648 | B112: Aylesham Primary School | D112: Aylesham Primary School | E112: 0 | F112: 1 | H112: 1308565.43 | I112: 1308565.429 | J112: 0.001055540051 | L112: 271159.71 | M112: 271159.71 | N112: 1.833483111e-06 | P112: 10923.95 | Q112: 10923.95482 | R112: -0.004822236851 | T112: 121145.89 | U112: 121145.8894 | V112: 0.0006300014647 | X112: 10670.16 | Y112: 10670.15589 | Z112: 0.00410918204 | AB112: 125894.71 | AC112: 125894.7077 | AD112: 0.002290411983 | AF112: 0 | AG112: 0 | AH112: 0 | AJ112: 0 | AK112: 0 | AL112: 0 | AN112: 0 | AO112: 0 | AP112: 0 | AR112: 27136 | AS112: 27136 | AT112: 0 | AV112: 0 | AW112: 0 | AX112: 0 | AZ112: 0 | BA112: 0 | BB112: 0 | BD112: 0 | BE112: 0 | BF112: 0 | BH112: 1875495.85 | BI112: 1875495.847 | BJ112: 0.003264732193 | BL112: 0 | BM112: 0 | BN112: 0 | BP112: 1875495.85 | BQ112: 1875495.847 | BR112: 0.003264732193 | BV112: 0 | BX112: 336590.15 | BY112: 336590.146 | BZ112: 0 | CB112: 11007.36 | CC112: 11007.36 | CD112: 0 | CF112: 1981723.08 | CH112: 1981723 | CI112: 0.05663954599 | CJ112: 2020814.83 | CL112: 2020815 | CM112: 0.01972614156
A113: 2651 | B113: Broadwater Down Primary School | D113: Broadwater Down Primary School | E113: 0 | F113: 1 | H113: 510741.1 | I113: 510741.0985 | J113: 0.001457902079 | L113: 74892.34 | M113: 74892.33936 | N113: 0.0006404659653 | P113: 24846.18 | Q113: 24846.17968 | R113: 0.0003182894252 | T113: 64601.37 | U113: 64601.37286 | V113: -0.002859549473 | X113: 15633.45 | Y113: 15633.4514 | Z113: -0.001401006813 | AB113: 125894.71 | AC113: 125894.7077 | AD113: 0.002290411983 | AF113: 0 | AG113: 0 | AH113: 0 | AJ113: 0 | AK113: 0 | AL113: 0 | AN113: 0 | AO113: 0 | AP113: 0 | AR113: 18837 | AS113: 18837 | AT113: 0 | AV113: 0 | AW113: 0 | AX113: 0 | AZ113: 0 | BA113: 0 | BB113: 0 | BD113: 0 | BE113: 0 | BF113: 0 | BH113: 835446.15 | BI113: 835446.1496 | BJ113: 0.0004465132952 | BL113: 0 | BM113: 0 | BN113: 0 | BP113: 835446.15 | BQ113: 835446.1496 | BR113: 0.0004465132952 | BV113: 0 | BX113: 146799.34 | BY113: 146799.338 | BZ113: 0 | CB113: 4296.24 | CC113: 4296.24 | CD113: 0 | CF113: 880571.91 | CH113: 880572 | CI113: 0.05401396663 | CJ113: 897806.61 | CL113: 897807 | CM113: 0.01957216646
A114: 2653 | B114: West Borough Primary School | D114: West Borough Primary School | E114: 0 | F114: 1 | H114: 1502179.7 | I114: 1502179.702 | J114: -0.001594405621 | L114: 148737.39 | M114: 148737.3882 | N114: 0.001804246625 | P114: 49366.61 | Q114: 49366.61179 | R114: -0.001793629592 | T114: 116375.22 | U114: 116375.2232 | V114: -0.003175245569 | X114: 0 | Y114: 0 | Z114: 0 | AB114: 125894.71 | AC114: 125894.7077 | AD114: 0.002290411983 | AF114: 0 | AG114: 0 | AH114: 0 | AJ114: 0 | AK114: 0 | AL114: 0 | AN114: 0 | AO114: 0 | AP114: 0 | AR114: 58368 | AS114: 58368 | AT114: 0 | AV114: 0 | AW114: 0 | AX114: 0 | AZ114: 0 | BA114: 0 | BB114: 0 | BD114: 30246.37 | BE114: 30246.36753 | BF114: 0.002468622148 | BH114: 2031168 | BI114: 2031168 | BJ114: 0 | BL114: 3669.6 | BM114: 3669.603187 | BN114: -0.00318676848 | BP114: 2034837.6 | BQ114: 2034837.603 | BR114: -0.003186768387 | BV114: 0 | BX114: 307721.53 | BY114: 307721.5259 | BZ114: 0 | CB114: 12636 | CC114: 12636 | CD114: 0 | CF114: 2112961.71 | CH114: 2112962 | CI114: 0.03839328833 | CJ114: 2150734.78 | CL114: 2150735 | CM114: 0.01787683602
A115: 2662 | B115: Long Mead Community Primary School | D115: Long Mead Community Primary School | E115: 0 | F115: 1 | H115: 383890.37 | I115: 383890.3682 | J115: 0.001814763003 | L115: 110860.8 | M115: 110860.797 | N115: 0.002989020461 | P115: 4885.31 | Q115: 4885.310567 | R115: -0.0005666225497 | T115: 53181.8 | U115: 53181.79714 | V115: 0.002856887433 | X115: 1951.86 | Y115: 1951.857785 | Z115: 0.002215094276 | AB115: 125894.71 | AC115: 125894.7077 | AD115: 0.002290411983 | AF115: 0 | AG115: 0 | AH115: 0 | AJ115: 0 | AK115: 0 | AL115: 0 | AN115: 0 | AO115: 0 | AP115: 0 | AR115: 18463 | AS115: 18463 | AT115: 0 | AV115: 0 | AW115: 0 | AX115: 0 | AZ115: 0 | BA115: 0 | BB115: 0 | BD115: 0 | BE115: 0 | BF115: 0 | BH115: 699127.84 | BI115: 699127.8384 | BJ115: 0.001599554671 | BL115: 0 | BM115: 0 | BN115: 0 | BP115: 699127.84 | BQ115: 699127.8384 | BR115: 0.001599554671 | BV115: 0 | BX115: 142417.37 | BY115: 142417.3678 | BZ115: 0 | CB115: 3229.2 | CC115: 3229.2 | CD115: 0 | CF115: 738831.72 | CH115: 738832 | CI115: 0.05679058881 | CJ115: 753239.09 | CL115: 753239 | CM115: 0.019500205
A116: 2674 | B116: King's Farm Primary School | D116: King's Farm Primary School | E116: 0 | F116: 1 | H116: 1255154.6 | I116: 1255154.595 | J116: 0.004890007898 | L116: 359964.84 | M116: 359964.8375 | N116: 0.002502847346 | P116: 20975.6 | Q116: 20975.60169 | R116: -0.001687669443 | T116: 135744.51 | U116: 135744.5136 | V116: -0.003576305666 | X116: 5985.7 | Y116: 5985.697207 | Z116: 0.002792955775 | AB116: 125894.71 | AC116: 125894.7077 | AD116: 0.002290411983 | AF116: 0 | AG116: 0 | AH116: 0 | AJ116: 0 | AK116: 0 | AL116: 0 | AN116: 0 | AO116: 0 | AP116: 0 | AR116: 43264 | AS116: 43264 | AT116: 0 | AV116: 0 | AW116: 0 | AX116: 0 | AZ116: 0 | BA116: 0 | BB116: 0 | BD116: 0 | BE116: 0 | BF116: 0 | BH116: 1946983.95 | BI116: 1946983.953 | BJ116: -0.00278775231 | BL116: 106325.87 | BM116: 106325.8652 | BN116: 0.004811906838 | BP116: 2053309.82 | BQ116: 2053309.818 | BR116: 0.002024154644 | BV116: 0 | BX116: 533710.4 | BY116: 533710.4001 | BZ116: 0 | CB116: 10558.08 | CC116: 10558.08 | CD116: 0 | CF116: 2134248.97 | CH116: 2134249 | CI116: 0.03941886963 | CJ116: 2144025.53 | CL116: 2144026 | CM116: 0.004580796401
A117: 2680 | B117: Kings Hill School Primary and Nursery | D117: Kings Hill School Primary and Nursery | E117: 0 | F117: 1 | H117: 1402034.39 | I117: 1402034.388 | J117: 0.001845221268 | L117: 51670.83 | M117: 51670.82741 | N117: 0.002594879479 | P117: 9983.03 | Q117: 9983.02594 | R117: 0.004059510436 | T117: 73408.63 | U117: 73408.63191 | V117: -0.001912547028 | X117: 0 | Y117: 0 | Z117: 0 | AB117: 125894.71 | AC117: 125894.7077 | AD117: 0.002290411983 | AF117: 0 | AG117: 0 | AH117: 0 | AJ117: 0 | AK117: 0 | AL117: 0 | AN117: 0 | AO117: 0 | AP117: 0 | AR117: 52224 | AS117: 52224 | AT117: 0 | AV117: 0 | AW117: 0 | AX117: 0 | AZ117: 0 | BA117: 0 | BB117: 0 | BD117: 178288.42 | BE117: 178288.4189 | BF117: 0.001122523798 | BH117: 1893504 | BI117: 1893504 | BJ117: 0 | BL117: 0 | BM117: 0 | BN117: 0 | BP117: 1893504 | BQ117: 1893504 | BR117: 0 | BV117: 0 | BX117: 302419.81 | BY117: 302419.8114 | BZ117: 0 | CB117: 11793.6 | CC117: 11793.6 | CD117: 0 | CF117: 1961510.4 | CH117: 1961510 | CI117: 0.03591563577 | CJ117: 1971056.83 | CL117: 1971057 | CM117: 0.004866877076
A118: 2682 | B118: New Ash Green Primary School | D118: New Ash Green Primary School | E118: 0 | F118: 1 | H118: 1378667.15 | I118: 1378667.148 | J118: 0.001647800906 | L118: 63689.84 | M118: 63689.84152 | N118: -0.001516617631 | P118: 4658.75 | Q118: 4658.745439 | R118: 0.004561104882 | T118: 152505.85 | U118: 152505.8502 | V118: -0.0002354531898 | X118: 0 | Y118: 0 | Z118: 0 | AB118: 125894.71 | AC118: 125894.7077 | AD118: 0.002290411983 | AF118: 0 | AG118: 0 | AH118: 0 | AJ118: 65048.19 | AK118: 65048.19426 | AL118: -0.004255628788 | AN118: 0 | AO118: 0 | AP118: 0 | AR118: 33792 | AS118: 33792 | AT118: 0 | AV118: 0 | AW118: 0 | AX118: 0 | AZ118: 0 | BA118: 0 | BB118: 0 | BD118: 20127.51 | BE118: 20127.51249 | BF118: -0.002491618234 | BH118: 1844384 | BI118: 1844384 | BJ118: 0 | BL118: 0 | BM118: 0 | BN118: 0 | BP118: 1844384 | BQ118: 1844384 | BR118: 0 | BV118: 0 | BX118: 231106.33 | BY118: 231106.3292 | BZ118: 0 | CB118: 12034.25 | CC118: 12034.24841 | CD118: 0 | CF118: 1922693.44 | CH118: 1922693 | CI118: 0.04245831671 | CJ118: 1960471.47 | CL118: 1960471 | CM118: 0.01964849373
A119: 2689 | B119: The Craylands School | D119: The Craylands School | E119: 0 | F119: 1 | H119: 1375328.97 | I119: 1375328.971 | J119: -0.001237544697 | L119: 184169.68 | M119: 184169.679 | N119: 0.0009817719401 | P119: 9347.74 | Q119: 9347.742472 | R119: -0.002471549318 | T119: 145094.3 | U119: 145094.3 | V119: 3.866368206e-05 | X119: 0 | Y119: 0 | Z119: 0 | AB119: 125894.71 | AC119: 125894.7077 | AD119: 0.002290411983 | AF119: 0 | AG119: 0 | AH119: 0 | AJ119: 69361.79 | AK119: 69361.7946 | AL119: -0.004595013888 | AN119: 0 | AO119: 0 | AP119: 0 | AR119: 61952 | AS119: 61952 | AT119: 0 | AV119: 89570.7 | AW119: 89570.69769 | AX119: 0.002314221958 | AZ119: 0 | BA119: 0 | BB119: 0 | BD119: 0 | BE119: 0 | BF119: 0 | BH119: 2060719.89 | BI119: 2060719.893 | BJ119: -0.00267903856 | BL119: 0 | BM119: 0 | BN119: 0 | BP119: 2060719.89 | BQ119: 2060719.893 | BR119: -0.00267903856 | BV119: 0 | BX119: 310640.03 | BY119: 310640.0262 | BZ119: 0 | CB119: 12005.11 | CC119: 12005.10979 | CD119: 0 | CF119: 2166359.11 | CH119: 2166359 | CI119: 0.05126325887 | CJ119: 2206655.84 | CL119: 2206656 | CM119: 0.01860113119
A120: 2692 | B120: The Churchill School | D120: The Churchill School | E120: 0 | F120: 1 | H120: 1211758.29 | I120: 1211758.293 | J120: -0.002619487233 | L120: 141567.18 | M120: 141567.179 | N120: 0.000972976326 | P120: 7074.04 | Q120: 7074.041274 | R120: -0.001274245747 | T120: 77779.55 | U120: 77779.55178 | V120: -0.001784165463 | X120: 3922.3 | Y120: 3922.304692 | Z120: -0.004691572462 | AB120: 125894.71 | AC120: 125894.7077 | AD120: 0.002290411983 | AF120: 0 | AG120: 0 | AH120: 0 | AJ120: 0 | AK120: 0 | AL120: 0 | AN120: 0 | AO120: 0 | AP120: 0 | AR120: 12595 | AS120: 12595 | AT120: 0 | AV120: 0 | AW120: 0 | AX120: 0 | AZ120: 0 | BA120: 0 | BB120: 0 | BD120: 23395.92 | BE120: 23395.92289 | BF120: -0.002893917372 | BH120: 1603987 | BI120: 1603987 | BJ120: 0 | BL120: 7514.52 | BM120: 7514.518746 | BN120: 0.001254381361 | BP120: 1611501.52 | BQ120: 1611501.519 | BR120: 0.001254381146 | BV120: 0 | BX120: 222322.8 | BY120: 222322.7982 | BZ120: 0 | CB120: 10193.04 | CC120: 10193.04 | CD120: 0 | CF120: 1676078.8 | CH120: 1676079 | CI120: 0.04007273993 | CJ120: 1703202.42 | CL120: 1703202 | CM120: 0.01618278329
A121: 3010 | B121: St Pauls' Church of England Voluntary Controlled Primary School | D121: St Pauls' Church of England Voluntary Controlled Primary School | E121: 0 | F121: 1 | H121: 363861.31 | I121: 363861.3055 | J121: 0.004502688418 | L121: 25937.69 | M121: 25937.68991 | N121: 8.611283556e-05 | P121: 2645.96 | Q121: 2645.957027 | R121: 0.002972611887 | T121: 16151 | U121: 16150.99885 | V121: 0.001146610841 | X121: 0 | Y121: 0 | Z121: 0 | AB121: 125894.71 | AC121: 125894.7077 | AD121: 0.002290411983 | AF121: 0 | AG121: 0 | AH121: 0 | AJ121: 20150.3 | AK121: 20150.29784 | AL121: 0.002155641036 | AN121: 0 | AO121: 0 | AP121: 0 | AR121: 10729 | AS121: 10729 | AT121: 0 | AV121: 0 | AW121: 0 | AX121: 0 | AZ121: 0 | BA121: 0 | BB121: 0 | BD121: 0 | BE121: 0 | BF121: 0 | BH121: 565369.96 | BI121: 565369.9568 | BJ121: 0.003154076985 | BL121: 0 | BM121: 0 | BN121: 0 | BP121: 565369.96 | BQ121: 565369.9568 | BR121: 0.003154076985 | BV121: 0 | BX121: 47325.51 | BY121: 47325.51452 | BZ121: 0 | CB121: 3176.11 | CC121: 3176.109144 | CD121: 0 | CF121: 596286.56 | CH121: 596287 | CI121: 0.05468384512 | CJ121: 607997.71 | CL121: 607998 | CM121: 0.01964013745
A122: 3015 | B122: Fawkham Church of England Voluntary Controlled Primary School | D122: Fawkham Church of England Voluntary Controlled Primary School | E122: 0 | F122: 1 | H122: 347170.42 | I122: 347170.4199 | J122: 7.595960051e-05 | L122: 8133.97 | M122: 8133.966882 | N122: 0.003118474391 | P122: 0 | Q122: 0 | R122: 0 | T122: 28635.3 | U122: 28635.29817 | V122: 0.001833127924 | X122: 0 | Y122: 0 | Z122: 0 | AB122: 125894.71 | AC122: 125894.7077 | AD122: 0.002290411983 | AF122: 4825.08 | AG122: 4825.078692 | AH122: 0.001308381547 | AJ122: 19402.66 | AK122: 19402.66207 | AL122: -0.002070786395 | AN122: 0 | AO122: 0 | AP122: 0 | AR122: 21083 | AS122: 21083 | AT122: 0 | AV122: 0 | AW122: 0 | AX122: 0 | AZ122: 0 | BA122: 0 | BB122: 0 | BD122: 0 | BE122: 0 | BF122: 0 | BH122: 555145.13 | BI122: 555145.1334 | BJ122: -0.003444430884 | BL122: 0 | BM122: 0 | BN122: 0 | BP122: 555145.13 | BQ122: 555145.1334 | BR122: -0.003444430884 | BV122: 0 | BX122: 41999.26 | BY122: 41999.25513 | BZ122: 0 | CB122: 3030.42 | CC122: 3030.416064 | CD122: 0 | CF122: 584359.91 | CH122: 584360 | CI122: 0.05262547539 | CJ122: 595625.44 | CL122: 595625 | CM122: 0.01927841012
A123: 3022 | B123: Benenden Church of England Primary School | D123: Benenden Church of England Primary School | E123: 0 | F123: 1 | H123: 701017.19 | I123: 701017.1941 | J123: -0.004077389371 | L123: 35621.22 | M123: 35621.2243 | N123: -0.004299483888 | P123: 1996.61 | Q123: 1996.605188 | R123: 0.004811902085 | T123: 37585.47 | U123: 37585.46994 | V123: 6.018636486e-05 | X123: 0 | Y123: 0 | Z123: 0 | AB123: 125894.71 | AC123: 125894.7077 | AD123: 0.002290411983 | AF123: 0 | AG123: 0 | AH123: 0 | AJ123: 0 | AK123: 0 | AL123: 0 | AN123: 0 | AO123: 0 | AP123: 0 | AR123: 34431 | AS123: 34431 | AT123: 0 | AV123: 0 | AW123: 0 | AX123: 0 | AZ123: 0 | BA123: 0 | BB123: 0 | BD123: 18524.8 | BE123: 18524.79879 | BF123: 0.001214372762 | BH123: 955071 | BI123: 955071 | BJ123: 0 | BL123: 0 | BM123: 0 | BN123: 0 | BP123: 955071 | BQ123: 955071 | BR123: 0 | BV123: 0 | BX123: 88934.36 | BY123: 88934.36221 | BZ123: 0 | CB123: 5896.8 | CC123: 5896.8 | CD123: 0 | CF123: 991165.12 | CH123: 991165 | CI123: 0.03779208038 | CJ123: 1006280.29 | CL123: 1006280 | CM123: 0.01524990105
A124: 3023 | B124: Bidborough Church of England Voluntary Controlled Primary School | D124: Bidborough Church of England Voluntary Controlled Primary School | E124: 0 | F124: 1 | H124: 687664.49 | I124: 687664.4856 | J124: 0.004381227656 | L124: 20541.41 | M124: 20541.40512 | N124: 0.004878055435 | P124: 8680.05 | Q124: 8680.046581 | R124: 0.003419275636 | T124: 57534.72 | U124: 57534.72035 | V124: -0.0003549218745 | X124: 0 | Y124: 0 | Z124: 0 | AB124: 125894.71 | AC124: 125894.7077 | AD124: 0.002290411983 | AF124: 0 | AG124: 0 | AH124: 0 | AJ124: 0 | AK124: 0 | AL124: 0 | AN124: 0 | AO124: 0 | AP124: 0 | AR124: 14970 | AS124: 14970 | AT124: 0 | AV124: 0 | AW124: 0 | AX124: 0 | AZ124: 0 | BA124: 0 | BB124: 0 | BD124: 2788.63 | BE124: 2788.634614 | BF124: -0.004614048846 | BH124: 918074 | BI124: 918074 | BJ124: 0 | BL124: 0 | BM124: 0 | BN124: 0 | BP124: 918074 | BQ124: 918074 | BR124: 0 | BV124: 0 | BX124: 89944.22 | BY124: 89944.21871 | BZ124: 0 | CB124: 5784.48 | CC124: 5784.48 | CD124: 0 | CF124: 964275.19 | CH124: 964275 | CI124: 0.05032403706 | CJ124: 983261.3 | CL124: 983261 | CM124: 0.01968951415
A125: 3027 | B125: Cranbrook Church of England Primary School | D125: Cranbrook Church of England Primary School | E125: 0 | F125: 1 | H125: 677649.95 | I125: 677649.9543 | J125: -0.004274809733 | L125: 104005.36 | M125: 104005.3568 | N125: 0.003150846271 | P125: 4658.75 | Q125: 4658.745439 | R125: 0.004561104871 | T125: 51146.46 | U125: 51146.46111 | V125: -0.001106699383 | X125: 4479.98 | Y125: 4479.978344 | Z125: 0.001655597343 | AB125: 125894.71 | AC125: 125894.7077 | AD125: 0.002290411983 | AF125: 0 | AG125: 0 | AH125: 0 | AJ125: 0 | AK125: 0 | AL125: 0 | AN125: 0 | AO125: 0 | AP125: 0 | AR125: 26112 | AS125: 26112 | AT125: 0 | AV125: 0 | AW125: 0 | AX125: 0 | AZ125: 0 | BA125: 0 | BB125: 0 | BD125: 0 | BE125: 0 | BF125: 0 | BH125: 993947.2 | BI125: 993947.2037 | BJ125: -0.003723548609 | BL125: 0 | BM125: 0 | BN125: 0 | BP125: 993947.2 | BQ125: 993947.2037 | BR125: -0.003723548609 | BV125: 0 | BX125: 133772.13 | BY125: 133772.1308 | BZ125: 0 | CB125: 5700.24 | CC125: 5700.24 | CD125: 0 | CF125: 1050288.09 | CH125: 1050288 | CI125: 0.05668398288 | CJ125: 1070771.61 | CL125: 1070772 | CM125: 0.01950276328
A126: 3029 | B126: Goudhurst and Kilndown Church of England Primary School | D126: Goudhurst and Kilndown Church of England Primary School | E126: 0 | F126: 1 | H126: 707693.55 | I126: 707693.5483 | J126: 0.0016933023 | L126: 41515.68 | M126: 41515.67906 | N126: 0.0009432066508 | P126: 1993.47 | Q126: 1993.4708 | R126: -0.0008000475239 | T126: 33341.6 | U126: 33341.59622 | V126: 0.003783669425 | X126: 0 | Y126: 0 | Z126: 0 | AB126: 125894.71 | AC126: 125894.7077 | AD126: 0.002290411983 | AF126: 0 | AG126: 0 | AH126: 0 | AJ126: 0 | AK126: 0 | AL126: 0 | AN126: 0 | AO126: 0 | AP126: 0 | AR126: 27904 | AS126: 27904 | AT126: 0 | AV126: 0 | AW126: 0 | AX126: 0 | AZ126: 0 | BA126: 0 | BB126: 0 | BD126: 18969 | BE126: 18968.99791 | BF126: 0.002089457208 | BH126: 957312 | BI126: 957312 | BJ126: 0 | BL126: 419.67 | BM126: 419.6690099 | BN126: 0.0009900927125 | BP126: 957731.67 | BQ126: 957731.669 | BR126: 0.0009900928708 | BV126: 0 | BX126: 88140.95 | BY126: 88140.94641 | BZ126: 0 | CB126: 5952.96 | CC126: 5952.96 | CD126: 0 | CF126: 994947.07 | CH126: 994947 | CI126: 0.03885785778 | CJ126: 1009526.6 | CL126: 1009527 | CM126: 0.01465357348
A127: 3032 | B127: Hawkhurst Church of England Primary School | D127: Hawkhurst Church of England Primary School | E127: 0 | F127: 1 | H127: 607548.23 | I127: 607548.2349 | J127: -0.004867070704 | L127: 88544.17 | M127: 88544.16978 | N127: 0.0002198144211 | P127: 3165.35 | Q127: 3165.349688 | R127: 0.0003115520899 | T127: 40455.91 | U127: 40455.90603 | V127: 0.003965365759 | X127: 1003.81 | Y127: 1003.812575 | Z127: -0.002575094365 | AB127: 125894.71 | AC127: 125894.7077 | AD127: 0.002290411983 | AF127: 0 | AG127: 0 | AH127: 0 | AJ127: 0 | AK127: 0 | AL127: 0 | AN127: 0 | AO127: 0 | AP127: 0 | AR127: 34560 | AS127: 34560 | AT127: 0 | AV127: 0 | AW127: 0 | AX127: 0 | AZ127: 0 | BA127: 0 | BB127: 0 | BD127: 0 | BE127: 0 | BF127: 0 | BH127: 901172.18 | BI127: 901172.1807 | BJ127: -0.0006550207036 | BL127: 0 | BM127: 0 | BN127: 0 | BP127: 901172.18 | BQ127: 901172.1807 | BR127: -0.0006550207036 | BV127: 0 | BX127: 104238.58 | BY127: 104238.5755 | BZ127: 0 | CB127: 5110.56 | CC127: 5110.56 | CD127: 0 | CF127: 952939.62 | CH127: 952940 | CI127: 0.05744455994 | CJ127: 971307.22 | CL127: 971307 | CM127: 0.01927467346
A128: 3033 | B128: Hildenborough Church of England Primary School | D128: Hildenborough Church of England Primary School | E128: 0 | F128: 1 | H128: 627577.3 | I128: 627577.2976 | J128: 0.002445003949 | L128: 24785.41 | M128: 24785.4105 | N128: -0.0005006125029 | P128: 3289.76 | Q128: 3289.761397 | R128: -0.001396690689 | T128: 41318.42 | U128: 41318.41701 | V128: 0.002986074251 | X128: 0 | Y128: 0 | Z128: 0 | AB128: 125894.71 | AC128: 125894.7077 | AD128: 0.002290411983 | AF128: 0 | AG128: 0 | AH128: 0 | AJ128: 0 | AK128: 0 | AL128: 0 | AN128: 0 | AO128: 0 | AP128: 0 | AR128: 22580 | AS128: 22580 | AT128: 0 | AV128: 0 | AW128: 0 | AX128: 0 | AZ128: 0 | BA128: 0 | BB128: 0 | BD128: 1326.41 | BE128: 1326.405824 | BF128: 0.004175813065 | BH128: 846772 | BI128: 846772 | BJ128: 0 | BL128: 0 | BM128: 0 | BN128: 0 | BP128: 846772 | BQ128: 846772 | BR128: 0 | BV128: 0 | BX128: 71119.41 | BY128: 71119.40677 | BZ128: 0 | CB128: 5279.04 | CC128: 5279.04 | CD128: 0 | CF128: 890807.67 | CH128: 890808 | CI128: 0.05200416405 | CJ128: 908172.22 | CL128: 908172 | CM128: 0.01949304051
A129: 3034 | B129: Lamberhurst St Mary's CofE (Voluntary Controlled) Primary School | D129: Lamberhurst St Mary's CofE (Voluntary Controlled) Primary School | E129: 0 | F129: 1 | H129: 680988.13 | I129: 680988.1314 | J129: -0.001389463898 | L129: 19651.35 | M129: 19651.35167 | N129: -0.001673895411 | P129: 7399.47 | Q129: 7399.474884 | R129: -0.004883718761 | T129: 46917.62 | U129: 46917.6199 | V129: 9.674555622e-05 | X129: 10000.95 | Y129: 10000.94751 | Z129: 0.002492578236 | AB129: 125894.71 | AC129: 125894.7077 | AD129: 0.002290411983 | AF129: 0 | AG129: 0 | AH129: 0 | AJ129: 0 | AK129: 0 | AL129: 0 | AN129: 0 | AO129: 0 | AP129: 0 | AR129: 27904 | AS129: 27904 | AT129: 0 | AV129: 0 | AW129: 0 | AX129: 0 | AZ129: 0 | BA129: 0 | BB129: 0 | BD129: 3483.77 | BE129: 3483.766933 | BF129: 0.0030673423 | BH129: 922240 | BI129: 922240 | BJ129: 0 | BL129: 0 | BM129: 0 | BN129: 0 | BP129: 922240 | BQ129: 922240 | BR129: 0 | BV129: 0 | BX129: 76435.31 | BY129: 76435.31233 | BZ129: 0 | CB129: 5728.32 | CC129: 5728.32 | CD129: 0 | CF129: 967632.28 | CH129: 967632 | CI129: 0.04921959577 | CJ129: 986426.84 | CL129: 986427 | CM129: 0.01942324619
A130: 3035 | B130: Seal Church of England Voluntary Controlled Primary School | D130: Seal Church of England Voluntary Controlled Primary School | E130: 0 | F130: =IF(E130=D130,0,1) -> 1 | H130: 1175038.34 | I130: 1175038.344 | J130: =H130-I130 -> -0.004358290462 | L130: 95242.17 | M130: 95242.16647 | N130: =L130-M130 -> 0.003532715389 | P130: 4638.98 | Q130: 4638.977071 | R130: =P130-Q130 -> 0.002929303863 | T130: 82356.19 | U130: 82356.1942 | V130: =T130-U130 -> -0.004197340808 | X130: 5465.2 | Y130: 5465.201798 | Z130: =X130-Y130 -> -0.00179773604 | AB130: 125894.71 | AC130: 125894.7077 | AD130: =AB130-AC130 -> 0.002290411983 | AF130: 0 | AG130: 0 | AH130: =AF130-AG130 -> 0 | AJ130: 56121.56 | AK130: 56121.5618 | AL130: =AJ130-AK130 -> -0.001803355299 | AN130: 0 | AO130: 0 | AP130: =AN130-AO130 -> 0 | AR130: 17839 | AS130: 17839 | AT130: =AR130-AS130 -> 0 | AV130: 0 | AW130: 0 | AX130: =AV130-AW130 -> 0 | AZ130: 0 | BA130: 0 | BB130: =AZ130-BA130 -> 0 | BD130: 0 | BE130: 0 | BF130: =BD130-BE130 -> 0 | BH130: 1562596.15 | BI130: 1562596.153 | BJ130: =BH130-BI130 -> -0.003404291812 | BL130: 2943.31 | BM130: 2943.310384 | BN130: =BL130-BM130 -> -0.0003843398858 | BP130: 1565539.46 | BQ130: 1565539.464 | BR130: =BP130-BQ130 -> -0.003788631642 | BV130: =BT130-BU130 -> 0 | BX130: 161111.69 | BY130: 161111.6927 | BZ130: =ROUND(BX130-BY130,0) -> 0 | CB130: 10256.79 | CC130: 10256.79283 | CD130: 0 | CF130: 1651517.86 | CH130: =ROUND(CF130-CG130,0) -> 1651518 | CI130: 0.05491934135 | CJ130: 1684191.44 | CL130: =ROUND(CJ130-CK130,0) -> 1684191 | CM130: 0.01978397012
A131: 3037 | B131: St John's Church of England Primary School, Sevenoaks | D131: St John's Church of England Primary School, Sevenoaks | E131: 0 | F131: 1 | H131: 670973.6 | I131: 670973.6 | J131: -4.550116137e-05 | L131: 23310.17 | M131: 23310.16544 | N131: 0.004562720162 | P131: 7730.03 | Q131: 7730.034853 | R131: -0.004853438469 | T131: 33722.82 | U131: 33722.82116 | V131: -0.001160377185 | X131: 0 | Y131: 0 | Z131: 0 | AB131: 125894.71 | AC131: 125894.7077 | AD131: 0.002290411983 | AF131: 0 | AG131: 0 | AH131: 0 | AJ131: 32483.5 | AK131: 32483.50111 | AL131: -0.001111073161 | AN131: 0 | AO131: 0 | AP131: 0 | AR131: 22330 | AS131: 22330 | AT131: 0 | AV131: 0 | AW131: 0 | AX131: 0 | AZ131: 0 | BA131: 0 | BB131: 0 | BD131: 0 | BE131: 0 | BF131: 0 | BH131: 916444.83 | BI131: 916444.8303 | BJ131: -0.0003172579454 | BL131: 15269.76 | BM131: 15269.7628 | BN131: -0.002796935276 | BP131: 931714.59 | BQ131: 931714.5931 | BR131: -0.003114193212 | BV131: 0 | BX131: 79459.5 | BY131: 79459.50111 | BZ131: 0 | CB131: 5856.86 | CC131: 5856.861816 | CD131: =IF(E131="Recoupment Academy",0,ROUND(CB131-CC131,0)) -> 0 | CF131: 966619.5 | CH131: 966620 | CI131: 0.03746308917 | CJ131: 985505.29 | CL131: 985505 | CM131: 0.01953797746
A132: 3042 | B132: Speldhurst Church of England Voluntary Aided Primary School | D132: Speldhurst Church of England Voluntary Aided Primary School | E132: 0 | F132: 1 | H132: 701017.19 | I132: 701017.1941 | J132: -0.004077389371 | L132: 19326.77 | M132: 19326.77378 | N132: -0.00377831054 | P132: 5989.82 | Q132: 5989.815564 | R132: 0.004435706266 | T132: 29126.59 | U132: 29126.58797 | V132: 0.002031518685 | X132: 0 | Y132: 0 | Z132: 0 | AB132: 125894.71 | AC132: 125894.7077 | AD132: 0.002290411983 | AF132: 0 | AG132: 0 | AH132: 0 | AJ132: 0 | AK132: 0 | AL132: 0 | AN132: 0 | AO132: 0 | AP132: 0 | AR132: 3840 | AS132: 3840 | AT132: 0 | AV132: 0 | AW132: 0 | AX132: 0 | AZ132: 0 | BA132: 0 | BB132: 0 | BD132: 39284.92 | BE132: 39284.9209 | BF132: -0.0009019370627 | BH132: 924480 | BI132: =I132+M132+Q132+U132+Y132+AC132+AG132+AK132+AO132+AS132+AW132+BA132+BE132 -> 924480 | BJ132: 0 | BL132: 1241.11 | BM132: 1241.114478 | BN132: -0.00447839241 | BP132: 925721.11 | BQ132: 925721.1145 | BR132: -0.004478392424 | BV132: 0 | BX132: 93952.31 | BY132: 93952.31163 | BZ132: 0 | CB132: 5896.8 | CC132: 5896.8 | CD132: 0 | CF132: 960985.28 | CH132: 960985 | CI132: =(CF132-BQ132)/BQ132 -> 0.03809372496 | CJ132: 965092.64 | CL132: 965093 | CM132: =(CJ132-CF132)/CF132 -> 0.004274113335
A133: 3043 | B133: Sundridge and Brasted Church of England Voluntary Controlled Primary School | D133: Sundridge and Brasted Church of England Voluntary Controlled Primary School | E133: 0 | F133: 1 | H133: 193614.27 | I133: 193614.2726 | J133: -0.002649945614 | L133: 29162.26 | M133: 29162.2585 | N133: 0.001496060999 | P133: 661.73 | Q133: 661.7320052 | R133: -0.002005198165 | T133: 16929.6 | U133: 16929.59993 | V133: 7.208668831e-05 | X133: 0 | Y133: 0 | Z133: 0 | AB133: 125894.71 | AC133: 125894.7077 | AD133: 0.002290411983 | AF133: 55374 | AG133: 55373.9974 | AH133: 0.002604424626 | AJ133: 15895.7 | AK133: 15895.69862 | AL133: 0.001379155588 | AN133: 0 | AO133: 0 | AP133: 0 | AR133: 7485 | AS133: 7485 | AT133: 0 | AV133: 0 | AW133: 0 | AX133: 0 | AZ133: 0 | BA133: 0 | BB133: 0 | BD133: 0 | BE133: 0 | BF133: 0 | BH133: 445017.27 | BI133: 445017.2668 | BJ133: 0.003186996095 | BL133: 0 | BM133: 0 | BN133: 0 | BP133: 445017.27 | BQ133: 445017.2668 | BR133: 0.003186996095 | BV133: 0 | BX133: 45011.45 | BY133: 45011.44905 | BZ133: 0 | CB133: 1690.04 | CC133: 1690.039728 | CD133: 0 | CF133: 468268.73 | CH133: 468269 | CI133: 0.05224845174 | CJ133: 477484.41 | CL133: 477484 | CM133: 0.0196803233
A134: 3050 | B134: St John's Church of England Primary School | D134: St John's Church of England Primary School | E134: 0 | F134: 1 | H134: 2099713.41 | I134: 2099713.405 | J134: 0.004882486537 | L134: 111490.29 | M134: 111490.2859 | N134: 0.004117941309 | P134: 37418.69 | Q134: 37418.68643 | R134: 0.003569800188 | T134: 182698.13 | U134: 182698.1296 | V134: 0.0003558855678 | X134: 0 | Y134: 0 | Z134: 0 | AB134: 125894.71 | AC134: 125894.7077 | AD134: 0.002290411983 | AF134: 0 | AG134: 0 | AH134: 0 | AJ134: 0 | AK134: 0 | AL134: 0 | AN134: 0 | AO134: 0 | AP134: 0 | AR134: 73216 | AS134: 73216 | AT134: 0 | AV134: 0 | AW134: 0 | AX134: 0 | AZ134: 0 | BA134: 0 | BB134: 0 | BD134: 200320.79 | BE134: 200320.7852 | BF134: 0.004783474607 | BH134: 2830752 | BI134: 2830752 | BJ134: 0 | BL134: 0 | BM134: 0 | BN134: 0 | BP134: 2830752 | BQ134: 2830752 | BR134: 0 | BV134: 0 | BX134: 503528.93 | BY134: 503528.9328 | BZ134: 0 | CB134: 17662.32 | CC134: 17662.32 | CD134: 0 | CF134: 2932599.68 | CH134: 2932600 | CI134: 0.035979019 | CJ134: 2946896.6 | CL134: 2946897 | CM134: 0.004875169324
A135: 3052 | B135: St Mark's Church of England Primary School | D135: St Mark's Church of England Primary School | E135: 0 | F135: 1 | H135: 1165023.81 | I135: 1165023.813 | J135: -0.003014327725 | L135: 119476.61 | M135: 119476.6083 | N135: 0.001651007013 | P135: 34218.6 | Q135: 34218.60409 | R135: -0.004094231612 | T135: 94211.57 | U135: 94211.57338 | V135: -0.003383519841 | X135: 8420.87 | Y135: 8420.872158 | Z135: -0.002157736128 | AB135: 125894.71 | AC135: 125894.7077 | AD135: 0.002290411983 | AF135: 0 | AG135: 0 | AH135: 0 | AJ135: 0 | AK135: 0 | AL135: 0 | AN135: 0 | AO135: 0 | AP135: 0 | AR135: 45568 | AS135: 45568 | AT135: 0 | AV135: 0 | AW135: 0 | AX135: 0 | AZ135: 0 | BA135: 0 | BB135: 0 | BD135: 0 | BE135: 0 | BF135: 0 | BH135: 1592814.18 | BI135: 1592814.179 | BJ135: 0.001291603548 | BL135: 0 | BM135: 0 | BN135: 0 | BP135: 1592814.18 | BQ135: 1592814.179 | BR135: 0.001291603548 | BV135: 0 | BX135: 216675.21 | BY135: 216675.2052 | BZ135: 0 | CB135: 9799.92 | CC135: 9799.92 | CD135: 0 | CF135: 1679313.4 | CH135: 1679313 | CI135: 0.05430590865 | CJ135: 1711988.31 | CL135: 1711988 | CM135: 0.0194573032
A136: 3053 | B136: St Peter's Church of England Primary School | D136: St Peter's Church of England Primary School | E136: 0 | F136: 1 | H136: 707693.55 | I136: 707693.5483 | J136: 0.0016933023 | L136: 32127.69 | M136: 32127.68802 | N136: 0.001979821707 | P136: 24053.81 | Q136: 24053.81341 | R136: -0.003410518118 | T136: 42847.52 | U136: 42847.52335 | V136: -0.003345990546 | X136: 0 | Y136: 0 | Z136: 0 | AB136: 125894.71 | AC136: 125894.7077 | AD136: 0.002290411983 | AF136: 0 | AG136: 0 | AH136: 0 | AJ136: 0 | AK136: 0 | AL136: 0 | AN136: 0 | AO136: 0 | AP136: 0 | AR136: 36677 | AS136: 36677 | AT136: 0 | AV136: 0 | AW136: 0 | AX136: 0 | AZ136: 0 | BA136: 0 | BB136: 0 | BD136: 0 | BE136: 0 | BF136: 0 | BH136: 969294.28 | BI136: 969294.2808 | BJ136: -0.0007929727435 | BL136: 0 | BM136: 0 | BN136: 0 | BP136: 969294.28 | BQ136: 969294.2808 | BR136: -0.0007929727435 | BV136: 0 | BX136: 93291.08 | BY136: 93291.08004 | BZ136: 0 | CB136: 5952.96 | CC136: 5952.96 | CD136: 0 | CF136: 1021143.55 | CH136: 1021144 | CI136: 0.05349177255 | CJ136: 1040832.88 | CL136: 1040833 | CM136: 0.01928164752
